Workbook

Sheet MENU
L4: =+TABLAS!A81 -> 1-2-3-T--------
L5: =+TABLAS!A117 -> 1-2-3-T--------
L6: =+TABLAS!A152 -> 1-2-3-T--------
L7: =+TABLAS!A190 -> 1-2-3-T--------
L8: =+TABLAS!A225 -> 1-2-3-T--------
L9: =+GETPIVOTDATA("Suma de total",TABLAS!$A$242) -> 0
H27: CONTROL DE MESES
H29: =+TABLAS!A190 -> 1-2-3-T--------

Sheet TABLAS (hidden)
C8: Valores | I8: Tabla | J8: =IF(I9="(Todas)","CUSCO ","") -> 
C9: RED | D9: 03 - LA CONVENCION | I9: =IF(MID(D9,1,2)="99","(All)",MID(D9,1,2)) -> 03 | J9: =IF(I9="(All)"," ",I9) -> 03 | M9: =LEN(MID(D9,5,90)) -> 14 | O9: =IF(MID(D9,6,5)="(All)","",D9) -> 03 - LA CONVENCION
C10: Micro RED | D10: 0399 - (All) | I10: =IF(MID(D10,3,2)="99","(All)",MID(D10,1,4)) -> (All) | M10: =LEN(MID(D10,7,90)) -> 6 | O10: =IF(MID(D10,8,5)="(All)","",D10) -> 
C11: Establecimiento | D11: 999999999 - (All) | I11: =IF(OR(MID(D11,1,9)="999999999",MID(D11,1,9)="000000000"),"(All)",MID(D11,1,9)) -> (All) | M11: =LEN(MID(D11,12,90)) -> 6 | O11: =IF(MID(D11,13,5)="(All)","",D11) ->  | Q11: =MID(O11,1,9) -> 
C12: Provincia | D12: 00 - (All) | I12: =IF(MID(D12,1,2)="00","(All)",MID(D12,1,2)) -> (All) | M12: =LEN(MID(D12,6,90)) -> 5 | O12: =IF(MID(D12,6,5)="(All)","",D12) -> 
C13: Distrito | D13: 0000 - (All) | I13: =IF(OR(MID(D13,1,4)="0000",MID(D13,3,2)="00"),"(All)",MID(D13,1,4)) -> (All) | M13: =LEN(MID(D13,8,90)) -> 5 | O13: =IF(MID(D13,8,5)="(All)","",D13) -> 
C14: Ejecutira | D14: 99 - (ALL) | I14: =IF(MID(D14,1,2)="99","(All)",MID(D14,1,2)) -> (All) | M14: =LEN(MID(D14,5,90)) -> 6 | O14: =IF(MID(D14,6,5)="(All)","",D14) -> 
C16: Año | D16: 2025 | I16: =+D16 -> 2025 | J16: =IF(I16="(Todas)"," ",I16) -> 2025
B20: 1 | C20: 1 | D20: 1 | E20: 0 | F20: 0 | G20: 0 | H20: 0 | I20: 0 | J20: 0 | K20: 0 | L20: 0 | M20: 0 | N20: =SUM(B20:M20) -> 3
B21: =IF(B20=1,"ENERO","") -> ENERO | C21: =IF(C20=1,"FEBRERO","") -> FEBRERO | D21: =IF(D20=1,"MARZO","") -> MARZO | E21: =IF(E20=1,"ABRIL","") ->  | F21: =IF(F20=1,"MAYO","") ->  | G21: =IF(G20=1,"JUNIO","") ->  | H21: =IF(H20=1,"JULIO","") ->  | I21: =IF(I20=1,"AGOSTO","") ->  | J21: =IF(J20=1,"SETIEMBRE","") ->  | K21: =IF(K20=1,"OCTUBRE","") ->  | L21: =IF(L20=1,"NOVIEMBRE","") ->  | M21: =IF(M20=1,"DICIEMBRE","") ->  | N21: =IF(B20=1,B21,IF(C20=1,C21,IF(D20=1,D21,IF(E20=1,E21,IF(F20=1,F21,IF(G20=1,G21,IF(H20=1,H21,IF(I20=1,I21,IF(J20=1,J21,IF(K20=1,K21,IF(L20=1,L21,IF(M20=1,M21,"")))))))))))) -> ENERO
N22: =IF(N20=1,N21,"") -> 
B23: 2 | C23: 4 | D23: 6 | N23: =MIN(B23:M23) -> 2 | O23: =MAX(B23:M23) -> 6 | P23: =MAX(C23:N23) -> 6
B24: =IF(B23=2,"ENE","") -> ENE | C24: =IF(C23=4,"FEB","") -> FEB | D24: =IF(D23=6,"MAR","") -> MAR | E24: =IF(E23=8,"ABR","") ->  | F24: =IF(F23=10,"MAY","") ->  | G24: =IF(G23=12,"JUN","") ->  | H24: =IF(H23=14,"JUL","") ->  | I24: =IF(I23=16,"AGO","") ->  | J24: =IF(J23=18,"SET","") ->  | K24: =IF(K23=20,"OCT","") ->  | L24: =IF(L23=22,"NOV","") ->  | M24: =IF(M23=24,"DIC","") ->  | N24: =IF(N23=B23,B24,IF(N23=C23,C24,IF(N23=D23,D24,IF(N23=E23,E24,IF(N23=F23,F24,IF(N23=G23,G24,IF(N23=H23,#REF!,IF(N23=I23,I24,IF(N23=J23,J24,IF(N23=K23,K24,IF(N23=L23,L24,IF(N23=M23,M24,"")))))))))))) -> ENE | O24: =IF(O23=C23,C24,IF(O23=D23,D24,IF(O23=E23,E24,IF(O23=F23,F24,IF(O23=G23,G24,IF(O23=H23,H24,IF(O23=I23,I24,IF(O23=J23,J24,IF(O23=K23,K24,IF(O23=L23,L24,IF(O23=M23,M24,""))))))))))) -> MAR | P24: =IF(P23=D23,D24,IF(P23=E23,E24,IF(P23=F23,F24,IF(P23=G23,G24,IF(P23=H23,H24,IF(P23=I23,I24,IF(P23=J23,J24,IF(P23=K23,K24,IF(P23=L23,L24,IF(P23=M23,M24,IF(P23=N23,N24,""))))))))))) -> MAR
N25: =CONCATENATE(N24," - ",O24) -> ENE - MAR
N26: =IF(N23=O23,N22,N25) -> ENE - MAR
A50: TUBERCU_0011
A51: ANNO | B51: 2025
A52: cod_red | B52: 03
A53: codmic | B53: (Todas)
A54: cod_prov | B54: (Todas)
A55: coddist | B55: (Todas)
A56: cod_estab | B56: (Todas)
A57: cod_eje | B57: (Todas)
B59: Valores
A60: Etiquetas de fila | B60: BAS001 | C60: BAS002 | D60: BAS003 | E60: BAS004 | F60: BAS005 | G60: BAS006 | H60: BAS007 | I60: BAS008 | J60: BAS009 | K60: BAS010 | L60: BAS011 | M60: BAS012 | N60: BAS013 | O60: BAS014 | P60: BAS015 | Q60: BAS016 | R60: BAS017 | S60: BAS018 | T60: BAS019 | U60: BAS020 | V60: BAS021 | W60: BAS022 | X60: BAS023 | Y60: BAS024 | Z60: BAS025 | AA60: BAS026 | AB60: BAS027 | AC60: BAS028 | AD60: BAS029 | AE60: BAS030 | AF60: BAS031 | AG60: BAS032 | AH60: BAS033 | AI60: BAS034 | AJ60: BAS035 | AK60: BAS036 | AL60: BAS037 | AM60: BAS038 | AN60: BAS039 | AO60: BAS040 | AP60: BAS041 | AQ60: BAS042 | AR60: BAS043 | AS60: BAS044 | AT60: BAS045 | AU60: BAS046 | AV60: BAS047 | AW60: BAS048 | AX60: BAS049 | AY60: BAS050 | AZ60: BAS051 | BA60: BAS052 | BB60: BAS053 | BC60: BAS054 | BD60: BAS055 | BE60: BAS056 | BF60: BAS057 | BG60: BAS058 | BH60: BAS059 | BI60: BAS060 | BJ60: BAS061 | BK60: BAS062 | BL60: BAS063 | BM60: BAS064 | BN60: BAS065 | BO60: BAS066 | BP60: BAS067 | BQ60: BAS068 | BR60: BAS069 | BS60: BAS070 | BT60: BAS071 | BU60: BAS072 | BV60: BAS073 | BW60: BAS074 | BX60: BAS075 | BY60: BAS076 | BZ60: BAS077 | CA60: BAS078 | CB60: BAS079 | CC60: BAS080 | CD60: BAS081 | CE60: BAS082 | CF60: BAS083 | CG60: BAS084 | CH60: BAS085 | CI60: BAS086 | CJ60: BAS087 | CK60: BAS088 | CL60: BAS089 | CM60: BAS090 | CN60: BAS091 | CO60: BAS092 | CP60: BAS093 | CQ60: BAS094 | CR60: BAS095 | CS60: BAS096 | CT60: BAS097 | CU60: BAS098 | CV60: BAS099 | CW60: BAS100 | CX60: BAS101 | CY60: BAS102 | CZ60: BAS103 | DA60: BAS104 | DB60: BAS105 | DC60: BAS106 | DD60: BAS107 | DE60: BAS108 | DF60: BAS109 | DG60: BAS110 | DH60: BAS111 | DI60: BAS112 | DJ60: BAS113 | DK60: BAS114 | DL60: BAS115 | DM60: BAS116 | DN60: BAS117 | DO60: BAS118 | DP60: BAS119 | DQ60: BAS120 | DR60: BAS121 | DS60: BAS122 | DT60: BAS123 | DU60: BAS124 | DV60: BAS125 | DW60: BAS126 | DX60: BAS127 | DY60: BAS128 | DZ60: BAS129 | EA60: BAS130 | EB60: BAS131 | EC60: BAS132 | ED60: BAS133 | EE60: BAS134 | EF60: BAS135 | EG60: BAS136 | EH60: BAS137 | EI60: BAS138 | EJ60: BAS139 | EK60: BAS140 | EL60: BAS141 | EM60: BAS142 | EN60: BAS143 | EO60: BAS144 | EP60: BAS145 | EQ60: BAS146 | ER60: BAS147 | ES60: BAS148 | ET60: BAS149 | EU60: BAS150 | EV60: BAS151 | EW60: BAS152 | EX60: BAS153 | EY60: BAS154 | EZ60: BAS155 | FA60: BAS156 | FB60: BAS157 | FC60: BAS158 | FD60: BAS159 | FE60: BAS160 | FF60: BAS161 | FG60: BAS162 | FH60: BAS163 | FI60: BAS164 | FJ60: BAS165 | FK60: BAS166 | FL60: BAS167 | FM60: BAS168 | FN60: BAS169 | FO60: BAS170 | FP60: BAS171 | FQ60: BAS172 | FR60: BAS173 | FS60: BAS174 | FT60: BAS175 | FU60: BAS176 | FV60: BAS177 | FW60: BAS178 | FX60: BAS179 | FY60: BAS180 | FZ60: BAS181 | GA60: BAS182 | GB60: BAS183 | GC60: BAS184 | GD60: BAS185 | GE60: BAS186 | GF60: BAS187 | GG60: BAS188 | GH60: BAS189 | GI60: BAS190 | GJ60: BAS191 | GK60: BAS192 | GL60: BAS193 | GM60: BAS194 | GN60: BAS195 | GO60: BAS196 | GP60: BAS197 | GQ60: BAS198 | GR60: BAS199 | GS60: BAS200 | GT60: BAS201 | GU60: BAS202 | GV60: BAS203 | GW60: BAS204 | GX60: BAS205 | GY60: BAS206 | GZ60: BAS207 | HA60: BAS208 | HB60: BAS209 | HC60: BAS210 | HD60: BAS211 | HE60: BAS212 | HF60: BAS213 | HG60: BAS214 | HH60: BAS215 | HI60: BAS216 | HJ60: BAS217 | HK60: BAS218 | HL60: BAS219 | HM60: BAS220 | HN60: BAS221 | HO60: BAS222 | HP60: BAS223 | HQ60: BAS224 | HR60: BAS225 | HS60: BAS226 | HT60: BAS227 | HU60: BAS228 | HV60: BAS229 | HW60: BAS230
A61: 1 | B61: 29 | C61: 0 | D61: 0 | E61: 0 | F61: 0 | G61: 0 | H61: 0 | I61: 0 | J61: 0 | K61: 0 | L61: 0 | M61: 0 | N61: 0 | O61: 0 | P61: 0 | Q61: 1 | R61: 0 | S61: 0 | T61: 0 | U61: 0 | V61: 0 | W61: 0 | X61: 0 | Y61: 0 | Z61: 0 | AA61: 0 | AB61: 0 | AC61: 54 | AD61: 0 | AE61: 1 | AF61: 0 | AG61: 0 | AH61: 0 | AI61: 3 | AJ61: 1 | AK61: 0 | AL61: 0 | AM61: 0 | AN61: 12 | AO61: 0 | AP61: 3 | AQ61: 0 | AR61: 0 | AS61: 0 | AT61: 0 | AU61: 0 | AV61: 0 | AW61: 1 | AX61: 0 | AY61: 0 | AZ61: 0 | BA61: 0 | BB61: 0 | BC61: 0 | BD61: 0 | BE61: 0 | BF61: 1 | BG61: 0 | BH61: 0 | BI61: 0 | BJ61: 0 | BK61: 0 | BL61: 0 | BM61: 0 | BN61: 0 | BO61: 0 | BP61: 0 | BQ61: 0 | BR61: 0 | BS61: 0 | BT61: 0 | BU61: 0 | BV61: 0 | BW61: 0 | BX61: 0 | BY61: 0 | BZ61: 0 | CA61: 0 | CB61: 0 | CC61: 0 | CD61: 0 | CE61: 0 | CF61: 0 | CG61: 12 | CH61: 0 | CI61: 0 | CJ61: 0 | CK61: 0 | CL61: 0 | CM61: 0 | CN61: 0 | CO61: 0 | CP61: 0 | CQ61: 0 | CR61: 0 | CS61: 0 | CT61: 0 | CU61: 0 | CV61: 0 | CW61: 0 | CX61: 0 | CY61: 0 | CZ61: 0 | DA61: 4 | DB61: 3 | DC61: 0 | DD61: 0 | DE61: 0 | DF61: 0 | DG61: 0 | DH61: 0 | DI61: 0 | DJ61: 0 | DK61: 3 | DL61: 3 | DM61: 0 | DN61: 0 | DO61: 0 | DP61: 2 | DQ61: 0 | DR61: 0 | DS61: 0 | DT61: 0 | DU61: 0 | DV61: 0 | DW61: 0 | DX61: 0 | DY61: 0 | DZ61: 0 | EA61: 0 | EB61: 0 | EC61: 0 | ED61: 0 | EE61: 0 | EF61: 0 | EG61: 0 | EH61: 0 | EI61: 0 | EJ61: 0 | EK61: 0 | EL61: 0 | EM61: 0 | EN61: 0 | EO61: 0 | EP61: 0 | EQ61: 0 | ER61: 0 | ES61: 0 | ET61: 0 | EU61: 0 | EV61: 0 | EW61: 0 | EX61: 0 | EY61: 0 | EZ61: 0 | FA61: 0 | FB61: 0 | FC61: 0 | FD61: 0 | FE61: 0 | FF61: 0 | FG61: 0 | FH61: 0 | FI61: 0 | FJ61: 0 | FK61: 0 | FL61: 0 | FM61: 0 | FN61: 0 | FO61: 0 | FP61: 0 | FQ61: 0 | FR61: 0 | FS61: 0 | FT61: 0 | FU61: 0 | FV61: 0 | FW61: 0 | FX61: 0 | FY61: 0 | FZ61: 0 | GA61: 0 | GB61: 0 | GC61: 0 | GD61: 0 | GE61: 0 | GF61: 0 | GG61: 0 | GH61: 0 | GI61: 0 | GJ61: 0 | GK61: 0 | GL61: 0 | GM61: 0 | GN61: 0 | GO61: 0 | GP61: 0 | GQ61: 0 | GR61: 0 | GS61: 0 | GT61: 0 | GU61: 0 | GV61: 0 | GW61: 0 | GX61: 0 | GY61: 0 | GZ61: 0 | HA61: 0 | HB61: 0 | HC61: 0 | HD61: 0 | HE61: 0 | HF61: 0 | HG61: 0 | HH61: 0 | HI61: 0 | HJ61: 0 | HK61: 0 | HL61: 0 | HM61: 0 | HN61: 0 | HO61: 0 | HP61: 0 | HQ61: 0 | HR61: 0 | HS61: 0 | HT61: 0 | HU61: 0 | HV61: 0 | HW61: 0
A62: 2 | B62: 18 | C62: 0 | D62: 0 | E62: 0 | F62: 0 | G62: 0 | H62: 0 | I62: 0 | J62: 0 | K62: 0 | L62: 0 | M62: 0 | N62: 0 | O62: 0 | P62: 0 | Q62: 0 | R62: 0 | S62: 0 | T62: 0 | U62: 0 | V62: 0 | W62: 0 | X62: 0 | Y62: 0 | Z62: 0 | AA62: 0 | AB62: 0 | AC62: 50 | AD62: 0 | AE62: 1 | AF62: 0 | AG62: 0 | AH62: 0 | AI62: 0 | AJ62: 0 | AK62: 0 | AL62: 0 | AM62: 0 | AN62: 14 | AO62: 0 | AP62: 0 | AQ62: 0 | AR62: 0 | AS62: 0 | AT62: 0 | AU62: 0 | AV62: 0 | AW62: 4 | AX62: 0 | AY62: 0 | AZ62: 0 | BA62: 0 | BB62: 0 | BC62: 0 | BD62: 0 | BE62: 0 | BF62: 1 | BG62: 0 | BH62: 0 | BI62: 0 | BJ62: 0 | BK62: 0 | BL62: 0 | BM62: 0 | BN62: 0 | BO62: 0 | BP62: 0 | BQ62: 0 | BR62: 0 | BS62: 0 | BT62: 0 | BU62: 0 | BV62: 0 | BW62: 0 | BX62: 0 | BY62: 0 | BZ62: 0 | CA62: 0 | CB62: 0 | CC62: 0 | CD62: 0 | CE62: 0 | CF62: 0 | CG62: 14 | CH62: 0 | CI62: 0 | CJ62: 0 | CK62: 0 | CL62: 0 | CM62: 0 | CN62: 0 | CO62: 0 | CP62: 0 | CQ62: 0 | CR62: 0 | CS62: 0 | CT62: 0 | CU62: 0 | CV62: 0 | CW62: 0 | CX62: 0 | CY62: 0 | CZ62: 0 | DA62: 5 | DB62: 1 | DC62: 0 | DD62: 0 | DE62: 0 | DF62: 0 | DG62: 0 | DH62: 0 | DI62: 0 | DJ62: 0 | DK62: 4 | DL62: 1 | DM62: 0 | DN62: 0 | DO62: 0 | DP62: 1 | DQ62: 0 | DR62: 0 | DS62: 0 | DT62: 0 | DU62: 0 | DV62: 0 | DW62: 0 | DX62: 0 | DY62: 0 | DZ62: 0 | EA62: 0 | EB62: 0 | EC62: 0 | ED62: 0 | EE62: 0 | EF62: 0 | EG62: 0 | EH62: 0 | EI62: 0 | EJ62: 0 | EK62: 0 | EL62: 0 | EM62: 0 | EN62: 0 | EO62: 0 | EP62: 0 | EQ62: 0 | ER62: 0 | ES62: 0 | ET62: 0 | EU62: 0 | EV62: 0 | EW62: 0 | EX62: 0 | EY62: 0 | EZ62: 0 | FA62: 0 | FB62: 0 | FC62: 0 | FD62: 0 | FE62: 0 | FF62: 0 | FG62: 0 | FH62: 0 | FI62: 0 | FJ62: 0 | FK62: 0 | FL62: 0 | FM62: 0 | FN62: 0 | FO62: 0 | FP62: 0 | FQ62: 0 | FR62: 0 | FS62: 0 | FT62: 0 | FU62: 0 | FV62: 0 | FW62: 0 | FX62: 0 | FY62: 0 | FZ62: 0 | GA62: 0 | GB62: 0 | GC62: 0 | GD62: 0 | GE62: 0 | GF62: 0 | GG62: 0 | GH62: 0 | GI62: 0 | GJ62: 0 | GK62: 0 | GL62: 0 | GM62: 0 | GN62: 0 | GO62: 0 | GP62: 0 | GQ62: 0 | GR62: 0 | GS62: 0 | GT62: 0 | GU62: 0 | GV62: 0 | GW62: 0 | GX62: 0 | GY62: 0 | GZ62: 0 | HA62: 0 | HB62: 0 | HC62: 0 | HD62: 0 | HE62: 0 | HF62: 0 | HG62: 0 | HH62: 0 | HI62: 0 | HJ62: 0 | HK62: 0 | HL62: 0 | HM62: 0 | HN62: 0 | HO62: 0 | HP62: 0 | HQ62: 0 | HR62: 0 | HS62: 0 | HT62: 0 | HU62: 0 | HV62: 0 | HW62: 0
A63: 3 | B63: 13 | C63: 0 | D63: 0 | E63: 0 | F63: 0 | G63: 0 | H63: 0 | I63: 0 | J63: 0 | K63: 0 | L63: 0 | M63: 0 | N63: 0 | O63: 0 | P63: 0 | Q63: 0 | R63: 0 | S63: 0 | T63: 0 | U63: 0 | V63: 0 | W63: 0 | X63: 0 | Y63: 1 | Z63: 0 | AA63: 0 | AB63: 0 | AC63: 48 | AD63: 0 | AE63: 1 | AF63: 0 | AG63: 0 | AH63: 1 | AI63: 0 | AJ63: 0 | AK63: 0 | AL63: 0 | AM63: 0 | AN63: 15 | AO63: 0 | AP63: 1 | AQ63: 0 | AR63: 0 | AS63: 0 | AT63: 0 | AU63: 0 | AV63: 0 | AW63: 1 | AX63: 0 | AY63: 0 | AZ63: 0 | BA63: 0 | BB63: 0 | BC63: 0 | BD63: 0 | BE63: 0 | BF63: 2 | BG63: 0 | BH63: 0 | BI63: 0 | BJ63: 0 | BK63: 0 | BL63: 0 | BM63: 0 | BN63: 0 | BO63: 0 | BP63: 0 | BQ63: 0 | BR63: 0 | BS63: 0 | BT63: 0 | BU63: 0 | BV63: 0 | BW63: 0 | BX63: 0 | BY63: 0 | BZ63: 0 | CA63: 0 | CB63: 0 | CC63: 0 | CD63: 0 | CE63: 0 | CF63: 0 | CG63: 15 | CH63: 0 | CI63: 0 | CJ63: 0 | CK63: 0 | CL63: 0 | CM63: 0 | CN63: 0 | CO63: 0 | CP63: 0 | CQ63: 0 | CR63: 0 | CS63: 0 | CT63: 0 | CU63: 0 | CV63: 0 | CW63: 0 | CX63: 0 | CY63: 0 | CZ63: 0 | DA63: 6 | DB63: 0 | DC63: 0 | DD63: 0 | DE63: 0 | DF63: 0 | DG63: 0 | DH63: 0 | DI63: 0 | DJ63: 0 | DK63: 2 | DL63: 0 | DM63: 0 | DN63: 0 | DO63: 0 | DP63: 0 | DQ63: 0 | DR63: 0 | DS63: 0 | DT63: 0 | DU63: 0 | DV63: 0 | DW63: 0 | DX63: 0 | DY63: 0 | DZ63: 0 | EA63: 0 | EB63: 0 | EC63: 0 | ED63: 0 | EE63: 0 | EF63: 0 | EG63: 0 | EH63: 0 | EI63: 0 | EJ63: 0 | EK63: 0 | EL63: 0 | EM63: 0 | EN63: 0 | EO63: 0 | EP63: 0 | EQ63: 0 | ER63: 0 | ES63: 0 | ET63: 0 | EU63: 0 | EV63: 0 | EW63: 0 | EX63: 0 | EY63: 0 | EZ63: 0 | FA63: 0 | FB63: 0 | FC63: 0 | FD63: 0 | FE63: 0 | FF63: 0 | FG63: 0 | FH63: 0 | FI63: 0 | FJ63: 0 | FK63: 0 | FL63: 0 | FM63: 0 | FN63: 0 | FO63: 0 | FP63: 0 | FQ63: 0 | FR63: 0 | FS63: 0 | FT63: 0 | FU63: 0 | FV63: 0 | FW63: 0 | FX63: 0 | FY63: 0 | FZ63: 0 | GA63: 0 | GB63: 0 | GC63: 0 | GD63: 0 | GE63: 0 | GF63: 0 | GG63: 0 | GH63: 0 | GI63: 0 | GJ63: 0 | GK63: 0 | GL63: 0 | GM63: 0 | GN63: 0 | GO63: 0 | GP63: 0 | GQ63: 0 | GR63: 0 | GS63: 0 | GT63: 0 | GU63: 0 | GV63: 0 | GW63: 0 | GX63: 0 | GY63: 0 | GZ63: 0 | HA63: 0 | HB63: 0 | HC63: 0 | HD63: 0 | HE63: 0 | HF63: 0 | HG63: 0 | HH63: 0 | HI63: 0 | HJ63: 0 | HK63: 0 | HL63: 0 | HM63: 0 | HN63: 0 | HO63: 0 | HP63: 0 | HQ63: 0 | HR63: 0 | HS63: 0 | HT63: 0 | HU63: 0 | HV63: 0 | HW63: 0
A64: T | B64: 60 | C64: 0 | D64: 0 | E64: 0 | F64: 0 | G64: 0 | H64: 0 | I64: 0 | J64: 0 | K64: 0 | L64: 0 | M64: 0 | N64: 0 | O64: 0 | P64: 0 | Q64: 1 | R64: 0 | S64: 0 | T64: 0 | U64: 0 | V64: 0 | W64: 0 | X64: 0 | Y64: 1 | Z64: 0 | AA64: 0 | AB64: 0 | AC64: 152 | AD64: 0 | AE64: 3 | AF64: 0 | AG64: 0 | AH64: 1 | AI64: 3 | AJ64: 1 | AK64: 0 | AL64: 0 | AM64: 0 | AN64: 41 | AO64: 0 | AP64: 4 | AQ64: 0 | AR64: 0 | AS64: 0 | AT64: 0 | AU64: 0 | AV64: 0 | AW64: 6 | AX64: 0 | AY64: 0 | AZ64: 0 | BA64: 0 | BB64: 0 | BC64: 0 | BD64: 0 | BE64: 0 | BF64: 4 | BG64: 0 | BH64: 0 | BI64: 0 | BJ64: 0 | BK64: 0 | BL64: 0 | BM64: 0 | BN64: 0 | BO64: 0 | BP64: 0 | BQ64: 0 | BR64: 0 | BS64: 0 | BT64: 0 | BU64: 0 | BV64: 0 | BW64: 0 | BX64: 0 | BY64: 0 | BZ64: 0 | CA64: 0 | CB64: 0 | CC64: 0 | CD64: 0 | CE64: 0 | CF64: 0 | CG64: 41 | CH64: 0 | CI64: 0 | CJ64: 0 | CK64: 0 | CL64: 0 | CM64: 0 | CN64: 0 | CO64: 0 | CP64: 0 | CQ64: 0 | CR64: 0 | CS64: 0 | CT64: 0 | CU64: 0 | CV64: 0 | CW64: 0 | CX64: 0 | CY64: 0 | CZ64: 0 | DA64: 15 | DB64: 4 | DC64: 0 | DD64: 0 | DE64: 0 | DF64: 0 | DG64: 0 | DH64: 0 | DI64: 0 | DJ64: 0 | DK64: 9 | DL64: 4 | DM64: 0 | DN64: 0 | DO64: 0 | DP64: 3 | DQ64: 0 | DR64: 0 | DS64: 0 | DT64: 0 | DU64: 0 | DV64: 0 | DW64: 0 | DX64: 0 | DY64: 0 | DZ64: 0 | EA64: 0 | EB64: 0 | EC64: 0 | ED64: 0 | EE64: 0 | EF64: 0 | EG64: 0 | EH64: 0 | EI64: 0 | EJ64: 0 | EK64: 0 | EL64: 0 | EM64: 0 | EN64: 0 | EO64: 0 | EP64: 0 | EQ64: 0 | ER64: 0 | ES64: 0 | ET64: 0 | EU64: 0 | EV64: 0 | EW64: 0 | EX64: 0 | EY64: 0 | EZ64: 0 | FA64: 0 | FB64: 0 | FC64: 0 | FD64: 0 | FE64: 0 | FF64: 0 | FG64: 0 | FH64: 0 | FI64: 0 | FJ64: 0 | FK64: 0 | FL64: 0 | FM64: 0 | FN64: 0 | FO64: 0 | FP64: 0 | FQ64: 0 | FR64: 0 | FS64: 0 | FT64: 0 | FU64: 0 | FV64: 0 | FW64: 0 | FX64: 0 | FY64: 0 | FZ64: 0 | GA64: 0 | GB64: 0 | GC64: 0 | GD64: 0 | GE64: 0 | GF64: 0 | GG64: 0 | GH64: 0 | GI64: 0 | GJ64: 0 | GK64: 0 | GL64: 0 | GM64: 0 | GN64: 0 | GO64: 0 | GP64: 0 | GQ64: 0 | GR64: 0 | GS64: 0 | GT64: 0 | GU64: 0 | GV64: 0 | GW64: 0 | GX64: 0 | GY64: 0 | GZ64: 0 | HA64: 0 | HB64: 0 | HC64: 0 | HD64: 0 | HE64: 0 | HF64: 0 | HG64: 0 | HH64: 0 | HI64: 0 | HJ64: 0 | HK64: 0 | HL64: 0 | HM64: 0 | HN64: 0 | HO64: 0 | HP64: 0 | HQ64: 0 | HR64: 0 | HS64: 0 | HT64: 0 | HU64: 0 | HV64: 0 | HW64: 0
A79: TOTAL
A80: =COUNT(A61:A77) -> 3 | B80: =SUM(B61:B77) -> 120 | C80: =SUM(C61:C77) -> 0 | D80: 0 | E80: 0 | F80: 0 | G80: 0 | H80: 0 | I80: 0 | J80: 0 | K80: 0 | L80: 0 | M80: 0 | N80: 0 | O80: 0 | P80: 0 | Q80: 2 | R80: 0 | S80: 0 | T80: 0 | U80: 0 | V80: 0 | W80: 0 | X80: 0 | Y80: 2 | Z80: 0 | AA80: 0 | AB80: 0 | AC80: 304 | AD80: 0 | AE80: 6 | AF80: 0 | AG80: 0 | AH80: 2 | AI80: 6 | AJ80: 2 | AK80: 0 | AL80: 0 | AM80: 0 | AN80: 82 | AO80: 0 | AP80: 8 | AQ80: 0 | AR80: 0 | AS80: 0 | AT80: 0 | AU80: 0 | AV80: 0 | AW80: 12 | AX80: 0 | AY80: 0 | AZ80: 0 | BA80: 0 | BB80: 0 | BC80: 0 | BD80: 0 | BE80: 0 | BF80: 8 | BG80: 0 | BH80: 0 | BI80: 0 | BJ80: 0 | BK80: 0 | BL80: 0 | BM80: 0 | BN80: 0 | BO80: =SUM(BO61:BO77) -> 0 | BP80: 0 | BQ80: 0 | BR80: 0 | BS80: 0 | BT80: 0 | BU80: 0 | BV80: 0 | BW80: 0 | BX80: 0 | BY80: 0 | BZ80: 0 | CA80: 0 | CB80: 0 | CC80: 0 | CD80: 0 | CE80: 0 | CF80: 0 | CG80: 82 | CH80: 0 | CI80: 0 | CJ80: 0 | CK80: 0 | CL80: 0 | CM80: 0 | CN80: 0 | CO80: 0 | CP80: 0 | CQ80: 0 | CR80: 0 | CS80: 0 | CT80: 0 | CU80: 0 | CV80: 0 | CW80: 0 | CX80: 0 | CY80: 0 | CZ80: 0 | DA80: 30 | DB80: 8 | DC80: 0 | DD80: 0 | DE80: 0 | DF80: 0 | DG80: 0 | DH80: 0 | DI80: 0 | DJ80: 0 | DK80: 18 | DL80: 8 | DM80: 0 | DN80: 0 | DO80: 0 | DP80: 6 | DQ80: 0 | DR80: 0 | DS80: 0 | DT80: 0 | DU80: 0 | DV80: 0 | DW80: 0 | DX80: 0 | DY80: 0 | DZ80: 0 | EA80: =SUM(EA61:EA77) -> 0 | EB80: 0 | EC80: 0 | ED80: 0 | EE80: 0 | EF80: 0 | EG80: 0 | EH80: 0 | EI80: 0 | EJ80: 0 | EK80: 0 | EL80: 0 | EM80: 0 | EN80: 0 | EO80: 0 | EP80: 0 | EQ80: 0 | ER80: 0 | ES80: 0 | ET80: 0 | EU80: 0 | EV80: 0 | EW80: 0 | EX80: 0 | EY80: 0 | EZ80: 0 | FA80: 0 | FB80: 0 | FC80: 0 | FD80: 0 | FE80: 0 | FF80: 0 | FG80: 0 | FH80: 0 | FI80: 0 | FJ80: 0 | FK80: 0 | FL80: 0 | FM80: 0 | FN80: 0 | FO80: 0 | FP80: 0 | FQ80: 0 | FR80: 0 | FS80: 0 | FT80: 0 | FU80: 0 | FV80: 0 | FW80: 0 | FX80: 0 | FY80: 0 | FZ80: 0 | GA80: 0 | GB80: 0 | GC80: 0 | GD80: 0 | GE80: 0 | GF80: 0 | GG80: 0 | GH80: 0 | GI80: 0 | GJ80: 0 | GK80: 0 | GL80: 0 | GM80: =SUM(GM61:GM77) -> 0 | GN80: 0 | GO80: 0 | GP80: 0 | GQ80: 0 | GR80: 0 | GS80: 0 | GT80: 0 | GU80: 0 | GV80: 0 | GW80: 0 | GX80: 0 | GY80: 0 | GZ80: 0 | HA80: 0 | HB80: 0 | HC80: 0 | HD80: 0 | HE80: 0 | HF80: 0 | HG80: 0 | HH80: 0 | HI80: 0 | HJ80: 0 | HK80: 0 | HL80: 0 | HM80: 0 | HN80: 0 | HO80: 0 | HP80: 0 | HQ80: 0 | HR80: 0 | HS80: 0 | HT80: 0 | HU80: 0 | HV80: 0 | HW80: 0 | HX80: 0
A81: =CONCATENATE(A61,"-",A62,"-",A63,"-",A64,"-",A65,"-",A66,"-",A67,"-",A68,"-",A69,"-",A70,"-",A71,"-",A72) -> 1-2-3-T--------
B82: BAS001 | C82: BAS002 | D82: BAS003 | E82: BAS004 | F82: BAS005 | G82: BAS006 | H82: BAS007 | I82: BAS008 | J82: BAS009 | K82: BAS010 | L82: BAS011 | M82: BAS012 | N82: BAS013 | O82: BAS014 | P82: BAS015 | Q82: BAS016 | R82: BAS017 | S82: BAS018 | T82: BAS019 | U82: BAS020 | V82: BAS021 | W82: BAS022 | X82: BAS023 | Y82: BAS024 | Z82: BAS025 | AA82: BAS026 | AB82: BAS027 | AC82: BAS028 | AD82: BAS029 | AE82: BAS030 | AF82: BAS031 | AG82: BAS032 | AH82: BAS033 | AI82: BAS034 | AJ82: BAS035 | AK82: BAS036 | AL82: BAS037 | AM82: BAS038 | AN82: BAS039 | AO82: BAS040 | AP82: BAS041 | AQ82: BAS042 | AR82: BAS043 | AS82: BAS044 | AT82: BAS045 | AU82: BAS046 | AV82: BAS047 | AW82: BAS048 | AX82: BAS049 | AY82: BAS050 | AZ82: BAS051 | BA82: BAS052 | BB82: BAS053 | BC82: BAS054 | BD82: BAS055 | BE82: BAS056 | BF82: BAS057 | BG82: BAS058 | BH82: BAS059 | BI82: BAS060 | BJ82: BAS061 | BK82: BAS062 | BL82: BAS063 | BM82: BAS064 | BN82: BAS065 | BO82: BAS066 | BP82: BAS067 | BQ82: BAS068 | BR82: BAS069 | BS82: BAS070 | BT82: BAS071 | BU82: BAS072 | BV82: BAS073 | BW82: BAS074 | BX82: BAS075 | BY82: BAS076 | BZ82: BAS077 | CA82: BAS078 | CB82: BAS079 | CC82: BAS080 | CD82: BAS081 | CE82: BAS082 | CF82: BAS083 | CG82: BAS084 | CH82: BAS085 | CI82: BAS086 | CJ82: BAS087 | CK82: BAS088 | CL82: BAS089 | CM82: BAS090 | CN82: BAS091 | CO82: BAS092 | CP82: BAS093 | CQ82: BAS094 | CR82: BAS095 | CS82: BAS096 | CT82: BAS097 | CU82: BAS098 | CV82: BAS099 | CW82: BAS100 | CX82: BAS101 | CY82: BAS102 | CZ82: BAS103 | DA82: BAS104 | DB82: BAS105 | DC82: BAS106 | DD82: BAS107 | DE82: BAS108 | DF82: BAS109 | DG82: BAS110 | DH82: BAS111 | DI82: BAS112 | DJ82: BAS113 | DK82: BAS114 | DL82: BAS115 | DM82: BAS116 | DN82: BAS117 | DO82: BAS118 | DP82: BAS119 | DQ82: BAS120 | DR82: BAS121 | DS82: BAS122 | DT82: BAS123 | DU82: BAS124 | DV82: BAS125 | DW82: BAS126 | DX82: BAS127 | DY82: BAS128 | DZ82: BAS129 | EA82: BAS130 | EB82: BAS131 | EC82: BAS132 | ED82: BAS133 | EE82: BAS134 | EF82: BAS135 | EG82: BAS136 | EH82: BAS137 | EI82: BAS138 | EJ82: BAS139 | EK82: BAS140 | EL82: BAS141 | EM82: BAS142 | EN82: BAS143 | EO82: BAS144 | EP82: BAS145 | EQ82: BAS146 | ER82: BAS147 | ES82: BAS148 | ET82: BAS149 | EU82: BAS150 | EV82: BAS151 | EW82: BAS152 | EX82: BAS153 | EY82: BAS154 | EZ82: BAS155 | FA82: BAS156 | FB82: BAS157 | FC82: BAS158 | FD82: BAS159 | FE82: BAS160 | FF82: BAS161 | FG82: BAS162 | FH82: BAS163 | FI82: BAS164 | FJ82: BAS165 | FK82: BAS166 | FL82: BAS167 | FM82: BAS168 | FN82: BAS169 | FO82: BAS170 | FP82: BAS171 | FQ82: BAS172 | FR82: BAS173 | FS82: BAS174 | FT82: BAS175 | FU82: BAS176 | FV82: BAS177 | FW82: BAS178 | FX82: BAS179 | FY82: BAS180 | FZ82: BAS181 | GA82: BAS182 | GB82: BAS183 | GC82: BAS184 | GD82: BAS185 | GE82: BAS186 | GF82: BAS187 | GG82: BAS188 | GH82: BAS189 | GI82: BAS190 | GJ82: BAS191 | GK82: BAS192 | GL82: BAS193 | GM82: BAS194 | GN82: BAS195 | GO82: BAS196 | GP82: BAS197 | GQ82: BAS198 | GR82: BAS199 | GS82: BAS200 | GT82: BAS201 | GU82: BAS202 | GV82: BAS203 | GW82: BAS204 | GX82: BAS205 | GY82: BAS206 | GZ82: BAS207 | HA82: BAS208 | HB82: BAS209 | HC82: BAS210 | HD82: BAS211 | HE82: BAS212 | HF82: BAS213 | HG82: BAS214 | HH82: BAS215 | HI82: BAS216 | HJ82: BAS217 | HK82: BAS218 | HL82: BAS219 | HM82: BAS220 | HN82: BAS221 | HO82: BAS222 | HP82: BAS223 | HQ82: BAS224 | HR82: BAS225 | HS82: BAS226 | HT82: BAS227 | HU82: BAS228 | HV82: BAS229 | HW82: BAS230
B83: =IF(B82=B60,"SI","NO") -> SI | C83: =IF(C82=C60,"SI","NO") -> SI | D83: SI | E83: SI | F83: SI | G83: SI | H83: SI | I83: SI | J83: SI | K83: SI | L83: SI | M83: SI | N83: SI | O83: SI | P83: SI | Q83: SI | R83: SI | S83: SI | T83: SI | U83: SI | V83: SI | W83: SI | X83: SI | Y83: SI | Z83: SI | AA83: SI | AB83: SI | AC83: SI | AD83: SI | AE83: SI | AF83: SI | AG83: SI | AH83: SI | AI83: SI | AJ83: SI | AK83: SI | AL83: SI | AM83: SI | AN83: SI | AO83: SI | AP83: SI | AQ83: SI | AR83: SI | AS83: SI | AT83: SI | AU83: SI | AV83: SI | AW83: SI | AX83: SI | AY83: SI | AZ83: SI | BA83: SI | BB83: SI | BC83: SI | BD83: SI | BE83: SI | BF83: SI | BG83: SI | BH83: SI | BI83: SI | BJ83: SI | BK83: SI | BL83: SI | BM83: SI | BN83: SI | BO83: =IF(BO82=BO60,"SI","NO") -> SI | BP83: SI | BQ83: SI | BR83: SI | BS83: SI | BT83: SI | BU83: SI | BV83: SI | BW83: SI | BX83: SI | BY83: SI | BZ83: SI | CA83: SI | CB83: SI | CC83: SI | CD83: SI | CE83: SI | CF83: SI | CG83: SI | CH83: SI | CI83: SI | CJ83: SI | CK83: SI | CL83: SI | CM83: SI | CN83: SI | CO83: SI | CP83: SI | CQ83: SI | CR83: SI | CS83: SI | CT83: SI | CU83: SI | CV83: SI | CW83: SI | CX83: SI | CY83: SI | CZ83: SI | DA83: SI | DB83: SI | DC83: SI | DD83: SI | DE83: SI | DF83: SI | DG83: SI | DH83: SI | DI83: SI | DJ83: SI | DK83: SI | DL83: SI | DM83: SI | DN83: SI | DO83: SI | DP83: SI | DQ83: SI | DR83: SI | DS83: SI | DT83: SI | DU83: SI | DV83: SI | DW83: SI | DX83: SI | DY83: SI | DZ83: SI | EA83: =IF(EA82=EA60,"SI","NO") -> SI | EB83: SI | EC83: SI | ED83: SI | EE83: SI | EF83: SI | EG83: SI | EH83: SI | EI83: SI | EJ83: SI | EK83: SI | EL83: SI | EM83: SI | EN83: SI | EO83: SI | EP83: SI | EQ83: SI | ER83: SI | ES83: SI | ET83: SI | EU83: SI | EV83: SI | EW83: SI | EX83: SI | EY83: SI | EZ83: SI | FA83: SI | FB83: SI | FC83: SI | FD83: SI | FE83: SI | FF83: SI | FG83: SI | FH83: SI | FI83: SI | FJ83: SI | FK83: SI | FL83: SI | FM83: SI | FN83: SI | FO83: SI | FP83: SI | FQ83: SI | FR83: SI | FS83: SI | FT83: SI | FU83: SI | FV83: SI | FW83: SI | FX83: SI | FY83: SI | FZ83: SI | GA83: SI | GB83: SI | GC83: SI | GD83: SI | GE83: SI | GF83: SI | GG83: SI | GH83: SI | GI83: SI | GJ83: SI | GK83: SI | GL83: SI | GM83: =IF(GM82=GM60,"SI","NO") -> SI | GN83: SI | GO83: SI | GP83: SI | GQ83: SI | GR83: SI | GS83: SI | GT83: SI | GU83: SI | GV83: SI | GW83: SI | GX83: SI | GY83: SI | GZ83: SI | HA83: SI | HB83: SI | HC83: SI | HD83: SI | HE83: SI | HF83: SI | HG83: SI | HH83: SI | HI83: SI | HJ83: SI | HK83: SI | HL83: SI | HM83: SI | HN83: SI | HO83: SI | HP83: SI | HQ83: SI | HR83: SI | HS83: SI | HT83: SI | HU83: SI | HV83: SI | HW83: SI | HX83: =IF(HW82=HX60,"SI","NO") -> NO
A86: TUBERCU_1217
A87: ANNO | B87: 2025
A88: cod_red | B88: 03
A89: codmic | B89: (Todas)
A90: cod_prov | B90: (Todas)
A91: coddist | B91: (Todas)
A92: cod_estab | B92: (Todas)
A93: cod_eje | B93: (Todas)
B95: Valores
A96: Etiquetas de fila | B96: BAS001 | C96: BAS002 | D96: BAS003 | E96: BAS004 | F96: BAS005 | G96: BAS006 | H96: BAS007 | I96: BAS008 | J96: BAS009 | K96: BAS010 | L96: BAS011 | M96: BAS012 | N96: BAS013 | O96: BAS014 | P96: BAS015 | Q96: BAS016 | R96: BAS017 | S96: BAS018 | T96: BAS019 | U96: BAS020 | V96: BAS021 | W96: BAS022 | X96: BAS023 | Y96: BAS024 | Z96: BAS025 | AA96: BAS026 | AB96: BAS027 | AC96: BAS028 | AD96: BAS029 | AE96: BAS030 | AF96: BAS031 | AG96: BAS032 | AH96: BAS033 | AI96: BAS034 | AJ96: BAS035 | AK96: BAS036 | AL96: BAS037 | AM96: BAS038 | AN96: BAS039 | AO96: BAS040 | AP96: BAS041 | AQ96: BAS042 | AR96: BAS043 | AS96: BAS044 | AT96: BAS045 | AU96: BAS046 | AV96: BAS047 | AW96: BAS048 | AX96: BAS049 | AY96: BAS050 | AZ96: BAS051 | BA96: BAS052 | BB96: BAS053 | BC96: BAS054 | BD96: BAS055 | BE96: BAS056 | BF96: BAS057 | BG96: BAS058 | BH96: BAS059 | BI96: BAS060 | BJ96: BAS061 | BK96: BAS062 | BL96: BAS063 | BM96: BAS064 | BN96: BAS065 | BO96: BAS066 | BP96: BAS067 | BQ96: BAS068 | BR96: BAS069 | BS96: BAS070 | BT96: BAS071 | BU96: BAS072 | BV96: BAS073 | BW96: BAS074 | BX96: BAS075 | BY96: BAS076 | BZ96: BAS077 | CA96: BAS078 | CB96: BAS079 | CC96: BAS080 | CD96: BAS081 | CE96: BAS082 | CF96: BAS083 | CG96: BAS084 | CH96: BAS085 | CI96: BAS086 | CJ96: BAS087 | CK96: BAS088 | CL96: BAS089 | CM96: BAS090 | CN96: BAS091 | CO96: BAS092 | CP96: BAS093 | CQ96: BAS094 | CR96: BAS095 | CS96: BAS096 | CT96: BAS097 | CU96: BAS098 | CV96: BAS099 | CW96: BAS100 | CX96: BAS101 | CY96: BAS102 | CZ96: BAS103 | DA96: BAS104 | DB96: BAS105 | DC96: BAS106 | DD96: BAS107 | DE96: BAS108 | DF96: BAS109 | DG96: BAS110 | DH96: BAS111 | DI96: BAS112 | DJ96: BAS113 | DK96: BAS114 | DL96: BAS115 | DM96: BAS116 | DN96: BAS117 | DO96: BAS118 | DP96: BAS119 | DQ96: BAS120 | DR96: BAS121 | DS96: BAS122 | DT96: BAS123 | DU96: BAS124 | DV96: BAS125 | DW96: BAS126 | DX96: BAS127 | DY96: BAS128 | DZ96: BAS129 | EA96: BAS130 | EB96: BAS131 | EC96: BAS132 | ED96: BAS133 | EE96: BAS134 | EF96: BAS135 | EG96: BAS136 | EH96: BAS137 | EI96: BAS138 | EJ96: BAS139 | EK96: BAS140 | EL96: BAS141 | EM96: BAS142 | EN96: BAS143 | EO96: BAS144 | EP96: BAS145 | EQ96: BAS146 | ER96: BAS147 | ES96: BAS148 | ET96: BAS149 | EU96: BAS150 | EV96: BAS151 | EW96: BAS152 | EX96: BAS153 | EY96: BAS154 | EZ96: BAS155 | FA96: BAS156 | FB96: BAS157 | FC96: BAS158 | FD96: BAS159 | FE96: BAS160 | FF96: BAS161 | FG96: BAS162 | FH96: BAS163 | FI96: BAS164 | FJ96: BAS165 | FK96: BAS166 | FL96: BAS167 | FM96: BAS168 | FN96: BAS169 | FO96: BAS170 | FP96: BAS171 | FQ96: BAS172 | FR96: BAS173 | FS96: BAS174 | FT96: BAS175 | FU96: BAS176 | FV96: BAS177 | FW96: BAS178 | FX96: BAS179 | FY96: BAS180 | FZ96: BAS181 | GA96: BAS182 | GB96: BAS183 | GC96: BAS184 | GD96: BAS185 | GE96: BAS186 | GF96: BAS187 | GG96: BAS188 | GH96: BAS189 | GI96: BAS190 | GJ96: BAS191 | GK96: BAS192 | GL96: BAS193 | GM96: BAS194 | GN96: BAS195 | GO96: BAS196 | GP96: BAS197 | GQ96: BAS198 | GR96: BAS199 | GS96: BAS200 | GT96: BAS201 | GU96: BAS202 | GV96: BAS203 | GW96: BAS204 | GX96: BAS205 | GY96: BAS206 | GZ96: BAS207 | HA96: BAS208 | HB96: BAS209 | HC96: BAS210 | HD96: BAS211 | HE96: BAS212 | HF96: BAS213 | HG96: BAS214 | HH96: BAS215 | HI96: BAS216 | HJ96: BAS217 | HK96: BAS218 | HL96: BAS219 | HM96: BAS220 | HN96: BAS221 | HO96: BAS222 | HP96: BAS223 | HQ96: BAS224 | HR96: BAS225 | HS96: BAS226 | HT96: BAS227 | HU96: BAS228 | HV96: BAS229 | HW96: BAS230
A97: 1 | B97: 44 | C97: 0 | D97: 0 | E97: 0 | F97: 0 | G97: 0 | H97: 0 | I97: 0 | J97: 0 | K97: 0 | L97: 0 | M97: 0 | N97: 0 | O97: 1 | P97: 1 | Q97: 0 | R97: 0 | S97: 0 | T97: 0 | U97: 0 | V97: 0 | W97: 0 | X97: 0 | Y97: 0 | Z97: 0 | AA97: 0 | AB97: 0 | AC97: 4 | AD97: 0 | AE97: 1 | AF97: 0 | AG97: 0 | AH97: 0 | AI97: 0 | AJ97: 0 | AK97: 0 | AL97: 0 | AM97: 0 | AN97: 1 | AO97: 0 | AP97: 0 | AQ97: 0 | AR97: 0 | AS97: 0 | AT97: 0 | AU97: 0 | AV97: 1 | AW97: 0 | AX97: 0 | AY97: 0 | AZ97: 0 | BA97: 0 | BB97: 0 | BC97: 0 | BD97: 0 | BE97: 0 | BF97: 0 | BG97: 0 | BH97: 0 | BI97: 0 | BJ97: 0 | BK97: 0 | BL97: 0 | BM97: 0 | BN97: 0 | BO97: 0 | BP97: 0 | BQ97: 0 | BR97: 0 | BS97: 0 | BT97: 0 | BU97: 0 | BV97: 0 | BW97: 0 | BX97: 0 | BY97: 0 | BZ97: 0 | CA97: 0 | CB97: 0 | CC97: 0 | CD97: 0 | CE97: 0 | CF97: 0 | CG97: 1 | CH97: 0 | CI97: 0 | CJ97: 0 | CK97: 0 | CL97: 0 | CM97: 0 | CN97: 0 | CO97: 0 | CP97: 0 | CQ97: 0 | CR97: 0 | CS97: 0 | CT97: 0 | CU97: 0 | CV97: 0 | CW97: 0 | CX97: 0 | CY97: 0 | CZ97: 0 | DA97: 11 | DB97: 0 | DC97: 0 | DD97: 0 | DE97: 0 | DF97: 0 | DG97: 0 | DH97: 0 | DI97: 0 | DJ97: 0 | DK97: 7 | DL97: 0 | DM97: 0 | DN97: 0 | DO97: 0 | DP97: 1 | DQ97: 0 | DR97: 0 | DS97: 0 | DT97: 0 | DU97: 0 | DV97: 0 | DW97: 0 | DX97: 0 | DY97: 0 | DZ97: 0 | EA97: 0 | EB97: 0 | EC97: 0 | ED97: 0 | EE97: 0 | EF97: 0 | EG97: 0 | EH97: 0 | EI97: 0 | EJ97: 0 | EK97: 0 | EL97: 0 | EM97: 0 | EN97: 0 | EO97: 0 | EP97: 0 | EQ97: 0 | ER97: 0 | ES97: 0 | ET97: 0 | EU97: 0 | EV97: 0 | EW97: 0 | EX97: 0 | EY97: 0 | EZ97: 0 | FA97: 0 | FB97: 0 | FC97: 0 | FD97: 0 | FE97: 0 | FF97: 0 | FG97: 0 | FH97: 0 | FI97: 0 | FJ97: 0 | FK97: 0 | FL97: 0 | FM97: 0 | FN97: 0 | FO97: 0 | FP97: 0 | FQ97: 0 | FR97: 0 | FS97: 0 | FT97: 0 | FU97: 0 | FV97: 0 | FW97: 0 | FX97: 0 | FY97: 0 | FZ97: 0 | GA97: 0 | GB97: 0 | GC97: 0 | GD97: 0 | GE97: 0 | GF97: 0 | GG97: 0 | GH97: 0 | GI97: 0 | GJ97: 0 | GK97: 0 | GL97: 0 | GM97: 0 | GN97: 0 | GO97: 0 | GP97: 0 | GQ97: 0 | GR97: 0 | GS97: 0 | GT97: 0 | GU97: 0 | GV97: 0 | GW97: 0 | GX97: 0 | GY97: 0 | GZ97: 0 | HA97: 0 | HB97: 0 | HC97: 0 | HD97: 0 | HE97: 0 | HF97: 0 | HG97: 0 | HH97: 0 | HI97: 0 | HJ97: 0 | HK97: 0 | HL97: 0 | HM97: 0 | HN97: 0 | HO97: 0 | HP97: 0 | HQ97: 0 | HR97: 0 | HS97: 0 | HT97: 0 | HU97: 0 | HV97: 0 | HW97: 0
A98: 2 | B98: 52 | C98: 0 | D98: 0 | E98: 0 | F98: 0 | G98: 0 | H98: 0 | I98: 0 | J98: 0 | K98: 0 | L98: 0 | M98: 0 | N98: 0 | O98: 0 | P98: 0 | Q98: 0 | R98: 0 | S98: 0 | T98: 0 | U98: 0 | V98: 0 | W98: 0 | X98: 0 | Y98: 0 | Z98: 0 | AA98: 0 | AB98: 0 | AC98: 0 | AD98: 0 | AE98: 0 | AF98: 0 | AG98: 0 | AH98: 0 | AI98: 0 | AJ98: 0 | AK98: 0 | AL98: 0 | AM98: 0 | AN98: 1 | AO98: 0 | AP98: 0 | AQ98: 0 | AR98: 0 | AS98: 0 | AT98: 0 | AU98: 0 | AV98: 0 | AW98: 2 | AX98: 0 | AY98: 0 | AZ98: 0 | BA98: 0 | BB98: 0 | BC98: 0 | BD98: 0 | BE98: 0 | BF98: 0 | BG98: 0 | BH98: 0 | BI98: 0 | BJ98: 0 | BK98: 0 | BL98: 0 | BM98: 0 | BN98: 0 | BO98: 0 | BP98: 0 | BQ98: 0 | BR98: 0 | BS98: 0 | BT98: 0 | BU98: 0 | BV98: 0 | BW98: 0 | BX98: 0 | BY98: 0 | BZ98: 0 | CA98: 0 | CB98: 0 | CC98: 0 | CD98: 0 | CE98: 0 | CF98: 0 | CG98: 1 | CH98: 0 | CI98: 0 | CJ98: 0 | CK98: 0 | CL98: 0 | CM98: 0 | CN98: 0 | CO98: 0 | CP98: 0 | CQ98: 0 | CR98: 0 | CS98: 0 | CT98: 0 | CU98: 0 | CV98: 0 | CW98: 0 | CX98: 0 | CY98: 0 | CZ98: 0 | DA98: 18 | DB98: 0 | DC98: 0 | DD98: 0 | DE98: 0 | DF98: 0 | DG98: 0 | DH98: 0 | DI98: 0 | DJ98: 0 | DK98: 20 | DL98: 0 | DM98: 0 | DN98: 0 | DO98: 0 | DP98: 0 | DQ98: 0 | DR98: 0 | DS98: 0 | DT98: 0 | DU98: 0 | DV98: 0 | DW98: 0 | DX98: 0 | DY98: 0 | DZ98: 0 | EA98: 0 | EB98: 0 | EC98: 0 | ED98: 0 | EE98: 0 | EF98: 0 | EG98: 0 | EH98: 0 | EI98: 0 | EJ98: 0 | EK98: 0 | EL98: 0 | EM98: 0 | EN98: 0 | EO98: 0 | EP98: 0 | EQ98: 0 | ER98: 0 | ES98: 0 | ET98: 0 | EU98: 0 | EV98: 0 | EW98: 0 | EX98: 0 | EY98: 0 | EZ98: 0 | FA98: 0 | FB98: 0 | FC98: 0 | FD98: 0 | FE98: 0 | FF98: 0 | FG98: 0 | FH98: 0 | FI98: 0 | FJ98: 0 | FK98: 0 | FL98: 0 | FM98: 0 | FN98: 0 | FO98: 0 | FP98: 0 | FQ98: 0 | FR98: 0 | FS98: 0 | FT98: 0 | FU98: 0 | FV98: 0 | FW98: 0 | FX98: 0 | FY98: 0 | FZ98: 0 | GA98: 0 | GB98: 0 | GC98: 0 | GD98: 0 | GE98: 0 | GF98: 0 | GG98: 0 | GH98: 0 | GI98: 0 | GJ98: 0 | GK98: 0 | GL98: 0 | GM98: 0 | GN98: 0 | GO98: 0 | GP98: 0 | GQ98: 0 | GR98: 0 | GS98: 0 | GT98: 0 | GU98: 0 | GV98: 0 | GW98: 0 | GX98: 0 | GY98: 0 | GZ98: 0 | HA98: 0 | HB98: 0 | HC98: 0 | HD98: 0 | HE98: 0 | HF98: 0 | HG98: 0 | HH98: 0 | HI98: 0 | HJ98: 0 | HK98: 0 | HL98: 0 | HM98: 0 | HN98: 0 | HO98: 0 | HP98: 0 | HQ98: 0 | HR98: 0 | HS98: 0 | HT98: 0 | HU98: 0 | HV98: 0 | HW98: 0
A99: 3 | B99: 58 | C99: 0 | D99: 0 | E99: 0 | F99: 0 | G99: 0 | H99: 0 | I99: 0 | J99: 0 | K99: 0 | L99: 0 | M99: 0 | N99: 0 | O99: 0 | P99: 0 | Q99: 0 | R99: 0 | S99: 0 | T99: 0 | U99: 0 | V99: 0 | W99: 0 | X99: 0 | Y99: 0 | Z99: 0 | AA99: 0 | AB99: 0 | AC99: 27 | AD99: 0 | AE99: 1 | AF99: 0 | AG99: 0 | AH99: 0 | AI99: 0 | AJ99: 0 | AK99: 0 | AL99: 0 | AM99: 0 | AN99: 1 | AO99: 0 | AP99: 0 | AQ99: 0 | AR99: 0 | AS99: 0 | AT99: 0 | AU99: 0 | AV99: 0 | AW99: 0 | AX99: 0 | AY99: 0 | AZ99: 0 | BA99: 0 | BB99: 0 | BC99: 0 | BD99: 0 | BE99: 0 | BF99: 1 | BG99: 0 | BH99: 0 | BI99: 0 | BJ99: 0 | BK99: 0 | BL99: 0 | BM99: 0 | BN99: 0 | BO99: 0 | BP99: 0 | BQ99: 0 | BR99: 0 | BS99: 0 | BT99: 0 | BU99: 0 | BV99: 0 | BW99: 0 | BX99: 0 | BY99: 0 | BZ99: 0 | CA99: 0 | CB99: 0 | CC99: 0 | CD99: 0 | CE99: 0 | CF99: 0 | CG99: 1 | CH99: 0 | CI99: 0 | CJ99: 0 | CK99: 0 | CL99: 0 | CM99: 0 | CN99: 0 | CO99: 0 | CP99: 0 | CQ99: 0 | CR99: 0 | CS99: 0 | CT99: 0 | CU99: 0 | CV99: 0 | CW99: 0 | CX99: 0 | CY99: 0 | CZ99: 0 | DA99: 12 | DB99: 1 | DC99: 0 | DD99: 0 | DE99: 0 | DF99: 0 | DG99: 0 | DH99: 0 | DI99: 0 | DJ99: 0 | DK99: 10 | DL99: 1 | DM99: 0 | DN99: 0 | DO99: 0 | DP99: 0 | DQ99: 0 | DR99: 0 | DS99: 0 | DT99: 0 | DU99: 0 | DV99: 0 | DW99: 0 | DX99: 0 | DY99: 0 | DZ99: 0 | EA99: 0 | EB99: 0 | EC99: 0 | ED99: 0 | EE99: 0 | EF99: 0 | EG99: 0 | EH99: 0 | EI99: 0 | EJ99: 0 | EK99: 0 | EL99: 0 | EM99: 0 | EN99: 0 | EO99: 0 | EP99: 0 | EQ99: 0 | ER99: 0 | ES99: 0 | ET99: 0 | EU99: 0 | EV99: 0 | EW99: 0 | EX99: 0 | EY99: 0 | EZ99: 0 | FA99: 0 | FB99: 0 | FC99: 0 | FD99: 0 | FE99: 0 | FF99: 0 | FG99: 0 | FH99: 0 | FI99: 0 | FJ99: 0 | FK99: 0 | FL99: 0 | FM99: 0 | FN99: 0 | FO99: 0 | FP99: 0 | FQ99: 0 | FR99: 0 | FS99: 0 | FT99: 0 | FU99: 0 | FV99: 0 | FW99: 0 | FX99: 0 | FY99: 0 | FZ99: 0 | GA99: 0 | GB99: 0 | GC99: 0 | GD99: 0 | GE99: 0 | GF99: 0 | GG99: 0 | GH99: 0 | GI99: 0 | GJ99: 0 | GK99: 0 | GL99: 0 | GM99: 0 | GN99: 0 | GO99: 0 | GP99: 0 | GQ99: 0 | GR99: 0 | GS99: 0 | GT99: 0 | GU99: 0 | GV99: 0 | GW99: 0 | GX99: 0 | GY99: 0 | GZ99: 0 | HA99: 0 | HB99: 0 | HC99: 0 | HD99: 0 | HE99: 0 | HF99: 0 | HG99: 0 | HH99: 0 | HI99: 0 | HJ99: 0 | HK99: 0 | HL99: 0 | HM99: 0 | HN99: 0 | HO99: 0 | HP99: 0 | HQ99: 0 | HR99: 0 | HS99: 0 | HT99: 0 | HU99: 0 | HV99: 0 | HW99: 0
A100: T | B100: 154 | C100: 0 | D100: 0 | E100: 0 | F100: 0 | G100: 0 | H100: 0 | I100: 0 | J100: 0 | K100: 0 | L100: 0 | M100: 0 | N100: 0 | O100: 1 | P100: 1 | Q100: 0 | R100: 0 | S100: 0 | T100: 0 | U100: 0 | V100: 0 | W100: 0 | X100: 0 | Y100: 0 | Z100: 0 | AA100: 0 | AB100: 0 | AC100: 31 | AD100: 0 | AE100: 2 | AF100: 0 | AG100: 0 | AH100: 0 | AI100: 0 | AJ100: 0 | AK100: 0 | AL100: 0 | AM100: 0 | AN100: 3 | AO100: 0 | AP100: 0 | AQ100: 0 | AR100: 0 | AS100: 0 | AT100: 0 | AU100: 0 | AV100: 1 | AW100: 2 | AX100: 0 | AY100: 0 | AZ100: 0 | BA100: 0 | BB100: 0 | BC100: 0 | BD100: 0 | BE100: 0 | BF100: 1 | BG100: 0 | BH100: 0 | BI100: 0 | BJ100: 0 | BK100: 0 | BL100: 0 | BM100: 0 | BN100: 0 | BO100: 0 | BP100: 0 | BQ100: 0 | BR100: 0 | BS100: 0 | BT100: 0 | BU100: 0 | BV100: 0 | BW100: 0 | BX100: 0 | BY100: 0 | BZ100: 0 | CA100: 0 | CB100: 0 | CC100: 0 | CD100: 0 | CE100: 0 | CF100: 0 | CG100: 3 | CH100: 0 | CI100: 0 | CJ100: 0 | CK100: 0 | CL100: 0 | CM100: 0 | CN100: 0 | CO100: 0 | CP100: 0 | CQ100: 0 | CR100: 0 | CS100: 0 | CT100: 0 | CU100: 0 | CV100: 0 | CW100: 0 | CX100: 0 | CY100: 0 | CZ100: 0 | DA100: 41 | DB100: 1 | DC100: 0 | DD100: 0 | DE100: 0 | DF100: 0 | DG100: 0 | DH100: 0 | DI100: 0 | DJ100: 0 | DK100: 37 | DL100: 1 | DM100: 0 | DN100: 0 | DO100: 0 | DP100: 1 | DQ100: 0 | DR100: 0 | DS100: 0 | DT100: 0 | DU100: 0 | DV100: 0 | DW100: 0 | DX100: 0 | DY100: 0 | DZ100: 0 | EA100: 0 | EB100: 0 | EC100: 0 | ED100: 0 | EE100: 0 | EF100: 0 | EG100: 0 | EH100: 0 | EI100: 0 | EJ100: 0 | EK100: 0 | EL100: 0 | EM100: 0 | EN100: 0 | EO100: 0 | EP100: 0 | EQ100: 0 | ER100: 0 | ES100: 0 | ET100: 0 | EU100: 0 | EV100: 0 | EW100: 0 | EX100: 0 | EY100: 0 | EZ100: 0 | FA100: 0 | FB100: 0 | FC100: 0 | FD100: 0 | FE100: 0 | FF100: 0 | FG100: 0 | FH100: 0 | FI100: 0 | FJ100: 0 | FK100: 0 | FL100: 0 | FM100: 0 | FN100: 0 | FO100: 0 | FP100: 0 | FQ100: 0 | FR100: 0 | FS100: 0 | FT100: 0 | FU100: 0 | FV100: 0 | FW100: 0 | FX100: 0 | FY100: 0 | FZ100: 0 | GA100: 0 | GB100: 0 | GC100: 0 | GD100: 0 | GE100: 0 | GF100: 0 | GG100: 0 | GH100: 0 | GI100: 0 | GJ100: 0 | GK100: 0 | GL100: 0 | GM100: 0 | GN100: 0 | GO100: 0 | GP100: 0 | GQ100: 0 | GR100: 0 | GS100: 0 | GT100: 0 | GU100: 0 | GV100: 0 | GW100: 0 | GX100: 0 | GY100: 0 | GZ100: 0 | HA100: 0 | HB100: 0 | HC100: 0 | HD100: 0 | HE100: 0 | HF100: 0 | HG100: 0 | HH100: 0 | HI100: 0 | HJ100: 0 | HK100: 0 | HL100: 0 | HM100: 0 | HN100: 0 | HO100: 0 | HP100: 0 | HQ100: 0 | HR100: 0 | HS100: 0 | HT100: 0 | HU100: 0 | HV100: 0 | HW100: 0
A115: TOTAL
A116: =COUNT(A97:A113) -> 3 | B116: =SUM(B97:B113) -> 308 | C116: =SUM(C97:C113) -> 0 | D116: 0 | E116: 0 | F116: 0 | G116: 0 | H116: 0 | I116: 0 | J116: 0 | K116: 0 | L116: 0 | M116: 0 | N116: 0 | O116: 2 | P116: 2 | Q116: 0 | R116: 0 | S116: 0 | T116: 0 | U116: 0 | V116: 0 | W116: 0 | X116: 0 | Y116: 0 | Z116: 0 | AA116: 0 | AB116: 0 | AC116: 62 | AD116: 0 | AE116: 4 | AF116: 0 | AG116: 0 | AH116: 0 | AI116: 0 | AJ116: 0 | AK116: 0 | AL116: 0 | AM116: 0 | AN116: 6 | AO116: 0 | AP116: 0 | AQ116: 0 | AR116: 0 | AS116: 0 | AT116: 0 | AU116: 0 | AV116: 2 | AW116: 4 | AX116: 0 | AY116: 0 | AZ116: 0 | BA116: 0 | BB116: 0 | BC116: 0 | BD116: 0 | BE116: 0 | BF116: 2 | BG116: 0 | BH116: 0 | BI116: 0 | BJ116: 0 | BK116: 0 | BL116: 0 | BM116: 0 | BN116: 0 | BO116: =SUM(BO97:BO113) -> 0 | BP116: 0 | BQ116: 0 | BR116: 0 | BS116: 0 | BT116: 0 | BU116: 0 | BV116: 0 | BW116: 0 | BX116: 0 | BY116: 0 | BZ116: 0 | CA116: 0 | CB116: 0 | CC116: 0 | CD116: 0 | CE116: 0 | CF116: 0 | CG116: 6 | CH116: 0 | CI116: 0 | CJ116: 0 | CK116: 0 | CL116: 0 | CM116: 0 | CN116: 0 | CO116: 0 | CP116: 0 | CQ116: 0 | CR116: 0 | CS116: 0 | CT116: 0 | CU116: 0 | CV116: 0 | CW116: 0 | CX116: 0 | CY116: 0 | CZ116: 0 | DA116: 82 | DB116: 2 | DC116: 0 | DD116: 0 | DE116: 0 | DF116: 0 | DG116: 0 | DH116: 0 | DI116: 0 | DJ116: 0 | DK116: 74 | DL116: 2 | DM116: 0 | DN116: 0 | DO116: 0 | DP116: 2 | DQ116: 0 | DR116: 0 | DS116: 0 | DT116: 0 | DU116: 0 | DV116: 0 | DW116: 0 | DX116: 0 | DY116: 0 | DZ116: 0 | EA116: =SUM(EA97:EA113) -> 0 | EB116: 0 | EC116: 0 | ED116: 0 | EE116: 0 | EF116: 0 | EG116: 0 | EH116: 0 | EI116: 0 | EJ116: 0 | EK116: 0 | EL116: 0 | EM116: 0 | EN116: 0 | EO116: 0 | EP116: 0 | EQ116: 0 | ER116: 0 | ES116: 0 | ET116: 0 | EU116: 0 | EV116: 0 | EW116: 0 | EX116: 0 | EY116: 0 | EZ116: 0 | FA116: 0 | FB116: 0 | FC116: 0 | FD116: 0 | FE116: 0 | FF116: 0 | FG116: 0 | FH116: 0 | FI116: 0 | FJ116: 0 | FK116: 0 | FL116: 0 | FM116: 0 | FN116: 0 | FO116: 0 | FP116: 0 | FQ116: 0 | FR116: 0 | FS116: 0 | FT116: 0 | FU116: 0 | FV116: 0 | FW116: 0 | FX116: 0 | FY116: 0 | FZ116: 0 | GA116: 0 | GB116: 0 | GC116: 0 | GD116: 0 | GE116: 0 | GF116: 0 | GG116: 0 | GH116: 0 | GI116: 0 | GJ116: 0 | GK116: 0 | GL116: 0 | GM116: =SUM(GM97:GM113) -> 0 | GN116: 0 | GO116: 0 | GP116: 0 | GQ116: 0 | GR116: 0 | GS116: 0 | GT116: 0 | GU116: 0 | GV116: 0 | GW116: 0 | GX116: 0 | GY116: 0 | GZ116: 0 | HA116: 0 | HB116: 0 | HC116: 0 | HD116: 0 | HE116: 0 | HF116: 0 | HG116: 0 | HH116: 0 | HI116: 0 | HJ116: 0 | HK116: 0 | HL116: 0 | HM116: 0 | HN116: 0 | HO116: 0 | HP116: 0 | HQ116: 0 | HR116: 0 | HS116: 0 | HT116: 0 | HU116: 0 | HV116: 0 | HW116: 0
A117: =CONCATENATE(A97,"-",A98,"-",A99,"-",A100,"-",A101,"-",A102,"-",A103,"-",A104,"-",A105,"-",A106,"-",A107,"-",A108) -> 1-2-3-T--------
B118: BAS001 | C118: BAS002 | D118: BAS003 | E118: BAS004 | F118: BAS005 | G118: BAS006 | H118: BAS007 | I118: BAS008 | J118: BAS009 | K118: BAS010 | L118: BAS011 | M118: BAS012 | N118: BAS013 | O118: BAS014 | P118: BAS015 | Q118: BAS016 | R118: BAS017 | S118: BAS018 | T118: BAS019 | U118: BAS020 | V118: BAS021 | W118: BAS022 | X118: BAS023 | Y118: BAS024 | Z118: BAS025 | AA118: BAS026 | AB118: BAS027 | AC118: BAS028 | AD118: BAS029 | AE118: BAS030 | AF118: BAS031 | AG118: BAS032 | AH118: BAS033 | AI118: BAS034 | AJ118: BAS035 | AK118: BAS036 | AL118: BAS037 | AM118: BAS038 | AN118: BAS039 | AO118: BAS040 | AP118: BAS041 | AQ118: BAS042 | AR118: BAS043 | AS118: BAS044 | AT118: BAS045 | AU118: BAS046 | AV118: BAS047 | AW118: BAS048 | AX118: BAS049 | AY118: BAS050 | AZ118: BAS051 | BA118: BAS052 | BB118: BAS053 | BC118: BAS054 | BD118: BAS055 | BE118: BAS056 | BF118: BAS057 | BG118: BAS058 | BH118: BAS059 | BI118: BAS060 | BJ118: BAS061 | BK118: BAS062 | BL118: BAS063 | BM118: BAS064 | BN118: BAS065 | BO118: BAS066 | BP118: BAS067 | BQ118: BAS068 | BR118: BAS069 | BS118: BAS070 | BT118: BAS071 | BU118: BAS072 | BV118: BAS073 | BW118: BAS074 | BX118: BAS075 | BY118: BAS076 | BZ118: BAS077 | CA118: BAS078 | CB118: BAS079 | CC118: BAS080 | CD118: BAS081 | CE118: BAS082 | CF118: BAS083 | CG118: BAS084 | CH118: BAS085 | CI118: BAS086 | CJ118: BAS087 | CK118: BAS088 | CL118: BAS089 | CM118: BAS090 | CN118: BAS091 | CO118: BAS092 | CP118: BAS093 | CQ118: BAS094 | CR118: BAS095 | CS118: BAS096 | CT118: BAS097 | CU118: BAS098 | CV118: BAS099 | CW118: BAS100 | CX118: BAS101 | CY118: BAS102 | CZ118: BAS103 | DA118: BAS104 | DB118: BAS105 | DC118: BAS106 | DD118: BAS107 | DE118: BAS108 | DF118: BAS109 | DG118: BAS110 | DH118: BAS111 | DI118: BAS112 | DJ118: BAS113 | DK118: BAS114 | DL118: BAS115 | DM118: BAS116 | DN118: BAS117 | DO118: BAS118 | DP118: BAS119 | DQ118: BAS120 | DR118: BAS121 | DS118: BAS122 | DT118: BAS123 | DU118: BAS124 | DV118: BAS125 | DW118: BAS126 | DX118: BAS127 | DY118: BAS128 | DZ118: BAS129 | EA118: BAS130 | EB118: BAS131 | EC118: BAS132 | ED118: BAS133 | EE118: BAS134 | EF118: BAS135 | EG118: BAS136 | EH118: BAS137 | EI118: BAS138 | EJ118: BAS139 | EK118: BAS140 | EL118: BAS141 | EM118: BAS142 | EN118: BAS143 | EO118: BAS144 | EP118: BAS145 | EQ118: BAS146 | ER118: BAS147 | ES118: BAS148 | ET118: BAS149 | EU118: BAS150 | EV118: BAS151 | EW118: BAS152 | EX118: BAS153 | EY118: BAS154 | EZ118: BAS155 | FA118: BAS156 | FB118: BAS157 | FC118: BAS158 | FD118: BAS159 | FE118: BAS160 | FF118: BAS161 | FG118: BAS162 | FH118: BAS163 | FI118: BAS164 | FJ118: BAS165 | FK118: BAS166 | FL118: BAS167 | FM118: BAS168 | FN118: BAS169 | FO118: BAS170 | FP118: BAS171 | FQ118: BAS172 | FR118: BAS173 | FS118: BAS174 | FT118: BAS175 | FU118: BAS176 | FV118: BAS177 | FW118: BAS178 | FX118: BAS179 | FY118: BAS180 | FZ118: BAS181 | GA118: BAS182 | GB118: BAS183 | GC118: BAS184 | GD118: BAS185 | GE118: BAS186 | GF118: BAS187 | GG118: BAS188 | GH118: BAS189 | GI118: BAS190 | GJ118: BAS191 | GK118: BAS192 | GL118: BAS193 | GM118: BAS194 | GN118: BAS195 | GO118: BAS196 | GP118: BAS197 | GQ118: BAS198 | GR118: BAS199 | GS118: BAS200 | GT118: BAS201 | GU118: BAS202 | GV118: BAS203 | GW118: BAS204 | GX118: BAS205 | GY118: BAS206 | GZ118: BAS207 | HA118: BAS208 | HB118: BAS209 | HC118: BAS210 | HD118: BAS211 | HE118: BAS212 | HF118: BAS213 | HG118: BAS214 | HH118: BAS215 | HI118: BAS216 | HJ118: BAS217 | HK118: BAS218 | HL118: BAS219 | HM118: BAS220 | HN118: BAS221 | HO118: BAS222 | HP118: BAS223 | HQ118: BAS224 | HR118: BAS225 | HS118: BAS226 | HT118: BAS227 | HU118: BAS228 | HV118: BAS229 | HW118: BAS230
B119: =IF(B118=B96,"SI","NO") -> SI | C119: =IF(C118=C96,"SI","NO") -> SI | D119: SI | E119: SI | F119: SI | G119: SI | H119: SI | I119: SI | J119: SI | K119: SI | L119: SI | M119: SI | N119: SI | O119: SI | P119: SI | Q119: SI | R119: SI | S119: SI | T119: SI | U119: SI | V119: SI | W119: SI | X119: SI | Y119: SI | Z119: SI | AA119: SI | AB119: SI | AC119: SI | AD119: SI | AE119: SI | AF119: SI | AG119: SI | AH119: SI | AI119: SI | AJ119: SI | AK119: SI | AL119: SI | AM119: SI | AN119: SI | AO119: SI | AP119: SI | AQ119: SI | AR119: SI | AS119: SI | AT119: SI | AU119: SI | AV119: SI | AW119: SI | AX119: SI | AY119: SI | AZ119: SI | BA119: SI | BB119: SI | BC119: SI | BD119: SI | BE119: SI | BF119: SI | BG119: SI | BH119: SI | BI119: SI | BJ119: SI | BK119: SI | BL119: SI | BM119: SI | BN119: SI | BO119: =IF(BO118=BO96,"SI","NO") -> SI | BP119: SI | BQ119: SI | BR119: SI | BS119: SI | BT119: SI | BU119: SI | BV119: SI | BW119: SI | BX119: SI | BY119: SI | BZ119: SI | CA119: SI | CB119: SI | CC119: SI | CD119: SI | CE119: SI | CF119: SI | CG119: SI | CH119: SI | CI119: SI | CJ119: SI | CK119: SI | CL119: SI | CM119: SI | CN119: SI | CO119: SI | CP119: SI | CQ119: SI | CR119: SI | CS119: SI | CT119: SI | CU119: SI | CV119: SI | CW119: SI | CX119: SI | CY119: SI | CZ119: SI | DA119: SI | DB119: SI | DC119: SI | DD119: SI | DE119: SI | DF119: SI | DG119: SI | DH119: SI | DI119: SI | DJ119: SI | DK119: SI | DL119: SI | DM119: SI | DN119: SI | DO119: SI | DP119: SI | DQ119: SI | DR119: SI | DS119: SI | DT119: SI | DU119: SI | DV119: SI | DW119: SI | DX119: SI | DY119: SI | DZ119: SI | EA119: =IF(EA118=EA96,"SI","NO") -> SI | EB119: SI | EC119: SI | ED119: SI | EE119: SI | EF119: SI | EG119: SI | EH119: SI | EI119: SI | EJ119: SI | EK119: SI | EL119: SI | EM119: SI | EN119: SI | EO119: SI | EP119: SI | EQ119: SI | ER119: SI | ES119: SI | ET119: SI | EU119: SI | EV119: SI | EW119: SI | EX119: SI | EY119: SI | EZ119: SI | FA119: SI | FB119: SI | FC119: SI | FD119: SI | FE119: SI | FF119: SI | FG119: SI | FH119: SI | FI119: SI | FJ119: SI | FK119: SI | FL119: SI | FM119: SI | FN119: SI | FO119: SI | FP119: SI | FQ119: SI | FR119: SI | FS119: SI | FT119: SI | FU119: SI | FV119: SI | FW119: SI | FX119: SI | FY119: SI | FZ119: SI | GA119: SI | GB119: SI | GC119: SI | GD119: SI | GE119: SI | GF119: SI | GG119: SI | GH119: SI | GI119: SI | GJ119: SI | GK119: SI | GL119: SI | GM119: =IF(GM118=GM96,"SI","NO") -> SI | GN119: SI | GO119: SI | GP119: SI | GQ119: SI | GR119: SI | GS119: SI | GT119: SI | GU119: SI | GV119: SI | GW119: SI | GX119: SI | GY119: SI | GZ119: SI | HA119: SI | HB119: SI | HC119: SI | HD119: SI | HE119: SI | HF119: SI | HG119: SI | HH119: SI | HI119: SI | HJ119: SI | HK119: SI | HL119: SI | HM119: SI | HN119: SI | HO119: SI | HP119: SI | HQ119: SI | HR119: SI | HS119: SI | HT119: SI | HU119: SI | HV119: SI | HW119: SI
A121: TUBERCU_1829
A122: ANNO | B122: 2025
A123: cod_red | B123: 03
A124: codmic | B124: (Todas)
A125: cod_prov | B125: (Todas)
A126: coddist | B126: (Todas)
A127: cod_estab | B127: (Todas)
A128: cod_eje | B128: (Todas)
B130: Valores
A131: Etiquetas de fila | B131: BAS001 | C131: BAS002 | D131: BAS003 | E131: BAS004 | F131: BAS005 | G131: BAS006 | H131: BAS007 | I131: BAS008 | J131: BAS009 | K131: BAS010 | L131: BAS011 | M131: BAS012 | N131: BAS013 | O131: BAS014 | P131: BAS015 | Q131: BAS016 | R131: BAS017 | S131: BAS018 | T131: BAS019 | U131: BAS020 | V131: BAS021 | W131: BAS022 | X131: BAS023 | Y131: BAS024 | Z131: BAS025 | AA131: BAS026 | AB131: BAS027 | AC131: BAS028 | AD131: BAS029 | AE131: BAS030 | AF131: BAS031 | AG131: BAS032 | AH131: BAS033 | AI131: BAS034 | AJ131: BAS035 | AK131: BAS036 | AL131: BAS037 | AM131: BAS038 | AN131: BAS039 | AO131: BAS040 | AP131: BAS041 | AQ131: BAS042 | AR131: BAS043 | AS131: BAS044 | AT131: BAS045 | AU131: BAS046 | AV131: BAS047 | AW131: BAS048 | AX131: BAS049 | AY131: BAS050 | AZ131: BAS051 | BA131: BAS052 | BB131: BAS053 | BC131: BAS054 | BD131: BAS055 | BE131: BAS056 | BF131: BAS057 | BG131: BAS058 | BH131: BAS059 | BI131: BAS060 | BJ131: BAS061 | BK131: BAS062 | BL131: BAS063 | BM131: BAS064 | BN131: BAS065 | BO131: BAS066 | BP131: BAS067 | BQ131: BAS068 | BR131: BAS069 | BS131: BAS070 | BT131: BAS071 | BU131: BAS072 | BV131: BAS073 | BW131: BAS074 | BX131: BAS075 | BY131: BAS076 | BZ131: BAS077 | CA131: BAS078 | CB131: BAS079 | CC131: BAS080 | CD131: BAS081 | CE131: BAS082 | CF131: BAS083 | CG131: BAS084 | CH131: BAS085 | CI131: BAS086 | CJ131: BAS087 | CK131: BAS088 | CL131: BAS089 | CM131: BAS090 | CN131: BAS091 | CO131: BAS092 | CP131: BAS093 | CQ131: BAS094 | CR131: BAS095 | CS131: BAS096 | CT131: BAS097 | CU131: BAS098 | CV131: BAS099 | CW131: BAS100 | CX131: BAS101 | CY131: BAS102 | CZ131: BAS103 | DA131: BAS104 | DB131: BAS105 | DC131: BAS106 | DD131: BAS107 | DE131: BAS108 | DF131: BAS109 | DG131: BAS110 | DH131: BAS111 | DI131: BAS112 | DJ131: BAS113 | DK131: BAS114 | DL131: BAS115 | DM131: BAS116 | DN131: BAS117 | DO131: BAS118 | DP131: BAS119 | DQ131: BAS120 | DR131: BAS121 | DS131: BAS122 | DT131: BAS123 | DU131: BAS124 | DV131: BAS125 | DW131: BAS126 | DX131: BAS127 | DY131: BAS128 | DZ131: BAS129 | EA131: BAS130 | EB131: BAS131 | EC131: BAS132 | ED131: BAS133 | EE131: BAS134 | EF131: BAS135 | EG131: BAS136 | EH131: BAS137 | EI131: BAS138 | EJ131: BAS139 | EK131: BAS140 | EL131: BAS141 | EM131: BAS142 | EN131: BAS143 | EO131: BAS144 | EP131: BAS145 | EQ131: BAS146 | ER131: BAS147 | ES131: BAS148 | ET131: BAS149 | EU131: BAS150 | EV131: BAS151 | EW131: BAS152 | EX131: BAS153 | EY131: BAS154 | EZ131: BAS155 | FA131: BAS156 | FB131: BAS157 | FC131: BAS158 | FD131: BAS159 | FE131: BAS160 | FF131: BAS161 | FG131: BAS162 | FH131: BAS163 | FI131: BAS164 | FJ131: BAS165 | FK131: BAS166 | FL131: BAS167 | FM131: BAS168 | FN131: BAS169 | FO131: BAS170 | FP131: BAS171 | FQ131: BAS172 | FR131: BAS173 | FS131: BAS174 | FT131: BAS175 | FU131: BAS176 | FV131: BAS177 | FW131: BAS178 | FX131: BAS179 | FY131: BAS180 | FZ131: BAS181 | GA131: BAS182 | GB131: BAS183 | GC131: BAS184 | GD131: BAS185 | GE131: BAS186 | GF131: BAS187 | GG131: BAS188 | GH131: BAS189 | GI131: BAS190 | GJ131: BAS191 | GK131: BAS192 | GL131: BAS193 | GM131: BAS194 | GN131: BAS195 | GO131: BAS196 | GP131: BAS197 | GQ131: BAS198 | GR131: BAS199 | GS131: BAS200 | GT131: BAS201 | GU131: BAS202 | GV131: BAS203 | GW131: BAS204 | GX131: BAS205 | GY131: BAS206 | GZ131: BAS207 | HA131: BAS208 | HB131: BAS209 | HC131: BAS210 | HD131: BAS211 | HE131: BAS212 | HF131: BAS213 | HG131: BAS214 | HH131: BAS215 | HI131: BAS216 | HJ131: BAS217 | HK131: BAS218 | HL131: BAS219 | HM131: BAS220 | HN131: BAS221 | HO131: BAS222 | HP131: BAS223 | HQ131: BAS224 | HR131: BAS225 | HS131: BAS226 | HT131: BAS227 | HU131: BAS228 | HV131: BAS229 | HW131: BAS230
A132: 1 | B132: 193 | C132: 0 | D132: 0 | E132: 0 | F132: 0 | G132: 0 | H132: 0 | I132: 0 | J132: 0 | K132: 0 | L132: 0 | M132: 0 | N132: 0 | O132: 1 | P132: 0 | Q132: 0 | R132: 0 | S132: 0 | T132: 0 | U132: 0 | V132: 0 | W132: 0 | X132: 0 | Y132: 0 | Z132: 0 | AA132: 0 | AB132: 0 | AC132: 175 | AD132: 20 | AE132: 7 | AF132: 0 | AG132: 0 | AH132: 0 | AI132: 3 | AJ132: 0 | AK132: 0 | AL132: 0 | AM132: 0 | AN132: 25 | AO132: 0 | AP132: 0 | AQ132: 0 | AR132: 0 | AS132: 0 | AT132: 0 | AU132: 0 | AV132: 0 | AW132: 3 | AX132: 1 | AY132: 1 | AZ132: 0 | BA132: 0 | BB132: 0 | BC132: 0 | BD132: 0 | BE132: 0 | BF132: 3 | BG132: 0 | BH132: 1 | BI132: 0 | BJ132: 0 | BK132: 0 | BL132: 0 | BM132: 0 | BN132: 0 | BO132: 0 | BP132: 0 | BQ132: 0 | BR132: 0 | BS132: 0 | BT132: 0 | BU132: 0 | BV132: 0 | BW132: 0 | BX132: 0 | BY132: 0 | BZ132: 0 | CA132: 0 | CB132: 0 | CC132: 0 | CD132: 0 | CE132: 0 | CF132: 0 | CG132: 25 | CH132: 0 | CI132: 0 | CJ132: 0 | CK132: 0 | CL132: 0 | CM132: 0 | CN132: 0 | CO132: 0 | CP132: 0 | CQ132: 0 | CR132: 0 | CS132: 0 | CT132: 0 | CU132: 0 | CV132: 0 | CW132: 0 | CX132: 0 | CY132: 0 | CZ132: 0 | DA132: 49 | DB132: 2 | DC132: 0 | DD132: 1 | DE132: 0 | DF132: 10 | DG132: 0 | DH132: 0 | DI132: 0 | DJ132: 0 | DK132: 44 | DL132: 2 | DM132: 0 | DN132: 1 | DO132: 0 | DP132: 7 | DQ132: 0 | DR132: 0 | DS132: 0 | DT132: 0 | DU132: 0 | DV132: 0 | DW132: 0 | DX132: 0 | DY132: 0 | DZ132: 0 | EA132: 0 | EB132: 0 | EC132: 0 | ED132: 0 | EE132: 0 | EF132: 0 | EG132: 0 | EH132: 0 | EI132: 0 | EJ132: 0 | EK132: 0 | EL132: 0 | EM132: 0 | EN132: 0 | EO132: 0 | EP132: 0 | EQ132: 0 | ER132: 0 | ES132: 0 | ET132: 0 | EU132: 0 | EV132: 0 | EW132: 0 | EX132: 0 | EY132: 0 | EZ132: 0 | FA132: 0 | FB132: 0 | FC132: 0 | FD132: 0 | FE132: 0 | FF132: 0 | FG132: 0 | FH132: 0 | FI132: 0 | FJ132: 0 | FK132: 0 | FL132: 0 | FM132: 0 | FN132: 0 | FO132: 0 | FP132: 0 | FQ132: 0 | FR132: 0 | FS132: 0 | FT132: 0 | FU132: 0 | FV132: 0 | FW132: 0 | FX132: 0 | FY132: 0 | FZ132: 0 | GA132: 0 | GB132: 0 | GC132: 0 | GD132: 0 | GE132: 0 | GF132: 0 | GG132: 0 | GH132: 0 | GI132: 0 | GJ132: 0 | GK132: 0 | GL132: 0 | GM132: 0 | GN132: 0 | GO132: 0 | GP132: 0 | GQ132: 0 | GR132: 0 | GS132: 0 | GT132: 0 | GU132: 0 | GV132: 0 | GW132: 0 | GX132: 0 | GY132: 0 | GZ132: 0 | HA132: 0 | HB132: 0 | HC132: 0 | HD132: 0 | HE132: 0 | HF132: 0 | HG132: 0 | HH132: 0 | HI132: 0 | HJ132: 0 | HK132: 0 | HL132: 0 | HM132: 0 | HN132: 0 | HO132: 0 | HP132: 0 | HQ132: 0 | HR132: 0 | HS132: 0 | HT132: 0 | HU132: 0 | HV132: 0 | HW132: 0
A133: 2 | B133: 151 | C133: 0 | D133: 0 | E133: 0 | F133: 0 | G133: 0 | H133: 0 | I133: 0 | J133: 0 | K133: 0 | L133: 0 | M133: 0 | N133: 0 | O133: 0 | P133: 0 | Q133: 0 | R133: 0 | S133: 0 | T133: 0 | U133: 0 | V133: 0 | W133: 0 | X133: 0 | Y133: 0 | Z133: 0 | AA133: 0 | AB133: 0 | AC133: 152 | AD133: 2 | AE133: 6 | AF133: 0 | AG133: 0 | AH133: 0 | AI133: 0 | AJ133: 0 | AK133: 0 | AL133: 0 | AM133: 0 | AN133: 3 | AO133: 0 | AP133: 0 | AQ133: 0 | AR133: 0 | AS133: 0 | AT133: 0 | AU133: 0 | AV133: 0 | AW133: 19 | AX133: 1 | AY133: 0 | AZ133: 0 | BA133: 0 | BB133: 0 | BC133: 0 | BD133: 0 | BE133: 0 | BF133: 1 | BG133: 0 | BH133: 0 | BI133: 0 | BJ133: 0 | BK133: 0 | BL133: 0 | BM133: 0 | BN133: 0 | BO133: 0 | BP133: 0 | BQ133: 0 | BR133: 0 | BS133: 0 | BT133: 0 | BU133: 0 | BV133: 0 | BW133: 0 | BX133: 0 | BY133: 0 | BZ133: 0 | CA133: 0 | CB133: 0 | CC133: 0 | CD133: 0 | CE133: 0 | CF133: 0 | CG133: 5 | CH133: 0 | CI133: 0 | CJ133: 0 | CK133: 0 | CL133: 0 | CM133: 0 | CN133: 0 | CO133: 0 | CP133: 0 | CQ133: 0 | CR133: 0 | CS133: 0 | CT133: 0 | CU133: 0 | CV133: 0 | CW133: 0 | CX133: 0 | CY133: 0 | CZ133: 0 | DA133: 33 | DB133: 1 | DC133: 0 | DD133: 0 | DE133: 0 | DF133: 0 | DG133: 0 | DH133: 0 | DI133: 0 | DJ133: 0 | DK133: 27 | DL133: 1 | DM133: 0 | DN133: 0 | DO133: 0 | DP133: 17 | DQ133: 0 | DR133: 0 | DS133: 0 | DT133: 0 | DU133: 0 | DV133: 0 | DW133: 0 | DX133: 0 | DY133: 0 | DZ133: 0 | EA133: 0 | EB133: 0 | EC133: 0 | ED133: 0 | EE133: 0 | EF133: 0 | EG133: 0 | EH133: 0 | EI133: 0 | EJ133: 0 | EK133: 0 | EL133: 0 | EM133: 0 | EN133: 0 | EO133: 0 | EP133: 0 | EQ133: 0 | ER133: 0 | ES133: 0 | ET133: 0 | EU133: 0 | EV133: 0 | EW133: 0 | EX133: 0 | EY133: 0 | EZ133: 0 | FA133: 0 | FB133: 0 | FC133: 0 | FD133: 0 | FE133: 0 | FF133: 0 | FG133: 0 | FH133: 0 | FI133: 0 | FJ133: 0 | FK133: 0 | FL133: 0 | FM133: 0 | FN133: 0 | FO133: 0 | FP133: 0 | FQ133: 0 | FR133: 0 | FS133: 0 | FT133: 0 | FU133: 0 | FV133: 0 | FW133: 0 | FX133: 0 | FY133: 0 | FZ133: 0 | GA133: 0 | GB133: 0 | GC133: 0 | GD133: 0 | GE133: 0 | GF133: 0 | GG133: 0 | GH133: 0 | GI133: 0 | GJ133: 0 | GK133: 0 | GL133: 0 | GM133: 0 | GN133: 0 | GO133: 0 | GP133: 0 | GQ133: 0 | GR133: 0 | GS133: 0 | GT133: 0 | GU133: 0 | GV133: 0 | GW133: 0 | GX133: 0 | GY133: 0 | GZ133: 0 | HA133: 0 | HB133: 0 | HC133: 0 | HD133: 0 | HE133: 0 | HF133: 0 | HG133: 0 | HH133: 0 | HI133: 0 | HJ133: 0 | HK133: 0 | HL133: 0 | HM133: 0 | HN133: 0 | HO133: 0 | HP133: 0 | HQ133: 0 | HR133: 0 | HS133: 0 | HT133: 0 | HU133: 0 | HV133: 0 | HW133: 0
A134: 3 | B134: 230 | C134: 0 | D134: 0 | E134: 0 | F134: 0 | G134: 0 | H134: 0 | I134: 0 | J134: 0 | K134: 0 | L134: 0 | M134: 0 | N134: 0 | O134: 1 | P134: 1 | Q134: 0 | R134: 0 | S134: 0 | T134: 0 | U134: 0 | V134: 0 | W134: 0 | X134: 0 | Y134: 0 | Z134: 0 | AA134: 0 | AB134: 0 | AC134: 158 | AD134: 1 | AE134: 4 | AF134: 0 | AG134: 0 | AH134: 0 | AI134: 0 | AJ134: 0 | AK134: 0 | AL134: 0 | AM134: 0 | AN134: 7 | AO134: 0 | AP134: 0 | AQ134: 0 | AR134: 0 | AS134: 0 | AT134: 0 | AU134: 0 | AV134: 1 | AW134: 5 | AX134: 0 | AY134: 0 | AZ134: 0 | BA134: 0 | BB134: 0 | BC134: 0 | BD134: 0 | BE134: 0 | BF134: 2 | BG134: 0 | BH134: 0 | BI134: 0 | BJ134: 0 | BK134: 0 | BL134: 0 | BM134: 0 | BN134: 0 | BO134: 0 | BP134: 0 | BQ134: 0 | BR134: 0 | BS134: 0 | BT134: 0 | BU134: 0 | BV134: 0 | BW134: 0 | BX134: 0 | BY134: 0 | BZ134: 0 | CA134: 0 | CB134: 0 | CC134: 0 | CD134: 0 | CE134: 0 | CF134: 0 | CG134: 8 | CH134: 0 | CI134: 0 | CJ134: 0 | CK134: 0 | CL134: 0 | CM134: 0 | CN134: 0 | CO134: 0 | CP134: 0 | CQ134: 0 | CR134: 0 | CS134: 0 | CT134: 0 | CU134: 0 | CV134: 0 | CW134: 0 | CX134: 0 | CY134: 0 | CZ134: 0 | DA134: 43 | DB134: 0 | DC134: 0 | DD134: 0 | DE134: 0 | DF134: 3 | DG134: 0 | DH134: 0 | DI134: 0 | DJ134: 0 | DK134: 33 | DL134: 0 | DM134: 0 | DN134: 0 | DO134: 0 | DP134: 9 | DQ134: 0 | DR134: 0 | DS134: 0 | DT134: 0 | DU134: 0 | DV134: 0 | DW134: 0 | DX134: 0 | DY134: 0 | DZ134: 0 | EA134: 0 | EB134: 0 | EC134: 0 | ED134: 0 | EE134: 0 | EF134: 0 | EG134: 0 | EH134: 0 | EI134: 0 | EJ134: 0 | EK134: 0 | EL134: 0 | EM134: 0 | EN134: 0 | EO134: 0 | EP134: 0 | EQ134: 0 | ER134: 0 | ES134: 0 | ET134: 0 | EU134: 0 | EV134: 0 | EW134: 0 | EX134: 0 | EY134: 0 | EZ134: 0 | FA134: 0 | FB134: 0 | FC134: 0 | FD134: 0 | FE134: 0 | FF134: 0 | FG134: 0 | FH134: 0 | FI134: 0 | FJ134: 0 | FK134: 0 | FL134: 0 | FM134: 0 | FN134: 0 | FO134: 0 | FP134: 0 | FQ134: 0 | FR134: 0 | FS134: 0 | FT134: 0 | FU134: 0 | FV134: 0 | FW134: 0 | FX134: 0 | FY134: 0 | FZ134: 0 | GA134: 0 | GB134: 0 | GC134: 0 | GD134: 0 | GE134: 0 | GF134: 0 | GG134: 0 | GH134: 0 | GI134: 0 | GJ134: 0 | GK134: 0 | GL134: 0 | GM134: 0 | GN134: 0 | GO134: 0 | GP134: 0 | GQ134: 0 | GR134: 0 | GS134: 0 | GT134: 0 | GU134: 0 | GV134: 0 | GW134: 0 | GX134: 0 | GY134: 0 | GZ134: 0 | HA134: 0 | HB134: 0 | HC134: 0 | HD134: 0 | HE134: 0 | HF134: 0 | HG134: 0 | HH134: 0 | HI134: 0 | HJ134: 0 | HK134: 0 | HL134: 0 | HM134: 0 | HN134: 0 | HO134: 0 | HP134: 0 | HQ134: 0 | HR134: 0 | HS134: 0 | HT134: 0 | HU134: 0 | HV134: 0 | HW134: 0
A135: T | B135: 574 | C135: 0 | D135: 0 | E135: 0 | F135: 0 | G135: 0 | H135: 0 | I135: 0 | J135: 0 | K135: 0 | L135: 0 | M135: 0 | N135: 0 | O135: 2 | P135: 1 | Q135: 0 | R135: 0 | S135: 0 | T135: 0 | U135: 0 | V135: 0 | W135: 0 | X135: 0 | Y135: 0 | Z135: 0 | AA135: 0 | AB135: 0 | AC135: 485 | AD135: 23 | AE135: 17 | AF135: 0 | AG135: 0 | AH135: 0 | AI135: 3 | AJ135: 0 | AK135: 0 | AL135: 0 | AM135: 0 | AN135: 35 | AO135: 0 | AP135: 0 | AQ135: 0 | AR135: 0 | AS135: 0 | AT135: 0 | AU135: 0 | AV135: 1 | AW135: 27 | AX135: 2 | AY135: 1 | AZ135: 0 | BA135: 0 | BB135: 0 | BC135: 0 | BD135: 0 | BE135: 0 | BF135: 6 | BG135: 0 | BH135: 1 | BI135: 0 | BJ135: 0 | BK135: 0 | BL135: 0 | BM135: 0 | BN135: 0 | BO135: 0 | BP135: 0 | BQ135: 0 | BR135: 0 | BS135: 0 | BT135: 0 | BU135: 0 | BV135: 0 | BW135: 0 | BX135: 0 | BY135: 0 | BZ135: 0 | CA135: 0 | CB135: 0 | CC135: 0 | CD135: 0 | CE135: 0 | CF135: 0 | CG135: 38 | CH135: 0 | CI135: 0 | CJ135: 0 | CK135: 0 | CL135: 0 | CM135: 0 | CN135: 0 | CO135: 0 | CP135: 0 | CQ135: 0 | CR135: 0 | CS135: 0 | CT135: 0 | CU135: 0 | CV135: 0 | CW135: 0 | CX135: 0 | CY135: 0 | CZ135: 0 | DA135: 125 | DB135: 3 | DC135: 0 | DD135: 1 | DE135: 0 | DF135: 13 | DG135: 0 | DH135: 0 | DI135: 0 | DJ135: 0 | DK135: 104 | DL135: 3 | DM135: 0 | DN135: 1 | DO135: 0 | DP135: 33 | DQ135: 0 | DR135: 0 | DS135: 0 | DT135: 0 | DU135: 0 | DV135: 0 | DW135: 0 | DX135: 0 | DY135: 0 | DZ135: 0 | EA135: 0 | EB135: 0 | EC135: 0 | ED135: 0 | EE135: 0 | EF135: 0 | EG135: 0 | EH135: 0 | EI135: 0 | EJ135: 0 | EK135: 0 | EL135: 0 | EM135: 0 | EN135: 0 | EO135: 0 | EP135: 0 | EQ135: 0 | ER135: 0 | ES135: 0 | ET135: 0 | EU135: 0 | EV135: 0 | EW135: 0 | EX135: 0 | EY135: 0 | EZ135: 0 | FA135: 0 | FB135: 0 | FC135: 0 | FD135: 0 | FE135: 0 | FF135: 0 | FG135: 0 | FH135: 0 | FI135: 0 | FJ135: 0 | FK135: 0 | FL135: 0 | FM135: 0 | FN135: 0 | FO135: 0 | FP135: 0 | FQ135: 0 | FR135: 0 | FS135: 0 | FT135: 0 | FU135: 0 | FV135: 0 | FW135: 0 | FX135: 0 | FY135: 0 | FZ135: 0 | GA135: 0 | GB135: 0 | GC135: 0 | GD135: 0 | GE135: 0 | GF135: 0 | GG135: 0 | GH135: 0 | GI135: 0 | GJ135: 0 | GK135: 0 | GL135: 0 | GM135: 0 | GN135: 0 | GO135: 0 | GP135: 0 | GQ135: 0 | GR135: 0 | GS135: 0 | GT135: 0 | GU135: 0 | GV135: 0 | GW135: 0 | GX135: 0 | GY135: 0 | GZ135: 0 | HA135: 0 | HB135: 0 | HC135: 0 | HD135: 0 | HE135: 0 | HF135: 0 | HG135: 0 | HH135: 0 | HI135: 0 | HJ135: 0 | HK135: 0 | HL135: 0 | HM135: 0 | HN135: 0 | HO135: 0 | HP135: 0 | HQ135: 0 | HR135: 0 | HS135: 0 | HT135: 0 | HU135: 0 | HV135: 0 | HW135: 0
A150: TOTAL
A151: =COUNT(A132:A148) -> 3 | B151: =SUM(B132:B148) -> 1148 | C151: =SUM(C132:C148) -> 0 | D151: 0 | E151: 0 | F151: 0 | G151: 0 | H151: 0 | I151: 0 | J151: 0 | K151: 0 | L151: 0 | M151: 0 | N151: 0 | O151: 4 | P151: 2 | Q151: 0 | R151: 0 | S151: 0 | T151: 0 | U151: 0 | V151: 0 | W151: 0 | X151: 0 | Y151: 0 | Z151: 0 | AA151: 0 | AB151: 0 | AC151: 970 | AD151: 46 | AE151: 34 | AF151: 0 | AG151: 0 | AH151: 0 | AI151: 6 | AJ151: 0 | AK151: 0 | AL151: 0 | AM151: 0 | AN151: 70 | AO151: 0 | AP151: 0 | AQ151: 0 | AR151: 0 | AS151: 0 | AT151: 0 | AU151: 0 | AV151: 2 | AW151: 54 | AX151: 4 | AY151: 2 | AZ151: 0 | BA151: 0 | BB151: 0 | BC151: 0 | BD151: 0 | BE151: 0 | BF151: 12 | BG151: 0 | BH151: 2 | BI151: 0 | BJ151: 0 | BK151: 0 | BL151: 0 | BM151: 0 | BN151: 0 | BO151: =SUM(BO132:BO148) -> 0 | BP151: 0 | BQ151: 0 | BR151: 0 | BS151: 0 | BT151: 0 | BU151: 0 | BV151: 0 | BW151: 0 | BX151: 0 | BY151: 0 | BZ151: 0 | CA151: 0 | CB151: 0 | CC151: 0 | CD151: 0 | CE151: 0 | CF151: 0 | CG151: 76 | CH151: 0 | CI151: 0 | CJ151: 0 | CK151: 0 | CL151: 0 | CM151: 0 | CN151: 0 | CO151: 0 | CP151: 0 | CQ151: 0 | CR151: 0 | CS151: 0 | CT151: 0 | CU151: 0 | CV151: 0 | CW151: 0 | CX151: 0 | CY151: 0 | CZ151: 0 | DA151: 250 | DB151: 6 | DC151: 0 | DD151: 2 | DE151: 0 | DF151: 26 | DG151: 0 | DH151: 0 | DI151: 0 | DJ151: 0 | DK151: 208 | DL151: 6 | DM151: 0 | DN151: 2 | DO151: 0 | DP151: 66 | DQ151: 0 | DR151: 0 | DS151: 0 | DT151: 0 | DU151: 0 | DV151: 0 | DW151: 0 | DX151: 0 | DY151: 0 | DZ151: 0 | EA151: =SUM(EA132:EA148) -> 0 | EB151: 0 | EC151: 0 | ED151: 0 | EE151: 0 | EF151: 0 | EG151: 0 | EH151: 0 | EI151: 0 | EJ151: 0 | EK151: 0 | EL151: 0 | EM151: 0 | EN151: 0 | EO151: 0 | EP151: 0 | EQ151: 0 | ER151: 0 | ES151: 0 | ET151: 0 | EU151: 0 | EV151: 0 | EW151: 0 | EX151: 0 | EY151: 0 | EZ151: 0 | FA151: 0 | FB151: 0 | FC151: 0 | FD151: 0 | FE151: 0 | FF151: 0 | FG151: 0 | FH151: 0 | FI151: 0 | FJ151: 0 | FK151: 0 | FL151: 0 | FM151: 0 | FN151: 0 | FO151: 0 | FP151: 0 | FQ151: 0 | FR151: 0 | FS151: 0 | FT151: 0 | FU151: 0 | FV151: 0 | FW151: 0 | FX151: 0 | FY151: 0 | FZ151: 0 | GA151: 0 | GB151: 0 | GC151: 0 | GD151: 0 | GE151: 0 | GF151: 0 | GG151: 0 | GH151: 0 | GI151: 0 | GJ151: 0 | GK151: 0 | GL151: 0 | GM151: =SUM(GM132:GM148) -> 0 | GN151: 0 | GO151: 0 | GP151: 0 | GQ151: 0 | GR151: 0 | GS151: 0 | GT151: 0 | GU151: 0 | GV151: 0 | GW151: 0 | GX151: 0 | GY151: 0 | GZ151: 0 | HA151: 0 | HB151: 0 | HC151: 0 | HD151: 0 | HE151: 0 | HF151: 0 | HG151: 0 | HH151: 0 | HI151: 0 | HJ151: 0 | HK151: 0 | HL151: 0 | HM151: 0 | HN151: 0 | HO151: 0 | HP151: 0 | HQ151: 0 | HR151: 0 | HS151: 0 | HT151: 0 | HU151: 0 | HV151: 0 | HW151: 0
A152: =CONCATENATE(A132,"-",A133,"-",A134,"-",A135,"-",A136,"-",A137,"-",A138,"-",A139,"-",A140,"-",A141,"-",A142,"-",A143) -> 1-2-3-T--------
B153: BAS001 | C153: BAS002 | D153: BAS003 | E153: BAS004 | F153: BAS005 | G153: BAS006 | H153: BAS007 | I153: BAS008 | J153: BAS009 | K153: BAS010 | L153: BAS011 | M153: BAS012 | N153: BAS013 | O153: BAS014 | P153: BAS015 | Q153: BAS016 | R153: BAS017 | S153: BAS018 | T153: BAS019 | U153: BAS020 | V153: BAS021 | W153: BAS022 | X153: BAS023 | Y153: BAS024 | Z153: BAS025 | AA153: BAS026 | AB153: BAS027 | AC153: BAS028 | AD153: BAS029 | AE153: BAS030 | AF153: BAS031 | AG153: BAS032 | AH153: BAS033 | AI153: BAS034 | AJ153: BAS035 | AK153: BAS036 | AL153: BAS037 | AM153: BAS038 | AN153: BAS039 | AO153: BAS040 | AP153: BAS041 | AQ153: BAS042 | AR153: BAS043 | AS153: BAS044 | AT153: BAS045 | AU153: BAS046 | AV153: BAS047 | AW153: BAS048 | AX153: BAS049 | AY153: BAS050 | AZ153: BAS051 | BA153: BAS052 | BB153: BAS053 | BC153: BAS054 | BD153: BAS055 | BE153: BAS056 | BF153: BAS057 | BG153: BAS058 | BH153: BAS059 | BI153: BAS060 | BJ153: BAS061 | BK153: BAS062 | BL153: BAS063 | BM153: BAS064 | BN153: BAS065 | BO153: BAS066 | BP153: BAS067 | BQ153: BAS068 | BR153: BAS069 | BS153: BAS070 | BT153: BAS071 | BU153: BAS072 | BV153: BAS073 | BW153: BAS074 | BX153: BAS075 | BY153: BAS076 | BZ153: BAS077 | CA153: BAS078 | CB153: BAS079 | CC153: BAS080 | CD153: BAS081 | CE153: BAS082 | CF153: BAS083 | CG153: BAS084 | CH153: BAS085 | CI153: BAS086 | CJ153: BAS087 | CK153: BAS088 | CL153: BAS089 | CM153: BAS090 | CN153: BAS091 | CO153: BAS092 | CP153: BAS093 | CQ153: BAS094 | CR153: BAS095 | CS153: BAS096 | CT153: BAS097 | CU153: BAS098 | CV153: BAS099 | CW153: BAS100 | CX153: BAS101 | CY153: BAS102 | CZ153: BAS103 | DA153: BAS104 | DB153: BAS105 | DC153: BAS106 | DD153: BAS107 | DE153: BAS108 | DF153: BAS109 | DG153: BAS110 | DH153: BAS111 | DI153: BAS112 | DJ153: BAS113 | DK153: BAS114 | DL153: BAS115 | DM153: BAS116 | DN153: BAS117 | DO153: BAS118 | DP153: BAS119 | DQ153: BAS120 | DR153: BAS121 | DS153: BAS122 | DT153: BAS123 | DU153: BAS124 | DV153: BAS125 | DW153: BAS126 | DX153: BAS127 | DY153: BAS128 | DZ153: BAS129 | EA153: BAS130 | EB153: BAS131 | EC153: BAS132 | ED153: BAS133 | EE153: BAS134 | EF153: BAS135 | EG153: BAS136 | EH153: BAS137 | EI153: BAS138 | EJ153: BAS139 | EK153: BAS140 | EL153: BAS141 | EM153: BAS142 | EN153: BAS143 | EO153: BAS144 | EP153: BAS145 | EQ153: BAS146 | ER153: BAS147 | ES153: BAS148 | ET153: BAS149 | EU153: BAS150 | EV153: BAS151 | EW153: BAS152 | EX153: BAS153 | EY153: BAS154 | EZ153: BAS155 | FA153: BAS156 | FB153: BAS157 | FC153: BAS158 | FD153: BAS159 | FE153: BAS160 | FF153: BAS161 | FG153: BAS162 | FH153: BAS163 | FI153: BAS164 | FJ153: BAS165 | FK153: BAS166 | FL153: BAS167 | FM153: BAS168 | FN153: BAS169 | FO153: BAS170 | FP153: BAS171 | FQ153: BAS172 | FR153: BAS173 | FS153: BAS174 | FT153: BAS175 | FU153: BAS176 | FV153: BAS177 | FW153: BAS178 | FX153: BAS179 | FY153: BAS180 | FZ153: BAS181 | GA153: BAS182 | GB153: BAS183 | GC153: BAS184 | GD153: BAS185 | GE153: BAS186 | GF153: BAS187 | GG153: BAS188 | GH153: BAS189 | GI153: BAS190 | GJ153: BAS191 | GK153: BAS192 | GL153: BAS193 | GM153: BAS194 | GN153: BAS195 | GO153: BAS196 | GP153: BAS197 | GQ153: BAS198 | GR153: BAS199 | GS153: BAS200 | GT153: BAS201 | GU153: BAS202 | GV153: BAS203 | GW153: BAS204 | GX153: BAS205 | GY153: BAS206 | GZ153: BAS207 | HA153: BAS208 | HB153: BAS209 | HC153: BAS210 | HD153: BAS211 | HE153: BAS212 | HF153: BAS213 | HG153: BAS214 | HH153: BAS215 | HI153: BAS216 | HJ153: BAS217 | HK153: BAS218 | HL153: BAS219 | HM153: BAS220 | HN153: BAS221 | HO153: BAS222 | HP153: BAS223 | HQ153: BAS224 | HR153: BAS225 | HS153: BAS226 | HT153: BAS227 | HU153: BAS228 | HV153: BAS229 | HW153: BAS230
B154: =IF(B153=B131,"SI","NO") -> SI | C154: =IF(C153=C131,"SI","NO") -> SI | D154: SI | E154: SI | F154: SI | G154: SI | H154: SI | I154: SI | J154: SI | K154: SI | L154: SI | M154: SI | N154: SI | O154: SI | P154: SI | Q154: SI | R154: SI | S154: SI | T154: SI | U154: SI | V154: SI | W154: SI | X154: SI | Y154: SI | Z154: SI | AA154: SI | AB154: SI | AC154: SI | AD154: SI | AE154: SI | AF154: SI | AG154: SI | AH154: SI | AI154: SI | AJ154: SI | AK154: SI | AL154: SI | AM154: SI | AN154: SI | AO154: SI | AP154: SI | AQ154: SI | AR154: SI | AS154: SI | AT154: SI | AU154: SI | AV154: SI | AW154: SI | AX154: SI | AY154: SI | AZ154: SI | BA154: SI | BB154: SI | BC154: SI | BD154: SI | BE154: SI | BF154: SI | BG154: SI | BH154: SI | BI154: SI | BJ154: SI | BK154: SI | BL154: SI | BM154: SI | BN154: SI | BO154: =IF(BO153=BO131,"SI","NO") -> SI | BP154: SI | BQ154: SI | BR154: SI | BS154: SI | BT154: SI | BU154: SI | BV154: SI | BW154: SI | BX154: SI | BY154: SI | BZ154: SI | CA154: SI | CB154: SI | CC154: SI | CD154: SI | CE154: SI | CF154: SI | CG154: SI | CH154: SI | CI154: SI | CJ154: SI | CK154: SI | CL154: SI | CM154: SI | CN154: SI | CO154: SI | CP154: SI | CQ154: SI | CR154: SI | CS154: SI | CT154: SI | CU154: SI | CV154: SI | CW154: SI | CX154: SI | CY154: SI | CZ154: SI | DA154: SI | DB154: SI | DC154: SI | DD154: SI | DE154: SI | DF154: SI | DG154: SI | DH154: SI | DI154: SI | DJ154: SI | DK154: SI | DL154: SI | DM154: SI | DN154: SI | DO154: SI | DP154: SI | DQ154: SI | DR154: SI | DS154: SI | DT154: SI | DU154: SI | DV154: SI | DW154: SI | DX154: SI | DY154: SI | DZ154: SI | EA154: =IF(EA153=EA131,"SI","NO") -> SI | EB154: SI | EC154: SI | ED154: SI | EE154: SI | EF154: SI | EG154: SI | EH154: SI | EI154: SI | EJ154: SI | EK154: SI | EL154: SI | EM154: SI | EN154: SI | EO154: SI | EP154: SI | EQ154: SI | ER154: SI | ES154: SI | ET154: SI | EU154: SI | EV154: SI | EW154: SI | EX154: SI | EY154: SI | EZ154: SI | FA154: SI | FB154: SI | FC154: SI | FD154: SI | FE154: SI | FF154: SI | FG154: SI | FH154: SI | FI154: SI | FJ154: SI | FK154: SI | FL154: SI | FM154: SI | FN154: SI | FO154: SI | FP154: SI | FQ154: SI | FR154: SI | FS154: SI | FT154: SI | FU154: SI | FV154: SI | FW154: SI | FX154: SI | FY154: SI | FZ154: SI | GA154: SI | GB154: SI | GC154: SI | GD154: SI | GE154: SI | GF154: SI | GG154: SI | GH154: SI | GI154: SI | GJ154: SI | GK154: SI | GL154: SI | GM154: =IF(GM153=GM131,"SI","NO") -> SI | GN154: SI | GO154: SI | GP154: SI | GQ154: SI | GR154: SI | GS154: SI | GT154: SI | GU154: SI | GV154: SI | GW154: SI | GX154: SI | GY154: SI | GZ154: SI | HA154: SI | HB154: SI | HC154: SI | HD154: SI | HE154: SI | HF154: SI | HG154: SI | HH154: SI | HI154: SI | HJ154: SI | HK154: SI | HL154: SI | HM154: SI | HN154: SI | HO154: SI | HP154: SI | HQ154: SI | HR154: SI | HS154: SI | HT154: SI | HU154: SI | HV154: SI | HW154: SI
A159: TUBERCU_3059
A160: ANNO | B160: 2025
A161: cod_red | B161: 03
A162: codmic | B162: (Todas)
A163: cod_prov | B163: (Todas)
A164: coddist | B164: (Todas)
A165: cod_estab | B165: (Todas)
A166: cod_eje | B166: (Todas)
B168: Valores
A169: Etiquetas de fila | B169: BAS001 | C169: BAS002 | D169: BAS003 | E169: BAS004 | F169: BAS005 | G169: BAS006 | H169: BAS007 | I169: BAS008 | J169: BAS009 | K169: BAS010 | L169: BAS011 | M169: BAS012 | N169: BAS013 | O169: BAS014 | P169: BAS015 | Q169: BAS016 | R169: BAS017 | S169: BAS018 | T169: BAS019 | U169: BAS020 | V169: BAS021 | W169: BAS022 | X169: BAS023 | Y169: BAS024 | Z169: BAS025 | AA169: BAS026 | AB169: BAS027 | AC169: BAS028 | AD169: BAS029 | AE169: BAS030 | AF169: BAS031 | AG169: BAS032 | AH169: BAS033 | AI169: BAS034 | AJ169: BAS035 | AK169: BAS036 | AL169: BAS037 | AM169: BAS038 | AN169: BAS039 | AO169: BAS040 | AP169: BAS041 | AQ169: BAS042 | AR169: BAS043 | AS169: BAS044 | AT169: BAS045 | AU169: BAS046 | AV169: BAS047 | AW169: BAS048 | AX169: BAS049 | AY169: BAS050 | AZ169: BAS051 | BA169: BAS052 | BB169: BAS053 | BC169: BAS054 | BD169: BAS055 | BE169: BAS056 | BF169: BAS057 | BG169: BAS058 | BH169: BAS059 | BI169: BAS060 | BJ169: BAS061 | BK169: BAS062 | BL169: BAS063 | BM169: BAS064 | BN169: BAS065 | BO169: BAS066 | BP169: BAS067 | BQ169: BAS068 | BR169: BAS069 | BS169: BAS070 | BT169: BAS071 | BU169: BAS072 | BV169: BAS073 | BW169: BAS074 | BX169: BAS075 | BY169: BAS076 | BZ169: BAS077 | CA169: BAS078 | CB169: BAS079 | CC169: BAS080 | CD169: BAS081 | CE169: BAS082 | CF169: BAS083 | CG169: BAS084 | CH169: BAS085 | CI169: BAS086 | CJ169: BAS087 | CK169: BAS088 | CL169: BAS089 | CM169: BAS090 | CN169: BAS091 | CO169: BAS092 | CP169: BAS093 | CQ169: BAS094 | CR169: BAS095 | CS169: BAS096 | CT169: BAS097 | CU169: BAS098 | CV169: BAS099 | CW169: BAS100 | CX169: BAS101 | CY169: BAS102 | CZ169: BAS103 | DA169: BAS104 | DB169: BAS105 | DC169: BAS106 | DD169: BAS107 | DE169: BAS108 | DF169: BAS109 | DG169: BAS110 | DH169: BAS111 | DI169: BAS112 | DJ169: BAS113 | DK169: BAS114 | DL169: BAS115 | DM169: BAS116 | DN169: BAS117 | DO169: BAS118 | DP169: BAS119 | DQ169: BAS120 | DR169: BAS121 | DS169: BAS122 | DT169: BAS123 | DU169: BAS124 | DV169: BAS125 | DW169: BAS126 | DX169: BAS127 | DY169: BAS128 | DZ169: BAS129 | EA169: BAS130 | EB169: BAS131 | EC169: BAS132 | ED169: BAS133 | EE169: BAS134 | EF169: BAS135 | EG169: BAS136 | EH169: BAS137 | EI169: BAS138 | EJ169: BAS139 | EK169: BAS140 | EL169: BAS141 | EM169: BAS142 | EN169: BAS143 | EO169: BAS144 | EP169: BAS145 | EQ169: BAS146 | ER169: BAS147 | ES169: BAS148 | ET169: BAS149 | EU169: BAS150 | EV169: BAS151 | EW169: BAS152 | EX169: BAS153 | EY169: BAS154 | EZ169: BAS155 | FA169: BAS156 | FB169: BAS157 | FC169: BAS158 | FD169: BAS159 | FE169: BAS160 | FF169: BAS161 | FG169: BAS162 | FH169: BAS163 | FI169: BAS164 | FJ169: BAS165 | FK169: BAS166 | FL169: BAS167 | FM169: BAS168 | FN169: BAS169 | FO169: BAS170 | FP169: BAS171 | FQ169: BAS172 | FR169: BAS173 | FS169: BAS174 | FT169: BAS175 | FU169: BAS176 | FV169: BAS177 | FW169: BAS178 | FX169: BAS179 | FY169: BAS180 | FZ169: BAS181 | GA169: BAS182 | GB169: BAS183 | GC169: BAS184 | GD169: BAS185 | GE169: BAS186 | GF169: BAS187 | GG169: BAS188 | GH169: BAS189 | GI169: BAS190 | GJ169: BAS191 | GK169: BAS192 | GL169: BAS193 | GM169: BAS194 | GN169: BAS195 | GO169: BAS196 | GP169: BAS197 | GQ169: BAS198 | GR169: BAS199 | GS169: BAS200 | GT169: BAS201 | GU169: BAS202 | GV169: BAS203 | GW169: BAS204 | GX169: BAS205 | GY169: BAS206 | GZ169: BAS207 | HA169: BAS208 | HB169: BAS209 | HC169: BAS210 | HD169: BAS211 | HE169: BAS212 | HF169: BAS213 | HG169: BAS214 | HH169: BAS215 | HI169: BAS216 | HJ169: BAS217 | HK169: BAS218 | HL169: BAS219 | HM169: BAS220 | HN169: BAS221 | HO169: BAS222 | HP169: BAS223 | HQ169: BAS224 | HR169: BAS225 | HS169: BAS226 | HT169: BAS227 | HU169: BAS228 | HV169: BAS229 | HW169: BAS230
A170: 1 | B170: 590 | C170: 0 | D170: 0 | E170: 3 | F170: 1 | G170: 0 | H170: 0 | I170: 0 | J170: 1 | K170: 0 | L170: 0 | M170: 0 | N170: 0 | O170: 5 | P170: 4 | Q170: 1 | R170: 0 | S170: 0 | T170: 0 | U170: 0 | V170: 0 | W170: 0 | X170: 0 | Y170: 1 | Z170: 0 | AA170: 0 | AB170: 0 | AC170: 285 | AD170: 22 | AE170: 15 | AF170: 0 | AG170: 0 | AH170: 2 | AI170: 5 | AJ170: 0 | AK170: 0 | AL170: 0 | AM170: 0 | AN170: 4 | AO170: 0 | AP170: 0 | AQ170: 0 | AR170: 0 | AS170: 0 | AT170: 0 | AU170: 0 | AV170: 4 | AW170: 5 | AX170: 1 | AY170: 4 | AZ170: 0 | BA170: 0 | BB170: 0 | BC170: 0 | BD170: 0 | BE170: 0 | BF170: 3 | BG170: 0 | BH170: 5 | BI170: 0 | BJ170: 0 | BK170: 0 | BL170: 0 | BM170: 0 | BN170: 0 | BO170: 0 | BP170: 0 | BQ170: 0 | BR170: 0 | BS170: 0 | BT170: 0 | BU170: 0 | BV170: 0 | BW170: 0 | BX170: 0 | BY170: 0 | BZ170: 0 | CA170: 0 | CB170: 0 | CC170: 0 | CD170: 0 | CE170: 0 | CF170: 0 | CG170: 4 | CH170: 0 | CI170: 0 | CJ170: 0 | CK170: 0 | CL170: 0 | CM170: 0 | CN170: 0 | CO170: 0 | CP170: 0 | CQ170: 0 | CR170: 0 | CS170: 0 | CT170: 0 | CU170: 0 | CV170: 0 | CW170: 0 | CX170: 0 | CY170: 0 | CZ170: 0 | DA170: 175 | DB170: 2 | DC170: 1 | DD170: 0 | DE170: 0 | DF170: 24 | DG170: 0 | DH170: 0 | DI170: 0 | DJ170: 0 | DK170: 155 | DL170: 2 | DM170: 1 | DN170: 0 | DO170: 0 | DP170: 19 | DQ170: 0 | DR170: 0 | DS170: 0 | DT170: 0 | DU170: 4 | DV170: 0 | DW170: 0 | DX170: 0 | DY170: 0 | DZ170: 0 | EA170: 0 | EB170: 0 | EC170: 0 | ED170: 0 | EE170: 0 | EF170: 0 | EG170: 0 | EH170: 0 | EI170: 0 | EJ170: 0 | EK170: 0 | EL170: 0 | EM170: 0 | EN170: 0 | EO170: 0 | EP170: 0 | EQ170: 0 | ER170: 0 | ES170: 0 | ET170: 0 | EU170: 0 | EV170: 0 | EW170: 0 | EX170: 0 | EY170: 0 | EZ170: 0 | FA170: 0 | FB170: 0 | FC170: 0 | FD170: 0 | FE170: 0 | FF170: 0 | FG170: 0 | FH170: 0 | FI170: 0 | FJ170: 0 | FK170: 0 | FL170: 0 | FM170: 0 | FN170: 0 | FO170: 0 | FP170: 0 | FQ170: 0 | FR170: 0 | FS170: 0 | FT170: 0 | FU170: 0 | FV170: 0 | FW170: 0 | FX170: 0 | FY170: 0 | FZ170: 0 | GA170: 0 | GB170: 0 | GC170: 0 | GD170: 0 | GE170: 0 | GF170: 0 | GG170: 0 | GH170: 0 | GI170: 0 | GJ170: 0 | GK170: 0 | GL170: 0 | GM170: 0 | GN170: 0 | GO170: 0 | GP170: 0 | GQ170: 0 | GR170: 0 | GS170: 0 | GT170: 0 | GU170: 0 | GV170: 0 | GW170: 0 | GX170: 0 | GY170: 0 | GZ170: 0 | HA170: 0 | HB170: 0 | HC170: 0 | HD170: 0 | HE170: 0 | HF170: 0 | HG170: 0 | HH170: 0 | HI170: 0 | HJ170: 0 | HK170: 0 | HL170: 0 | HM170: 0 | HN170: 0 | HO170: 0 | HP170: 0 | HQ170: 0 | HR170: 0 | HS170: 0 | HT170: 0 | HU170: 0 | HV170: 0 | HW170: 0
A171: 2 | B171: 525 | C171: 0 | D171: 0 | E171: 0 | F171: 0 | G171: 0 | H171: 0 | I171: 0 | J171: 1 | K171: 0 | L171: 0 | M171: 0 | N171: 0 | O171: 1 | P171: 1 | Q171: 2 | R171: 1 | S171: 0 | T171: 0 | U171: 0 | V171: 0 | W171: 0 | X171: 0 | Y171: 4 | Z171: 0 | AA171: 0 | AB171: 0 | AC171: 311 | AD171: 26 | AE171: 11 | AF171: 0 | AG171: 0 | AH171: 3 | AI171: 0 | AJ171: 0 | AK171: 0 | AL171: 0 | AM171: 0 | AN171: 3 | AO171: 0 | AP171: 0 | AQ171: 0 | AR171: 0 | AS171: 0 | AT171: 0 | AU171: 0 | AV171: 1 | AW171: 27 | AX171: 0 | AY171: 0 | AZ171: 0 | BA171: 0 | BB171: 0 | BC171: 0 | BD171: 0 | BE171: 0 | BF171: 1 | BG171: 0 | BH171: 0 | BI171: 0 | BJ171: 0 | BK171: 0 | BL171: 0 | BM171: 0 | BN171: 0 | BO171: 0 | BP171: 0 | BQ171: 0 | BR171: 0 | BS171: 0 | BT171: 0 | BU171: 0 | BV171: 0 | BW171: 0 | BX171: 0 | BY171: 0 | BZ171: 0 | CA171: 0 | CB171: 0 | CC171: 0 | CD171: 0 | CE171: 0 | CF171: 0 | CG171: 3 | CH171: 0 | CI171: 0 | CJ171: 0 | CK171: 0 | CL171: 0 | CM171: 0 | CN171: 0 | CO171: 0 | CP171: 0 | CQ171: 0 | CR171: 0 | CS171: 0 | CT171: 0 | CU171: 0 | CV171: 0 | CW171: 0 | CX171: 0 | CY171: 0 | CZ171: 0 | DA171: 153 | DB171: 1 | DC171: 0 | DD171: 0 | DE171: 0 | DF171: 0 | DG171: 0 | DH171: 0 | DI171: 0 | DJ171: 0 | DK171: 139 | DL171: 2 | DM171: 0 | DN171: 0 | DO171: 0 | DP171: 25 | DQ171: 0 | DR171: 0 | DS171: 0 | DT171: 0 | DU171: 0 | DV171: 0 | DW171: 0 | DX171: 0 | DY171: 0 | DZ171: 0 | EA171: 0 | EB171: 0 | EC171: 0 | ED171: 0 | EE171: 0 | EF171: 0 | EG171: 0 | EH171: 0 | EI171: 0 | EJ171: 0 | EK171: 0 | EL171: 0 | EM171: 0 | EN171: 0 | EO171: 0 | EP171: 0 | EQ171: 0 | ER171: 0 | ES171: 0 | ET171: 0 | EU171: 0 | EV171: 0 | EW171: 0 | EX171: 0 | EY171: 0 | EZ171: 0 | FA171: 0 | FB171: 0 | FC171: 0 | FD171: 0 | FE171: 0 | FF171: 0 | FG171: 0 | FH171: 0 | FI171: 0 | FJ171: 0 | FK171: 0 | FL171: 0 | FM171: 0 | FN171: 0 | FO171: 0 | FP171: 0 | FQ171: 0 | FR171: 0 | FS171: 0 | FT171: 0 | FU171: 0 | FV171: 0 | FW171: 0 | FX171: 0 | FY171: 0 | FZ171: 0 | GA171: 0 | GB171: 0 | GC171: 0 | GD171: 0 | GE171: 0 | GF171: 0 | GG171: 0 | GH171: 0 | GI171: 0 | GJ171: 0 | GK171: 0 | GL171: 0 | GM171: 0 | GN171: 0 | GO171: 0 | GP171: 0 | GQ171: 0 | GR171: 0 | GS171: 0 | GT171: 0 | GU171: 0 | GV171: 0 | GW171: 0 | GX171: 0 | GY171: 0 | GZ171: 0 | HA171: 0 | HB171: 0 | HC171: 0 | HD171: 0 | HE171: 0 | HF171: 0 | HG171: 0 | HH171: 0 | HI171: 0 | HJ171: 0 | HK171: 0 | HL171: 0 | HM171: 0 | HN171: 0 | HO171: 0 | HP171: 0 | HQ171: 0 | HR171: 0 | HS171: 0 | HT171: 0 | HU171: 0 | HV171: 0 | HW171: 0
A172: 3 | B172: 785 | C172: 0 | D172: 0 | E172: 0 | F172: 0 | G172: 0 | H172: 0 | I172: 0 | J172: 2 | K172: 0 | L172: 0 | M172: 0 | N172: 0 | O172: 3 | P172: 2 | Q172: 3 | R172: 0 | S172: 0 | T172: 0 | U172: 0 | V172: 0 | W172: 0 | X172: 0 | Y172: 2 | Z172: 0 | AA172: 0 | AB172: 0 | AC172: 349 | AD172: 27 | AE172: 13 | AF172: 0 | AG172: 0 | AH172: 3 | AI172: 0 | AJ172: 0 | AK172: 0 | AL172: 0 | AM172: 0 | AN172: 1 | AO172: 1 | AP172: 0 | AQ172: 0 | AR172: 0 | AS172: 0 | AT172: 0 | AU172: 0 | AV172: 2 | AW172: 16 | AX172: 0 | AY172: 21 | AZ172: 0 | BA172: 0 | BB172: 0 | BC172: 0 | BD172: 0 | BE172: 0 | BF172: 8 | BG172: 0 | BH172: 20 | BI172: 0 | BJ172: 0 | BK172: 0 | BL172: 0 | BM172: 0 | BN172: 0 | BO172: 0 | BP172: 0 | BQ172: 0 | BR172: 0 | BS172: 0 | BT172: 0 | BU172: 0 | BV172: 0 | BW172: 0 | BX172: 0 | BY172: 0 | BZ172: 0 | CA172: 0 | CB172: 0 | CC172: 0 | CD172: 0 | CE172: 0 | CF172: 0 | CG172: 2 | CH172: 1 | CI172: 0 | CJ172: 0 | CK172: 0 | CL172: 0 | CM172: 0 | CN172: 0 | CO172: 0 | CP172: 0 | CQ172: 0 | CR172: 0 | CS172: 0 | CT172: 0 | CU172: 0 | CV172: 0 | CW172: 0 | CX172: 0 | CY172: 0 | CZ172: 0 | DA172: 184 | DB172: 0 | DC172: 1 | DD172: 2 | DE172: 0 | DF172: 10 | DG172: 0 | DH172: 0 | DI172: 0 | DJ172: 1 | DK172: 162 | DL172: 0 | DM172: 0 | DN172: 2 | DO172: 0 | DP172: 19 | DQ172: 0 | DR172: 0 | DS172: 0 | DT172: 1 | DU172: 0 | DV172: 0 | DW172: 0 | DX172: 0 | DY172: 0 | DZ172: 0 | EA172: 0 | EB172: 0 | EC172: 0 | ED172: 0 | EE172: 0 | EF172: 0 | EG172: 0 | EH172: 0 | EI172: 0 | EJ172: 0 | EK172: 0 | EL172: 0 | EM172: 0 | EN172: 0 | EO172: 0 | EP172: 0 | EQ172: 0 | ER172: 0 | ES172: 0 | ET172: 0 | EU172: 0 | EV172: 0 | EW172: 0 | EX172: 0 | EY172: 0 | EZ172: 0 | FA172: 0 | FB172: 0 | FC172: 0 | FD172: 0 | FE172: 0 | FF172: 0 | FG172: 0 | FH172: 0 | FI172: 0 | FJ172: 0 | FK172: 0 | FL172: 0 | FM172: 0 | FN172: 0 | FO172: 0 | FP172: 0 | FQ172: 0 | FR172: 0 | FS172: 0 | FT172: 0 | FU172: 0 | FV172: 0 | FW172: 0 | FX172: 0 | FY172: 0 | FZ172: 0 | GA172: 0 | GB172: 0 | GC172: 0 | GD172: 0 | GE172: 0 | GF172: 0 | GG172: 0 | GH172: 0 | GI172: 0 | GJ172: 0 | GK172: 0 | GL172: 0 | GM172: 0 | GN172: 0 | GO172: 0 | GP172: 0 | GQ172: 0 | GR172: 0 | GS172: 0 | GT172: 0 | GU172: 0 | GV172: 0 | GW172: 0 | GX172: 0 | GY172: 0 | GZ172: 0 | HA172: 0 | HB172: 0 | HC172: 0 | HD172: 0 | HE172: 0 | HF172: 0 | HG172: 0 | HH172: 0 | HI172: 0 | HJ172: 0 | HK172: 0 | HL172: 0 | HM172: 0 | HN172: 0 | HO172: 0 | HP172: 0 | HQ172: 0 | HR172: 0 | HS172: 0 | HT172: 0 | HU172: 0 | HV172: 0 | HW172: 0
A173: T | B173: 1900 | C173: 0 | D173: 0 | E173: 3 | F173: 1 | G173: 0 | H173: 0 | I173: 0 | J173: 4 | K173: 0 | L173: 0 | M173: 0 | N173: 0 | O173: 9 | P173: 7 | Q173: 6 | R173: 1 | S173: 0 | T173: 0 | U173: 0 | V173: 0 | W173: 0 | X173: 0 | Y173: 7 | Z173: 0 | AA173: 0 | AB173: 0 | AC173: 945 | AD173: 75 | AE173: 39 | AF173: 0 | AG173: 0 | AH173: 8 | AI173: 5 | AJ173: 0 | AK173: 0 | AL173: 0 | AM173: 0 | AN173: 8 | AO173: 1 | AP173: 0 | AQ173: 0 | AR173: 0 | AS173: 0 | AT173: 0 | AU173: 0 | AV173: 7 | AW173: 48 | AX173: 1 | AY173: 25 | AZ173: 0 | BA173: 0 | BB173: 0 | BC173: 0 | BD173: 0 | BE173: 0 | BF173: 12 | BG173: 0 | BH173: 25 | BI173: 0 | BJ173: 0 | BK173: 0 | BL173: 0 | BM173: 0 | BN173: 0 | BO173: 0 | BP173: 0 | BQ173: 0 | BR173: 0 | BS173: 0 | BT173: 0 | BU173: 0 | BV173: 0 | BW173: 0 | BX173: 0 | BY173: 0 | BZ173: 0 | CA173: 0 | CB173: 0 | CC173: 0 | CD173: 0 | CE173: 0 | CF173: 0 | CG173: 9 | CH173: 1 | CI173: 0 | CJ173: 0 | CK173: 0 | CL173: 0 | CM173: 0 | CN173: 0 | CO173: 0 | CP173: 0 | CQ173: 0 | CR173: 0 | CS173: 0 | CT173: 0 | CU173: 0 | CV173: 0 | CW173: 0 | CX173: 0 | CY173: 0 | CZ173: 0 | DA173: 512 | DB173: 3 | DC173: 2 | DD173: 2 | DE173: 0 | DF173: 34 | DG173: 0 | DH173: 0 | DI173: 0 | DJ173: 1 | DK173: 456 | DL173: 4 | DM173: 1 | DN173: 2 | DO173: 0 | DP173: 63 | DQ173: 0 | DR173: 0 | DS173: 0 | DT173: 1 | DU173: 4 | DV173: 0 | DW173: 0 | DX173: 0 | DY173: 0 | DZ173: 0 | EA173: 0 | EB173: 0 | EC173: 0 | ED173: 0 | EE173: 0 | EF173: 0 | EG173: 0 | EH173: 0 | EI173: 0 | EJ173: 0 | EK173: 0 | EL173: 0 | EM173: 0 | EN173: 0 | EO173: 0 | EP173: 0 | EQ173: 0 | ER173: 0 | ES173: 0 | ET173: 0 | EU173: 0 | EV173: 0 | EW173: 0 | EX173: 0 | EY173: 0 | EZ173: 0 | FA173: 0 | FB173: 0 | FC173: 0 | FD173: 0 | FE173: 0 | FF173: 0 | FG173: 0 | FH173: 0 | FI173: 0 | FJ173: 0 | FK173: 0 | FL173: 0 | FM173: 0 | FN173: 0 | FO173: 0 | FP173: 0 | FQ173: 0 | FR173: 0 | FS173: 0 | FT173: 0 | FU173: 0 | FV173: 0 | FW173: 0 | FX173: 0 | FY173: 0 | FZ173: 0 | GA173: 0 | GB173: 0 | GC173: 0 | GD173: 0 | GE173: 0 | GF173: 0 | GG173: 0 | GH173: 0 | GI173: 0 | GJ173: 0 | GK173: 0 | GL173: 0 | GM173: 0 | GN173: 0 | GO173: 0 | GP173: 0 | GQ173: 0 | GR173: 0 | GS173: 0 | GT173: 0 | GU173: 0 | GV173: 0 | GW173: 0 | GX173: 0 | GY173: 0 | GZ173: 0 | HA173: 0 | HB173: 0 | HC173: 0 | HD173: 0 | HE173: 0 | HF173: 0 | HG173: 0 | HH173: 0 | HI173: 0 | HJ173: 0 | HK173: 0 | HL173: 0 | HM173: 0 | HN173: 0 | HO173: 0 | HP173: 0 | HQ173: 0 | HR173: 0 | HS173: 0 | HT173: 0 | HU173: 0 | HV173: 0 | HW173: 0
A188: TOTAL
A189: =COUNT(A170:A186) -> 3 | B189: =SUM(B170:B186) -> 3800 | C189: =SUM(C170:C186) -> 0 | D189: 0 | E189: 6 | F189: 2 | G189: 0 | H189: 0 | I189: 0 | J189: 8 | K189: 0 | L189: 0 | M189: 0 | N189: 0 | O189: 18 | P189: 14 | Q189: 12 | R189: 2 | S189: 0 | T189: 0 | U189: 0 | V189: 0 | W189: 0 | X189: 0 | Y189: 14 | Z189: 0 | AA189: 0 | AB189: 0 | AC189: 1890 | AD189: 150 | AE189: 78 | AF189: 0 | AG189: 0 | AH189: 16 | AI189: 10 | AJ189: 0 | AK189: 0 | AL189: 0 | AM189: 0 | AN189: 16 | AO189: 2 | AP189: 0 | AQ189: 0 | AR189: 0 | AS189: 0 | AT189: 0 | AU189: 0 | AV189: 14 | AW189: 96 | AX189: 2 | AY189: 50 | AZ189: 0 | BA189: 0 | BB189: 0 | BC189: 0 | BD189: 0 | BE189: 0 | BF189: 24 | BG189: 0 | BH189: 50 | BI189: 0 | BJ189: 0 | BK189: 0 | BL189: 0 | BM189: 0 | BN189: 0 | BO189: =SUM(BO170:BO186) -> 0 | BP189: 0 | BQ189: 0 | BR189: 0 | BS189: 0 | BT189: 0 | BU189: 0 | BV189: 0 | BW189: 0 | BX189: 0 | BY189: 0 | BZ189: 0 | CA189: 0 | CB189: 0 | CC189: 0 | CD189: 0 | CE189: 0 | CF189: 0 | CG189: 18 | CH189: 2 | CI189: 0 | CJ189: 0 | CK189: 0 | CL189: 0 | CM189: 0 | CN189: 0 | CO189: 0 | CP189: 0 | CQ189: 0 | CR189: 0 | CS189: 0 | CT189: 0 | CU189: 0 | CV189: 0 | CW189: 0 | CX189: 0 | CY189: 0 | CZ189: 0 | DA189: 1024 | DB189: 6 | DC189: 4 | DD189: 4 | DE189: 0 | DF189: 68 | DG189: 0 | DH189: 0 | DI189: 0 | DJ189: 2 | DK189: 912 | DL189: 8 | DM189: 2 | DN189: 4 | DO189: 0 | DP189: 126 | DQ189: 0 | DR189: 0 | DS189: 0 | DT189: 2 | DU189: 8 | DV189: 0 | DW189: 0 | DX189: 0 | DY189: 0 | DZ189: 0 | EA189: =SUM(EA170:EA186) -> 0 | EB189: 0 | EC189: 0 | ED189: 0 | EE189: 0 | EF189: 0 | EG189: 0 | EH189: 0 | EI189: 0 | EJ189: 0 | EK189: 0 | EL189: 0 | EM189: 0 | EN189: 0 | EO189: 0 | EP189: 0 | EQ189: 0 | ER189: 0 | ES189: 0 | ET189: 0 | EU189: 0 | EV189: 0 | EW189: 0 | EX189: 0 | EY189: 0 | EZ189: 0 | FA189: 0 | FB189: 0 | FC189: 0 | FD189: 0 | FE189: 0 | FF189: 0 | FG189: 0 | FH189: 0 | FI189: 0 | FJ189: 0 | FK189: 0 | FL189: 0 | FM189: 0 | FN189: 0 | FO189: 0 | FP189: 0 | FQ189: 0 | FR189: 0 | FS189: 0 | FT189: 0 | FU189: 0 | FV189: 0 | FW189: 0 | FX189: 0 | FY189: 0 | FZ189: 0 | GA189: 0 | GB189: 0 | GC189: 0 | GD189: 0 | GE189: 0 | GF189: 0 | GG189: 0 | GH189: 0 | GI189: 0 | GJ189: 0 | GK189: 0 | GL189: 0 | GM189: =SUM(GM170:GM186) -> 0 | GN189: 0 | GO189: 0 | GP189: 0 | GQ189: 0 | GR189: 0 | GS189: 0 | GT189: 0 | GU189: 0 | GV189: 0 | GW189: 0 | GX189: 0 | GY189: 0 | GZ189: 0 | HA189: 0 | HB189: 0 | HC189: 0 | HD189: 0 | HE189: 0 | HF189: 0 | HG189: 0 | HH189: 0 | HI189: 0 | HJ189: 0 | HK189: 0 | HL189: 0 | HM189: 0 | HN189: 0 | HO189: 0 | HP189: 0 | HQ189: 0 | HR189: 0 | HS189: 0 | HT189: 0 | HU189: 0 | HV189: 0 | HW189: 0
A190: =CONCATENATE(A170,"-",A171,"-",A172,"-",A173,"-",A174,"-",A175,"-",A176,"-",A177,"-",A178,"-",A179,"-",A180,"-",A181) -> 1-2-3-T--------
B191: BAS001 | C191: BAS002 | D191: BAS003 | E191: BAS004 | F191: BAS005 | G191: BAS006 | H191: BAS007 | I191: BAS008 | J191: BAS009 | K191: BAS010 | L191: BAS011 | M191: BAS012 | N191: BAS013 | O191: BAS014 | P191: BAS015 | Q191: BAS016 | R191: BAS017 | S191: BAS018 | T191: BAS019 | U191: BAS020 | V191: BAS021 | W191: BAS022 | X191: BAS023 | Y191: BAS024 | Z191: BAS025 | AA191: BAS026 | AB191: BAS027 | AC191: BAS028 | AD191: BAS029 | AE191: BAS030 | AF191: BAS031 | AG191: BAS032 | AH191: BAS033 | AI191: BAS034 | AJ191: BAS035 | AK191: BAS036 | AL191: BAS037 | AM191: BAS038 | AN191: BAS039 | AO191: BAS040 | AP191: BAS041 | AQ191: BAS042 | AR191: BAS043 | AS191: BAS044 | AT191: BAS045 | AU191: BAS046 | AV191: BAS047 | AW191: BAS048 | AX191: BAS049 | AY191: BAS050 | AZ191: BAS051 | BA191: BAS052 | BB191: BAS053 | BC191: BAS054 | BD191: BAS055 | BE191: BAS056 | BF191: BAS057 | BG191: BAS058 | BH191: BAS059 | BI191: BAS060 | BJ191: BAS061 | BK191: BAS062 | BL191: BAS063 | BM191: BAS064 | BN191: BAS065 | BO191: BAS066 | BP191: BAS067 | BQ191: BAS068 | BR191: BAS069 | BS191: BAS070 | BT191: BAS071 | BU191: BAS072 | BV191: BAS073 | BW191: BAS074 | BX191: BAS075 | BY191: BAS076 | BZ191: BAS077 | CA191: BAS078 | CB191: BAS079 | CC191: BAS080 | CD191: BAS081 | CE191: BAS082 | CF191: BAS083 | CG191: BAS084 | CH191: BAS085 | CI191: BAS086 | CJ191: BAS087 | CK191: BAS088 | CL191: BAS089 | CM191: BAS090 | CN191: BAS091 | CO191: BAS092 | CP191: BAS093 | CQ191: BAS094 | CR191: BAS095 | CS191: BAS096 | CT191: BAS097 | CU191: BAS098 | CV191: BAS099 | CW191: BAS100 | CX191: BAS101 | CY191: BAS102 | CZ191: BAS103 | DA191: BAS104 | DB191: BAS105 | DC191: BAS106 | DD191: BAS107 | DE191: BAS108 | DF191: BAS109 | DG191: BAS110 | DH191: BAS111 | DI191: BAS112 | DJ191: BAS113 | DK191: BAS114 | DL191: BAS115 | DM191: BAS116 | DN191: BAS117 | DO191: BAS118 | DP191: BAS119 | DQ191: BAS120 | DR191: BAS121 | DS191: BAS122 | DT191: BAS123 | DU191: BAS124 | DV191: BAS125 | DW191: BAS126 | DX191: BAS127 | DY191: BAS128 | DZ191: BAS129 | EA191: BAS130 | EB191: BAS131 | EC191: BAS132 | ED191: BAS133 | EE191: BAS134 | EF191: BAS135 | EG191: BAS136 | EH191: BAS137 | EI191: BAS138 | EJ191: BAS139 | EK191: BAS140 | EL191: BAS141 | EM191: BAS142 | EN191: BAS143 | EO191: BAS144 | EP191: BAS145 | EQ191: BAS146 | ER191: BAS147 | ES191: BAS148 | ET191: BAS149 | EU191: BAS150 | EV191: BAS151 | EW191: BAS152 | EX191: BAS153 | EY191: BAS154 | EZ191: BAS155 | FA191: BAS156 | FB191: BAS157 | FC191: BAS158 | FD191: BAS159 | FE191: BAS160 | FF191: BAS161 | FG191: BAS162 | FH191: BAS163 | FI191: BAS164 | FJ191: BAS165 | FK191: BAS166 | FL191: BAS167 | FM191: BAS168 | FN191: BAS169 | FO191: BAS170 | FP191: BAS171 | FQ191: BAS172 | FR191: BAS173 | FS191: BAS174 | FT191: BAS175 | FU191: BAS176 | FV191: BAS177 | FW191: BAS178 | FX191: BAS179 | FY191: BAS180 | FZ191: BAS181 | GA191: BAS182 | GB191: BAS183 | GC191: BAS184 | GD191: BAS185 | GE191: BAS186 | GF191: BAS187 | GG191: BAS188 | GH191: BAS189 | GI191: BAS190 | GJ191: BAS191 | GK191: BAS192 | GL191: BAS193 | GM191: BAS194 | GN191: BAS195 | GO191: BAS196 | GP191: BAS197 | GQ191: BAS198 | GR191: BAS199 | GS191: BAS200 | GT191: BAS201 | GU191: BAS202 | GV191: BAS203 | GW191: BAS204 | GX191: BAS205 | GY191: BAS206 | GZ191: BAS207 | HA191: BAS208 | HB191: BAS209 | HC191: BAS210 | HD191: BAS211 | HE191: BAS212 | HF191: BAS213 | HG191: BAS214 | HH191: BAS215 | HI191: BAS216 | HJ191: BAS217 | HK191: BAS218 | HL191: BAS219 | HM191: BAS220 | HN191: BAS221 | HO191: BAS222 | HP191: BAS223 | HQ191: BAS224 | HR191: BAS225 | HS191: BAS226 | HT191: BAS227 | HU191: BAS228 | HV191: BAS229 | HW191: BAS230
B192: =IF(B191=B169,"SI","NO") -> SI | C192: =IF(C191=C169,"SI","NO") -> SI | D192: SI | E192: SI | F192: SI | G192: SI | H192: SI | I192: SI | J192: SI | K192: SI | L192: SI | M192: SI | N192: SI | O192: SI | P192: SI | Q192: SI | R192: SI | S192: SI | T192: SI | U192: SI | V192: SI | W192: SI | X192: SI | Y192: SI | Z192: SI | AA192: SI | AB192: SI | AC192: SI | AD192: SI | AE192: SI | AF192: SI | AG192: SI | AH192: SI | AI192: SI | AJ192: SI | AK192: SI | AL192: SI | AM192: SI | AN192: SI | AO192: SI | AP192: SI | AQ192: SI | AR192: SI | AS192: SI | AT192: SI | AU192: SI | AV192: SI | AW192: SI | AX192: SI | AY192: SI | AZ192: SI | BA192: SI | BB192: SI | BC192: SI | BD192: SI | BE192: SI | BF192: SI | BG192: SI | BH192: SI | BI192: SI | BJ192: SI | BK192: SI | BL192: SI | BM192: SI | BN192: SI | BO192: =IF(BO191=BO169,"SI","NO") -> SI | BP192: SI | BQ192: SI | BR192: SI | BS192: SI | BT192: SI | BU192: SI | BV192: SI | BW192: SI | BX192: SI | BY192: SI | BZ192: SI | CA192: SI | CB192: SI | CC192: SI | CD192: SI | CE192: SI | CF192: SI | CG192: SI | CH192: SI | CI192: SI | CJ192: SI | CK192: SI | CL192: SI | CM192: SI | CN192: SI | CO192: SI | CP192: SI | CQ192: SI | CR192: SI | CS192: SI | CT192: SI | CU192: SI | CV192: SI | CW192: SI | CX192: SI | CY192: SI | CZ192: SI | DA192: SI | DB192: SI | DC192: SI | DD192: SI | DE192: SI | DF192: SI | DG192: SI | DH192: SI | DI192: SI | DJ192: SI | DK192: SI | DL192: SI | DM192: SI | DN192: SI | DO192: SI | DP192: SI | DQ192: SI | DR192: SI | DS192: SI | DT192: SI | DU192: SI | DV192: SI | DW192: SI | DX192: SI | DY192: SI | DZ192: SI | EA192: =IF(EA191=EA169,"SI","NO") -> SI | EB192: SI | EC192: SI | ED192: SI | EE192: SI | EF192: SI | EG192: SI | EH192: SI | EI192: SI | EJ192: SI | EK192: SI | EL192: SI | EM192: SI | EN192: SI | EO192: SI | EP192: SI | EQ192: SI | ER192: SI | ES192: SI | ET192: SI | EU192: SI | EV192: SI | EW192: SI | EX192: SI | EY192: SI | EZ192: SI | FA192: SI | FB192: SI | FC192: SI | FD192: SI | FE192: SI | FF192: SI | FG192: SI | FH192: SI | FI192: SI | FJ192: SI | FK192: SI | FL192: SI | FM192: SI | FN192: SI | FO192: SI | FP192: SI | FQ192: SI | FR192: SI | FS192: SI | FT192: SI | FU192: SI | FV192: SI | FW192: SI | FX192: SI | FY192: SI | FZ192: SI | GA192: SI | GB192: SI | GC192: SI | GD192: SI | GE192: SI | GF192: SI | GG192: SI | GH192: SI | GI192: SI | GJ192: SI | GK192: SI | GL192: SI | GM192: =IF(GM191=GM169,"SI","NO") -> SI | GN192: SI | GO192: SI | GP192: SI | GQ192: SI | GR192: SI | GS192: SI | GT192: SI | GU192: SI | GV192: SI | GW192: SI | GX192: SI | GY192: SI | GZ192: SI | HA192: SI | HB192: SI | HC192: SI | HD192: SI | HE192: SI | HF192: SI | HG192: SI | HH192: SI | HI192: SI | HJ192: SI | HK192: SI | HL192: SI | HM192: SI | HN192: SI | HO192: SI | HP192: SI | HQ192: SI | HR192: SI | HS192: SI | HT192: SI | HU192: SI | HV192: SI | HW192: SI
A194: TUBERCU_6099
A195: ANNO | B195: 2025
A196: cod_red | B196: 03
A197: codmic | B197: (Todas)
A198: cod_prov | B198: (Todas)
A199: coddist | B199: (Todas)
A200: cod_estab | B200: (Todas)
A201: cod_eje | B201: (Todas)
B203: Valores
A204: Etiquetas de fila | B204: BAS001 | C204: BAS002 | D204: BAS003 | E204: BAS004 | F204: BAS005 | G204: BAS006 | H204: BAS007 | I204: BAS008 | J204: BAS009 | K204: BAS010 | L204: BAS011 | M204: BAS012 | N204: BAS013 | O204: BAS014 | P204: BAS015 | Q204: BAS016 | R204: BAS017 | S204: BAS018 | T204: BAS019 | U204: BAS020 | V204: BAS021 | W204: BAS022 | X204: BAS023 | Y204: BAS024 | Z204: BAS025 | AA204: BAS026 | AB204: BAS027 | AC204: BAS028 | AD204: BAS029 | AE204: BAS030 | AF204: BAS031 | AG204: BAS032 | AH204: BAS033 | AI204: BAS034 | AJ204: BAS035 | AK204: BAS036 | AL204: BAS037 | AM204: BAS038 | AN204: BAS039 | AO204: BAS040 | AP204: BAS041 | AQ204: BAS042 | AR204: BAS043 | AS204: BAS044 | AT204: BAS045 | AU204: BAS046 | AV204: BAS047 | AW204: BAS048 | AX204: BAS049 | AY204: BAS050 | AZ204: BAS051 | BA204: BAS052 | BB204: BAS053 | BC204: BAS054 | BD204: BAS055 | BE204: BAS056 | BF204: BAS057 | BG204: BAS058 | BH204: BAS059 | BI204: BAS060 | BJ204: BAS061 | BK204: BAS062 | BL204: BAS063 | BM204: BAS064 | BN204: BAS065 | BO204: BAS066 | BP204: BAS067 | BQ204: BAS068 | BR204: BAS069 | BS204: BAS070 | BT204: BAS071 | BU204: BAS072 | BV204: BAS073 | BW204: BAS074 | BX204: BAS075 | BY204: BAS076 | BZ204: BAS077 | CA204: BAS078 | CB204: BAS079 | CC204: BAS080 | CD204: BAS081 | CE204: BAS082 | CF204: BAS083 | CG204: BAS084 | CH204: BAS085 | CI204: BAS086 | CJ204: BAS087 | CK204: BAS088 | CL204: BAS089 | CM204: BAS090 | CN204: BAS091 | CO204: BAS092 | CP204: BAS093 | CQ204: BAS094 | CR204: BAS095 | CS204: BAS096 | CT204: BAS097 | CU204: BAS098 | CV204: BAS099 | CW204: BAS100 | CX204: BAS101 | CY204: BAS102 | CZ204: BAS103 | DA204: BAS104 | DB204: BAS105 | DC204: BAS106 | DD204: BAS107 | DE204: BAS108 | DF204: BAS109 | DG204: BAS110 | DH204: BAS111 | DI204: BAS112 | DJ204: BAS113 | DK204: BAS114 | DL204: BAS115 | DM204: BAS116 | DN204: BAS117 | DO204: BAS118 | DP204: BAS119 | DQ204: BAS120 | DR204: BAS121 | DS204: BAS122 | DT204: BAS123 | DU204: BAS124 | DV204: BAS125 | DW204: BAS126 | DX204: BAS127 | DY204: BAS128 | DZ204: BAS129 | EA204: BAS130 | EB204: BAS131 | EC204: BAS132 | ED204: BAS133 | EE204: BAS134 | EF204: BAS135 | EG204: BAS136 | EH204: BAS137 | EI204: BAS138 | EJ204: BAS139 | EK204: BAS140 | EL204: BAS141 | EM204: BAS142 | EN204: BAS143 | EO204: BAS144 | EP204: BAS145 | EQ204: BAS146 | ER204: BAS147 | ES204: BAS148 | ET204: BAS149 | EU204: BAS150 | EV204: BAS151 | EW204: BAS152 | EX204: BAS153 | EY204: BAS154 | EZ204: BAS155 | FA204: BAS156 | FB204: BAS157 | FC204: BAS158 | FD204: BAS159 | FE204: BAS160 | FF204: BAS161 | FG204: BAS162 | FH204: BAS163 | FI204: BAS164 | FJ204: BAS165 | FK204: BAS166 | FL204: BAS167 | FM204: BAS168 | FN204: BAS169 | FO204: BAS170 | FP204: BAS171 | FQ204: BAS172 | FR204: BAS173 | FS204: BAS174 | FT204: BAS175 | FU204: BAS176 | FV204: BAS177 | FW204: BAS178 | FX204: BAS179 | FY204: BAS180 | FZ204: BAS181 | GA204: BAS182 | GB204: BAS183 | GC204: BAS184 | GD204: BAS185 | GE204: BAS186 | GF204: BAS187 | GG204: BAS188 | GH204: BAS189 | GI204: BAS190 | GJ204: BAS191 | GK204: BAS192 | GL204: BAS193 | GM204: BAS194 | GN204: BAS195 | GO204: BAS196 | GP204: BAS197 | GQ204: BAS198 | GR204: BAS199 | GS204: BAS200 | GT204: BAS201 | GU204: BAS202 | GV204: BAS203 | GW204: BAS204 | GX204: BAS205 | GY204: BAS206 | GZ204: BAS207 | HA204: BAS208 | HB204: BAS209 | HC204: BAS210 | HD204: BAS211 | HE204: BAS212 | HF204: BAS213 | HG204: BAS214 | HH204: BAS215 | HI204: BAS216 | HJ204: BAS217 | HK204: BAS218 | HL204: BAS219 | HM204: BAS220 | HN204: BAS221 | HO204: BAS222 | HP204: BAS223 | HQ204: BAS224 | HR204: BAS225 | HS204: BAS226 | HT204: BAS227 | HU204: BAS228 | HV204: BAS229 | HW204: BAS230
A205: 1 | B205: 447 | C205: 0 | D205: 0 | E205: 0 | F205: 0 | G205: 0 | H205: 1 | I205: 0 | J205: 0 | K205: 0 | L205: 0 | M205: 0 | N205: 0 | O205: 1 | P205: 1 | Q205: 0 | R205: 0 | S205: 0 | T205: 0 | U205: 0 | V205: 0 | W205: 0 | X205: 0 | Y205: 3 | Z205: 0 | AA205: 0 | AB205: 0 | AC205: 97 | AD205: 78 | AE205: 7 | AF205: 0 | AG205: 0 | AH205: 1 | AI205: 0 | AJ205: 0 | AK205: 0 | AL205: 0 | AM205: 0 | AN205: 0 | AO205: 0 | AP205: 0 | AQ205: 0 | AR205: 0 | AS205: 0 | AT205: 0 | AU205: 0 | AV205: 1 | AW205: 0 | AX205: 0 | AY205: 1 | AZ205: 0 | BA205: 0 | BB205: 0 | BC205: 0 | BD205: 0 | BE205: 0 | BF205: 0 | BG205: 0 | BH205: 1 | BI205: 0 | BJ205: 0 | BK205: 0 | BL205: 0 | BM205: 0 | BN205: 0 | BO205: 0 | BP205: 0 | BQ205: 0 | BR205: 0 | BS205: 0 | BT205: 0 | BU205: 0 | BV205: 0 | BW205: 0 | BX205: 0 | BY205: 0 | BZ205: 0 | CA205: 0 | CB205: 0 | CC205: 0 | CD205: 0 | CE205: 0 | CF205: 0 | CG205: 0 | CH205: 0 | CI205: 0 | CJ205: 0 | CK205: 0 | CL205: 0 | CM205: 0 | CN205: 0 | CO205: 0 | CP205: 0 | CQ205: 0 | CR205: 0 | CS205: 0 | CT205: 0 | CU205: 0 | CV205: 0 | CW205: 0 | CX205: 0 | CY205: 0 | CZ205: 0 | DA205: 130 | DB205: 2 | DC205: 0 | DD205: 0 | DE205: 0 | DF205: 3 | DG205: 0 | DH205: 0 | DI205: 0 | DJ205: 0 | DK205: 113 | DL205: 1 | DM205: 0 | DN205: 0 | DO205: 0 | DP205: 0 | DQ205: 0 | DR205: 0 | DS205: 0 | DT205: 0 | DU205: 0 | DV205: 0 | DW205: 0 | DX205: 0 | DY205: 0 | DZ205: 0 | EA205: 0 | EB205: 0 | EC205: 0 | ED205: 0 | EE205: 0 | EF205: 0 | EG205: 0 | EH205: 0 | EI205: 0 | EJ205: 0 | EK205: 0 | EL205: 0 | EM205: 0 | EN205: 0 | EO205: 0 | EP205: 0 | EQ205: 0 | ER205: 0 | ES205: 0 | ET205: 0 | EU205: 0 | EV205: 0 | EW205: 0 | EX205: 0 | EY205: 0 | EZ205: 0 | FA205: 0 | FB205: 0 | FC205: 0 | FD205: 0 | FE205: 0 | FF205: 0 | FG205: 0 | FH205: 0 | FI205: 0 | FJ205: 0 | FK205: 0 | FL205: 0 | FM205: 0 | FN205: 0 | FO205: 0 | FP205: 0 | FQ205: 0 | FR205: 0 | FS205: 0 | FT205: 0 | FU205: 0 | FV205: 0 | FW205: 0 | FX205: 0 | FY205: 0 | FZ205: 0 | GA205: 0 | GB205: 0 | GC205: 0 | GD205: 0 | GE205: 0 | GF205: 0 | GG205: 0 | GH205: 0 | GI205: 0 | GJ205: 0 | GK205: 0 | GL205: 0 | GM205: 0 | GN205: 0 | GO205: 0 | GP205: 0 | GQ205: 0 | GR205: 0 | GS205: 0 | GT205: 0 | GU205: 0 | GV205: 0 | GW205: 0 | GX205: 0 | GY205: 0 | GZ205: 0 | HA205: 0 | HB205: 0 | HC205: 0 | HD205: 0 | HE205: 0 | HF205: 0 | HG205: 0 | HH205: 0 | HI205: 0 | HJ205: 0 | HK205: 0 | HL205: 0 | HM205: 0 | HN205: 0 | HO205: 0 | HP205: 0 | HQ205: 0 | HR205: 0 | HS205: 0 | HT205: 0 | HU205: 0 | HV205: 0 | HW205: 0
A206: 2 | B206: 453 | C206: 0 | D206: 0 | E206: 0 | F206: 0 | G206: 0 | H206: 0 | I206: 1 | J206: 0 | K206: 0 | L206: 0 | M206: 0 | N206: 0 | O206: 0 | P206: 0 | Q206: 0 | R206: 1 | S206: 0 | T206: 0 | U206: 0 | V206: 0 | W206: 0 | X206: 0 | Y206: 0 | Z206: 0 | AA206: 0 | AB206: 0 | AC206: 41 | AD206: 69 | AE206: 3 | AF206: 0 | AG206: 0 | AH206: 1 | AI206: 0 | AJ206: 0 | AK206: 0 | AL206: 0 | AM206: 0 | AN206: 1 | AO206: 0 | AP206: 0 | AQ206: 0 | AR206: 0 | AS206: 0 | AT206: 0 | AU206: 0 | AV206: 0 | AW206: 3 | AX206: 0 | AY206: 0 | AZ206: 0 | BA206: 0 | BB206: 0 | BC206: 0 | BD206: 0 | BE206: 0 | BF206: 0 | BG206: 0 | BH206: 0 | BI206: 0 | BJ206: 0 | BK206: 0 | BL206: 0 | BM206: 0 | BN206: 0 | BO206: 0 | BP206: 0 | BQ206: 0 | BR206: 0 | BS206: 0 | BT206: 0 | BU206: 0 | BV206: 0 | BW206: 0 | BX206: 0 | BY206: 0 | BZ206: 0 | CA206: 0 | CB206: 0 | CC206: 0 | CD206: 0 | CE206: 0 | CF206: 0 | CG206: 1 | CH206: 0 | CI206: 0 | CJ206: 0 | CK206: 0 | CL206: 0 | CM206: 0 | CN206: 0 | CO206: 0 | CP206: 0 | CQ206: 0 | CR206: 0 | CS206: 0 | CT206: 0 | CU206: 0 | CV206: 0 | CW206: 0 | CX206: 0 | CY206: 0 | CZ206: 0 | DA206: 133 | DB206: 0 | DC206: 0 | DD206: 0 | DE206: 0 | DF206: 0 | DG206: 0 | DH206: 0 | DI206: 0 | DJ206: 0 | DK206: 132 | DL206: 0 | DM206: 0 | DN206: 0 | DO206: 0 | DP206: 4 | DQ206: 0 | DR206: 0 | DS206: 0 | DT206: 0 | DU206: 0 | DV206: 0 | DW206: 0 | DX206: 0 | DY206: 0 | DZ206: 0 | EA206: 0 | EB206: 0 | EC206: 0 | ED206: 0 | EE206: 0 | EF206: 0 | EG206: 0 | EH206: 0 | EI206: 0 | EJ206: 0 | EK206: 0 | EL206: 0 | EM206: 0 | EN206: 0 | EO206: 0 | EP206: 0 | EQ206: 0 | ER206: 0 | ES206: 0 | ET206: 0 | EU206: 0 | EV206: 0 | EW206: 0 | EX206: 0 | EY206: 0 | EZ206: 0 | FA206: 0 | FB206: 0 | FC206: 0 | FD206: 0 | FE206: 0 | FF206: 0 | FG206: 0 | FH206: 0 | FI206: 0 | FJ206: 0 | FK206: 0 | FL206: 0 | FM206: 0 | FN206: 0 | FO206: 0 | FP206: 0 | FQ206: 0 | FR206: 0 | FS206: 0 | FT206: 0 | FU206: 0 | FV206: 0 | FW206: 0 | FX206: 0 | FY206: 0 | FZ206: 0 | GA206: 0 | GB206: 0 | GC206: 0 | GD206: 0 | GE206: 0 | GF206: 0 | GG206: 0 | GH206: 0 | GI206: 0 | GJ206: 0 | GK206: 0 | GL206: 0 | GM206: 0 | GN206: 0 | GO206: 0 | GP206: 0 | GQ206: 0 | GR206: 0 | GS206: 0 | GT206: 0 | GU206: 0 | GV206: 0 | GW206: 0 | GX206: 0 | GY206: 0 | GZ206: 0 | HA206: 0 | HB206: 0 | HC206: 0 | HD206: 0 | HE206: 0 | HF206: 0 | HG206: 0 | HH206: 0 | HI206: 0 | HJ206: 0 | HK206: 0 | HL206: 0 | HM206: 0 | HN206: 0 | HO206: 0 | HP206: 0 | HQ206: 0 | HR206: 0 | HS206: 0 | HT206: 0 | HU206: 0 | HV206: 0 | HW206: 0
A207: 3 | B207: 473 | C207: 0 | D207: 0 | E207: 0 | F207: 0 | G207: 0 | H207: 0 | I207: 0 | J207: 0 | K207: 0 | L207: 0 | M207: 0 | N207: 0 | O207: 1 | P207: 1 | Q207: 0 | R207: 0 | S207: 0 | T207: 0 | U207: 0 | V207: 0 | W207: 0 | X207: 0 | Y207: 0 | Z207: 0 | AA207: 0 | AB207: 0 | AC207: 68 | AD207: 71 | AE207: 3 | AF207: 0 | AG207: 0 | AH207: 0 | AI207: 0 | AJ207: 0 | AK207: 0 | AL207: 0 | AM207: 0 | AN207: 0 | AO207: 0 | AP207: 0 | AQ207: 0 | AR207: 0 | AS207: 0 | AT207: 0 | AU207: 0 | AV207: 1 | AW207: 17 | AX207: 0 | AY207: 1 | AZ207: 0 | BA207: 0 | BB207: 0 | BC207: 0 | BD207: 0 | BE207: 0 | BF207: 18 | BG207: 0 | BH207: 1 | BI207: 0 | BJ207: 0 | BK207: 0 | BL207: 0 | BM207: 0 | BN207: 0 | BO207: 0 | BP207: 0 | BQ207: 0 | BR207: 0 | BS207: 0 | BT207: 0 | BU207: 0 | BV207: 0 | BW207: 0 | BX207: 0 | BY207: 0 | BZ207: 0 | CA207: 0 | CB207: 0 | CC207: 0 | CD207: 0 | CE207: 0 | CF207: 0 | CG207: 0 | CH207: 0 | CI207: 0 | CJ207: 0 | CK207: 0 | CL207: 0 | CM207: 0 | CN207: 0 | CO207: 0 | CP207: 0 | CQ207: 0 | CR207: 0 | CS207: 0 | CT207: 0 | CU207: 0 | CV207: 0 | CW207: 0 | CX207: 0 | CY207: 0 | CZ207: 0 | DA207: 126 | DB207: 1 | DC207: 0 | DD207: 0 | DE207: 0 | DF207: 3 | DG207: 0 | DH207: 0 | DI207: 0 | DJ207: 0 | DK207: 122 | DL207: 0 | DM207: 0 | DN207: 0 | DO207: 0 | DP207: 4 | DQ207: 0 | DR207: 0 | DS207: 0 | DT207: 0 | DU207: 0 | DV207: 0 | DW207: 0 | DX207: 0 | DY207: 0 | DZ207: 0 | EA207: 0 | EB207: 0 | EC207: 0 | ED207: 0 | EE207: 0 | EF207: 0 | EG207: 0 | EH207: 0 | EI207: 0 | EJ207: 0 | EK207: 0 | EL207: 0 | EM207: 0 | EN207: 0 | EO207: 0 | EP207: 0 | EQ207: 0 | ER207: 0 | ES207: 0 | ET207: 0 | EU207: 0 | EV207: 0 | EW207: 0 | EX207: 0 | EY207: 0 | EZ207: 0 | FA207: 0 | FB207: 0 | FC207: 0 | FD207: 0 | FE207: 0 | FF207: 0 | FG207: 0 | FH207: 0 | FI207: 0 | FJ207: 0 | FK207: 0 | FL207: 0 | FM207: 0 | FN207: 0 | FO207: 0 | FP207: 0 | FQ207: 0 | FR207: 0 | FS207: 0 | FT207: 0 | FU207: 0 | FV207: 0 | FW207: 0 | FX207: 0 | FY207: 0 | FZ207: 0 | GA207: 0 | GB207: 0 | GC207: 0 | GD207: 0 | GE207: 0 | GF207: 0 | GG207: 0 | GH207: 0 | GI207: 0 | GJ207: 0 | GK207: 0 | GL207: 0 | GM207: 0 | GN207: 0 | GO207: 0 | GP207: 0 | GQ207: 0 | GR207: 0 | GS207: 0 | GT207: 0 | GU207: 0 | GV207: 0 | GW207: 0 | GX207: 0 | GY207: 0 | GZ207: 0 | HA207: 0 | HB207: 0 | HC207: 0 | HD207: 0 | HE207: 0 | HF207: 0 | HG207: 0 | HH207: 0 | HI207: 0 | HJ207: 0 | HK207: 0 | HL207: 0 | HM207: 0 | HN207: 0 | HO207: 0 | HP207: 0 | HQ207: 0 | HR207: 0 | HS207: 0 | HT207: 0 | HU207: 0 | HV207: 0 | HW207: 0
A208: T | B208: 1373 | C208: 0 | D208: 0 | E208: 0 | F208: 0 | G208: 0 | H208: 1 | I208: 1 | J208: 0 | K208: 0 | L208: 0 | M208: 0 | N208: 0 | O208: 2 | P208: 2 | Q208: 0 | R208: 1 | S208: 0 | T208: 0 | U208: 0 | V208: 0 | W208: 0 | X208: 0 | Y208: 3 | Z208: 0 | AA208: 0 | AB208: 0 | AC208: 206 | AD208: 218 | AE208: 13 | AF208: 0 | AG208: 0 | AH208: 2 | AI208: 0 | AJ208: 0 | AK208: 0 | AL208: 0 | AM208: 0 | AN208: 1 | AO208: 0 | AP208: 0 | AQ208: 0 | AR208: 0 | AS208: 0 | AT208: 0 | AU208: 0 | AV208: 2 | AW208: 20 | AX208: 0 | AY208: 2 | AZ208: 0 | BA208: 0 | BB208: 0 | BC208: 0 | BD208: 0 | BE208: 0 | BF208: 18 | BG208: 0 | BH208: 2 | BI208: 0 | BJ208: 0 | BK208: 0 | BL208: 0 | BM208: 0 | BN208: 0 | BO208: 0 | BP208: 0 | BQ208: 0 | BR208: 0 | BS208: 0 | BT208: 0 | BU208: 0 | BV208: 0 | BW208: 0 | BX208: 0 | BY208: 0 | BZ208: 0 | CA208: 0 | CB208: 0 | CC208: 0 | CD208: 0 | CE208: 0 | CF208: 0 | CG208: 1 | CH208: 0 | CI208: 0 | CJ208: 0 | CK208: 0 | CL208: 0 | CM208: 0 | CN208: 0 | CO208: 0 | CP208: 0 | CQ208: 0 | CR208: 0 | CS208: 0 | CT208: 0 | CU208: 0 | CV208: 0 | CW208: 0 | CX208: 0 | CY208: 0 | CZ208: 0 | DA208: 389 | DB208: 3 | DC208: 0 | DD208: 0 | DE208: 0 | DF208: 6 | DG208: 0 | DH208: 0 | DI208: 0 | DJ208: 0 | DK208: 367 | DL208: 1 | DM208: 0 | DN208: 0 | DO208: 0 | DP208: 8 | DQ208: 0 | DR208: 0 | DS208: 0 | DT208: 0 | DU208: 0 | DV208: 0 | DW208: 0 | DX208: 0 | DY208: 0 | DZ208: 0 | EA208: 0 | EB208: 0 | EC208: 0 | ED208: 0 | EE208: 0 | EF208: 0 | EG208: 0 | EH208: 0 | EI208: 0 | EJ208: 0 | EK208: 0 | EL208: 0 | EM208: 0 | EN208: 0 | EO208: 0 | EP208: 0 | EQ208: 0 | ER208: 0 | ES208: 0 | ET208: 0 | EU208: 0 | EV208: 0 | EW208: 0 | EX208: 0 | EY208: 0 | EZ208: 0 | FA208: 0 | FB208: 0 | FC208: 0 | FD208: 0 | FE208: 0 | FF208: 0 | FG208: 0 | FH208: 0 | FI208: 0 | FJ208: 0 | FK208: 0 | FL208: 0 | FM208: 0 | FN208: 0 | FO208: 0 | FP208: 0 | FQ208: 0 | FR208: 0 | FS208: 0 | FT208: 0 | FU208: 0 | FV208: 0 | FW208: 0 | FX208: 0 | FY208: 0 | FZ208: 0 | GA208: 0 | GB208: 0 | GC208: 0 | GD208: 0 | GE208: 0 | GF208: 0 | GG208: 0 | GH208: 0 | GI208: 0 | GJ208: 0 | GK208: 0 | GL208: 0 | GM208: 0 | GN208: 0 | GO208: 0 | GP208: 0 | GQ208: 0 | GR208: 0 | GS208: 0 | GT208: 0 | GU208: 0 | GV208: 0 | GW208: 0 | GX208: 0 | GY208: 0 | GZ208: 0 | HA208: 0 | HB208: 0 | HC208: 0 | HD208: 0 | HE208: 0 | HF208: 0 | HG208: 0 | HH208: 0 | HI208: 0 | HJ208: 0 | HK208: 0 | HL208: 0 | HM208: 0 | HN208: 0 | HO208: 0 | HP208: 0 | HQ208: 0 | HR208: 0 | HS208: 0 | HT208: 0 | HU208: 0 | HV208: 0 | HW208: 0
A223: TOTAL
A224: =COUNT(A205:A221) -> 3 | B224: =SUM(B205:B221) -> 2746 | C224: =SUM(C205:C221) -> 0 | D224: 0 | E224: 0 | F224: 0 | G224: 0 | H224: 2 | I224: 2 | J224: 0 | K224: 0 | L224: 0 | M224: 0 | N224: 0 | O224: 4 | P224: 4 | Q224: 0 | R224: 2 | S224: 0 | T224: 0 | U224: 0 | V224: 0 | W224: 0 | X224: 0 | Y224: 6 | Z224: 0 | AA224: 0 | AB224: 0 | AC224: 412 | AD224: 436 | AE224: 26 | AF224: 0 | AG224: 0 | AH224: 4 | AI224: 0 | AJ224: 0 | AK224: 0 | AL224: 0 | AM224: 0 | AN224: 2 | AO224: 0 | AP224: 0 | AQ224: 0 | AR224: 0 | AS224: 0 | AT224: 0 | AU224: 0 | AV224: 4 | AW224: 40 | AX224: 0 | AY224: 4 | AZ224: 0 | BA224: 0 | BB224: 0 | BC224: 0 | BD224: 0 | BE224: 0 | BF224: 36 | BG224: 0 | BH224: 4 | BI224: 0 | BJ224: 0 | BK224: 0 | BL224: 0 | BM224: 0 | BN224: 0 | BO224: =SUM(BO205:BO221) -> 0 | BP224: 0 | BQ224: 0 | BR224: 0 | BS224: 0 | BT224: 0 | BU224: 0 | BV224: 0 | BW224: 0 | BX224: 0 | BY224: 0 | BZ224: 0 | CA224: 0 | CB224: 0 | CC224: 0 | CD224: 0 | CE224: 0 | CF224: 0 | CG224: 2 | CH224: 0 | CI224: 0 | CJ224: 0 | CK224: 0 | CL224: 0 | CM224: 0 | CN224: 0 | CO224: 0 | CP224: 0 | CQ224: 0 | CR224: 0 | CS224: 0 | CT224: 0 | CU224: 0 | CV224: 0 | CW224: 0 | CX224: 0 | CY224: 0 | CZ224: 0 | DA224: 778 | DB224: 6 | DC224: 0 | DD224: 0 | DE224: 0 | DF224: 12 | DG224: 0 | DH224: 0 | DI224: 0 | DJ224: 0 | DK224: 734 | DL224: 2 | DM224: 0 | DN224: 0 | DO224: 0 | DP224: 16 | DQ224: 0 | DR224: 0 | DS224: 0 | DT224: 0 | DU224: 0 | DV224: 0 | DW224: 0 | DX224: 0 | DY224: 0 | DZ224: 0 | EA224: =SUM(EA205:EA221) -> 0 | EB224: 0 | EC224: 0 | ED224: 0 | EE224: 0 | EF224: 0 | EG224: 0 | EH224: 0 | EI224: 0 | EJ224: 0 | EK224: 0 | EL224: 0 | EM224: 0 | EN224: 0 | EO224: 0 | EP224: 0 | EQ224: 0 | ER224: 0 | ES224: 0 | ET224: 0 | EU224: 0 | EV224: 0 | EW224: 0 | EX224: 0 | EY224: 0 | EZ224: 0 | FA224: 0 | FB224: 0 | FC224: 0 | FD224: 0 | FE224: 0 | FF224: 0 | FG224: 0 | FH224: 0 | FI224: 0 | FJ224: 0 | FK224: 0 | FL224: 0 | FM224: 0 | FN224: 0 | FO224: 0 | FP224: 0 | FQ224: 0 | FR224: 0 | FS224: 0 | FT224: 0 | FU224: 0 | FV224: 0 | FW224: 0 | FX224: 0 | FY224: 0 | FZ224: 0 | GA224: 0 | GB224: 0 | GC224: 0 | GD224: 0 | GE224: 0 | GF224: 0 | GG224: 0 | GH224: 0 | GI224: 0 | GJ224: 0 | GK224: 0 | GL224: 0 | GM224: =SUM(GM205:GM221) -> 0 | GN224: 0 | GO224: 0 | GP224: 0 | GQ224: 0 | GR224: 0 | GS224: 0 | GT224: 0 | GU224: 0 | GV224: 0 | GW224: 0 | GX224: 0 | GY224: 0 | GZ224: 0 | HA224: 0 | HB224: 0 | HC224: 0 | HD224: 0 | HE224: 0 | HF224: 0 | HG224: 0 | HH224: 0 | HI224: 0 | HJ224: 0 | HK224: 0 | HL224: 0 | HM224: 0 | HN224: 0 | HO224: 0 | HP224: 0 | HQ224: 0 | HR224: 0 | HS224: 0 | HT224: 0 | HU224: 0 | HV224: 0 | HW224: 0
A225: =CONCATENATE(A205,"-",A206,"-",A207,"-",A208,"-",A209,"-",A210,"-",A211,"-",A212,"-",A213,"-",A214,"-",A215,"-",A216) -> 1-2-3-T--------
B226: BAS001 | C226: BAS002 | D226: BAS003 | E226: BAS004 | F226: BAS005 | G226: BAS006 | H226: BAS007 | I226: BAS008 | J226: BAS009 | K226: BAS010 | L226: BAS011 | M226: BAS012 | N226: BAS013 | O226: BAS014 | P226: BAS015 | Q226: BAS016 | R226: BAS017 | S226: BAS018 | T226: BAS019 | U226: BAS020 | V226: BAS021 | W226: BAS022 | X226: BAS023 | Y226: BAS024 | Z226: BAS025 | AA226: BAS026 | AB226: BAS027 | AC226: BAS028 | AD226: BAS029 | AE226: BAS030 | AF226: BAS031 | AG226: BAS032 | AH226: BAS033 | AI226: BAS034 | AJ226: BAS035 | AK226: BAS036 | AL226: BAS037 | AM226: BAS038 | AN226: BAS039 | AO226: BAS040 | AP226: BAS041 | AQ226: BAS042 | AR226: BAS043 | AS226: BAS044 | AT226: BAS045 | AU226: BAS046 | AV226: BAS047 | AW226: BAS048 | AX226: BAS049 | AY226: BAS050 | AZ226: BAS051 | BA226: BAS052 | BB226: BAS053 | BC226: BAS054 | BD226: BAS055 | BE226: BAS056 | BF226: BAS057 | BG226: BAS058 | BH226: BAS059 | BI226: BAS060 | BJ226: BAS061 | BK226: BAS062 | BL226: BAS063 | BM226: BAS064 | BN226: BAS065 | BO226: BAS066 | BP226: BAS067 | BQ226: BAS068 | BR226: BAS069 | BS226: BAS070 | BT226: BAS071 | BU226: BAS072 | BV226: BAS073 | BW226: BAS074 | BX226: BAS075 | BY226: BAS076 | BZ226: BAS077 | CA226: BAS078 | CB226: BAS079 | CC226: BAS080 | CD226: BAS081 | CE226: BAS082 | CF226: BAS083 | CG226: BAS084 | CH226: BAS085 | CI226: BAS086 | CJ226: BAS087 | CK226: BAS088 | CL226: BAS089 | CM226: BAS090 | CN226: BAS091 | CO226: BAS092 | CP226: BAS093 | CQ226: BAS094 | CR226: BAS095 | CS226: BAS096 | CT226: BAS097 | CU226: BAS098 | CV226: BAS099 | CW226: BAS100 | CX226: BAS101 | CY226: BAS102 | CZ226: BAS103 | DA226: BAS104 | DB226: BAS105 | DC226: BAS106 | DD226: BAS107 | DE226: BAS108 | DF226: BAS109 | DG226: BAS110 | DH226: BAS111 | DI226: BAS112 | DJ226: BAS113 | DK226: BAS114 | DL226: BAS115 | DM226: BAS116 | DN226: BAS117 | DO226: BAS118 | DP226: BAS119 | DQ226: BAS120 | DR226: BAS121 | DS226: BAS122 | DT226: BAS123 | DU226: BAS124 | DV226: BAS125 | DW226: BAS126 | DX226: BAS127 | DY226: BAS128 | DZ226: BAS129 | EA226: BAS130 | EB226: BAS131 | EC226: BAS132 | ED226: BAS133 | EE226: BAS134 | EF226: BAS135 | EG226: BAS136 | EH226: BAS137 | EI226: BAS138 | EJ226: BAS139 | EK226: BAS140 | EL226: BAS141 | EM226: BAS142 | EN226: BAS143 | EO226: BAS144 | EP226: BAS145 | EQ226: BAS146 | ER226: BAS147 | ES226: BAS148 | ET226: BAS149 | EU226: BAS150 | EV226: BAS151 | EW226: BAS152 | EX226: BAS153 | EY226: BAS154 | EZ226: BAS155 | FA226: BAS156 | FB226: BAS157 | FC226: BAS158 | FD226: BAS159 | FE226: BAS160 | FF226: BAS161 | FG226: BAS162 | FH226: BAS163 | FI226: BAS164 | FJ226: BAS165 | FK226: BAS166 | FL226: BAS167 | FM226: BAS168 | FN226: BAS169 | FO226: BAS170 | FP226: BAS171 | FQ226: BAS172 | FR226: BAS173 | FS226: BAS174 | FT226: BAS175 | FU226: BAS176 | FV226: BAS177 | FW226: BAS178 | FX226: BAS179 | FY226: BAS180 | FZ226: BAS181 | GA226: BAS182 | GB226: BAS183 | GC226: BAS184 | GD226: BAS185 | GE226: BAS186 | GF226: BAS187 | GG226: BAS188 | GH226: BAS189 | GI226: BAS190 | GJ226: BAS191 | GK226: BAS192 | GL226: BAS193 | GM226: BAS194 | GN226: BAS195 | GO226: BAS196 | GP226: BAS197 | GQ226: BAS198 | GR226: BAS199 | GS226: BAS200 | GT226: BAS201 | GU226: BAS202 | GV226: BAS203 | GW226: BAS204 | GX226: BAS205 | GY226: BAS206 | GZ226: BAS207 | HA226: BAS208 | HB226: BAS209 | HC226: BAS210 | HD226: BAS211 | HE226: BAS212 | HF226: BAS213 | HG226: BAS214 | HH226: BAS215 | HI226: BAS216 | HJ226: BAS217 | HK226: BAS218 | HL226: BAS219 | HM226: BAS220 | HN226: BAS221 | HO226: BAS222 | HP226: BAS223 | HQ226: BAS224 | HR226: BAS225 | HS226: BAS226 | HT226: BAS227 | HU226: BAS228 | HV226: BAS229 | HW226: BAS230
B227: =IF(B226=B204,"SI","NO") -> SI | C227: =IF(C226=C204,"SI","NO") -> SI | D227: SI | E227: SI | F227: SI | G227: SI | H227: SI | I227: SI | J227: SI | K227: SI | L227: SI | M227: SI | N227: SI | O227: SI | P227: SI | Q227: SI | R227: SI | S227: SI | T227: SI | U227: SI | V227: SI | W227: SI | X227: SI | Y227: SI | Z227: SI | AA227: SI | AB227: SI | AC227: SI | AD227: SI | AE227: SI | AF227: SI | AG227: SI | AH227: SI | AI227: SI | AJ227: SI | AK227: SI | AL227: SI | AM227: SI | AN227: SI | AO227: SI | AP227: SI | AQ227: SI | AR227: SI | AS227: SI | AT227: SI | AU227: SI | AV227: SI | AW227: SI | AX227: SI | AY227: SI | AZ227: SI | BA227: SI | BB227: SI | BC227: SI | BD227: SI | BE227: SI | BF227: SI | BG227: SI | BH227: SI | BI227: SI | BJ227: SI | BK227: SI | BL227: SI | BM227: SI | BN227: SI | BO227: =IF(BO226=BO204,"SI","NO") -> SI | BP227: SI | BQ227: SI | BR227: SI | BS227: SI | BT227: SI | BU227: SI | BV227: SI | BW227: SI | BX227: SI | BY227: SI | BZ227: SI | CA227: SI | CB227: SI | CC227: SI | CD227: SI | CE227: SI | CF227: SI | CG227: SI | CH227: SI | CI227: SI | CJ227: SI | CK227: SI | CL227: SI | CM227: SI | CN227: SI | CO227: SI | CP227: SI | CQ227: SI | CR227: SI | CS227: SI | CT227: SI | CU227: SI | CV227: SI | CW227: SI | CX227: SI | CY227: SI | CZ227: SI | DA227: SI | DB227: SI | DC227: SI | DD227: SI | DE227: SI | DF227: SI | DG227: SI | DH227: SI | DI227: SI | DJ227: SI | DK227: SI | DL227: SI | DM227: SI | DN227: SI | DO227: SI | DP227: SI | DQ227: SI | DR227: SI | DS227: SI | DT227: SI | DU227: SI | DV227: SI | DW227: SI | DX227: SI | DY227: SI | DZ227: SI | EA227: =IF(EA226=EA204,"SI","NO") -> SI | EB227: SI | EC227: SI | ED227: SI | EE227: SI | EF227: SI | EG227: SI | EH227: SI | EI227: SI | EJ227: SI | EK227: SI | EL227: SI | EM227: SI | EN227: SI | EO227: SI | EP227: SI | EQ227: SI | ER227: SI | ES227: SI | ET227: SI | EU227: SI | EV227: SI | EW227: SI | EX227: SI | EY227: SI | EZ227: SI | FA227: SI | FB227: SI | FC227: SI | FD227: SI | FE227: SI | FF227: SI | FG227: SI | FH227: SI | FI227: SI | FJ227: SI | FK227: SI | FL227: SI | FM227: SI | FN227: SI | FO227: SI | FP227: SI | FQ227: SI | FR227: SI | FS227: SI | FT227: SI | FU227: SI | FV227: SI | FW227: SI | FX227: SI | FY227: SI | FZ227: SI | GA227: SI | GB227: SI | GC227: SI | GD227: SI | GE227: SI | GF227: SI | GG227: SI | GH227: SI | GI227: SI | GJ227: SI | GK227: SI | GL227: SI | GM227: =IF(GM226=GM204,"SI","NO") -> SI | GN227: SI | GO227: SI | GP227: SI | GQ227: SI | GR227: SI | GS227: SI | GT227: SI | GU227: SI | GV227: SI | GW227: SI | GX227: SI | GY227: SI | GZ227: SI | HA227: SI | HB227: SI | HC227: SI | HD227: SI | HE227: SI | HF227: SI | HG227: SI | HH227: SI | HI227: SI | HJ227: SI | HK227: SI | HL227: SI | HM227: SI | HN227: SI | HO227: SI | HP227: SI | HQ227: SI | HR227: SI | HS227: SI | HT227: SI | HU227: SI | HV227: SI | HW227: SI
A233: POBLACION GENERAL
A234: anno | B234: 2025
A235: cod_red | B235: 03
A236: codmic | B236: (Todas)
A237: cod_prov | B237: (Todas)
A238: coddist | B238: (Todas)
A239: cod_estab | B239: (Todas)
A240: cod_eje | B240: (Todas)
A242: Valores
A243: Suma de total | B243: Suma de emay15
A244: 0 | B244: 0

Sheet Datos (hidden)
B9: ANO | D9: MESES | F9: COD_RED | G9: DESC_RED | H9: CONCATENAR | J9: COD_RED | K9: COD_MIC | L9: DESC_MICRO | M9: CONCATENAR | O9: COD_ESTAB | P9: DESC_ESTAB | Q9: COD_RED | R9: COD_MIC | S9: COD_PROV | T9: COD_DIST | U9: REDMIC | V9: CONCATENAR | X9: COD_PROV | Y9: DESC_PROV | Z9: CONCATENAR | AB9: COD_PROV | AC9: COD_DIST | AD9: DESC_DIST | AE9: PROVDIST | AF9: CONCATENAR
B10: 2025 | D10: 01-Enero | F10: 00 | G10: NO TIENE ASIGNADO NINGUNA RED | H10: =CONCATENATE(F10," - ",G10) -> 00 - NO TIENE ASIGNADO NINGUNA RED | J10: 00 | K10: 00 | L10: NO PERTENECE A NINGUNA MICRORED | M10: =CONCATENATE(J10,K10," - ",L10) -> 0000 - NO PERTENECE A NINGUNA MICRORED | O10: 000000000 | P10: (All) | Q10: 00 | R10: 00 | U10: =CONCATENATE(Q10,R10) -> 0000 | V10: =CONCATENATE(O10," - ",P10) -> 000000000 - (All) | X10: 00 | Y10: (All) | Z10: =CONCATENATE(X10," - ",Y10) -> 00 - (All) | AB10: 01 | AC10: 00 | AD10: (All) | AE10: =CONCATENATE(AB10,AC10) -> 0100 | AF10: =CONCATENATE(AB10,AC10," - ",AD10) -> 0100 - (All)
D11: 02-Febrero | F11: 01 | G11: CUSCO SUR | H11: =CONCATENATE(F11," - ",G11) -> 01 - CUSCO SUR | J11: 00 | K11: 99 | L11: (All) | M11: 0099 - (All) | N11: 1 | O11: 000002289 | P11: HOSPITAL DE APOYO DEPARTAMENTAL CUSCO | Q11: 00 | R11: 00 | S11: 01 | T11: 01 | U11: =CONCATENATE(Q11,R11) -> 0000 | V11: =CONCATENATE(O11," - ",P11) -> 000002289 - HOSPITAL DE APOYO DEPARTAMENTAL CUSCO | X11: 01 | Y11: CUSCO | Z11: =CONCATENATE(X11," - ",Y11) -> 01 - CUSCO | AB11: 01 | AC11: 01 | AD11: CUSCO | AE11: =CONCATENATE(AB11,AC11) -> 0101 | AF11: =CONCATENATE(AB11,AC11," - ",AD11) -> 0101 - CUSCO
D12: 03-Marzo | F12: 02 | G12: CUSCO NORTE | H12: 02 - CUSCO NORTE | J12: 01 | K12: 00 | L12: NO PERTENECE A NINGUNA MICRORED | M12: 0100 - NO PERTENECE A NINGUNA MICRORED | N12: =+N11+1 -> 2 | O12: 000002305 | P12: ANTONIO LORENA DEL CUSCO | Q12: 00 | R12: 00 | S12: 01 | T12: 06 | U12: 0000 | V12: 000002305 - ANTONIO LORENA DEL CUSCO | X12: 02 | Y12: ACOMAYO | Z12: =CONCATENATE(X12," - ",Y12) -> 02 - ACOMAYO | AB12: 01 | AC12: 02 | AD12: CCORCA | AE12: 0102 | AF12: 0102 - CCORCA
D13: 04-Abril | F13: 03 | G13: LA CONVENCION | H13: 03 - LA CONVENCION | J13: 01 | K13: 16 | L13: CUSCO | M13: 0116 - CUSCO | N13: =+N12+1 -> 3 | O13: 999999999 | P13: (All) | Q13: 00 | R13: 99 | U13: 0099 | V13: 999999999 - (All) | X13: 03 | Y13: ANTA | Z13: 03 - ANTA | AB13: 01 | AC13: 03 | AD13: POROY | AE13: 0103 | AF13: 0103 - POROY
D14: 05-Mayo | F14: 04 | G14: CANAS-CANCHIS-ESPINAR | H14: 04 - CANAS-CANCHIS-ESPINAR | J14: 01 | K14: 03 | L14: PARURO | M14: 0103 - PARURO | O14: 000025210 | P14: TUPAC AMARU | Q14: 01 | R14: 00 | S14: 01 | T14: 05 | U14: 0100 | V14: 000025210 - TUPAC AMARU | X14: 04 | Y14: CALCA | Z14: 04 - CALCA | AB14: 01 | AC14: 04 | AD14: SAN JERONIMO | AE14: 0104 | AF14: 0104 - SAN JERONIMO
D15: 06-Junio | F15: 05 | G15: KIMBIRI PICHARI | H15: 05 - KIMBIRI PICHARI | J15: 01 | K15: 06 | L15: PAUCARTAMBO | M15: 0106 - PAUCARTAMBO | N15: =+N13+1 -> 4 | O15: 000000000 | P15: (All) | Q15: 01 | R15: 03 | U15: 0103 | V15: 000000000 - (All) | X15: 05 | Y15: CANAS | Z15: 05 - CANAS | AB15: 01 | AC15: 05 | AD15: SAN SEBASTIAN | AE15: 0105 | AF15: 0105 - SAN SEBASTIAN
D16: 07-Julio | F16: 06 | G16: CHUMBIVILCAS | H16: 06 - CHUMBIVILCAS | J16: 01 | K16: 12 | L16: URCOS | M16: 0112 - URCOS | O16: 000002499 | P16: PARURO | Q16: 01 | R16: 03 | S16: 10 | T16: 01 | U16: 0103 | V16: 000002499 - PARURO | X16: 06 | Y16: CANCHIS | Z16: 06 - CANCHIS | AB16: 01 | AC16: 06 | AD16: SANTIAGO | AE16: 0106 | AF16: 0106 - SANTIAGO
D17: 08-Agosto | F17: 99 | G17: (All) | H17: 99 - (All) | J17: 01 | K17: 13 | L17: ACOMAYO | M17: 0113 - ACOMAYO | N17: =+N15+1 -> 5 | O17: 000002500 | P17: ACCHA | Q17: 01 | R17: 03 | S17: 10 | T17: 02 | U17: 0103 | V17: 000002500 - ACCHA | X17: 07 | Y17: CHUMBIVILCAS | Z17: 07 - CHUMBIVILCAS | AB17: 01 | AC17: 07 | AD17: SAYLLA | AE17: 0107 | AF17: 0107 - SAYLLA
D18: 09-Setiembre | J18: 01 | K18: 15 | L18: OCONGATE | M18: 0115 - OCONGATE | N18: 6 | O18: 000002501 | P18: CCAPI | Q18: 01 | R18: 03 | S18: 10 | T18: 03 | U18: 0103 | V18: 000002501 - CCAPI | X18: 08 | Y18: ESPINAR | Z18: 08 - ESPINAR | AB18: 01 | AC18: 08 | AD18: WANCHAQ | AE18: 0108 | AF18: 0108 - WANCHAQ
D19: 10-Octubre | J19: 01 | K19: 99 | L19: (All) | M19: 0199 - (All) | N19: 7 | O19: 000002502 | P19: CCOYABAMBA | Q19: 01 | R19: 03 | S19: 10 | T19: 03 | U19: 0103 | V19: 000002502 - CCOYABAMBA | X19: 09 | Y19: LA CONVENCION | Z19: 09 - LA CONVENCION | AB19: 02 | AC19: 00 | AD19: (All) | AE19: 0200 | AF19: 0200 - (All)
D20: 11-Noviembre | F20: EJECUTORAS | J20: 02 | K20: 01 | L20: BELEMPAMPA | M20: 0201 - BELEMPAMPA | N20: 8 | O20: 000002503 | P20: COLCHA | Q20: 01 | R20: 03 | S20: 10 | T20: 04 | U20: 0103 | V20: 000002503 - COLCHA | X20: 10 | Y20: PARURO | Z20: 10 - PARURO | AB20: 02 | AC20: 01 | AD20: ACOMAYO | AE20: 0201 | AF20: 0201 - ACOMAYO
D21: 12-Diciembre | F21: COD_RED | G21: DESC_RED | H21: CONCATENAR | J21: 02 | K21: 02 | L21: WANCHAQ | M21: 0202 - WANCHAQ | N21: 9 | O21: 000006978 | P21: CCOCHIRIHUAY | Q21: 01 | R21: 03 | S21: 10 | T21: 04 | U21: 0103 | V21: 000006978 - CCOCHIRIHUAY | X21: 11 | Y21: PAUCARTAMBO | Z21: 11 - PAUCARTAMBO | AB21: 02 | AC21: 02 | AD21: ACOPIA | AE21: 0202 | AF21: 0202 - ACOPIA
F22: 01 | G22: HOSPITAL REGIONAL CUSCO | H22: =CONCATENATE(F22," - ",G22) -> 01 - HOSPITAL REGIONAL CUSCO | J22: 02 | K22: 03 | L22: ANTA | M22: 0203 - ANTA | N22: 10 | O22: 000002504 | P22: HUANOQUITE | Q22: 01 | R22: 03 | S22: 10 | T22: 05 | U22: 0103 | V22: 000002504 - HUANOQUITE | X22: 12 | Y22: QUISPICANCHI | Z22: 12 - QUISPICANCHI | AB22: 02 | AC22: 03 | AD22: ACOS | AE22: 0203 | AF22: 0203 - ACOS
F23: 02 | G23: HOSPITAL ANTONIO LORENA | H23: =CONCATENATE(F23," - ",G23) -> 02 - HOSPITAL ANTONIO LORENA | J23: 02 | K23: 04 | L23: LIMATAMBO | M23: 0204 - LIMATAMBO | N23: 11 | O23: 000002505 | P23: OMACHA | Q23: 01 | R23: 03 | S23: 10 | T23: 06 | U23: 0103 | V23: 000002505 - OMACHA | X23: 13 | Y23: URUBAMBA | Z23: 13 - URUBAMBA | AB23: 02 | AC23: 04 | AD23: MOSOC LLACTA | AE23: 0204 | AF23: 0204 - MOSOC LLACTA
F24: 03 | G24: CUSCO NORTE | H24: 03 - CUSCO NORTE | J24: 02 | K24: 05 | L24: PISAC | M24: 0205 - PISAC | N24: 12 | O24: 000002506 | P24: ANTAPALLPA | Q24: 01 | R24: 03 | S24: 10 | T24: 06 | U24: 0103 | V24: 000002506 - ANTAPALLPA | AB24: 02 | AC24: 05 | AD24: POMACANCHI | AE24: 0205 | AF24: 0205 - POMACANCHI
F25: 04 | G25: CUSCO SUR | H25: 04 - CUSCO SUR | J25: 02 | K25: 06 | L25: CALCA | M25: 0206 - CALCA | N25: 13 | O25: 000007147 | P25: PUESTO DE SALUD DE HUASQUILLAY | Q25: 01 | R25: 03 | S25: 10 | T25: 06 | U25: 0103 | V25: 000007147 - PUESTO DE SALUD DE HUASQUILLAY | AB25: 02 | AC25: 06 | AD25: RONDOCAN | AE25: 0206 | AF25: 0206 - RONDOCAN
F26: 05 | G26: LA CONVENCION | H26: 05 - LA CONVENCION | J26: 02 | K26: 07 | L26: URUBAMBA | M26: 0207 - URUBAMBA | N26: 14 | O26: 000012924 | P26: SAHUA SAHUA | Q26: 01 | R26: 03 | S26: 10 | T26: 06 | U26: 0103 | V26: 000012924 - SAHUA SAHUA | AB26: 02 | AC26: 07 | AD26: SANGARARA | AE26: 0207 | AF26: 0207 - SANGARARA
F27: 06 | G27: HOSPITAL QUILLABAMBA | H27: 06 - HOSPITAL QUILLABAMBA | J27: 02 | K27: 08 | L27: YANATILE | M27: 0208 - YANATILE | N27: 15 | O27: 000002507 | P27: PACCARECTAMBO | Q27: 01 | R27: 03 | S27: 10 | T27: 07 | U27: 0103 | V27: 000002507 - PACCARECTAMBO | AB27: 03 | AC27: 00 | AD27: (All) | AE27: 0300 | AF27: 0300 - (All)
F28: 07 | G28: CANAS CANCHIS ESPINAR | H28: 07 - CANAS CANCHIS ESPINAR | J28: 02 | K28: 09 | L28: SIETE CUARTONES | M28: 0209 - SIETE CUARTONES | N28: 16 | O28: 000002509 | P28: YAURISQUE | Q28: 01 | R28: 03 | S28: 10 | T28: 09 | U28: 0103 | V28: 000002509 - YAURISQUE | AB28: 03 | AC28: 01 | AD28: ANTA | AE28: 0301 | AF28: 0301 - ANTA
F29: 08 | G29: HOSPITAL SICUANI | H29: 08 - HOSPITAL SICUANI | J29: 02 | K29: 99 | L29: (All) | M29: 0299 - (All) | N29: 17 | O29: 000000000 | P29: (All) | Q29: 01 | R29: 06 | U29: 0106 | V29: 000000000 - (All) | AB29: 03 | AC29: 02 | AD29: ANCAHUASI | AE29: 0302 | AF29: 0302 - ANCAHUASI
F30: 09 | G30: HOSPITAL ESPINAR | H30: 09 - HOSPITAL ESPINAR | J30: 03 | K30: 00 | L30: NO PERTENECE A NINGUNA MICRORED | M30: 0300 - NO PERTENECE A NINGUNA MICRORED | O30: 000002520 | P30: HUANCARANI | Q30: 01 | R30: 06 | S30: 11 | T30: 05 | U30: 0106 | V30: 000002520 - HUANCARANI | AB30: 03 | AC30: 03 | AD30: CACHIMAYO | AE30: 0303 | AF30: 0303 - CACHIMAYO
F31: 10 | G31: KIMBIRI PICHARI | H31: 10 - KIMBIRI PICHARI | J31: 03 | K31: 01 | L31: SANTA ANA | M31: 0301 - SANTA ANA | N31: =+N29+1 -> 18 | O31: 000002521 | P31: PILCOPATA | Q31: 01 | R31: 06 | S31: 11 | T31: 06 | U31: 0106 | V31: 000002521 - PILCOPATA | AB31: 03 | AC31: 04 | AD31: CHINCHAYPUJIO | AE31: 0304 | AF31: 0304 - CHINCHAYPUJIO
F32: 11 | G32: CHUMBIVILCAS | H32: 11 - CHUMBIVILCAS | J32: 03 | K32: 02 | L32: MARANURA | M32: 0302 - MARANURA | N32: 19 | O32: 000002522 | P32: PATRIA | Q32: 01 | R32: 06 | S32: 11 | T32: 06 | U32: 0106 | V32: 000002522 - PATRIA | AB32: 03 | AC32: 05 | AD32: HUAROCONDO | AE32: 0305 | AF32: 0305 - HUAROCONDO
F33: 99 | G33: (ALL) | H33: =CONCATENATE(F33," - ",G33) -> 99 - (ALL) | J33: 03 | K33: 03 | L33: QUELLOUNO | M33: 0303 - QUELLOUNO | N33: 20 | O33: 000002510 | P33: PAUCARTAMBO | Q33: 01 | R33: 06 | S33: 11 | T33: 01 | U33: 0106 | V33: 000002510 - PAUCARTAMBO | AB33: 03 | AC33: 06 | AD33: LIMATAMBO | AE33: 0306 | AF33: 0306 - LIMATAMBO
J34: 03 | K34: 04 | L34: KITENI | M34: 0304 - KITENI | N34: 21 | O34: 000002511 | P34: MOLLOMARCA | Q34: 01 | R34: 06 | S34: 11 | T34: 01 | U34: 0106 | V34: 000002511 - MOLLOMARCA | AB34: 03 | AC34: 07 | AD34: MOLLEPATA | AE34: 0307 | AF34: 0307 - MOLLEPATA
J35: 03 | K35: 05 | L35: KAMISEA | M35: 0305 - KAMISEA | N35: 22 | O35: 000010077 | P35: PAUCARTAMBO -ESSALUD | Q35: 01 | R35: 06 | S35: 11 | T35: 01 | U35: 0106 | V35: 000010077 - PAUCARTAMBO -ESSALUD | AB35: 03 | AC35: 08 | AD35: PUCYURA | AE35: 0308 | AF35: 0308 - PUCYURA
F36: SECTORES | J36: 03 | K36: 06 | L36: PUCYURA | M36: 0306 - PUCYURA | N36: 23 | O36: 000033777 | P36: MENTAL COMUNITARIO VIRGEN DEL ROSARIO | Q36: 01 | R36: 06 | S36: 11 | T36: 01 | U36: 0106 | V36: 000033777 - MENTAL COMUNITARIO VIRGEN DEL ROSARIO | AB36: 03 | AC36: 09 | AD36: ZURITE | AE36: 0309 | AF36: 0309 - ZURITE
F37: COD_SECTOR | G37: DESC_RED | H37: CONCATENAR | J37: 03 | K37: 07 | L37: PALMA REAL | M37: 0307 - PALMA REAL | N37: 24 | O37: 000002512 | P37: CAICAY | Q37: 01 | R37: 06 | S37: 11 | T37: 02 | U37: 0106 | V37: 000002512 - CAICAY | AB37: 04 | AC37: 00 | AD37: (All) | AE37: 0400 | AF37: 0400 - (All)
F38: 1 | G38: GORE | H38: =CONCATENATE(F38," - ",G38) -> 1 - GORE | J38: 03 | K38: 99 | L38: (All) | M38: 0399 - (All) | N38: 25 | O38: 000002513 | P38: HUASAC | Q38: 01 | R38: 06 | S38: 11 | T38: 02 | U38: 0106 | V38: 000002513 - HUASAC | AB38: 04 | AC38: 01 | AD38: CALCA | AE38: 0401 | AF38: 0401 - CALCA
F39: 2 | G39: ESSALUD | H39: =CONCATENATE(F39," - ",G39) -> 2 - ESSALUD | J39: 04 | K39: 00 | L39: NO PERTENECE A NINGUNA MICRORED | M39: 0400 - NO PERTENECE A NINGUNA MICRORED | N39: 26 | O39: 000002514 | P39: CHALLABAMBA | Q39: 01 | R39: 06 | S39: 11 | T39: 03 | U39: 0106 | V39: 000002514 - CHALLABAMBA | AB39: 04 | AC39: 02 | AD39: COYA | AE39: 0402 | AF39: 0402 - COYA
F40: 3 | G40: OTROS | H40: =CONCATENATE(F40," - ",G40) -> 3 - OTROS | J40: 04 | K40: 01 | L40: YANAOCA | M40: 0401 - YANAOCA | N40: 27 | O40: 000002516 | P40: COLQUEPATA | Q40: 01 | R40: 06 | S40: 11 | T40: 04 | U40: 0106 | V40: 000002516 - COLQUEPATA | AB40: 04 | AC40: 03 | AD40: LAMAY | AE40: 0403 | AF40: 0403 - LAMAY
F41: 99 | G41: (ALL) | H41: =CONCATENATE(F41," - ",G41) -> 99 - (ALL) | J41: 04 | K41: 02 | L41: EL DESCANSO | M41: 0402 - EL DESCANSO | N41: 28 | O41: 000002517 | P41: PICHIHUA COLQUEPATA | Q41: 01 | R41: 06 | S41: 11 | T41: 04 | U41: 0106 | V41: 000002517 - PICHIHUA COLQUEPATA | AB41: 04 | AC41: 04 | AD41: LARES | AE41: 0404 | AF41: 0404 - LARES
J42: 04 | K42: 03 | L42: COMBAPATA | M42: 0403 - COMBAPATA | N42: 29 | O42: 000002518 | P42: VIZCOCHONI | Q42: 01 | R42: 06 | S42: 11 | T42: 04 | U42: 0106 | V42: 000002518 - VIZCOCHONI | AB42: 04 | AC42: 05 | AD42: PISAC | AE42: 0405 | AF42: 0405 - PISAC
J43: 04 | K43: 04 | L43: TECHO OBRERO | M43: 0404 - TECHO OBRERO | N43: 30 | O43: 000002519 | P43: AYRE | Q43: 01 | R43: 06 | S43: 11 | T43: 04 | U43: 0106 | V43: 000002519 - AYRE | AB43: 04 | AC43: 06 | AD43: SAN SALVADOR | AE43: 0406 | AF43: 0406 - SAN SALVADOR
J44: 04 | K44: 05 | L44: PAMPAPHALLA | M44: 0405 - PAMPAPHALLA | N44: 31 | O44: 000006979 | P44: TOCRA | Q44: 01 | R44: 06 | S44: 11 | T44: 04 | U44: 0106 | V44: 000006979 - TOCRA | AB44: 04 | AC44: 07 | AD44: TARAY | AE44: 0407 | AF44: 0407 - TARAY
J45: 04 | K45: 06 | L45: YAURI | M45: 0406 - YAURI | N45: 32 | O45: 000000000 | P45: (All) | Q45: 01 | R45: 12 | U45: 0112 | V45: 000000000 - (All) | AB45: 04 | AC45: 08 | AD45: YANATILE | AE45: 0408 | AF45: 0408 - YANATILE
J46: 04 | K46: 99 | L46: (All) | M46: 0499 - (All) | O46: 000002523 | P46: URCOS | Q46: 01 | R46: 12 | S46: 12 | T46: 01 | U46: 0112 | V46: 000002523 - URCOS | AB46: 05 | AC46: 00 | AD46: (All) | AE46: 0500 | AF46: 0500 - (All)
J47: 05 | K47: 00 | L47: NO PERTENECE A NINGUNA MICRORED | M47: 0500 - NO PERTENECE A NINGUNA MICRORED | N47: =+N45+1 -> 33 | O47: 000026385 | P47: ESSALUD-URCOS | Q47: 01 | R47: 12 | S47: 12 | T47: 01 | U47: 0112 | V47: 000026385 - ESSALUD-URCOS | AB47: 05 | AC47: 01 | AD47: YANAOCA | AE47: 0501 | AF47: 0501 - YANAOCA
J48: 05 | K48: 01 | L48: KIMBIRI | M48: 0501 - KIMBIRI | N48: 34 | O48: 000002525 | P48: ANDAHUAYLILLAS | Q48: 01 | R48: 12 | S48: 12 | T48: 02 | U48: 0112 | V48: 000002525 - ANDAHUAYLILLAS | AB48: 05 | AC48: 02 | AD48: CHECCA | AE48: 0502 | AF48: 0502 - CHECCA
J49: 05 | K49: 02 | L49: PICHARI | M49: 0502 - PICHARI | N49: 35 | O49: 000008911 | P49: HUARA HUARA | Q49: 01 | R49: 12 | S49: 12 | T49: 05 | U49: 0112 | V49: 000008911 - HUARA HUARA | AB49: 05 | AC49: 03 | AD49: KUNTURKANKI | AE49: 0503 | AF49: 0503 - KUNTURKANKI
J50: 05 | K50: 99 | L50: (All) | M50: 0599 - (All) | N50: 36 | O50: 000002530 | P50: CUSIPATA | Q50: 01 | R50: 12 | S50: 12 | T50: 06 | U50: 0112 | V50: 000002530 - CUSIPATA | AB50: 05 | AC50: 04 | AD50: LANGUI | AE50: 0504 | AF50: 0504 - LANGUI
J51: 06 | K51: 00 | L51: NO PERTENECE A NINGUNA MICRORED | M51: 0600 - NO PERTENECE A NINGUNA MICRORED | N51: 37 | O51: 000006980 | P51: CHILLIHUANI | Q51: 01 | R51: 12 | S51: 12 | T51: 06 | U51: 0112 | V51: 000006980 - CHILLIHUANI | AB51: 05 | AC51: 05 | AD51: LAYO | AE51: 0505 | AF51: 0505 - LAYO
J52: 06 | K52: 09 | L52: SANTO TOMAS | M52: 0609 - SANTO TOMAS | N52: 38 | O52: 000002532 | P52: HUARO | Q52: 01 | R52: 12 | S52: 12 | T52: 07 | U52: 0112 | V52: 000002532 - HUARO | AB52: 05 | AC52: 06 | AD52: PAMPAMARCA | AE52: 0506 | AF52: 0506 - PAMPAMARCA
J53: 06 | K53: 01 | L53: LIVITACA | M53: 0601 - LIVITACA | N53: 39 | O53: 000002533 | P53: URPAY | Q53: 01 | R53: 12 | S53: 12 | T53: 07 | U53: 0112 | V53: 000002533 - URPAY | AB53: 05 | AC53: 07 | AD53: QUEHUE | AE53: 0507 | AF53: 0507 - QUEHUE
J54: 06 | K54: 99 | L54: (All) | M54: 0699 - (All) | N54: 40 | O54: 000011747 | P54: POSTA MEDICA POLICIAL PUCUTO | Q54: 01 | R54: 12 | S54: 12 | T54: 07 | U54: 0112 | V54: 000011747 - POSTA MEDICA POLICIAL PUCUTO | AB54: 05 | AC54: 08 | AD54: TUPAC AMARU | AE54: 0508 | AF54: 0508 - TUPAC AMARU
J55: 99 | K55: 99 | L55: (All) | M55: 9999 - (All) | N55: 41 | O55: 000030708 | P55: MENTAL COMUNITARIO HUARO | Q55: 01 | R55: 12 | S55: 12 | T55: 07 | U55: 0112 | V55: 000030708 - MENTAL COMUNITARIO HUARO | AB55: 06 | AC55: 00 | AD55: (All) | AE55: 0600 | AF55: 0600 - (All)
N56: 42 | O56: 000002534 | P56: LUCRE | Q56: 01 | R56: 12 | S56: 12 | T56: 08 | U56: 0112 | V56: 000002534 - LUCRE | AB56: 06 | AC56: 01 | AD56: SICUANI | AE56: 0601 | AF56: 0601 - SICUANI
N57: 43 | O57: 000002537 | P57: OROPESA | Q57: 01 | R57: 12 | S57: 12 | T57: 11 | U57: 0112 | V57: 000002537 - OROPESA | AB57: 06 | AC57: 02 | AD57: CHECACUPE | AE57: 0602 | AF57: 0602 - CHECACUPE
N58: 44 | O58: 000002538 | P58: QUIQUIJANA | Q58: 01 | R58: 12 | S58: 12 | T58: 12 | U58: 0112 | V58: 000002538 - QUIQUIJANA | AB58: 06 | AC58: 03 | AD58: COMBAPATA | AE58: 0603 | AF58: 0603 - COMBAPATA
N59: 45 | O59: 000002539 | P59: CCOLCA | Q59: 01 | R59: 12 | S59: 12 | T59: 12 | U59: 0112 | V59: 000002539 - CCOLCA | AB59: 06 | AC59: 04 | AD59: MARANGANI | AE59: 0604 | AF59: 0604 - MARANGANI
N60: 46 | O60: 000000000 | P60: (All) | Q60: 01 | R60: 13 | U60: 0113 | V60: 000000000 - (All) | AB60: 06 | AC60: 05 | AD60: PITUMARCA | AE60: 0605 | AF60: 0605 - PITUMARCA
O61: 000002317 | P61: ACOMAYO | Q61: 01 | R61: 13 | S61: 02 | T61: 01 | U61: 0113 | V61: 000002317 - ACOMAYO | AB61: 06 | AC61: 06 | AD61: SAN PABLO | AE61: 0606 | AF61: 0606 - SAN PABLO
N62: =+N60+1 -> 47 | O62: 000010076 | P62: ACOMAYO - ESSALUD | Q62: 01 | R62: 13 | S62: 02 | T62: 01 | U62: 0113 | V62: 000010076 - ACOMAYO - ESSALUD | AB62: 06 | AC62: 07 | AD62: SAN PEDRO | AE62: 0607 | AF62: 0607 - SAN PEDRO
N63: 48 | O63: 000002318 | P63: ACOPIA | Q63: 01 | R63: 13 | S63: 02 | T63: 02 | U63: 0113 | V63: 000002318 - ACOPIA | AB63: 06 | AC63: 08 | AD63: TINTA | AE63: 0608 | AF63: 0608 - TINTA
N64: 49 | O64: 000002319 | P64: ACOS | Q64: 01 | R64: 13 | S64: 02 | T64: 03 | U64: 0113 | V64: 000002319 - ACOS | AB64: 07 | AC64: 00 | AD64: (All) | AE64: 0700 | AF64: 0700 - (All)
N65: 50 | O65: 000002321 | P65: POMACANCHI | Q65: 01 | R65: 13 | S65: 02 | T65: 05 | U65: 0113 | V65: 000002321 - POMACANCHI | AB65: 07 | AC65: 01 | AD65: SANTO TOMAS | AE65: 0701 | AF65: 0701 - SANTO TOMAS
N66: 51 | O66: 000002322 | P66: SAN JUAN DE POMACANCHI | Q66: 01 | R66: 13 | S66: 02 | T66: 05 | U66: 0113 | V66: 000002322 - SAN JUAN DE POMACANCHI | AB66: 07 | AC66: 02 | AD66: CAPACMARCA | AE66: 0702 | AF66: 0702 - CAPACMARCA
N67: 52 | O67: 000012926 | P67: SANTA LUCIA | Q67: 01 | R67: 13 | S67: 02 | T67: 05 | U67: 0113 | V67: 000012926 - SANTA LUCIA | AB67: 07 | AC67: 03 | AD67: CHAMACA | AE67: 0703 | AF67: 0703 - CHAMACA
N68: 53 | O68: 000002324 | P68: PUESTO DE SALUD SANGARARA | Q68: 01 | R68: 13 | S68: 02 | T68: 07 | U68: 0113 | V68: 000002324 - PUESTO DE SALUD SANGARARA | AB68: 07 | AC68: 04 | AD68: COLQUEMARCA | AE68: 0704 | AF68: 0704 - COLQUEMARCA
N69: 54 | O69: 000002325 | P69: PUESTO DE SALUD MARCACONGA | Q69: 01 | R69: 13 | S69: 02 | T69: 07 | U69: 0113 | V69: 000002325 - PUESTO DE SALUD MARCACONGA | AB69: 07 | AC69: 05 | AD69: LIVITACA | AE69: 0705 | AF69: 0705 - LIVITACA
N70: 55 | O70: 000002508 | P70: PILLPINTO | Q70: 01 | R70: 13 | S70: 10 | T70: 08 | U70: 0113 | V70: 000002508 - PILLPINTO | AB70: 07 | AC70: 06 | AD70: LLUSCO | AE70: 0706 | AF70: 0706 - LLUSCO
N71: 56 | O71: 000000000 | P71: (All) | Q71: 01 | R71: 15 | U71: 0115 | V71: 000000000 - (All) | AB71: 07 | AC71: 07 | AD71: QUIÑOTA | AE71: 0707 | AF71: 0707 - QUIÑOTA
O72: 000002526 | P72: QUINCE MIL | Q72: 01 | R72: 15 | S72: 12 | T72: 03 | U72: 0115 | V72: 000002526 - QUINCE MIL | AB72: 07 | AC72: 08 | AD72: VELILLE | AE72: 0708 | AF72: 0708 - VELILLE
N73: =+N71+1 -> 57 | O73: 000002527 | P73: CCARHUAYO | Q73: 01 | R73: 15 | S73: 12 | T73: 04 | U73: 0115 | V73: 000002527 - CCARHUAYO | AB73: 08 | AC73: 00 | AD73: (All) | AE73: 0800 | AF73: 0800 - (All)
N74: 58 | O74: 000002524 | P74: PAMPACAMARA | Q74: 01 | R74: 15 | S74: 12 | T74: 05 | U74: 0115 | V74: 000002524 - PAMPACAMARA | AB74: 08 | AC74: 01 | AD74: ESPINAR | AE74: 0801 | AF74: 0801 - ESPINAR
N75: 59 | O75: 000002528 | P75: CCATCCA | Q75: 01 | R75: 15 | S75: 12 | T75: 05 | U75: 0115 | V75: 000002528 - CCATCCA | AB75: 08 | AC75: 02 | AD75: CONDOROMA | AE75: =CONCATENATE(AB75,AC75) -> 0802 | AF75: =CONCATENATE(AB75,AC75," - ",AD75) -> 0802 - CONDOROMA
N76: 60 | O76: 000002529 | P76: KCAURY | Q76: 01 | R76: 15 | S76: 12 | T76: 05 | U76: 0115 | V76: 000002529 - KCAURY | AB76: 08 | AC76: 03 | AD76: COPORAQUE | AE76: 0803 | AF76: 0803 - COPORAQUE
N77: =+N76+1 -> 61 | O77: 000012931 | P77: CHICHINA | Q77: 01 | R77: 15 | S77: 12 | T77: 05 | U77: 0115 | V77: 000012931 - CHICHINA | AB77: 08 | AC77: 04 | AD77: OCORURO | AE77: 0804 | AF77: 0804 - OCORURO
N78: 62 | O78: 000016335 | P78: CCAPANA | Q78: 01 | R78: 15 | S78: 12 | T78: 05 | U78: 0115 | V78: 000016335 - CCAPANA | AB78: 08 | AC78: 05 | AD78: PALLPATA | AE78: 0805 | AF78: 0805 - PALLPATA
N79: 63 | O79: 000002535 | P79: MARCAPATA | Q79: 01 | R79: 15 | S79: 12 | T79: 09 | U79: 0115 | V79: 000002535 - MARCAPATA | AB79: 08 | AC79: 06 | AD79: PICHIGUA | AE79: 0806 | AF79: 0806 - PICHIGUA
N80: 64 | O80: 000007110 | P80: INCACANCHA | Q80: 01 | R80: 15 | S80: 12 | T80: 09 | U80: =CONCATENATE(Q80,R80) -> 0115 | V80: =CONCATENATE(O80," - ",P80) -> 000007110 - INCACANCHA | AB80: 08 | AC80: 07 | AD80: SUYCKUTAMBO | AE80: 0807 | AF80: 0807 - SUYCKUTAMBO
N81: 65 | O81: 000002536 | P81: OCONGATE | Q81: 01 | R81: 15 | S81: 12 | T81: 10 | U81: 0115 | V81: 000002536 - OCONGATE | AB81: 08 | AC81: 08 | AD81: ALTO PICHIGUA | AE81: 0808 | AF81: 0808 - ALTO PICHIGUA
N82: 66 | O82: 000006977 | P82: TINKI | Q82: 01 | R82: 15 | S82: 12 | T82: 10 | U82: 0115 | V82: 000006977 - TINKI | AB82: 09 | AC82: 00 | AD82: (All) | AE82: 0900 | AF82: 0900 - (All)
N83: 67 | O83: 000000000 | P83: (All) | Q83: 01 | R83: 16 | U83: 0116 | V83: 000000000 - (All) | AB83: 09 | AC83: 01 | AD83: SANTA ANA | AE83: 0901 | AF83: 0901 - SANTA ANA
O84: 000002300 | P84: SAN JERONIMO | Q84: 01 | R84: 16 | S84: 01 | T84: 04 | U84: 0116 | V84: 000002300 - SAN JERONIMO | AB84: 09 | AC84: 02 | AD84: ECHARATE | AE84: 0902 | AF84: 0902 - ECHARATE
N85: =+N83+1 -> 68 | O85: 000007699 | P85: CONCHACALLE | Q85: 01 | R85: 16 | S85: 01 | T85: 04 | U85: 0116 | V85: 000007699 - CONCHACALLE | AB85: 09 | AC85: 03 | AD85: HUAYOPATA | AE85: 0903 | AF85: 0903 - HUAYOPATA
N86: 69 | O86: 000018926 | P86: ESTABLECIMIENTO PENITENCIARIO CUSCO VARONES | Q86: 01 | R86: 16 | S86: 01 | T86: 04 | U86: 0116 | V86: 000018926 - ESTABLECIMIENTO PENITENCIARIO CUSCO VARONES | AB86: 09 | AC86: 04 | AD86: MARANURA | AE86: 0904 | AF86: 0904 - MARANURA
N87: 70 | O87: 000021187 | P87: ESTABLECIMIENTO PENITENCIARIO CUSCO MUJERES | Q87: 01 | R87: 16 | S87: 01 | T87: 04 | U87: 0116 | V87: 000021187 - ESTABLECIMIENTO PENITENCIARIO CUSCO MUJERES | AB87: 09 | AC87: 05 | AD87: OCOBAMBA | AE87: 0905 | AF87: 0905 - OCOBAMBA
N88: 71 | O88: 000030727 | P88: PATRÓN SAN SEBASTIAN | Q88: 01 | R88: 16 | S88: 01 | T88: 04 | U88: 0116 | V88: 000030727 - PATRÓN SAN SEBASTIAN | AB88: 09 | AC88: 06 | AD88: QUELLOUNO | AE88: 0906 | AF88: 0906 - QUELLOUNO
N89: 72 | O89: 000002301 | P89: SAN SEBASTIAN | Q89: 01 | R89: 16 | S89: 01 | T89: 05 | U89: 0116 | V89: 000002301 - SAN SEBASTIAN | AB89: 09 | AC89: 07 | AD89: KIMBIRI | AE89: 0907 | AF89: 0907 - KIMBIRI
N90: 73 | O90: 000002303 | P90: SANTA ROSA | Q90: 01 | R90: 16 | S90: 01 | T90: 05 | U90: 0116 | V90: 000002303 - SANTA ROSA | AB90: 09 | AC90: 08 | AD90: SANTA TERESA | AE90: 0908 | AF90: 0908 - SANTA TERESA
N91: 74 | O91: 000010065 | P91: SAN SEBASTIAN ESSALUD | Q91: 01 | R91: 16 | S91: 01 | T91: 05 | U91: 0116 | V91: 000010065 - SAN SEBASTIAN ESSALUD | AB91: 09 | AC91: 09 | AD91: VILCABAMBA | AE91: 0909 | AF91: 0909 - VILCABAMBA
N92: 75 | O92: 000011743 | P92: POLICIAL "SANTA ROSA" CUSCO | Q92: 01 | R92: 16 | S92: 01 | T92: 05 | U92: 0116 | V92: 000011743 - POLICIAL "SANTA ROSA" CUSCO | AB92: 09 | AC92: 10 | AD92: PICHARI | AE92: 0910 | AF92: 0910 - PICHARI
N93: 76 | O93: 000026181 | P93: MENTAL SAN SEBASTIAN | Q93: 01 | R93: 16 | S93: 01 | T93: 05 | U93: 0116 | V93: 000026181 - MENTAL SAN SEBASTIAN | AB93: 09 | AC93: 11 | AD93: INKAWASI | AE93: 0911 | AF93: 0911 - INKAWASI
N94: 77 | O94: 000002314 | P94: SAYLLA | Q94: 01 | R94: 16 | S94: 01 | T94: 07 | U94: 0116 | V94: 000002314 - SAYLLA | AB94: 09 | AC94: 12 | AD94: VILLA VIRGEN | AE94: 0912 | AF94: 0912 - VILLA VIRGEN
N95: 78 | O95: 000002323 | P95: RONDOCAN | Q95: 01 | R95: 16 | S95: 02 | T95: 06 | U95: 0116 | V95: 000002323 - RONDOCAN | AB95: 09 | AC95: 13 | AD95: VILLA KINTIARINA | AE95: 0913 | AF95: 0913 - VILLA KINTIARINA
N96: 79 | O96: 999999999 | P96: (All) | Q96: 01 | R96: 99 | U96: 0199 | V96: 999999999 - (All) | AB96: 09 | AC96: 14 | AD96: MEGANTONI | AE96: 0914 | AF96: 0914 - MEGANTONI
O97: 000000000 | P97: (All) | Q97: 02 | R97: 01 | U97: 0201 | V97: 000000000 - (All) | AB97: 09 | AC97: 15 | AD97: KUMPIRUSHIATO | AE97: 0915 | AF97: 0915 - KUMPIRUSHIATO
O98: 000002292 | P98: INDEPENDENCIA | Q98: 02 | R98: 01 | S98: 01 | T98: 01 | U98: 0201 | V98: 000002292 - INDEPENDENCIA | AB98: 09 | AC98: 16 | AD98: CIELO PUNCO | AE98: 0916 | AF98: 0916 - CIELO PUNCO
N99: =+N96+1 -> 80 | O99: 000002297 | P99: CCORCCA | Q99: 02 | R99: 01 | S99: 01 | T99: 02 | U99: 0201 | V99: 000002297 - CCORCCA | AB99: 09 | AC99: 17 | AD99: MANITEA | AE99: 0917 | AF99: 0917 - MANITEA
N100: 81 | O100: 000002306 | P100: BELEMPAMPA | Q100: 02 | R100: 01 | S100: 01 | T100: 06 | U100: 0201 | V100: 000002306 - BELEMPAMPA | AB100: 09 | AC100: 18 | AD100: UNION ASHANINKA | AE100: 0918 | AF100: 0918 - UNION ASHANINKA
N101: 82 | O101: 000002308 | P101: ZARZUELA ALTA | Q101: 02 | R101: 01 | S101: 01 | T101: 06 | U101: 0201 | V101: 000002308 - ZARZUELA ALTA | AB101: 09 | AC101: 00 | AD101: (All) | AE101: 0900 | AF101: 0900 - (All)
N102: 83 | O102: 000002309 | P102: DIGNIDAD NACIONAL | Q102: 02 | R102: 01 | S102: 01 | T102: 06 | U102: 0201 | V102: 000002309 - DIGNIDAD NACIONAL | AB102: 10 | AC102: 01 | AD102: PARURO | AE102: 1001 | AF102: 1001 - PARURO
N103: 84 | O103: 000002313 | P103: OCCOPATA | Q103: 02 | R103: 01 | S103: 01 | T103: 06 | U103: 0201 | V103: 000002313 - OCCOPATA | AB103: 10 | AC103: 02 | AD103: ACCHA | AE103: 1002 | AF103: 1002 - ACCHA
N104: 85 | O104: 000010920 | P104: QUINTA BRIGADA DE MONTAÑA | Q104: 02 | R104: 01 | S104: 01 | T104: 06 | U104: 0201 | V104: 000010920 - QUINTA BRIGADA DE MONTAÑA | AB104: 10 | AC104: 03 | AD104: CCAPI | AE104: 1003 | AF104: 1003 - CCAPI
N105: 86 | O105: 000026182 | P105: MENTAL SANTIAGO | Q105: 02 | R105: 01 | S105: 01 | T105: 06 | U105: 0201 | V105: 000026182 - MENTAL SANTIAGO | AB105: 10 | AC105: 04 | AD105: COLCHA | AE105: 1004 | AF105: 1004 - COLCHA
N106: 87 | O106: 000034933 | P106: SANTIAGO ESSALUD | Q106: 02 | R106: 01 | S106: 01 | T106: 06 | U106: 0201 | V106: 000034933 - SANTIAGO ESSALUD | AB106: 10 | AC106: 05 | AD106: HUANOQUITE | AE106: 1005 | AF106: 1005 - HUANOQUITE
N107: 88 | O107: 000023721 | P107: EJERCITO-PERUANO 5TA BM | Q107: 02 | R107: 01 | S107: 01 | T107: 06 | U107: 0201 | V107: 000023721 - EJERCITO-PERUANO 5TA BM | AB107: 10 | AC107: 06 | AD107: OMACHA | AE107: 1006 | AF107: 1006 - OMACHA
O108: 000000000 | P108: (All) | Q108: 02 | R108: 02 | U108: 0202 | V108: 000000000 - (All) | AB108: 10 | AC108: 07 | AD108: PACCARITAMBO | AE108: 1007 | AF108: 1007 - PACCARITAMBO
N109: =+N107+1 -> 89 | O109: 000034419 | P109: MENTAL COMUNITARIO CUSCO | Q109: 02 | R109: 02 | S109: 01 | T109: 01 | U109: 0202 | V109: 000034419 - MENTAL COMUNITARIO CUSCO | AB109: 10 | AC109: 08 | AD109: PILLPINTO | AE109: 1008 | AF109: 1008 - PILLPINTO
N110: 90 | O110: 000002302 | P110: CCORAO | Q110: 02 | R110: 02 | S110: 01 | T110: 05 | U110: 0202 | V110: 000002302 - CCORAO | AB110: 10 | AC110: 09 | AD110: YAURISQUE | AE110: 1009 | AF110: 1009 - YAURISQUE
N111: 91 | O111: 000002307 | P111: MANCO CAPAC | Q111: 02 | R111: 02 | S111: 01 | T111: 06 | U111: 0202 | V111: 000002307 - MANCO CAPAC | AB111: 11 | AC111: 00 | AD111: (All) | AE111: 1100 | AF111: 1100 - (All)
N112: 92 | O112: 000002310 | P112: CHOCCO | Q112: 02 | R112: 02 | S112: 01 | T112: 06 | U112: 0202 | V112: 000002310 - CHOCCO | AB112: 11 | AC112: 01 | AD112: PAUCARTAMBO | AE112: 1101 | AF112: 1101 - PAUCARTAMBO
N113: 93 | O113: 000002315 | P113: WANCHAQ | Q113: 02 | R113: 02 | S113: 01 | T113: 08 | U113: 0202 | V113: 000002315 - WANCHAQ | AB113: 11 | AC113: 02 | AD113: CAICAY | AE113: 1102 | AF113: 1102 - CAICAY
N114: 94 | O114: 000002316 | P114: TTIO | Q114: 02 | R114: 02 | S114: 01 | T114: 08 | U114: 0202 | V114: 000002316 - TTIO | AB114: 11 | AC114: 03 | AD114: CHALLABAMBA | AE114: 1103 | AF114: 1103 - CHALLABAMBA
N115: 95 | O115: 000010041 | P115: ADOLFO GUEVARA VELASCO | Q115: 02 | R115: 02 | S115: 01 | T115: 08 | U115: 0202 | V115: 000010041 - ADOLFO GUEVARA VELASCO | AB115: 11 | AC115: 04 | AD115: COLQUEPATA | AE115: 1104 | AF115: 1104 - COLQUEPATA
N116: 96 | O116: 000026183 | P116: METROPOLITANO | Q116: 02 | R116: 02 | S116: 01 | T116: 08 | U116: 0202 | V116: 000026183 - METROPOLITANO | AB116: 11 | AC116: 05 | AD116: HUANCARANI | AE116: 1105 | AF116: 1105 - HUANCARANI
O117: 000030730 | P117: PATRON SANTIAGO | Q117: 02 | R117: 02 | S117: 01 | T117: 08 | U117: 0202 | V117: 000030730 - PATRON SANTIAGO | AB117: 11 | AC117: 06 | AD117: KOSÑIPATA | AE117: 1106 | AF117: 1106 - KOSÑIPATA
N118: =+N116+1 -> 97 | O118: 000000000 | P118: (All) | Q118: 02 | R118: 03 | U118: 0203 | V118: 000000000 - (All) | AB118: 12 | AC118: 00 | AD118: (All) | AE118: 1200 | AF118: 1200 - (All)
N119: 98 | O119: 000002326 | P119: ANTA | Q119: 02 | R119: 03 | S119: 03 | T119: 01 | U119: 0203 | V119: 000002326 - ANTA | AB119: 12 | AC119: 01 | AD119: URCOS | AE119: 1201 | AF119: 1201 - URCOS
N120: 99 | O120: 000002328 | P120: COMPONE | Q120: 02 | R120: 03 | S120: 03 | T120: 01 | U120: 0203 | V120: 000002328 - COMPONE | AB120: 12 | AC120: 02 | AD120: ANDAHUAYLILLAS | AE120: 1202 | AF120: 1202 - ANDAHUAYLILLAS
N121: 100 | O121: 000002329 | P121: CONCHACALLA | Q121: 02 | R121: 03 | S121: 03 | T121: 01 | U121: 0203 | V121: 000002329 - CONCHACALLA | AB121: 12 | AC121: 03 | AD121: CAMANTI | AE121: 1203 | AF121: 1203 - CAMANTI
N122: 101 | O122: 000027790 | P122: MENTAL COMUNITARIO ANTA | Q122: 02 | R122: 03 | S122: 03 | T122: 01 | U122: 0203 | V122: 000027790 - MENTAL COMUNITARIO ANTA | AB122: 12 | AC122: 04 | AD122: CCARHUAYO | AE122: 1204 | AF122: 1204 - CCARHUAYO
N123: 102 | O123: 000029514 | P123: ESSALUD ANTA | Q123: 02 | R123: 03 | S123: 03 | T123: 01 | U123: 0203 | V123: 000029514 - ESSALUD ANTA | AB123: 12 | AC123: 05 | AD123: CCATCA | AE123: 1205 | AF123: 1205 - CCATCA
N124: 103 | O124: 000002330 | P124: ANCAHUASI | Q124: 02 | R124: 03 | S124: 03 | T124: 02 | U124: 0203 | V124: 000002330 - ANCAHUASI | AB124: 12 | AC124: 06 | AD124: CUSIPATA | AE124: 1206 | AF124: 1206 - CUSIPATA
N125: 104 | O125: 000002331 | P125: CACHIMAYO | Q125: 02 | R125: 03 | S125: 03 | T125: 03 | U125: 0203 | V125: 000002331 - CACHIMAYO | AB125: 12 | AC125: 07 | AD125: HUARO | AE125: 1207 | AF125: 1207 - HUARO
N126: 105 | O126: 000006972 | P126: PANTIPATA | Q126: 02 | R126: 03 | S126: 03 | T126: 04 | U126: 0203 | V126: 000006972 - PANTIPATA | AB126: 12 | AC126: 08 | AD126: LUCRE | AE126: 1208 | AF126: 1208 - LUCRE
N127: 106 | O127: 000036240 | P127: CHINCHAYPUJIO | Q127: 02 | R127: 03 | S127: 03 | T127: 04 | U127: 0203 | V127: 000036240 - CHINCHAYPUJIO | AB127: 12 | AC127: 09 | AD127: MARCAPATA | AE127: 1209 | AF127: 1209 - MARCAPATA
N128: 107 | O128: 000035838 | P128: PARCCOTICA | Q128: 02 | R128: 03 | S128: 03 | T128: 04 | U128: 0203 | V128: 000035838 - PARCCOTICA | AB128: 12 | AC128: 10 | AD128: OCONGATE | AE128: 1210 | AF128: 1210 - OCONGATE
N129: 108 | O129: 000002333 | P129: HUAROCONDO | Q129: 02 | R129: 03 | S129: 03 | T129: 05 | U129: 0203 | V129: 000002333 - HUAROCONDO | AB129: 12 | AC129: 11 | AD129: OROPESA | AE129: 1211 | AF129: 1211 - OROPESA
N130: 109 | O130: 000002334 | P130: HUAYLLACOCHA | Q130: 02 | R130: 03 | S130: 03 | T130: 05 | U130: 0203 | V130: 000002334 - HUAYLLACOCHA | AB130: 12 | AC130: 12 | AD130: QUIQUIJANA | AE130: 1212 | AF130: 1212 - QUIQUIJANA
N131: 110 | O131: 000002339 | P131: PUCYURA ANTA | Q131: 02 | R131: 03 | S131: 03 | T131: 08 | U131: 0203 | V131: 000002339 - PUCYURA ANTA | AB131: 13 | AC131: 00 | AD131: (All) | AE131: 1300 | AF131: 1300 - (All)
O132: 000002340 | P132: ZURITE | Q132: 02 | R132: 03 | S132: 03 | T132: 09 | U132: 0203 | V132: 000002340 - ZURITE | AB132: 13 | AC132: 01 | AD132: URUBAMBA | AE132: 1301 | AF132: 1301 - URUBAMBA
N133: =+N131+1 -> 111 | O133: 000002327 | P133: CHACAN | Q133: 02 | R133: 03 | S133: 03 | T133: 01 | U133: 0203 | V133: 000002327 - CHACAN | AB133: 13 | AC133: 02 | AD133: CHINCHERO | AE133: 1302 | AF133: 1302 - CHINCHERO
N134: 112 | O134: 000000000 | P134: (All) | Q134: 02 | R134: 04 | U134: 0204 | V134: 000000000 - (All) | AB134: 13 | AC134: 03 | AD134: HUAYLLABAMBA | AE134: 1303 | AF134: 1303 - HUAYLLABAMBA
N135: 113 | O135: 000002336 | P135: LIMATAMBO | Q135: 02 | R135: 04 | S135: 03 | T135: 06 | U135: 0204 | V135: 000002336 - LIMATAMBO | AB135: 13 | AC135: 04 | AD135: MACHUPICCHU | AE135: 1304 | AF135: 1304 - MACHUPICCHU
N136: 114 | O136: 000002337 | P136: PAMPACONGA | Q136: 02 | R136: 04 | S136: 03 | T136: 06 | U136: 0204 | V136: 000002337 - PAMPACONGA | AB136: 13 | AC136: 05 | AD136: MARAS | AE136: 1305 | AF136: 1305 - MARAS
N137: 115 | O137: 000010761 | P137: URATARI | Q137: 02 | R137: 04 | S137: 03 | T137: 06 | U137: 0204 | V137: 000010761 - URATARI | AB137: 13 | AC137: 06 | AD137: OLLANTAYTAMBO | AE137: 1306 | AF137: 1306 - OLLANTAYTAMBO
O138: 000002338 | P138: MOLLEPATA | Q138: 02 | R138: 04 | S138: 03 | T138: 07 | U138: 0204 | V138: 000002338 - MOLLEPATA | AB138: 13 | AC138: 07 | AD138: YUCAY | AE138: =CONCATENATE(AB138,AC138) -> 1307 | AF138: 1307 - YUCAY
N139: =+N137+1 -> 116 | O139: 000021061 | P139: HUAMANPATA | Q139: 02 | R139: 04 | S139: 03 | T139: 07 | U139: 0204 | V139: 000021061 - HUAMANPATA | AB139: 00 | AC139: 00 | AD139: (All) | AE139: =CONCATENATE(AB139,AC139) -> 0000 | AF139: 0000 - (All)
N140: 117 | O140: 000000000 | P140: (All) | Q140: 02 | R140: 05 | U140: 0205 | V140: 000000000 - (All)
N141: =+N140+1 -> 118 | O141: 000002343 | P141: COYA | Q141: 02 | R141: 05 | S141: 04 | T141: 02 | U141: 0205 | V141: 000002343 - COYA
N142: 119 | O142: 000002344 | P142: LAMAY | Q142: 02 | R142: 05 | S142: 04 | T142: 03 | U142: 0205 | V142: 000002344 - LAMAY
N143: 120 | O143: 000006975 | P143: SAYLLAFAYA | Q143: 02 | R143: 05 | S143: 04 | T143: 03 | U143: 0205 | V143: 000006975 - SAYLLAFAYA
N144: 121 | O144: 000007145 | P144: HUAMA | Q144: 02 | R144: 05 | S144: 04 | T144: 03 | U144: 0205 | V144: 000007145 - HUAMA
N145: 122 | O145: 000007146 | P145: POQUES | Q145: 02 | R145: 05 | S145: 04 | T145: 03 | U145: 0205 | V145: 000007146 - POQUES
N146: 123 | O146: 000036012 | P146: HUARQUI | Q146: 02 | R146: 05 | S146: 04 | T146: 03 | U146: 0205 | V146: 000036012 - HUARQUI
N147: 124 | O147: 000002348 | P147: PISAC | Q147: 02 | R147: 05 | S147: 04 | T147: 05 | U147: 0205 | V147: 000002348 - PISAC
N148: 125 | O148: 000002349 | P148: CUYO CHICO | Q148: 02 | R148: 05 | S148: 04 | T148: 05 | U148: 0205 | V148: 000002349 - CUYO CHICO
N149: 126 | O149: 000002350 | P149: CUYO GRANDE | Q149: 02 | R149: 05 | S149: 04 | T149: 05 | U149: 0205 | V149: 000002350 - CUYO GRANDE
N150: 127 | O150: 000002351 | P150: QUELLO QUELLO | Q150: 02 | R150: 05 | S150: 04 | T150: 05 | U150: =CONCATENATE(Q150,R150) -> 0205 | V150: =CONCATENATE(O150," - ",P150) -> 000002351 - QUELLO QUELLO
N151: 128 | O151: 000002352 | P151: SAN SALVADOR | Q151: 02 | R151: 05 | S151: 04 | T151: 06 | U151: 0205 | V151: 000002352 - SAN SALVADOR
N152: 129 | O152: 000036087 | P152: TIRACANCHA | Q152: 02 | R152: 05 | S152: 04 | T152: 06 | U152: 0205 | V152: 000036087 - TIRACANCHA
O153: 000002353 | P153: TARAY | Q153: 02 | R153: 05 | S153: 04 | T153: 07 | U153: 0205 | V153: 000002353 - TARAY
N154: =+N152+1 -> 130 | O154: 000002354 | P154: HUANCALLE | Q154: 02 | R154: 05 | S154: 04 | T154: 07 | U154: 0205 | V154: 000002354 - HUANCALLE
N155: 131 | O155: 000000000 | P155: (All) | Q155: 02 | R155: 06 | U155: 0206 | V155: 000000000 - (All)
N156: 132 | O156: 000002341 | P156: CALCA | Q156: 02 | R156: 06 | S156: 04 | T156: 01 | U156: 0206 | V156: 000002341 - CALCA
N157: 133 | O157: 000010069 | P157: ESSALUD CALCA | Q157: 02 | R157: 06 | S157: 04 | T157: 01 | U157: 0206 | V157: 000010069 - ESSALUD CALCA
N158: 134 | O158: 000010759 | P158: HUARAN | Q158: 02 | R158: 06 | S158: 04 | T158: 01 | U158: 0206 | V158: 000010759 - HUARAN
N159: 135 | O159: 000010762 | P159: ACCHA ALTA - PAMPALLACTA | Q159: 02 | R159: 06 | S159: 04 | T159: 01 | U159: 0206 | V159: 000010762 - ACCHA ALTA - PAMPALLACTA
N160: 136 | O160: 000026273 | P160: MENTAL COMUNITARIO VIRGEN ASUNTA DE CALCA | Q160: 02 | R160: 06 | S160: 04 | T160: 01 | U160: 0206 | V160: 000026273 - MENTAL COMUNITARIO VIRGEN ASUNTA DE CALCA
N161: 137 | O161: 000002342 | P161: AMPARAES | Q161: 02 | R161: 06 | S161: 04 | T161: 04 | U161: 0206 | V161: 000002342 - AMPARAES
N162: 138 | O162: 000002345 | P162: CCACHIN | Q162: 02 | R162: 06 | S162: 04 | T162: 04 | U162: 0206 | V162: 000002345 - CCACHIN
N163: 139 | O163: 000002346 | P163: CHOQUECANCHA | Q163: 02 | R163: 06 | S163: 04 | T163: 04 | U163: 0206 | V163: 000002346 - CHOQUECANCHA
N164: 140 | O164: 000002347 | P164: LARES | Q164: 02 | R164: 06 | S164: 04 | T164: 04 | U164: 0206 | V164: 000002347 - LARES
N165: 141 | O165: 000002361 | P165: SUYO | Q165: 02 | R165: 06 | S165: 04 | T165: 04 | U165: 0206 | V165: 000002361 - SUYO
N166: 142 | O166: 000007144 | P166: PATABAMBA | Q166: 02 | R166: 06 | S166: 04 | T166: 07 | U166: 0206 | V166: 000007144 - PATABAMBA
N167: 143 | O167: 000002515 | P167: PAROBAMBA | Q167: 02 | R167: 06 | S167: 11 | T167: 03 | U167: 0206 | V167: 000002515 - PAROBAMBA
N168: 144 | O168: 000007143 | P168: OTOCANI | Q168: 02 | R168: 06 | S168: 11 | T168: 03 | U168: 0206 | V168: 000007143 - OTOCANI
N169: 145 | O169: 000000000 | P169: (All) | Q169: 02 | R169: 07 | U169: 0207 | V169: 000000000 - (All)
N170: 146 | O170: 000002540 | P170: URUBAMBA | Q170: 02 | R170: 07 | S170: 13 | T170: 01 | U170: 0207 | V170: 000002540 - URUBAMBA
N171: 147 | O171: 000002541 | P171: YANAHUARA | Q171: 02 | R171: 07 | S171: 13 | T171: 01 | U171: 0207 | V171: 000002541 - YANAHUARA
N172: 148 | O172: 000010060 | P172: CAS URUBAMBA -ESSALUD | Q172: 02 | R172: 07 | S172: 13 | T172: 01 | U172: 0207 | V172: 000010060 - CAS URUBAMBA -ESSALUD
N173: 149 | O173: 000030666 | P173: MENTAL COMUNITARIO URUBAMBA | Q173: 02 | R173: 07 | S173: 13 | T173: 01 | U173: 0207 | V173: 000030666 - MENTAL COMUNITARIO URUBAMBA
N174: 150 | O174: 000035851 | P174: URUBAMBA - ESSALUD | Q174: 02 | R174: 07 | S174: 13 | T174: 01 | U174: 0207 | V174: 000035851 - URUBAMBA - ESSALUD
N175: 151 | O175: 000002543 | P175: CHINCHERO | Q175: 02 | R175: 07 | S175: 13 | T175: 02 | U175: 0207 | V175: 000002543 - CHINCHERO
N176: 152 | O176: 000002544 | P176: OCCOTUAN | Q176: 02 | R176: 07 | S176: 13 | T176: 02 | U176: 0207 | V176: 000002544 - OCCOTUAN
N177: 153 | O177: 000002545 | P177: HUAYLLABAMBA | Q177: 02 | R177: 07 | S177: 13 | T177: 03 | U177: 0207 | V177: 000002545 - HUAYLLABAMBA
N178: 154 | O178: 000002546 | P178: MACHUPICCHU | Q178: 02 | R178: 07 | S178: 13 | T178: 04 | U178: 0207 | V178: 000002546 - MACHUPICCHU
N179: 155 | O179: 000002547 | P179: COLLPANI | Q179: 02 | R179: 07 | S179: 13 | T179: 04 | U179: 0207 | V179: 000002547 - COLLPANI
N180: 156 | O180: 000006974 | P180: CAMINO INCA HUAYLLABAMBA | Q180: 02 | R180: 07 | S180: 13 | T180: 04 | U180: 0207 | V180: 000006974 - CAMINO INCA HUAYLLABAMBA
N181: 157 | O181: 000010073 | P181: MACHU PICCHU - ESSALUD | Q181: 02 | R181: 07 | S181: 13 | T181: 04 | U181: 0207 | V181: 000010073 - MACHU PICCHU - ESSALUD
N182: 158 | O182: 000002548 | P182: MARAS | Q182: 02 | R182: 07 | S182: 13 | T182: 05 | U182: 0207 | V182: 000002548 - MARAS
N183: 159 | O183: 000010758 | P183: CRUZPATA | Q183: 02 | R183: 07 | S183: 13 | T183: 05 | U183: 0207 | V183: 000010758 - CRUZPATA
N184: 160 | O184: 000002549 | P184: OLLANTAYTAMBO | Q184: 02 | R184: 07 | S184: 13 | T184: 06 | U184: 0207 | V184: 000002549 - OLLANTAYTAMBO
N185: 161 | O185: 000002550 | P185: CHILLCA | Q185: 02 | R185: 07 | S185: 13 | T185: 06 | U185: 0207 | V185: 000002550 - CHILLCA
N186: 162 | O186: 000010760 | P186: PATACANCHA | Q186: 02 | R186: 07 | S186: 13 | T186: 06 | U186: 0207 | V186: 000010760 - PATACANCHA
N187: 163 | O187: 000002551 | P187: YUCAY | Q187: 02 | R187: 07 | S187: 13 | T187: 07 | U187: 0207 | V187: 000002551 - YUCAY
N188: 164 | O188: 000000000 | P188: (All) | Q188: 02 | R188: 08 | U188: 0208 | V188: 000000000 - (All)
N189: 165 | O189: 000002355 | P189: LA QUEBRADA | Q189: 02 | R189: 08 | S189: 04 | T189: 08 | U189: 0208 | V189: 000002355 - LA QUEBRADA
N190: 166 | O190: 000002356 | P190: CCORIMAYO | Q190: 02 | R190: 08 | S190: 04 | T190: 08 | U190: 0208 | V190: 000002356 - CCORIMAYO
N191: 167 | O191: 000002357 | P191: COLCCA YANATILE | Q191: 02 | R191: 08 | S191: 04 | T191: 08 | U191: 0208 | V191: 000002357 - COLCCA YANATILE
N192: 168 | O192: 000002358 | P192: MUYUPAY | Q192: 02 | R192: 08 | S192: 04 | T192: 08 | U192: 0208 | V192: 000002358 - MUYUPAY
N193: 169 | O193: 000002359 | P193: PUTUCUSI | Q193: 02 | R193: 08 | S193: 04 | T193: 08 | U193: 0208 | V193: 000002359 - PUTUCUSI
N194: 170 | O194: 000002360 | P194: QUESQUENTO | Q194: 02 | R194: 08 | S194: 04 | T194: 08 | U194: 0208 | V194: 000002360 - QUESQUENTO
N195: 171 | O195: 000002362 | P195: HUACHIBAMBA | Q195: 02 | R195: 08 | S195: 04 | T195: 08 | U195: 0208 | V195: 000002362 - HUACHIBAMBA
N196: 172 | O196: 000006971 | P196: COMBAPATA YANATILE | Q196: 02 | R196: 08 | S196: 04 | T196: 08 | U196: 0208 | V196: 000006971 - COMBAPATA YANATILE
N197: 173 | O197: 000006973 | P197: BELLAVISTA | Q197: 02 | R197: 08 | S197: 04 | T197: 08 | U197: 0208 | V197: 000006973 - BELLAVISTA
N198: 174 | O198: 000007142 | P198: CHANCAMAYO | Q198: 02 | R198: 08 | S198: 04 | T198: 08 | U198: 0208 | V198: 000007142 - CHANCAMAYO
N199: 175 | O199: 000002464 | P199: VERSALLES | Q199: 02 | R199: 08 | S199: 09 | T199: 05 | U199: 0208 | V199: 000002464 - VERSALLES
N200: 176 | O200: 000002467 | P200: PUENTE SANTIAGO | Q200: 02 | R200: 08 | S200: 09 | T200: 06 | U200: 0208 | V200: 000002467 - PUENTE SANTIAGO
N201: 177 | O201: 000000000 | P201: (All) | Q201: 02 | R201: 09 | U201: 0209 | V201: 000000000 - (All)
N202: 178 | O202: 000002290 | P202: SAN PEDRO CUSCO | Q202: 02 | R202: 09 | S202: 01 | T202: 01 | U202: 0209 | V202: 000002290 - SAN PEDRO CUSCO
N203: 179 | O203: 000002291 | P203: SIETE CUARTONES | Q203: 02 | R203: 09 | S203: 01 | T203: 01 | U203: 0209 | V203: 000002291 - SIETE CUARTONES
N204: 180 | O204: 000002293 | P204: MIRAFLORES | Q204: 02 | R204: 09 | S204: 01 | T204: 01 | U204: 0209 | V204: 000002293 - MIRAFLORES
N205: =+N204+1 -> 181 | O205: 000002294 | P205: PICCHU LA RINCONADA | Q205: 02 | R205: 09 | S205: 01 | T205: 01 | U205: 0209 | V205: 000002294 - PICCHU LA RINCONADA
N206: 182 | O206: 000002295 | P206: BUENA VISTA | Q206: 02 | R206: 09 | S206: 01 | T206: 01 | U206: 0209 | V206: 000002295 - BUENA VISTA
N207: 183 | O207: 000002299 | P207: POROY | Q207: 02 | R207: 09 | S207: 01 | T207: 03 | U207: 0209 | V207: 000002299 - POROY
N208: 184 | O208: 999999999 | P208: (All) | Q208: 02 | R208: 99 | U208: 0299 | V208: 999999999 - (All)
... 246 more rows

Sheet TBC0011
B3: REPORTE MENSUAL DE ACTIVIDADES DE PREVENCION Y CONTROL DE TUBERCULOSIS [00-11]
B4: CURSO DE VIDA : NIÑO
B6: DIRESA | C6: CUSCO | F6: REGION | G6: CUSCO
B8: RED DE SALUD | C8: =+TABLAS!O9 -> 03 - LA CONVENCION | F8: EJECUTORA | G8: =+TABLAS!O14 -> 
B10: MICRO RED | C10: =+TABLAS!O10 ->  | F10: RESPONSABLE
B12: EE.SS. | C12: =+TABLAS!O11 ->  | F12: COD. RENAES | G12: =+TABLAS!Q11 -> 
B14: PROVINCIA | C14: =+TABLAS!O12 ->  | F14: AÑO | G14: =+TABLAS!J16 -> 2025
B16: DISTRITO | C16: =+TABLAS!O13 ->  | F16: MES | G16: =+TABLAS!N26 -> ENE - MAR
B18: INSTITUCION : MINSA ( X ) ESSALUD ( ) FFAA ( ) PNP ( ) INPE ( ) OTROS ( )
B20: I. ACTIVIDADES DE DETECCION Y DIAGNOSTICO PARA TUBERCULOSIS
B22: DETECCIÓN DE CASOS | G22: RECOLECCIÓN DE MUESTRAS PARA EXAMEN BACTERIOLÓGICO | I22: N° | AJ22: ";TABLAS!$A$281)
B23: Sintomático respiratorio (SR) | E23: Caso probable de TB | G23: RECOLECCIÓN DE MUESTRAS PARA TB* | I23: =+GETPIVOTDATA(" BAS001",TABLAS!$A$59) -> 60 | Q23: 1 | AC23: =IF(LEN(Q23)=1,CONCATENATE("00",Q23),IF(LEN(Q23)=2,CONCATENATE("0",Q23),Q23)) -> 001 | AI23: =+IMPORTARDATOSDINAMICOS(" BAS | AN23: =$AI$23&AC23&$AJ$22 -> =+IMPORTARDATOSDINAMICOS(" BAS001";TABLAS!$A$281)
B24: SR Identificado | C24: SR Examinado | D24: SR examinados con bacteriología confirmada | G24: PROCEDIMIENTOS ESPECIALES PARA OBTENCION DE MUESTRAS | H24: Lavado gástrico | I24: =+GETPIVOTDATA(" BAS002",TABLAS!$A$59) -> 0 | Q24: =+Q23+1 -> 2 | AC24: 002 | AN24: =$AI$23&AC24&$AJ$22 -> =+IMPORTARDATOSDINAMICOS(" BAS002";TABLAS!$A$281)
B25: =M92 -> 19 | C25: =M93 -> 16 | D25: =M94 -> 0 | E25: =M91 -> 0 | H25: Inducción del esputo | I25: =+GETPIVOTDATA(" BAS003",TABLAS!$A$59) -> 0 | Q25: =+Q24+1 -> 3 | AC25: 003 | AN25: =+IMPORTARDATOSDINAMICOS(" BAS003";TABLAS!$A$281)
G26: TOTAL | I26: =SUM(I23+I24+I25) -> 60
B27: SR examinados con bacteriología confirmada | G27: *Muestra recolectada por expectoración espontánea
B28: Por baciloscopia | D28: =+GETPIVOTDATA(" BAS004",TABLAS!$A$59) -> 0 | G28: REFERENCIAS | Q28: =+Q25+1 -> 4 | AC28: =IF(LEN(Q28)=1,CONCATENATE("00",Q28),IF(LEN(Q28)=2,CONCATENATE("0",Q28),Q28)) -> 004 | AN28: =$AI$23&AC28&$AJ$22 -> =+IMPORTARDATOSDINAMICOS(" BAS004";TABLAS!$A$281)
B29: Por prueba molecular | D29: =+GETPIVOTDATA(" BAS005",TABLAS!$A$59) -> 0 | G29: Condición | H29: Derivaciones | I29: Transferencias | Q29: =+Q28+1 -> 5 | T29: =+Q30+1 -> 7 | U29: =+T29+1 -> 8 | AC29: 005 | AF29: =IF(LEN(T29)=1,CONCATENATE("00",T29),IF(LEN(T29)=2,CONCATENATE("0",T29),T29)) -> 007 | AG29: =IF(LEN(U29)=1,CONCATENATE("00",U29),IF(LEN(U29)=2,CONCATENATE("0",U29),U29)) -> 008 | AN29: =+IMPORTARDATOSDINAMICOS(" BAS005";TABLAS!$A$281) | AQ29: =$AI$23&AF29&$AJ$22 -> =+IMPORTARDATOSDINAMICOS(" BAS007";TABLAS!$A$281) | AR29: =$AI$23&AG29&$AJ$22 -> =+IMPORTARDATOSDINAMICOS(" BAS008";TABLAS!$A$281)
B30: Por cultivo | D30: =+GETPIVOTDATA(" BAS006",TABLAS!$A$59) -> 0 | G30: Realizadas | H30: =+GETPIVOTDATA(" BAS007",TABLAS!$A$59) -> 0 | I30: =+GETPIVOTDATA(" BAS008",TABLAS!$A$59) -> 0 | Q30: =+Q29+1 -> 6 | T30: =+U29+1 -> 9 | U30: =+T30+1 -> 10 | AC30: 006 | AF30: 009 | AG30: 010 | AN30: =+IMPORTARDATOSDINAMICOS(" BAS006";TABLAS!$A$281) | AQ30: =+IMPORTARDATOSDINAMICOS(" BAS009";TABLAS!$A$281) | AR30: =+IMPORTARDATOSDINAMICOS(" BAS010";TABLAS!$A$281)
B31: TOTAL | D31: =SUM(D28+D29+D30) -> 0 | G31: Aceptadas | H31: =+GETPIVOTDATA(" BAS009",TABLAS!$A$59) -> 0 | I31: =+GETPIVOTDATA(" BAS010",TABLAS!$A$59) -> 0
G32: TOTAL | H32: =SUM(H30+H31) -> 0 | I32: =SUM(I30+I31) -> 0
B33: COMORBILIDADES Y CONDICIONES ASOCIADAS | D33: N°
B34: TB-VIH/SIDA | D34: =+GETPIVOTDATA(" BAS011",TABLAS!$A$59) -> 0 | G34: TAMIZAJE DE COMORBILIDADES | I34: N° | Q34: =+U30+1 -> 11 | AC34: =IF(LEN(Q34)=1,CONCATENATE("00",Q34),IF(LEN(Q34)=2,CONCATENATE("0",Q34),Q34)) -> 011 | AN34: =$AI$23&AC34&$AJ$22 -> =+IMPORTARDATOSDINAMICOS(" BAS011";TABLAS!$A$281)
B35: TB-DM | D35: =+GETPIVOTDATA(" BAS012",TABLAS!$A$59) -> 0 | G35: Tamizaje TB-VIH | I35: =+GETPIVOTDATA(" BAS014",TABLAS!$A$59) -> 0 | Q35: =+Q34+1 -> 12 | S35: =+Q36+1 -> 14 | AC35: 012 | AE35: =IF(LEN(S35)=1,CONCATENATE("00",S35),IF(LEN(S35)=2,CONCATENATE("0",S35),S35)) -> 014 | AN35: =+IMPORTARDATOSDINAMICOS(" BAS012";TABLAS!$A$281) | AP35: =$AI$23&AE35&$AJ$22 -> =+IMPORTARDATOSDINAMICOS(" BAS014";TABLAS!$A$281)
B36: Reacción adversa a medicamentos para TB | D36: =+GETPIVOTDATA(" BAS013",TABLAS!$A$59) -> 0 | G36: Tamizaje TB-DM | I36: =+GETPIVOTDATA(" BAS015",TABLAS!$A$59) -> 0 | Q36: 13 | S36: =+S35+1 -> 15 | AC36: 013 | AE36: 015 | AN36: =+IMPORTARDATOSDINAMICOS(" BAS013";TABLAS!$A$281) | AP36: =+IMPORTARDATOSDINAMICOS(" BAS015";TABLAS!$A$281)
B39: II. ACTIVIDADES PARA LA RECUPERACION DE LA PERSONA AFECTADA POR TUBERCULOSIS
B41: ATENCIÓN MULTIDISCIPLINARIA | D41: MODALIDAD | E41: EN PAT CON TB SENSIBLE | F41: EN PAT CON TB RESISTENTE | G41: TOTAL | I41: 2 | K41: N°
B42: Evaluación médica | E42: =+GETPIVOTDATA(" BAS016",TABLAS!$A$59) -> 1 | F42: =+GETPIVOTDATA(" BAS017",TABLAS!$A$59) -> 0 | G42: =SUM(E42+F42) -> 1 | I42: Administración de tratamiento para TB sensible | K42: =+GETPIVOTDATA(" BAS028",TABLAS!$A$59) -> 152 | Q42: =+S36+1 -> 16 | R42: =+Q42+1 -> 17 | V42: =+Q48+1 -> 28 | AC42: =IF(LEN(Q42)=1,CONCATENATE("00",Q42),IF(LEN(Q42)=2,CONCATENATE("0",Q42),Q42)) -> 016 | AD42: 017 | AH42: =IF(LEN(V42)=1,CONCATENATE("00",V42),IF(LEN(V42)=2,CONCATENATE("0",V42),V42)) -> 028 | AN42: =$AI$23&AC42&$AJ$22 -> =+IMPORTARDATOSDINAMICOS(" BAS016";TABLAS!$A$281) | AO42: =$AI$23&AD42&$AJ$22 -> =+IMPORTARDATOSDINAMICOS(" BAS017";TABLAS!$A$281) | AS42: =$AI$23&AH42&$AJ$22 -> =+IMPORTARDATOSDINAMICOS(" BAS028";TABLAS!$A$281)
B43: Atención en consultorio de enfermería | E43: =+GETPIVOTDATA(" BAS018",TABLAS!$A$59) -> 0 | F43: =+GETPIVOTDATA(" BAS019",TABLAS!$A$59) -> 0 | G43: =SUM(E43+F43) -> 0 | I43: Administración de tratamiento para TB resistente | K43: =+GETPIVOTDATA(" BAS029",TABLAS!$A$59) -> 0 | Q43: =+R42+1 -> 18 | R43: =+Q43+1 -> 19 | V43: =+V42+1 -> 29 | AC43: 018 | AD43: 019 | AH43: 029 | AN43: =+IMPORTARDATOSDINAMICOS(" BAS018";TABLAS!$A$281) | AO43: =+IMPORTARDATOSDINAMICOS(" BAS019";TABLAS!$A$281) | AS43: =+IMPORTARDATOSDINAMICOS(" BAS029";TABLAS!$A$281)
B44: Atención de servicio social | D44: En el establecimiento de salud | E44: =+GETPIVOTDATA(" BAS020",TABLAS!$A$59) -> 0 | F44: =+GETPIVOTDATA(" BAS021",TABLAS!$A$59) -> 0 | G44: =SUM(E44+F44) -> 0 | I44: Control de tratamiento | K44: =+GETPIVOTDATA(" BAS030",TABLAS!$A$59) -> 3 | Q44: =+R43+1 -> 20 | R44: 21 | V44: =+V43+1 -> 30 | AC44: 020 | AD44: 021 | AH44: 030 | AN44: =+IMPORTARDATOSDINAMICOS(" BAS020";TABLAS!$A$281) | AO44: =+IMPORTARDATOSDINAMICOS(" BAS021";TABLAS!$A$281) | AS44: =+IMPORTARDATOSDINAMICOS(" BAS030";TABLAS!$A$281)
D45: Mediante teleconsulta en línea | E45: =+GETPIVOTDATA(" BAS022",TABLAS!$A$59) -> 0 | F45: =+GETPIVOTDATA(" BAS023",TABLAS!$A$59) -> 0 | G45: =SUM(E45+F45) -> 0 | Q45: 22 | R45: 23 | AC45: 022 | AD45: 023 | AN45: =+IMPORTARDATOSDINAMICOS(" BAS022";TABLAS!$A$281) | AO45: =+IMPORTARDATOSDINAMICOS(" BAS023";TABLAS!$A$281)
B46: Atención en nutrición | E46: =+GETPIVOTDATA(" BAS024",TABLAS!$A$59) -> 1 | F46: =+GETPIVOTDATA(" BAS025",TABLAS!$A$59) -> 0 | G46: =SUM(E46+F46) -> 1 | I46: RETO ANTE REACCIONES ADVERSAS | Q46: 24 | R46: 25 | AC46: 024 | AD46: 025 | AN46: =+IMPORTARDATOSDINAMICOS(" BAS024";TABLAS!$A$281) | AO46: =+IMPORTARDATOSDINAMICOS(" BAS025";TABLAS!$A$281)
B47: Atención en salud mental | D47: En el establecimiento de salud | G47: =+GETPIVOTDATA(" BAS026",TABLAS!$A$59) -> 0 | I47: Condición | J47: N° | Q47: 26 | AC47: 026 | AN47: =+IMPORTARDATOSDINAMICOS(" BAS026";TABLAS!$A$281)
D48: Mediante teleorientación síncrona | G48: =+GETPIVOTDATA(" BAS027",TABLAS!$A$59) -> 0 | I48: Inicio | J48: =+GETPIVOTDATA(" BAS031",TABLAS!$A$59) -> 0 | L48: REGISTRO EN EL PADRON DE BENEFICIARIOS PANTBC | Q48: =+Q47+1 -> 27 | V48: =+V44+1 -> 31 | AC48: 027 | AH48: =IF(LEN(V48)=1,CONCATENATE("00",V48),IF(LEN(V48)=2,CONCATENATE("0",V48),V48)) -> 031 | AN48: =+IMPORTARDATOSDINAMICOS(" BAS027";TABLAS!$A$281) | AS48: =$AI$23&AH48&$AJ$22 -> =+IMPORTARDATOSDINAMICOS(" BAS031";TABLAS!$A$281)
I49: Término | J49: =+GETPIVOTDATA(" BAS032",TABLAS!$A$59) -> 0 | L49: =+GETPIVOTDATA(" BAS033",TABLAS!$A$59) -> 1 | V49: =+V48+1 -> 32 | X49: =+V49+1 -> 33 | AH49: 032 | AJ49: =IF(LEN(X49)=1,CONCATENATE("00",X49),IF(LEN(X49)=2,CONCATENATE("0",X49),X49)) -> 033 | AS49: =+IMPORTARDATOSDINAMICOS(" BAS032";TABLAS!$A$281) | AU49: =$AI$23&AJ49&$AJ$22 -> =+IMPORTARDATOSDINAMICOS(" BAS033";TABLAS!$A$281)
B52: III. ACTIVIDADES DE PREVENCIÓN EN TUBERCULOSIS
B54: CENSO DE CONTACTOS | C54: N° | E54: PRUEBA PARA DIAGNOSTICO DE TB LATENTE | G54: N° | H54: POSITIVOS | J54: TERAPIA PREVENTIVA PARA TUBERCULOSIS LATENTE | L54: N°
B55: En el establecimiento de salud | C55: =+GETPIVOTDATA(" BAS034",TABLAS!$A$59) -> 3 | E55: PPD | F55: Aplicación | G55: =M84 -> 6 | H55: =+GETPIVOTDATA(" BAS037",TABLAS!$A$59) -> 0 | J55: Administración de terapia preventiva para contactos de TB sensible | L55: =+GETPIVOTDATA(" BAS039",TABLAS!$A$59) -> 41 | Q55: =+X49+1 -> 34 | S55: =+Q57+1 -> 37 | U55: =+S57+1 -> 39 | AC55: =IF(LEN(Q55)=1,CONCATENATE("00",Q55),IF(LEN(Q55)=2,CONCATENATE("0",Q55),Q55)) -> 034 | AE55: =IF(LEN(S55)=1,CONCATENATE("00",S55),IF(LEN(S55)=2,CONCATENATE("0",S55),S55)) -> 037 | AG55: =IF(LEN(U55)=1,CONCATENATE("00",U55),IF(LEN(U55)=2,CONCATENATE("0",U55),U55)) -> 039 | AN55: =$AI$23&AC55&$AJ$22 -> =+IMPORTARDATOSDINAMICOS(" BAS034";TABLAS!$A$281) | AP55: =$AI$23&AE55&$AJ$22 -> =+IMPORTARDATOSDINAMICOS(" BAS037";TABLAS!$A$281) | AR55: =$AI$23&AG55&$AJ$22 -> =+IMPORTARDATOSDINAMICOS(" BAS039";TABLAS!$A$281)
B56: En el domicilio* | C56: =+GETPIVOTDATA(" BAS035",TABLAS!$A$59) -> 1 | F56: Lectura | G56: =M85 -> 4 | J56: Administración de terapia preventiva para contactos de TB resistente | L56: =+GETPIVOTDATA(" BAS040",TABLAS!$A$59) -> 0 | Q56: =+Q55+1 -> 35 | U56: =+U55+1 -> 40 | AC56: 035 | AG56: =IF(LEN(U56)=1,CONCATENATE("00",U56),IF(LEN(U56)=2,CONCATENATE("0",U56),U56)) -> 040 | AN56: =+IMPORTARDATOSDINAMICOS(" BAS035";TABLAS!$A$281) | AR56: =+IMPORTARDATOSDINAMICOS(" BAS040";TABLAS!$A$281)
B57: Mediante teleorientación síncrona | C57: =+GETPIVOTDATA(" BAS036",TABLAS!$A$59) -> 0 | E57: IGRA | F57: Aplicación | G57: =M86 -> 0 | H57: =+GETPIVOTDATA(" BAS038",TABLAS!$A$59) -> 0 | J57: Administración de terapia preventiva para población vulnerable para TB | L57: =M90 -> 0 | Q57: =+Q56+1 -> 36 | S57: =+S55+1 -> 38 | AC57: 036 | AE57: =IF(LEN(S57)=1,CONCATENATE("00",S57),IF(LEN(S57)=2,CONCATENATE("0",S57),S57)) -> 038 | AN57: =+IMPORTARDATOSDINAMICOS(" BAS036";TABLAS!$A$281) | AP57: =$AI$23&AE57&$AJ$22 -> =+IMPORTARDATOSDINAMICOS(" BAS038";TABLAS!$A$281)
B58: Total | C58: =SUM(C55+C56+C57) -> 4 | F58: Lectura | G58: =M87 -> 0 | J58: TOTAL | L58: =SUM(L55+L56+L57) -> 41
B59: *Mediante visita familiar | E59: TOTAL | H59: =SUM(H55+H57) -> 0
B61: IV. ACTIVIDADES DE PROMOCIÓN DE LA SALUD EN TUBERCULOSIS
B62: ACTIVIDADES | D62: MODALIDAD | E62: N° | F62: TOTAL
B63: Consejeria para TB | C63: Primera | D63: Mediante visita familiar | E63: =+GETPIVOTDATA(" BAS041",TABLAS!$A$59) -> 4 | F63: =SUM(E63+E64+E65+E66) -> 4 | Q63: =+U56+1 -> 41 | AC63: =IF(LEN(Q63)=1,CONCATENATE("00",Q63),IF(LEN(Q63)=2,CONCATENATE("0",Q63),Q63)) -> 041 | AN63: =$AI$23&AC63&$AJ$22 -> =+IMPORTARDATOSDINAMICOS(" BAS041";TABLAS!$A$281)
D64: Mediante teleorientación síncrona | E64: =+GETPIVOTDATA(" BAS042",TABLAS!$A$59) -> 0 | Q64: =+Q63+1 -> 42 | AC64: 042 | AN64: =+IMPORTARDATOSDINAMICOS(" BAS042";TABLAS!$A$281)
C65: Segunda | D65: Mediante visita familiar | E65: =+GETPIVOTDATA(" BAS043",TABLAS!$A$59) -> 0 | Q65: =+Q64+1 -> 43 | AC65: 043 | AN65: =+IMPORTARDATOSDINAMICOS(" BAS043";TABLAS!$A$281)
D66: Mediante teleorientación síncrona | E66: =+GETPIVOTDATA(" BAS044",TABLAS!$A$59) -> 0 | Q66: 44 | AC66: 044 | AN66: =+IMPORTARDATOSDINAMICOS(" BAS044";TABLAS!$A$281)
B67: Sesión educativa y demostrativa para TB | C67: Primera | E67: =+GETPIVOTDATA(" BAS045",TABLAS!$A$59) -> 0 | F67: =SUM(E67+E68) -> 0 | Q67: 45 | AC67: 045 | AN67: =+IMPORTARDATOSDINAMICOS(" BAS045";TABLAS!$A$281)
C68: Segunda | E68: =+GETPIVOTDATA(" BAS046",TABLAS!$A$59) -> 0 | Q68: 46 | AC68: 046 | AN68: =+IMPORTARDATOSDINAMICOS(" BAS046";TABLAS!$A$281)
B69: Visitas familiar | F69: =SUM(C56+E63+E65) -> 5
B70: Otras consejerias | F70: =+GETPIVOTDATA(" BAS047",TABLAS!$A$59) -> 0 | Q70: =+Q68+1 -> 47 | AC70: =IF(LEN(Q70)=1,CONCATENATE("00",Q70),IF(LEN(Q70)=2,CONCATENATE("0",Q70),Q70)) -> 047 | AN70: =$AI$23&AC70&$AJ$22 -> =+IMPORTARDATOSDINAMICOS(" BAS047";TABLAS!$A$281)
B73: V. ACTIVIDADES EN TELESALUD
B75: ACTIVIDADES | C75: N°
B76: Teleconsulta en línea | C76: =G45 -> 0
B77: Teleorientación síncrona | C77: =SUM(G48+C57) -> 0
B78: Total | C78: =SUM(C76+C77+#REF!) -> 
B80: REPORTE DE ACTIVIDADES SEGMENTADO POR POBLACION AFECTADA Y VULNERABLE
B82: ACTIVIDADES | C82: POBLACION AFECTADA Y VULNERABLE | M82: TOTAL
C83: POBLACIÓN EN GENERAL | D83: CONTACTOS | E83: PERSONA VIVIENDO CON VIH/SIDA | F83: TRABAJADOR DE SALUD | G83: PERSONA CON DIABETES MELLITUS | H83: PPL | I83: PERSONA CON TERAPIA PROLONGADA CON CORTICOIDES | J83: PERSONA CON HEMODIALISIS Y/O ENFERMEDAD RENAL CRÓNICA | K83: PERSONAL PENITENCIARIO | L83: OTRAS CONDICIONES DE SALUD SEGÚN NORMATIVIDAD VIGENTE
B84: Aplicación de PPD | D84: =+GETPIVOTDATA(" BAS048",TABLAS!$A$59) -> 6 | E84: =+GETPIVOTDATA(" BAS049",TABLAS!$A$59) -> 0 | F84: =+GETPIVOTDATA(" BAS050",TABLAS!$A$59) -> 0 | G84: =+GETPIVOTDATA(" BAS051",TABLAS!$A$59) -> 0 | H84: =+GETPIVOTDATA(" BAS052",TABLAS!$A$59) -> 0 | I84: =+GETPIVOTDATA(" BAS053",TABLAS!$A$59) -> 0 | J84: =+GETPIVOTDATA(" BAS054",TABLAS!$A$59) -> 0 | K84: =+GETPIVOTDATA(" BAS055",TABLAS!$A$59) -> 0 | L84: =+GETPIVOTDATA(" BAS056",TABLAS!$A$59) -> 0 | M84: =SUM(C84+D84+E84+F84+G84+H84+I84+J84+K84+L84) -> 6 | Q84: =+Q70+1 -> 48 | R84: =+Q84+1 -> 49 | S84: =+R84+1 -> 50 | T84: 51 | U84: 52 | V84: 53 | W84: 54 | X84: 55 | Y84: 56 | AC84: =IF(LEN(Q84)=1,CONCATENATE("00",Q84),IF(LEN(Q84)=2,CONCATENATE("0",Q84),Q84)) -> 048 | AD84: =IF(LEN(R84)=1,CONCATENATE("00",R84),IF(LEN(R84)=2,CONCATENATE("0",R84),R84)) -> 049 | AE84: =IF(LEN(S84)=1,CONCATENATE("00",S84),IF(LEN(S84)=2,CONCATENATE("0",S84),S84)) -> 050 | AF84: =IF(LEN(T84)=1,CONCATENATE("00",T84),IF(LEN(T84)=2,CONCATENATE("0",T84),T84)) -> 051 | AG84: =IF(LEN(U84)=1,CONCATENATE("00",U84),IF(LEN(U84)=2,CONCATENATE("0",U84),U84)) -> 052 | AH84: =IF(LEN(V84)=1,CONCATENATE("00",V84),IF(LEN(V84)=2,CONCATENATE("0",V84),V84)) -> 053 | AI84: =IF(LEN(W84)=1,CONCATENATE("00",W84),IF(LEN(W84)=2,CONCATENATE("0",W84),W84)) -> 054 | AJ84: =IF(LEN(X84)=1,CONCATENATE("00",X84),IF(LEN(X84)=2,CONCATENATE("0",X84),X84)) -> 055 | AK84: =IF(LEN(Y84)=1,CONCATENATE("00",Y84),IF(LEN(Y84)=2,CONCATENATE("0",Y84),Y84)) -> 056 | AN84: =$AI$23&AC84&$AJ$22 -> =+IMPORTARDATOSDINAMICOS(" BAS048";TABLAS!$A$281) | AO84: =$AI$23&AD84&$AJ$22 -> =+IMPORTARDATOSDINAMICOS(" BAS049";TABLAS!$A$281) | AP84: =+IMPORTARDATOSDINAMICOS(" BAS050";TABLAS!$A$281) | AQ84: =+IMPORTARDATOSDINAMICOS(" BAS051";TABLAS!$A$281) | AR84: =+IMPORTARDATOSDINAMICOS(" BAS052";TABLAS!$A$281) | AS84: =+IMPORTARDATOSDINAMICOS(" BAS053";TABLAS!$A$281) | AT84: =+IMPORTARDATOSDINAMICOS(" BAS054";TABLAS!$A$281) | AU84: =+IMPORTARDATOSDINAMICOS(" BAS055";TABLAS!$A$281) | AV84: =+IMPORTARDATOSDINAMICOS(" BAS056";TABLAS!$A$281)
B85: Lectura de PPD | D85: =+GETPIVOTDATA(" BAS057",TABLAS!$A$59) -> 4 | E85: =+GETPIVOTDATA(" BAS058",TABLAS!$A$59) -> 0 | F85: =+GETPIVOTDATA(" BAS059",TABLAS!$A$59) -> 0 | G85: =+GETPIVOTDATA(" BAS060",TABLAS!$A$59) -> 0 | H85: =+GETPIVOTDATA(" BAS061",TABLAS!$A$59) -> 0 | I85: =+GETPIVOTDATA(" BAS062",TABLAS!$A$59) -> 0 | J85: =+GETPIVOTDATA(" BAS063",TABLAS!$A$59) -> 0 | K85: =+GETPIVOTDATA(" BAS064",TABLAS!$A$59) -> 0 | L85: =+GETPIVOTDATA(" BAS065",TABLAS!$A$59) -> 0 | M85: 4 | Q85: =+Y84+1 -> 57 | R85: =+Q85+1 -> 58 | S85: 59 | T85: 60 | U85: 61 | V85: 62 | W85: 63 | X85: 64 | Y85: 65 | AC85: 057 | AD85: 058 | AE85: 059 | AF85: 060 | AG85: 061 | AH85: 062 | AI85: 063 | AJ85: 064 | AK85: 065 | AN85: =$AI$23&AC85&$AJ$22 -> =+IMPORTARDATOSDINAMICOS(" BAS057";TABLAS!$A$281) | AO85: =+IMPORTARDATOSDINAMICOS(" BAS058";TABLAS!$A$281) | AP85: =+IMPORTARDATOSDINAMICOS(" BAS059";TABLAS!$A$281) | AQ85: =+IMPORTARDATOSDINAMICOS(" BAS060";TABLAS!$A$281) | AR85: =+IMPORTARDATOSDINAMICOS(" BAS061";TABLAS!$A$281) | AS85: =+IMPORTARDATOSDINAMICOS(" BAS062";TABLAS!$A$281) | AT85: =+IMPORTARDATOSDINAMICOS(" BAS063";TABLAS!$A$281) | AU85: =+IMPORTARDATOSDINAMICOS(" BAS064";TABLAS!$A$281) | AV85: =+IMPORTARDATOSDINAMICOS(" BAS065";TABLAS!$A$281)
B86: Aplicación de IGRA | D86: =+GETPIVOTDATA(" BAS066",TABLAS!$A$59) -> 0 | E86: =+GETPIVOTDATA(" BAS067",TABLAS!$A$59) -> 0 | F86: =+GETPIVOTDATA(" BAS068",TABLAS!$A$59) -> 0 | G86: =+GETPIVOTDATA(" BAS069",TABLAS!$A$59) -> 0 | H86: =+GETPIVOTDATA(" BAS070",TABLAS!$A$59) -> 0 | I86: =+GETPIVOTDATA(" BAS071",TABLAS!$A$59) -> 0 | J86: =+GETPIVOTDATA(" BAS072",TABLAS!$A$59) -> 0 | K86: =+GETPIVOTDATA(" BAS073",TABLAS!$A$59) -> 0 | L86: =+GETPIVOTDATA(" BAS074",TABLAS!$A$59) -> 0 | M86: 0 | Q86: =+Y85+1 -> 66 | R86: =+Q86+1 -> 67 | S86: 68 | T86: 69 | U86: 70 | V86: 71 | W86: 72 | X86: 73 | Y86: 74 | AC86: 066 | AD86: 067 | AE86: 068 | AF86: 069 | AG86: 070 | AH86: 071 | AI86: 072 | AJ86: 073 | AK86: 074 | AN86: =+IMPORTARDATOSDINAMICOS(" BAS066";TABLAS!$A$281) | AO86: =+IMPORTARDATOSDINAMICOS(" BAS067";TABLAS!$A$281) | AP86: =+IMPORTARDATOSDINAMICOS(" BAS068";TABLAS!$A$281) | AQ86: =+IMPORTARDATOSDINAMICOS(" BAS069";TABLAS!$A$281) | AR86: =+IMPORTARDATOSDINAMICOS(" BAS070";TABLAS!$A$281) | AS86: =+IMPORTARDATOSDINAMICOS(" BAS071";TABLAS!$A$281) | AT86: =+IMPORTARDATOSDINAMICOS(" BAS072";TABLAS!$A$281) | AU86: =+IMPORTARDATOSDINAMICOS(" BAS073";TABLAS!$A$281) | AV86: =+IMPORTARDATOSDINAMICOS(" BAS074";TABLAS!$A$281)
B87: Lectura de IGRA | D87: =+GETPIVOTDATA(" BAS075",TABLAS!$A$59) -> 0 | E87: =+GETPIVOTDATA(" BAS076",TABLAS!$A$59) -> 0 | F87: =+GETPIVOTDATA(" BAS077",TABLAS!$A$59) -> 0 | G87: =+GETPIVOTDATA(" BAS078",TABLAS!$A$59) -> 0 | H87: =+GETPIVOTDATA(" BAS079",TABLAS!$A$59) -> 0 | I87: =+GETPIVOTDATA(" BAS080",TABLAS!$A$59) -> 0 | J87: =+GETPIVOTDATA(" BAS081",TABLAS!$A$59) -> 0 | K87: =+GETPIVOTDATA(" BAS082",TABLAS!$A$59) -> 0 | L87: =+GETPIVOTDATA(" BAS083",TABLAS!$A$59) -> 0 | M87: 0 | Q87: 75 | R87: =+Q87+1 -> 76 | S87: 77 | T87: 78 | U87: 79 | V87: 80 | W87: 81 | X87: 82 | Y87: 83 | AC87: 075 | AD87: 076 | AE87: 077 | AF87: 078 | AG87: 079 | AH87: 080 | AI87: 081 | AJ87: 082 | AK87: 083 | AN87: =+IMPORTARDATOSDINAMICOS(" BAS075";TABLAS!$A$281) | AO87: =+IMPORTARDATOSDINAMICOS(" BAS076";TABLAS!$A$281) | AP87: =+IMPORTARDATOSDINAMICOS(" BAS077";TABLAS!$A$281) | AQ87: =+IMPORTARDATOSDINAMICOS(" BAS078";TABLAS!$A$281) | AR87: =+IMPORTARDATOSDINAMICOS(" BAS079";TABLAS!$A$281) | AS87: =+IMPORTARDATOSDINAMICOS(" BAS080";TABLAS!$A$281) | AT87: =+IMPORTARDATOSDINAMICOS(" BAS081";TABLAS!$A$281) | AU87: =+IMPORTARDATOSDINAMICOS(" BAS082";TABLAS!$A$281) | AV87: =+IMPORTARDATOSDINAMICOS(" BAS083";TABLAS!$A$281)
B88: Administración de terapia preventiva para contactos de TB sensible | D88: =+GETPIVOTDATA(" BAS084",TABLAS!$A$59) -> 41 | M88: 41 | Q88: 84 | AC88: 084 | AN88: =+IMPORTARDATOSDINAMICOS(" BAS084";TABLAS!$A$281)
B89: Administración de terapia preventiva para contactos de TB resistente | D89: =+GETPIVOTDATA(" BAS085",TABLAS!$A$59) -> 0 | M89: 0 | Q89: =+Q88+1 -> 85 | AC89: 085 | AN89: =+IMPORTARDATOSDINAMICOS(" BAS085";TABLAS!$A$281)
B90: Administración de terapia preventiva para población vulnerable para TB | E90: =+GETPIVOTDATA(" BAS086",TABLAS!$A$59) -> 0 | F90: =+GETPIVOTDATA(" BAS087",TABLAS!$A$59) -> 0 | G90: =+GETPIVOTDATA(" BAS088",TABLAS!$A$59) -> 0 | H90: =+GETPIVOTDATA(" BAS089",TABLAS!$A$59) -> 0 | I90: =+GETPIVOTDATA(" BAS090",TABLAS!$A$59) -> 0 | J90: =+GETPIVOTDATA(" BAS091",TABLAS!$A$59) -> 0 | K90: =+GETPIVOTDATA(" BAS092",TABLAS!$A$59) -> 0 | L90: =+GETPIVOTDATA(" BAS093",TABLAS!$A$59) -> 0 | M90: 0 | R90: =+Q89+1 -> 86 | S90: =+R90+1 -> 87 | T90: 88 | U90: 89 | V90: 90 | W90: 91 | X90: 92 | Y90: 93 | AD90: =IF(LEN(R90)=1,CONCATENATE("00",R90),IF(LEN(R90)=2,CONCATENATE("0",R90),R90)) -> 086 | AE90: 087 | AF90: 088 | AG90: 089 | AH90: 090 | AI90: 091 | AJ90: 092 | AK90: 093 | AO90: =$AI$23&AD90&$AJ$22 -> =+IMPORTARDATOSDINAMICOS(" BAS086";TABLAS!$A$281) | AP90: =+IMPORTARDATOSDINAMICOS(" BAS087";TABLAS!$A$281) | AQ90: =+IMPORTARDATOSDINAMICOS(" BAS088";TABLAS!$A$281) | AR90: =+IMPORTARDATOSDINAMICOS(" BAS089";TABLAS!$A$281) | AS90: =+IMPORTARDATOSDINAMICOS(" BAS090";TABLAS!$A$281) | AT90: =+IMPORTARDATOSDINAMICOS(" BAS091";TABLAS!$A$281) | AU90: =+IMPORTARDATOSDINAMICOS(" BAS092";TABLAS!$A$281) | AV90: =+IMPORTARDATOSDINAMICOS(" BAS093";TABLAS!$A$281)
B91: Caso probable | C91: =+GETPIVOTDATA(" BAS094",TABLAS!$A$59) -> 0 | D91: =+GETPIVOTDATA(" BAS095",TABLAS!$A$59) -> 0 | E91: =+GETPIVOTDATA(" BAS096",TABLAS!$A$59) -> 0 | F91: =+GETPIVOTDATA(" BAS097",TABLAS!$A$59) -> 0 | G91: =+GETPIVOTDATA(" BAS098",TABLAS!$A$59) -> 0 | H91: =+GETPIVOTDATA(" BAS099",TABLAS!$A$59) -> 0 | I91: =+GETPIVOTDATA(" BAS100",TABLAS!$A$59) -> 0 | J91: =+GETPIVOTDATA(" BAS101",TABLAS!$A$59) -> 0 | K91: =+GETPIVOTDATA(" BAS102",TABLAS!$A$59) -> 0 | L91: =+GETPIVOTDATA(" BAS103",TABLAS!$A$59) -> 0 | M91: 0 | Q91: 94 | R91: =+Q91+1 -> 95 | S91: 96 | T91: 97 | U91: 98 | V91: 99 | W91: 100 | X91: 101 | Y91: 102 | Z91: 103 | AC91: =IF(LEN(Q91)=1,CONCATENATE("00",Q91),IF(LEN(Q91)=2,CONCATENATE("0",Q91),Q91)) -> 094 | AD91: 095 | AE91: 096 | AF91: 097 | AG91: 098 | AH91: 099 | AI91: 100 | AJ91: 101 | AK91: 102 | AL91: =IF(LEN(Z91)=1,CONCATENATE("00",Z91),IF(LEN(Z91)=2,CONCATENATE("0",Z91),Z91)) -> 103 | AN91: =$AI$23&AC91&$AJ$22 -> =+IMPORTARDATOSDINAMICOS(" BAS094";TABLAS!$A$281) | AO91: =+IMPORTARDATOSDINAMICOS(" BAS095";TABLAS!$A$281) | AP91: =+IMPORTARDATOSDINAMICOS(" BAS096";TABLAS!$A$281) | AQ91: =+IMPORTARDATOSDINAMICOS(" BAS097";TABLAS!$A$281) | AR91: =+IMPORTARDATOSDINAMICOS(" BAS098";TABLAS!$A$281) | AS91: =+IMPORTARDATOSDINAMICOS(" BAS099";TABLAS!$A$281) | AT91: =+IMPORTARDATOSDINAMICOS(" BAS100";TABLAS!$A$281) | AU91: =+IMPORTARDATOSDINAMICOS(" BAS101";TABLAS!$A$281) | AV91: =+IMPORTARDATOSDINAMICOS(" BAS102";TABLAS!$A$281) | AW91: =$AI$23&AL91&$AJ$22 -> =+IMPORTARDATOSDINAMICOS(" BAS103";TABLAS!$A$281)
B92: Sintomático respiratorio identificado | C92: =+GETPIVOTDATA(" BAS104",TABLAS!$A$59) -> 15 | D92: =+GETPIVOTDATA(" BAS105",TABLAS!$A$59) -> 4 | E92: =+GETPIVOTDATA(" BAS106",TABLAS!$A$59) -> 0 | F92: =+GETPIVOTDATA(" BAS107",TABLAS!$A$59) -> 0 | G92: =+GETPIVOTDATA(" BAS108",TABLAS!$A$59) -> 0 | H92: =+GETPIVOTDATA(" BAS109",TABLAS!$A$59) -> 0 | I92: =+GETPIVOTDATA(" BAS110",TABLAS!$A$59) -> 0 | J92: =+GETPIVOTDATA(" BAS111",TABLAS!$A$59) -> 0 | K92: =+GETPIVOTDATA(" BAS112",TABLAS!$A$59) -> 0 | L92: =+GETPIVOTDATA(" BAS113",TABLAS!$A$59) -> 0 | M92: 19 | Q92: =+Z91+1 -> 104 | R92: =+Q92+1 -> 105 | S92: 106 | T92: 107 | U92: 108 | V92: 109 | W92: 110 | X92: 111 | Y92: 112 | Z92: 113 | AC92: 104 | AD92: 105 | AE92: 106 | AF92: 107 | AG92: 108 | AH92: 109 | AI92: 110 | AJ92: 111 | AK92: 112 | AL92: 113 | AN92: =+IMPORTARDATOSDINAMICOS(" BAS104";TABLAS!$A$281) | AO92: =+IMPORTARDATOSDINAMICOS(" BAS105";TABLAS!$A$281) | AP92: =+IMPORTARDATOSDINAMICOS(" BAS106";TABLAS!$A$281) | AQ92: =+IMPORTARDATOSDINAMICOS(" BAS107";TABLAS!$A$281) | AR92: =+IMPORTARDATOSDINAMICOS(" BAS108";TABLAS!$A$281) | AS92: =+IMPORTARDATOSDINAMICOS(" BAS109";TABLAS!$A$281) | AT92: =+IMPORTARDATOSDINAMICOS(" BAS110";TABLAS!$A$281) | AU92: =+IMPORTARDATOSDINAMICOS(" BAS111";TABLAS!$A$281) | AV92: =+IMPORTARDATOSDINAMICOS(" BAS112";TABLAS!$A$281) | AW92: =+IMPORTARDATOSDINAMICOS(" BAS113";TABLAS!$A$281)
B93: Sintomático respiratorio examinado | C93: =+GETPIVOTDATA(" BAS114",TABLAS!$A$59) -> 9 | D93: =+GETPIVOTDATA(" BAS115",TABLAS!$A$59) -> 4 | E93: =+GETPIVOTDATA(" BAS116",TABLAS!$A$59) -> 0 | F93: =+GETPIVOTDATA(" BAS117",TABLAS!$A$59) -> 0 | G93: =+GETPIVOTDATA(" BAS118",TABLAS!$A$59) -> 0 | H93: =+GETPIVOTDATA(" BAS119",TABLAS!$A$59) -> 3 | I93: =+GETPIVOTDATA(" BAS120",TABLAS!$A$59) -> 0 | J93: =+GETPIVOTDATA(" BAS121",TABLAS!$A$59) -> 0 | K93: =+GETPIVOTDATA(" BAS122",TABLAS!$A$59) -> 0 | L93: =+GETPIVOTDATA(" BAS123",TABLAS!$A$59) -> 0 | M93: 16 | Q93: =+Z92+1 -> 114 | R93: =+Q93+1 -> 115 | S93: 116 | T93: 117 | U93: 118 | V93: 119 | W93: 120 | X93: 121 | Y93: 122 | Z93: 123 | AC93: 114 | AD93: 115 | AE93: 116 | AF93: 117 | AG93: 118 | AH93: 119 | AI93: 120 | AJ93: 121 | AK93: 122 | AL93: 123 | AN93: =+IMPORTARDATOSDINAMICOS(" BAS114";TABLAS!$A$281) | AO93: =+IMPORTARDATOSDINAMICOS(" BAS115";TABLAS!$A$281) | AP93: =+IMPORTARDATOSDINAMICOS(" BAS116";TABLAS!$A$281) | AQ93: =+IMPORTARDATOSDINAMICOS(" BAS117";TABLAS!$A$281) | AR93: =+IMPORTARDATOSDINAMICOS(" BAS118";TABLAS!$A$281) | AS93: =+IMPORTARDATOSDINAMICOS(" BAS119";TABLAS!$A$281) | AT93: =+IMPORTARDATOSDINAMICOS(" BAS120";TABLAS!$A$281) | AU93: =+IMPORTARDATOSDINAMICOS(" BAS121";TABLAS!$A$281) | AV93: =+IMPORTARDATOSDINAMICOS(" BAS122";TABLAS!$A$281) | AW93: =+IMPORTARDATOSDINAMICOS(" BAS123";TABLAS!$A$281)
B94: SR examinados con bacteriología confirmada | C94: =+GETPIVOTDATA(" BAS124",TABLAS!$A$59) -> 0 | D94: =+GETPIVOTDATA(" BAS125",TABLAS!$A$59) -> 0 | E94: =+GETPIVOTDATA(" BAS126",TABLAS!$A$59) -> 0 | F94: =+GETPIVOTDATA(" BAS127",TABLAS!$A$59) -> 0 | G94: =+GETPIVOTDATA(" BAS128",TABLAS!$A$59) -> 0 | H94: =+GETPIVOTDATA(" BAS129",TABLAS!$A$59) -> 0 | I94: =+GETPIVOTDATA(" BAS130",TABLAS!$A$59) -> 0 | J94: =+GETPIVOTDATA(" BAS131",TABLAS!$A$59) -> 0 | K94: =+GETPIVOTDATA(" BAS132",TABLAS!$A$59) -> 0 | L94: =+GETPIVOTDATA(" BAS133",TABLAS!$A$59) -> 0 | M94: 0 | Q94: 124 | R94: =+Q94+1 -> 125 | S94: 126 | T94: 127 | U94: 128 | V94: 129 | W94: 130 | X94: 131 | Y94: 132 | Z94: 133 | AC94: 124 | AD94: 125 | AE94: 126 | AF94: 127 | AG94: 128 | AH94: 129 | AI94: 130 | AJ94: 131 | AK94: 132 | AL94: 133 | AN94: =+IMPORTARDATOSDINAMICOS(" BAS124";TABLAS!$A$281) | AO94: =+IMPORTARDATOSDINAMICOS(" BAS125";TABLAS!$A$281) | AP94: =+IMPORTARDATOSDINAMICOS(" BAS126";TABLAS!$A$281) | AQ94: =+IMPORTARDATOSDINAMICOS(" BAS127";TABLAS!$A$281) | AR94: =+IMPORTARDATOSDINAMICOS(" BAS128";TABLAS!$A$281) | AS94: =+IMPORTARDATOSDINAMICOS(" BAS129";TABLAS!$A$281) | AT94: =+IMPORTARDATOSDINAMICOS(" BAS130";TABLAS!$A$281) | AU94: =+IMPORTARDATOSDINAMICOS(" BAS131";TABLAS!$A$281) | AV94: =+IMPORTARDATOSDINAMICOS(" BAS132";TABLAS!$A$281) | AW94: =+IMPORTARDATOSDINAMICOS(" BAS133";TABLAS!$A$281)

Sheet TBC1217
B3: REPORTE MENSUAL DE ACTIVIDADES DE PREVENCION Y CONTROL DE TUBERCULOSIS [12-17]
B4: CURSO DE VIDA : ADOLESCENTE
B6: DIRESA | C6: CUSCO | F6: REGION | G6: CUSCO
B8: RED DE SALUD | C8: =+TABLAS!O9 -> 03 - LA CONVENCION | F8: EJECUTORA | G8: =+TABLAS!O14 -> 
B10: MICRO RED | C10: =+TABLAS!O10 ->  | F10: RESPONSABLE
B12: EE.SS. | C12: =+TABLAS!O11 ->  | F12: COD. RENAES | G12: =+TABLAS!Q11 -> 
B14: PROVINCIA | C14: =+TABLAS!O12 ->  | F14: AÑO | G14: =+TABLAS!J16 -> 2025
B16: DISTRITO | C16: =+TABLAS!O13 ->  | F16: MES | G16: =+TABLAS!N26 -> ENE - MAR
B18: INSTITUCION : MINSA ( X ) ESSALUD ( ) FFAA ( ) PNP ( ) INPE ( ) OTROS ( )
B20: I. ACTIVIDADES DE DETECCION Y DIAGNOSTICO PARA TUBERCULOSIS
B22: DETECCIÓN DE CASOS | G22: RECOLECCIÓN DE MUESTRAS PARA EXAMEN BACTERIOLÓGICO | I22: N° | AJ22: ";TABLAS!$A$281)
B23: Sintomático respiratorio (SR) | E23: Caso probable de TB | G23: RECOLECCIÓN DE MUESTRAS PARA TB* | I23: =+GETPIVOTDATA(" BAS001",TABLAS!$A$95) -> 154 | Q23: 1 | AC23: =IF(LEN(Q23)=1,CONCATENATE("00",Q23),IF(LEN(Q23)=2,CONCATENATE("0",Q23),Q23)) -> 001 | AI23: =+IMPORTARDATOSDINAMICOS(" BAS | AN23: =$AI$23&AC23&$AJ$22 -> =+IMPORTARDATOSDINAMICOS(" BAS001";TABLAS!$A$281)
B24: SR Identificado | C24: SR Examinado | D24: SR examinados con bacteriología confirmada | G24: PROCEDIMIENTOS ESPECIALES PARA OBTENCION DE MUESTRAS | H24: Lavado gástrico | I24: =+GETPIVOTDATA(" BAS002",TABLAS!$A$95) -> 0 | Q24: =+Q23+1 -> 2 | AC24: 002 | AN24: =$AI$23&AC24&$AJ$22 -> =+IMPORTARDATOSDINAMICOS(" BAS002";TABLAS!$A$281)
B25: =M92 -> 42 | C25: =M93 -> 39 | D25: =M94 -> 0 | E25: =M91 -> 0 | H25: Inducción del esputo | I25: =+GETPIVOTDATA(" BAS003",TABLAS!$A$95) -> 0 | Q25: =+Q24+1 -> 3 | AC25: 003 | AN25: =+IMPORTARDATOSDINAMICOS(" BAS003";TABLAS!$A$281)
G26: TOTAL | I26: =SUM(I23+I24+I25) -> 154
B27: SR examinados con bacteriología confirmada | G27: *Muestra recolectada por expectoración espontánea
B28: Por baciloscopia | D28: =+GETPIVOTDATA(" BAS004",TABLAS!$A$95) -> 0 | G28: REFERENCIAS | Q28: =+Q25+1 -> 4 | AC28: =IF(LEN(Q28)=1,CONCATENATE("00",Q28),IF(LEN(Q28)=2,CONCATENATE("0",Q28),Q28)) -> 004 | AN28: =$AI$23&AC28&$AJ$22 -> =+IMPORTARDATOSDINAMICOS(" BAS004";TABLAS!$A$281)
B29: Por prueba molecular | D29: =+GETPIVOTDATA(" BAS005",TABLAS!$A$95) -> 0 | G29: Condición | H29: Derivaciones | I29: Transferencias | Q29: =+Q28+1 -> 5 | T29: =+Q30+1 -> 7 | U29: =+T29+1 -> 8 | AC29: 005 | AF29: =IF(LEN(T29)=1,CONCATENATE("00",T29),IF(LEN(T29)=2,CONCATENATE("0",T29),T29)) -> 007 | AG29: 008 | AN29: =+IMPORTARDATOSDINAMICOS(" BAS005";TABLAS!$A$281) | AQ29: =$AI$23&AF29&$AJ$22 -> =+IMPORTARDATOSDINAMICOS(" BAS007";TABLAS!$A$281) | AR29: =+IMPORTARDATOSDINAMICOS(" BAS008";TABLAS!$A$281)
B30: Por cultivo | D30: =+GETPIVOTDATA(" BAS006",TABLAS!$A$95) -> 0 | G30: Realizadas | H30: =+GETPIVOTDATA(" BAS007",TABLAS!$A$95) -> 0 | I30: =+GETPIVOTDATA(" BAS008",TABLAS!$A$95) -> 0 | Q30: =+Q29+1 -> 6 | T30: =+U29+1 -> 9 | U30: =+T30+1 -> 10 | AC30: 006 | AF30: 009 | AG30: 010 | AN30: =+IMPORTARDATOSDINAMICOS(" BAS006";TABLAS!$A$281) | AQ30: =+IMPORTARDATOSDINAMICOS(" BAS009";TABLAS!$A$281) | AR30: =+IMPORTARDATOSDINAMICOS(" BAS010";TABLAS!$A$281)
B31: TOTAL | D31: =SUM(D28+D29+D30) -> 0 | G31: Aceptadas | H31: =+GETPIVOTDATA(" BAS009",TABLAS!$A$95) -> 0 | I31: =+GETPIVOTDATA(" BAS010",TABLAS!$A$95) -> 0
G32: TOTAL | H32: =SUM(H30+H31) -> 0 | I32: =SUM(I30+I31) -> 0
B33: COMORBILIDADES Y CONDICIONES ASOCIADAS | D33: N°
B34: TB-VIH/SIDA | D34: =+GETPIVOTDATA(" BAS011",TABLAS!$A$95) -> 0 | G34: TAMIZAJE DE COMORBILIDADES | I34: N° | Q34: =+U30+1 -> 11 | AC34: =IF(LEN(Q34)=1,CONCATENATE("00",Q34),IF(LEN(Q34)=2,CONCATENATE("0",Q34),Q34)) -> 011 | AN34: =$AI$23&AC34&$AJ$22 -> =+IMPORTARDATOSDINAMICOS(" BAS011";TABLAS!$A$281)
B35: TB-DM | D35: =+GETPIVOTDATA(" BAS012",TABLAS!$A$95) -> 0 | G35: Tamizaje TB-VIH | I35: =+GETPIVOTDATA(" BAS014",TABLAS!$A$95) -> 1 | Q35: =+Q34+1 -> 12 | S35: =+Q36+1 -> 14 | AC35: 012 | AE35: =IF(LEN(S35)=1,CONCATENATE("00",S35),IF(LEN(S35)=2,CONCATENATE("0",S35),S35)) -> 014 | AN35: =+IMPORTARDATOSDINAMICOS(" BAS012";TABLAS!$A$281) | AP35: =$AI$23&AE35&$AJ$22 -> =+IMPORTARDATOSDINAMICOS(" BAS014";TABLAS!$A$281)
B36: Reacción adversa a medicamentos para TB | D36: =+GETPIVOTDATA(" BAS013",TABLAS!$A$95) -> 0 | G36: Tamizaje TB-DM | I36: =+GETPIVOTDATA(" BAS015",TABLAS!$A$95) -> 1 | Q36: 13 | S36: =+S35+1 -> 15 | AC36: 013 | AE36: 015 | AN36: =+IMPORTARDATOSDINAMICOS(" BAS013";TABLAS!$A$281) | AP36: =+IMPORTARDATOSDINAMICOS(" BAS015";TABLAS!$A$281)
B39: II. ACTIVIDADES PARA LA RECUPERACION DE LA PERSONA AFECTADA POR TUBERCULOSIS
B41: ATENCIÓN MULTIDISCIPLINARIA | D41: MODALIDAD | E41: EN PAT CON TB SENSIBLE | F41: EN PAT CON TB RESISTENTE | G41: TOTAL | I41: 2 | K41: N°
B42: Evaluación médica | E42: =+GETPIVOTDATA(" BAS016",TABLAS!$A$95) -> 0 | F42: =+GETPIVOTDATA(" BAS017",TABLAS!$A$95) -> 0 | G42: =SUM(E42+F42) -> 0 | I42: Administración de tratamiento para TB sensible | K42: =+GETPIVOTDATA(" BAS028",TABLAS!$A$95) -> 31 | Q42: =+S36+1 -> 16 | R42: =+Q42+1 -> 17 | V42: =+Q48+1 -> 28 | AC42: =IF(LEN(Q42)=1,CONCATENATE("00",Q42),IF(LEN(Q42)=2,CONCATENATE("0",Q42),Q42)) -> 016 | AD42: 017 | AH42: =IF(LEN(V42)=1,CONCATENATE("00",V42),IF(LEN(V42)=2,CONCATENATE("0",V42),V42)) -> 028 | AN42: =$AI$23&AC42&$AJ$22 -> =+IMPORTARDATOSDINAMICOS(" BAS016";TABLAS!$A$281) | AO42: =+IMPORTARDATOSDINAMICOS(" BAS017";TABLAS!$A$281) | AS42: =$AI$23&AH42&$AJ$22 -> =+IMPORTARDATOSDINAMICOS(" BAS028";TABLAS!$A$281)
B43: Atención en consultorio de enfermería | E43: =+GETPIVOTDATA(" BAS018",TABLAS!$A$95) -> 0 | F43: =+GETPIVOTDATA(" BAS019",TABLAS!$A$95) -> 0 | G43: =SUM(E43+F43) -> 0 | I43: Administración de tratamiento para TB resistente | K43: =+GETPIVOTDATA(" BAS029",TABLAS!$A$95) -> 0 | Q43: =+R42+1 -> 18 | R43: =+Q43+1 -> 19 | V43: =+V42+1 -> 29 | AC43: 018 | AD43: 019 | AH43: 029 | AN43: =+IMPORTARDATOSDINAMICOS(" BAS018";TABLAS!$A$281) | AO43: =+IMPORTARDATOSDINAMICOS(" BAS019";TABLAS!$A$281) | AS43: =+IMPORTARDATOSDINAMICOS(" BAS029";TABLAS!$A$281)
B44: Atención de servicio social | D44: En el establecimiento de salud | E44: =+GETPIVOTDATA(" BAS020",TABLAS!$A$95) -> 0 | F44: =+GETPIVOTDATA(" BAS021",TABLAS!$A$95) -> 0 | G44: =SUM(E44+F44) -> 0 | I44: Control de tratamiento | K44: =+GETPIVOTDATA(" BAS030",TABLAS!$A$95) -> 2 | Q44: =+R43+1 -> 20 | R44: 21 | V44: =+V43+1 -> 30 | AC44: 020 | AD44: 021 | AH44: 030 | AN44: =+IMPORTARDATOSDINAMICOS(" BAS020";TABLAS!$A$281) | AO44: =+IMPORTARDATOSDINAMICOS(" BAS021";TABLAS!$A$281) | AS44: =+IMPORTARDATOSDINAMICOS(" BAS030";TABLAS!$A$281)
D45: Mediante teleconsulta en línea | E45: =+GETPIVOTDATA(" BAS022",TABLAS!$A$95) -> 0 | F45: =+GETPIVOTDATA(" BAS023",TABLAS!$A$95) -> 0 | G45: =SUM(E45+F45) -> 0 | Q45: 22 | R45: 23 | AC45: 022 | AD45: 023 | AN45: =+IMPORTARDATOSDINAMICOS(" BAS022";TABLAS!$A$281) | AO45: =+IMPORTARDATOSDINAMICOS(" BAS023";TABLAS!$A$281)
B46: Atención en nutrición | E46: =+GETPIVOTDATA(" BAS024",TABLAS!$A$95) -> 0 | F46: =+GETPIVOTDATA(" BAS025",TABLAS!$A$95) -> 0 | G46: =SUM(E46+F46) -> 0 | I46: RETO ANTE REACCIONES ADVERSAS | Q46: 24 | R46: 25 | AC46: 024 | AD46: 025 | AN46: =+IMPORTARDATOSDINAMICOS(" BAS024";TABLAS!$A$281) | AO46: =+IMPORTARDATOSDINAMICOS(" BAS025";TABLAS!$A$281)
B47: Atención en salud mental | D47: En el establecimiento de salud | G47: =+GETPIVOTDATA(" BAS026",TABLAS!$A$95) -> 0 | I47: Condición | J47: N° | Q47: 26 | AC47: 026 | AN47: =+IMPORTARDATOSDINAMICOS(" BAS026";TABLAS!$A$281)
D48: Mediante teleorientación síncrona | G48: =+GETPIVOTDATA(" BAS027",TABLAS!$A$95) -> 0 | I48: Inicio | J48: =+GETPIVOTDATA(" BAS031",TABLAS!$A$95) -> 0 | L48: REGISTRO EN EL PADRON DE BENEFICIARIOS PANTBC | Q48: =+Q47+1 -> 27 | V48: =+V44+1 -> 31 | AC48: 027 | AH48: =IF(LEN(V48)=1,CONCATENATE("00",V48),IF(LEN(V48)=2,CONCATENATE("0",V48),V48)) -> 031 | AN48: =+IMPORTARDATOSDINAMICOS(" BAS027";TABLAS!$A$281) | AS48: =$AI$23&AH48&$AJ$22 -> =+IMPORTARDATOSDINAMICOS(" BAS031";TABLAS!$A$281)
I49: Término | J49: =+GETPIVOTDATA(" BAS032",TABLAS!$A$95) -> 0 | L49: =+GETPIVOTDATA(" BAS033",TABLAS!$A$95) -> 0 | V49: =+V48+1 -> 32 | X49: =+V49+1 -> 33 | AH49: 032 | AJ49: =IF(LEN(X49)=1,CONCATENATE("00",X49),IF(LEN(X49)=2,CONCATENATE("0",X49),X49)) -> 033 | AS49: =+IMPORTARDATOSDINAMICOS(" BAS032";TABLAS!$A$281) | AU49: =$AI$23&AJ49&$AJ$22 -> =+IMPORTARDATOSDINAMICOS(" BAS033";TABLAS!$A$281)
B52: III. ACTIVIDADES DE PREVENCIÓN EN TUBERCULOSIS
B54: CENSO DE CONTACTOS | C54: N° | E54: PRUEBA PARA DIAGNOSTICO DE TB LATENTE | G54: N° | H54: POSITIVOS | J54: TERAPIA PREVENTIVA PARA TUBERCULOSIS LATENTE | L54: N°
B55: En el establecimiento de salud | C55: =+GETPIVOTDATA(" BAS034",TABLAS!$A$95) -> 0 | E55: PPD | F55: Aplicación | G55: =M84 -> 2 | H55: =+GETPIVOTDATA(" BAS037",TABLAS!$A$95) -> 0 | J55: Administración de terapia preventiva para contactos de TB sensible | L55: =+GETPIVOTDATA(" BAS039",TABLAS!$A$95) -> 3 | Q55: =+X49+1 -> 34 | S55: =+Q57+1 -> 37 | U55: =+S57+1 -> 39 | AC55: =IF(LEN(Q55)=1,CONCATENATE("00",Q55),IF(LEN(Q55)=2,CONCATENATE("0",Q55),Q55)) -> 034 | AE55: =IF(LEN(S55)=1,CONCATENATE("00",S55),IF(LEN(S55)=2,CONCATENATE("0",S55),S55)) -> 037 | AG55: =IF(LEN(U55)=1,CONCATENATE("00",U55),IF(LEN(U55)=2,CONCATENATE("0",U55),U55)) -> 039 | AN55: =$AI$23&AC55&$AJ$22 -> =+IMPORTARDATOSDINAMICOS(" BAS034";TABLAS!$A$281) | AP55: =$AI$23&AE55&$AJ$22 -> =+IMPORTARDATOSDINAMICOS(" BAS037";TABLAS!$A$281) | AR55: =$AI$23&AG55&$AJ$22 -> =+IMPORTARDATOSDINAMICOS(" BAS039";TABLAS!$A$281)
B56: En el domicilio* | C56: =+GETPIVOTDATA(" BAS035",TABLAS!$A$95) -> 0 | F56: Lectura | G56: =M85 -> 1 | J56: Administración de terapia preventiva para contactos de TB resistente | L56: =+GETPIVOTDATA(" BAS040",TABLAS!$A$95) -> 0 | Q56: =+Q55+1 -> 35 | U56: =+U55+1 -> 40 | AC56: 035 | AG56: =IF(LEN(U56)=1,CONCATENATE("00",U56),IF(LEN(U56)=2,CONCATENATE("0",U56),U56)) -> 040 | AN56: =+IMPORTARDATOSDINAMICOS(" BAS035";TABLAS!$A$281) | AR56: =+IMPORTARDATOSDINAMICOS(" BAS040";TABLAS!$A$281)
B57: Mediante teleorientación síncrona | C57: =+GETPIVOTDATA(" BAS036",TABLAS!$A$95) -> 0 | E57: IGRA | F57: Aplicación | G57: =M86 -> 0 | H57: =+GETPIVOTDATA(" BAS038",TABLAS!$A$95) -> 0 | J57: Administración de terapia preventiva para población vulnerable para TB | L57: =M90 -> 0 | Q57: =+Q56+1 -> 36 | S57: =+S55+1 -> 38 | AC57: 036 | AE57: =IF(LEN(S57)=1,CONCATENATE("00",S57),IF(LEN(S57)=2,CONCATENATE("0",S57),S57)) -> 038 | AN57: =+IMPORTARDATOSDINAMICOS(" BAS036";TABLAS!$A$281) | AP57: =$AI$23&AE57&$AJ$22 -> =+IMPORTARDATOSDINAMICOS(" BAS038";TABLAS!$A$281)
B58: Total | C58: =SUM(C55+C56+C57) -> 0 | F58: Lectura | G58: =M87 -> 0 | J58: TOTAL | L58: =SUM(L55+L56+L57) -> 3
B59: *Mediante visita familiar | E59: TOTAL | H59: =SUM(H55+H57) -> 0
B61: IV. ACTIVIDADES DE PROMOCIÓN DE LA SALUD EN TUBERCULOSIS
B62: ACTIVIDADES | D62: MODALIDAD | E62: N° | F62: TOTAL
B63: Consejeria para TB | C63: Primera | D63: Mediante visita familiar | E63: =+GETPIVOTDATA(" BAS041",TABLAS!$A$95) -> 0 | F63: =SUM(E63+E64+E65+E66) -> 0 | Q63: =+U56+1 -> 41 | AC63: =IF(LEN(Q63)=1,CONCATENATE("00",Q63),IF(LEN(Q63)=2,CONCATENATE("0",Q63),Q63)) -> 041 | AN63: =$AI$23&AC63&$AJ$22 -> =+IMPORTARDATOSDINAMICOS(" BAS041";TABLAS!$A$281)
D64: Mediante teleorientación síncrona | E64: =+GETPIVOTDATA(" BAS042",TABLAS!$A$95) -> 0 | Q64: =+Q63+1 -> 42 | AC64: 042 | AN64: =+IMPORTARDATOSDINAMICOS(" BAS042";TABLAS!$A$281)
C65: Segunda | D65: Mediante visita familiar | E65: =+GETPIVOTDATA(" BAS043",TABLAS!$A$95) -> 0 | Q65: =+Q64+1 -> 43 | AC65: 043 | AN65: =+IMPORTARDATOSDINAMICOS(" BAS043";TABLAS!$A$281)
D66: Mediante teleorientación síncrona | E66: =+GETPIVOTDATA(" BAS044",TABLAS!$A$95) -> 0 | Q66: 44 | AC66: 044 | AN66: =+IMPORTARDATOSDINAMICOS(" BAS044";TABLAS!$A$281)
B67: Sesión educativa y demostrativa para TB | C67: Primera | E67: =+GETPIVOTDATA(" BAS045",TABLAS!$A$95) -> 0 | F67: =SUM(E67+E68) -> 0 | Q67: 45 | AC67: 045 | AN67: =+IMPORTARDATOSDINAMICOS(" BAS045";TABLAS!$A$281)
C68: Segunda | E68: =+GETPIVOTDATA(" BAS046",TABLAS!$A$95) -> 0 | Q68: 46 | AC68: 046 | AN68: =+IMPORTARDATOSDINAMICOS(" BAS046";TABLAS!$A$281)
B69: Visitas familiar | F69: =SUM(C56+E63+E65) -> 0
B70: Otras consejerias | F70: =+GETPIVOTDATA(" BAS047",TABLAS!$A$95) -> 1 | Q70: =+Q68+1 -> 47 | AC70: =IF(LEN(Q70)=1,CONCATENATE("00",Q70),IF(LEN(Q70)=2,CONCATENATE("0",Q70),Q70)) -> 047 | AN70: =$AI$23&AC70&$AJ$22 -> =+IMPORTARDATOSDINAMICOS(" BAS047";TABLAS!$A$281)
B73: V. ACTIVIDADES EN TELESALUD
B75: ACTIVIDADES | C75: N°
B76: Teleconsulta en línea | C76: =G45 -> 0
B77: Teleorientación síncrona | C77: =SUM(G48+C57) -> 0
B78: Total | C78: =SUM(C76+C77+#REF!) -> 
B80: REPORTE DE ACTIVIDADES SEGMENTADO POR POBLACION AFECTADA Y VULNERABLE
B82: ACTIVIDADES | C82: POBLACION AFECTADA Y VULNERABLE | M82: TOTAL
C83: POBLACIÓN EN GENERAL | D83: CONTACTOS | E83: PERSONA VIVIENDO CON VIH/SIDA | F83: TRABAJADOR DE SALUD | G83: PERSONA CON DIABETES MELLITUS | H83: PPL | I83: PERSONA CON TERAPIA PROLONGADA CON CORTICOIDES | J83: PERSONA CON HEMODIALISIS Y/O ENFERMEDAD RENAL CRÓNICA | K83: PERSONAL PENITENCIARIO | L83: OTRAS CONDICIONES DE SALUD SEGÚN NORMATIVIDAD VIGENTE
B84: Aplicación de PPD | D84: =+GETPIVOTDATA(" BAS048",TABLAS!$A$95) -> 2 | E84: =+GETPIVOTDATA(" BAS049",TABLAS!$A$95) -> 0 | F84: =+GETPIVOTDATA(" BAS050",TABLAS!$A$95) -> 0 | G84: =+GETPIVOTDATA(" BAS051",TABLAS!$A$95) -> 0 | H84: =+GETPIVOTDATA(" BAS052",TABLAS!$A$95) -> 0 | I84: =+GETPIVOTDATA(" BAS053",TABLAS!$A$95) -> 0 | J84: =+GETPIVOTDATA(" BAS054",TABLAS!$A$95) -> 0 | K84: =+GETPIVOTDATA(" BAS055",TABLAS!$A$95) -> 0 | L84: =+GETPIVOTDATA(" BAS056",TABLAS!$A$95) -> 0 | M84: =SUM(C84+D84+E84+F84+G84+H84+I84+J84+K84+L84) -> 2 | Q84: =+Q70+1 -> 48 | R84: =+Q84+1 -> 49 | S84: =+R84+1 -> 50 | T84: 51 | U84: 52 | V84: 53 | W84: 54 | X84: 55 | Y84: 56 | AC84: =IF(LEN(Q84)=1,CONCATENATE("00",Q84),IF(LEN(Q84)=2,CONCATENATE("0",Q84),Q84)) -> 048 | AD84: 049 | AE84: 050 | AF84: 051 | AG84: 052 | AH84: 053 | AI84: 054 | AJ84: 055 | AK84: 056 | AN84: =$AI$23&AC84&$AJ$22 -> =+IMPORTARDATOSDINAMICOS(" BAS048";TABLAS!$A$281) | AO84: =$AI$23&AD84&$AJ$22 -> =+IMPORTARDATOSDINAMICOS(" BAS049";TABLAS!$A$281) | AP84: =+IMPORTARDATOSDINAMICOS(" BAS050";TABLAS!$A$281) | AQ84: =+IMPORTARDATOSDINAMICOS(" BAS051";TABLAS!$A$281) | AR84: =+IMPORTARDATOSDINAMICOS(" BAS052";TABLAS!$A$281) | AS84: =+IMPORTARDATOSDINAMICOS(" BAS053";TABLAS!$A$281) | AT84: =+IMPORTARDATOSDINAMICOS(" BAS054";TABLAS!$A$281) | AU84: =+IMPORTARDATOSDINAMICOS(" BAS055";TABLAS!$A$281) | AV84: =+IMPORTARDATOSDINAMICOS(" BAS056";TABLAS!$A$281)
B85: Lectura de PPD | D85: =+GETPIVOTDATA(" BAS057",TABLAS!$A$95) -> 1 | E85: =+GETPIVOTDATA(" BAS058",TABLAS!$A$95) -> 0 | F85: =+GETPIVOTDATA(" BAS059",TABLAS!$A$95) -> 0 | G85: =+GETPIVOTDATA(" BAS060",TABLAS!$A$95) -> 0 | H85: =+GETPIVOTDATA(" BAS061",TABLAS!$A$95) -> 0 | I85: =+GETPIVOTDATA(" BAS062",TABLAS!$A$95) -> 0 | J85: =+GETPIVOTDATA(" BAS063",TABLAS!$A$95) -> 0 | K85: =+GETPIVOTDATA(" BAS064",TABLAS!$A$95) -> 0 | L85: =+GETPIVOTDATA(" BAS065",TABLAS!$A$95) -> 0 | M85: 1 | Q85: =+Y84+1 -> 57 | R85: =+Q85+1 -> 58 | S85: 59 | T85: 60 | U85: 61 | V85: 62 | W85: 63 | X85: 64 | Y85: 65 | AC85: 057 | AD85: 058 | AE85: 059 | AF85: 060 | AG85: 061 | AH85: 062 | AI85: 063 | AJ85: 064 | AK85: 065 | AN85: =$AI$23&AC85&$AJ$22 -> =+IMPORTARDATOSDINAMICOS(" BAS057";TABLAS!$A$281) | AO85: =+IMPORTARDATOSDINAMICOS(" BAS058";TABLAS!$A$281) | AP85: =+IMPORTARDATOSDINAMICOS(" BAS059";TABLAS!$A$281) | AQ85: =+IMPORTARDATOSDINAMICOS(" BAS060";TABLAS!$A$281) | AR85: =+IMPORTARDATOSDINAMICOS(" BAS061";TABLAS!$A$281) | AS85: =+IMPORTARDATOSDINAMICOS(" BAS062";TABLAS!$A$281) | AT85: =+IMPORTARDATOSDINAMICOS(" BAS063";TABLAS!$A$281) | AU85: =+IMPORTARDATOSDINAMICOS(" BAS064";TABLAS!$A$281) | AV85: =+IMPORTARDATOSDINAMICOS(" BAS065";TABLAS!$A$281)
B86: Aplicación de IGRA | D86: =+GETPIVOTDATA(" BAS066",TABLAS!$A$95) -> 0 | E86: =+GETPIVOTDATA(" BAS067",TABLAS!$A$95) -> 0 | F86: =+GETPIVOTDATA(" BAS068",TABLAS!$A$95) -> 0 | G86: =+GETPIVOTDATA(" BAS069",TABLAS!$A$95) -> 0 | H86: =+GETPIVOTDATA(" BAS070",TABLAS!$A$95) -> 0 | I86: =+GETPIVOTDATA(" BAS071",TABLAS!$A$95) -> 0 | J86: =+GETPIVOTDATA(" BAS072",TABLAS!$A$95) -> 0 | K86: =+GETPIVOTDATA(" BAS073",TABLAS!$A$95) -> 0 | L86: =+GETPIVOTDATA(" BAS074",TABLAS!$A$95) -> 0 | M86: 0 | Q86: =+Y85+1 -> 66 | R86: 67 | S86: 68 | T86: 69 | U86: 70 | V86: 71 | W86: 72 | X86: 73 | Y86: 74 | AC86: 066 | AD86: 067 | AE86: 068 | AF86: 069 | AG86: 070 | AH86: 071 | AI86: 072 | AJ86: 073 | AK86: 074 | AN86: =+IMPORTARDATOSDINAMICOS(" BAS066";TABLAS!$A$281) | AO86: =+IMPORTARDATOSDINAMICOS(" BAS067";TABLAS!$A$281) | AP86: =+IMPORTARDATOSDINAMICOS(" BAS068";TABLAS!$A$281) | AQ86: =+IMPORTARDATOSDINAMICOS(" BAS069";TABLAS!$A$281) | AR86: =+IMPORTARDATOSDINAMICOS(" BAS070";TABLAS!$A$281) | AS86: =+IMPORTARDATOSDINAMICOS(" BAS071";TABLAS!$A$281) | AT86: =+IMPORTARDATOSDINAMICOS(" BAS072";TABLAS!$A$281) | AU86: =+IMPORTARDATOSDINAMICOS(" BAS073";TABLAS!$A$281) | AV86: =+IMPORTARDATOSDINAMICOS(" BAS074";TABLAS!$A$281)
B87: Lectura de IGRA | D87: =+GETPIVOTDATA(" BAS075",TABLAS!$A$95) -> 0 | E87: =+GETPIVOTDATA(" BAS076",TABLAS!$A$95) -> 0 | F87: =+GETPIVOTDATA(" BAS077",TABLAS!$A$95) -> 0 | G87: =+GETPIVOTDATA(" BAS078",TABLAS!$A$95) -> 0 | H87: =+GETPIVOTDATA(" BAS079",TABLAS!$A$95) -> 0 | I87: =+GETPIVOTDATA(" BAS080",TABLAS!$A$95) -> 0 | J87: =+GETPIVOTDATA(" BAS081",TABLAS!$A$95) -> 0 | K87: =+GETPIVOTDATA(" BAS082",TABLAS!$A$95) -> 0 | L87: =+GETPIVOTDATA(" BAS083",TABLAS!$A$95) -> 0 | M87: 0 | Q87: 75 | R87: 76 | S87: 77 | T87: 78 | U87: 79 | V87: 80 | W87: 81 | X87: 82 | Y87: 83 | AC87: 075 | AD87: 076 | AE87: 077 | AF87: 078 | AG87: 079 | AH87: 080 | AI87: 081 | AJ87: 082 | AK87: 083 | AN87: =+IMPORTARDATOSDINAMICOS(" BAS075";TABLAS!$A$281) | AO87: =+IMPORTARDATOSDINAMICOS(" BAS076";TABLAS!$A$281) | AP87: =+IMPORTARDATOSDINAMICOS(" BAS077";TABLAS!$A$281) | AQ87: =+IMPORTARDATOSDINAMICOS(" BAS078";TABLAS!$A$281) | AR87: =+IMPORTARDATOSDINAMICOS(" BAS079";TABLAS!$A$281) | AS87: =+IMPORTARDATOSDINAMICOS(" BAS080";TABLAS!$A$281) | AT87: =+IMPORTARDATOSDINAMICOS(" BAS081";TABLAS!$A$281) | AU87: =+IMPORTARDATOSDINAMICOS(" BAS082";TABLAS!$A$281) | AV87: =+IMPORTARDATOSDINAMICOS(" BAS083";TABLAS!$A$281)
B88: Administración de terapia preventiva para contactos de TB sensible | D88: =+GETPIVOTDATA(" BAS084",TABLAS!$A$95) -> 3 | M88: 3 | Q88: 84 | AC88: 084 | AN88: =+IMPORTARDATOSDINAMICOS(" BAS084";TABLAS!$A$281)
B89: Administración de terapia preventiva para contactos de TB resistente | D89: =+GETPIVOTDATA(" BAS085",TABLAS!$A$95) -> 0 | M89: 0 | Q89: =+Q88+1 -> 85 | AC89: 085 | AN89: =+IMPORTARDATOSDINAMICOS(" BAS085";TABLAS!$A$281)
B90: Administración de terapia preventiva para población vulnerable para TB | E90: =+GETPIVOTDATA(" BAS086",TABLAS!$A$95) -> 0 | F90: =+GETPIVOTDATA(" BAS087",TABLAS!$A$95) -> 0 | G90: =+GETPIVOTDATA(" BAS088",TABLAS!$A$95) -> 0 | H90: =+GETPIVOTDATA(" BAS089",TABLAS!$A$95) -> 0 | I90: =+GETPIVOTDATA(" BAS090",TABLAS!$A$95) -> 0 | J90: =+GETPIVOTDATA(" BAS091",TABLAS!$A$95) -> 0 | K90: =+GETPIVOTDATA(" BAS092",TABLAS!$A$95) -> 0 | L90: =+GETPIVOTDATA(" BAS093",TABLAS!$A$95) -> 0 | M90: 0 | R90: =+Q89+1 -> 86 | S90: =+R90+1 -> 87 | T90: 88 | U90: 89 | V90: 90 | W90: 91 | X90: 92 | Y90: 93 | AD90: =IF(LEN(R90)=1,CONCATENATE("00",R90),IF(LEN(R90)=2,CONCATENATE("0",R90),R90)) -> 086 | AE90: 087 | AF90: 088 | AG90: 089 | AH90: 090 | AI90: 091 | AJ90: 092 | AK90: 093 | AO90: =$AI$23&AD90&$AJ$22 -> =+IMPORTARDATOSDINAMICOS(" BAS086";TABLAS!$A$281) | AP90: =+IMPORTARDATOSDINAMICOS(" BAS087";TABLAS!$A$281) | AQ90: =+IMPORTARDATOSDINAMICOS(" BAS088";TABLAS!$A$281) | AR90: =+IMPORTARDATOSDINAMICOS(" BAS089";TABLAS!$A$281) | AS90: =+IMPORTARDATOSDINAMICOS(" BAS090";TABLAS!$A$281) | AT90: =+IMPORTARDATOSDINAMICOS(" BAS091";TABLAS!$A$281) | AU90: =+IMPORTARDATOSDINAMICOS(" BAS092";TABLAS!$A$281) | AV90: =+IMPORTARDATOSDINAMICOS(" BAS093";TABLAS!$A$281)
B91: Caso probable | C91: =+GETPIVOTDATA(" BAS094",TABLAS!$A$95) -> 0 | D91: =+GETPIVOTDATA(" BAS095",TABLAS!$A$95) -> 0 | E91: =+GETPIVOTDATA(" BAS096",TABLAS!$A$95) -> 0 | F91: =+GETPIVOTDATA(" BAS097",TABLAS!$A$95) -> 0 | G91: =+GETPIVOTDATA(" BAS098",TABLAS!$A$95) -> 0 | H91: =+GETPIVOTDATA(" BAS099",TABLAS!$A$95) -> 0 | I91: =+GETPIVOTDATA(" BAS100",TABLAS!$A$95) -> 0 | J91: =+GETPIVOTDATA(" BAS101",TABLAS!$A$95) -> 0 | K91: =+GETPIVOTDATA(" BAS102",TABLAS!$A$95) -> 0 | L91: =+GETPIVOTDATA(" BAS103",TABLAS!$A$95) -> 0 | M91: 0 | Q91: 94 | R91: =+Q91+1 -> 95 | S91: 96 | T91: 97 | U91: 98 | V91: 99 | W91: 100 | X91: 101 | Y91: 102 | Z91: 103 | AC91: =IF(LEN(Q91)=1,CONCATENATE("00",Q91),IF(LEN(Q91)=2,CONCATENATE("0",Q91),Q91)) -> 094 | AD91: 095 | AE91: 096 | AF91: 097 | AG91: 098 | AH91: 099 | AI91: 100 | AJ91: 101 | AK91: 102 | AL91: 103 | AN91: =$AI$23&AC91&$AJ$22 -> =+IMPORTARDATOSDINAMICOS(" BAS094";TABLAS!$A$281) | AO91: =+IMPORTARDATOSDINAMICOS(" BAS095";TABLAS!$A$281) | AP91: =+IMPORTARDATOSDINAMICOS(" BAS096";TABLAS!$A$281) | AQ91: =+IMPORTARDATOSDINAMICOS(" BAS097";TABLAS!$A$281) | AR91: =+IMPORTARDATOSDINAMICOS(" BAS098";TABLAS!$A$281) | AS91: =+IMPORTARDATOSDINAMICOS(" BAS099";TABLAS!$A$281) | AT91: =+IMPORTARDATOSDINAMICOS(" BAS100";TABLAS!$A$281) | AU91: =+IMPORTARDATOSDINAMICOS(" BAS101";TABLAS!$A$281) | AV91: =+IMPORTARDATOSDINAMICOS(" BAS102";TABLAS!$A$281) | AW91: =+IMPORTARDATOSDINAMICOS(" BAS103";TABLAS!$A$281)
B92: Sintomático respiratorio identificado | C92: =+GETPIVOTDATA(" BAS104",TABLAS!$A$95) -> 41 | D92: =+GETPIVOTDATA(" BAS105",TABLAS!$A$95) -> 1 | E92: =+GETPIVOTDATA(" BAS106",TABLAS!$A$95) -> 0 | F92: =+GETPIVOTDATA(" BAS107",TABLAS!$A$95) -> 0 | G92: =+GETPIVOTDATA(" BAS108",TABLAS!$A$95) -> 0 | H92: =+GETPIVOTDATA(" BAS109",TABLAS!$A$95) -> 0 | I92: =+GETPIVOTDATA(" BAS110",TABLAS!$A$95) -> 0 | J92: =+GETPIVOTDATA(" BAS111",TABLAS!$A$95) -> 0 | K92: =+GETPIVOTDATA(" BAS112",TABLAS!$A$95) -> 0 | L92: =+GETPIVOTDATA(" BAS113",TABLAS!$A$95) -> 0 | M92: 42 | Q92: =+Z91+1 -> 104 | R92: 105 | S92: 106 | T92: 107 | U92: 108 | V92: 109 | W92: 110 | X92: 111 | Y92: 112 | Z92: 113 | AC92: 104 | AD92: 105 | AE92: 106 | AF92: 107 | AG92: 108 | AH92: 109 | AI92: 110 | AJ92: 111 | AK92: 112 | AL92: 113 | AN92: =+IMPORTARDATOSDINAMICOS(" BAS104";TABLAS!$A$281) | AO92: =+IMPORTARDATOSDINAMICOS(" BAS105";TABLAS!$A$281) | AP92: =+IMPORTARDATOSDINAMICOS(" BAS106";TABLAS!$A$281) | AQ92: =+IMPORTARDATOSDINAMICOS(" BAS107";TABLAS!$A$281) | AR92: =+IMPORTARDATOSDINAMICOS(" BAS108";TABLAS!$A$281) | AS92: =+IMPORTARDATOSDINAMICOS(" BAS109";TABLAS!$A$281) | AT92: =+IMPORTARDATOSDINAMICOS(" BAS110";TABLAS!$A$281) | AU92: =+IMPORTARDATOSDINAMICOS(" BAS111";TABLAS!$A$281) | AV92: =+IMPORTARDATOSDINAMICOS(" BAS112";TABLAS!$A$281) | AW92: =+IMPORTARDATOSDINAMICOS(" BAS113";TABLAS!$A$281)
B93: Sintomático respiratorio examinado | C93: =+GETPIVOTDATA(" BAS114",TABLAS!$A$95) -> 37 | D93: =+GETPIVOTDATA(" BAS115",TABLAS!$A$95) -> 1 | E93: =+GETPIVOTDATA(" BAS116",TABLAS!$A$95) -> 0 | F93: =+GETPIVOTDATA(" BAS117",TABLAS!$A$95) -> 0 | G93: =+GETPIVOTDATA(" BAS118",TABLAS!$A$95) -> 0 | H93: =+GETPIVOTDATA(" BAS119",TABLAS!$A$95) -> 1 | I93: =+GETPIVOTDATA(" BAS120",TABLAS!$A$95) -> 0 | J93: =+GETPIVOTDATA(" BAS121",TABLAS!$A$95) -> 0 | K93: =+GETPIVOTDATA(" BAS122",TABLAS!$A$95) -> 0 | L93: =+GETPIVOTDATA(" BAS123",TABLAS!$A$95) -> 0 | M93: 39 | Q93: =+Z92+1 -> 114 | R93: 115 | S93: 116 | T93: 117 | U93: 118 | V93: 119 | W93: 120 | X93: 121 | Y93: 122 | Z93: 123 | AC93: 114 | AD93: 115 | AE93: 116 | AF93: 117 | AG93: 118 | AH93: 119 | AI93: 120 | AJ93: 121 | AK93: 122 | AL93: 123 | AN93: =+IMPORTARDATOSDINAMICOS(" BAS114";TABLAS!$A$281) | AO93: =+IMPORTARDATOSDINAMICOS(" BAS115";TABLAS!$A$281) | AP93: =+IMPORTARDATOSDINAMICOS(" BAS116";TABLAS!$A$281) | AQ93: =+IMPORTARDATOSDINAMICOS(" BAS117";TABLAS!$A$281) | AR93: =+IMPORTARDATOSDINAMICOS(" BAS118";TABLAS!$A$281) | AS93: =+IMPORTARDATOSDINAMICOS(" BAS119";TABLAS!$A$281) | AT93: =+IMPORTARDATOSDINAMICOS(" BAS120";TABLAS!$A$281) | AU93: =+IMPORTARDATOSDINAMICOS(" BAS121";TABLAS!$A$281) | AV93: =+IMPORTARDATOSDINAMICOS(" BAS122";TABLAS!$A$281) | AW93: =+IMPORTARDATOSDINAMICOS(" BAS123";TABLAS!$A$281)
B94: SR examinados con bacteriología confirmada | C94: =+GETPIVOTDATA(" BAS124",TABLAS!$A$95) -> 0 | D94: =+GETPIVOTDATA(" BAS125",TABLAS!$A$95) -> 0 | E94: =+GETPIVOTDATA(" BAS126",TABLAS!$A$95) -> 0 | F94: =+GETPIVOTDATA(" BAS127",TABLAS!$A$95) -> 0 | G94: =+GETPIVOTDATA(" BAS128",TABLAS!$A$95) -> 0 | H94: =+GETPIVOTDATA(" BAS129",TABLAS!$A$95) -> 0 | I94: =+GETPIVOTDATA(" BAS130",TABLAS!$A$95) -> 0 | J94: =+GETPIVOTDATA(" BAS131",TABLAS!$A$95) -> 0 | K94: =+GETPIVOTDATA(" BAS132",TABLAS!$A$95) -> 0 | L94: =+GETPIVOTDATA(" BAS133",TABLAS!$A$95) -> 0 | M94: 0 | Q94: 124 | R94: 125 | S94: 126 | T94: 127 | U94: 128 | V94: 129 | W94: 130 | X94: 131 | Y94: 132 | Z94: 133 | AC94: 124 | AD94: 125 | AE94: 126 | AF94: 127 | AG94: 128 | AH94: 129 | AI94: 130 | AJ94: 131 | AK94: 132 | AL94: 133 | AN94: =+IMPORTARDATOSDINAMICOS(" BAS124";TABLAS!$A$281) | AO94: =+IMPORTARDATOSDINAMICOS(" BAS125";TABLAS!$A$281) | AP94: =+IMPORTARDATOSDINAMICOS(" BAS126";TABLAS!$A$281) | AQ94: =+IMPORTARDATOSDINAMICOS(" BAS127";TABLAS!$A$281) | AR94: =+IMPORTARDATOSDINAMICOS(" BAS128";TABLAS!$A$281) | AS94: =+IMPORTARDATOSDINAMICOS(" BAS129";TABLAS!$A$281) | AT94: =+IMPORTARDATOSDINAMICOS(" BAS130";TABLAS!$A$281) | AU94: =+IMPORTARDATOSDINAMICOS(" BAS131";TABLAS!$A$281) | AV94: =+IMPORTARDATOSDINAMICOS(" BAS132";TABLAS!$A$281) | AW94: =+IMPORTARDATOSDINAMICOS(" BAS133";TABLAS!$A$281)

Sheet TBC1829
B3: REPORTE MENSUAL DE ACTIVIDADES DE PREVENCION Y CONTROL DE TUBERCULOSIS [18-29]
B4: CURSO DE VIDA : JOVEN
B6: DIRESA | C6: CUSCO | F6: REGION | G6: CUSCO
B8: RED DE SALUD | C8: =+TABLAS!O9 -> 03 - LA CONVENCION | F8: EJECUTORA | G8: =+TABLAS!O14 -> 
B10: MICRO RED | C10: =+TABLAS!O10 ->  | F10: RESPONSABLE
B12: EE.SS. | C12: =+TABLAS!O11 ->  | F12: COD. RENAES | G12: =+TABLAS!Q11 -> 
B14: PROVINCIA | C14: =+TABLAS!O12 ->  | F14: AÑO | G14: =+TABLAS!J16 -> 2025
B16: DISTRITO | C16: =+TABLAS!O13 ->  | F16: MES | G16: =+TABLAS!N26 -> ENE - MAR
B18: INSTITUCION : MINSA ( X ) ESSALUD ( ) FFAA ( ) PNP ( ) INPE ( ) OTROS ( )
B20: I. ACTIVIDADES DE DETECCION Y DIAGNOSTICO PARA TUBERCULOSIS
B22: DETECCIÓN DE CASOS | G22: RECOLECCIÓN DE MUESTRAS PARA EXAMEN BACTERIOLÓGICO | I22: N° | AJ22: ";TABLAS!$A$281)
B23: Sintomático respiratorio (SR) | E23: Caso probable de TB | G23: RECOLECCIÓN DE MUESTRAS PARA TB* | I23: =+GETPIVOTDATA(" BAS001",TABLAS!$A$130) -> 574 | Q23: 1 | AC23: =IF(LEN(Q23)=1,CONCATENATE("00",Q23),IF(LEN(Q23)=2,CONCATENATE("0",Q23),Q23)) -> 001 | AI23: =+IMPORTARDATOSDINAMICOS(" BAS | AN23: =$AI$23&AC23&$AJ$22 -> =+IMPORTARDATOSDINAMICOS(" BAS001";TABLAS!$A$281)
B24: SR Identificado | C24: SR Examinado | D24: SR examinados con bacteriología confirmada | G24: PROCEDIMIENTOS ESPECIALES PARA OBTENCION DE MUESTRAS | H24: Lavado gástrico | I24: =+GETPIVOTDATA(" BAS002",TABLAS!$A$130) -> 0 | Q24: =+Q23+1 -> 2 | AC24: 002 | AN24: =$AI$23&AC24&$AJ$22 -> =+IMPORTARDATOSDINAMICOS(" BAS002";TABLAS!$A$281)
B25: =M92 -> 142 | C25: =M93 -> 141 | D25: =M94 -> 0 | E25: =M91 -> 0 | H25: Inducción del esputo | I25: =+GETPIVOTDATA(" BAS003",TABLAS!$A$130) -> 0 | Q25: =+Q24+1 -> 3 | AC25: 003 | AN25: =+IMPORTARDATOSDINAMICOS(" BAS003";TABLAS!$A$281)
G26: TOTAL | I26: =SUM(I23+I24+I25) -> 574
B27: SR examinados con bacteriología confirmada | G27: *Muestra recolectada por expectoración espontánea
B28: Por baciloscopia | D28: =+GETPIVOTDATA(" BAS004",TABLAS!$A$130) -> 0 | G28: REFERENCIAS | Q28: =+Q25+1 -> 4 | AC28: =IF(LEN(Q28)=1,CONCATENATE("00",Q28),IF(LEN(Q28)=2,CONCATENATE("0",Q28),Q28)) -> 004 | AN28: =$AI$23&AC28&$AJ$22 -> =+IMPORTARDATOSDINAMICOS(" BAS004";TABLAS!$A$281)
B29: Por prueba molecular | D29: =+GETPIVOTDATA(" BAS005",TABLAS!$A$130) -> 0 | G29: Condición | H29: Derivaciones | I29: Transferencias | Q29: =+Q28+1 -> 5 | T29: =+Q30+1 -> 7 | U29: =+T29+1 -> 8 | AC29: 005 | AF29: =IF(LEN(T29)=1,CONCATENATE("00",T29),IF(LEN(T29)=2,CONCATENATE("0",T29),T29)) -> 007 | AG29: 008 | AN29: =+IMPORTARDATOSDINAMICOS(" BAS005";TABLAS!$A$281) | AQ29: =$AI$23&AF29&$AJ$22 -> =+IMPORTARDATOSDINAMICOS(" BAS007";TABLAS!$A$281) | AR29: =+IMPORTARDATOSDINAMICOS(" BAS008";TABLAS!$A$281)
B30: Por cultivo | D30: =+GETPIVOTDATA(" BAS006",TABLAS!$A$130) -> 0 | G30: Realizadas | H30: =+GETPIVOTDATA(" BAS007",TABLAS!$A$130) -> 0 | I30: =+GETPIVOTDATA(" BAS008",TABLAS!$A$130) -> 0 | Q30: =+Q29+1 -> 6 | T30: =+U29+1 -> 9 | U30: =+T30+1 -> 10 | AC30: 006 | AF30: 009 | AG30: 010 | AN30: =+IMPORTARDATOSDINAMICOS(" BAS006";TABLAS!$A$281) | AQ30: =+IMPORTARDATOSDINAMICOS(" BAS009";TABLAS!$A$281) | AR30: =+IMPORTARDATOSDINAMICOS(" BAS010";TABLAS!$A$281)
B31: TOTAL | D31: =SUM(D28+D29+D30) -> 0 | G31: Aceptadas | H31: =+GETPIVOTDATA(" BAS009",TABLAS!$A$130) -> 0 | I31: =+GETPIVOTDATA(" BAS010",TABLAS!$A$130) -> 0
G32: TOTAL | H32: =SUM(H30+H31) -> 0 | I32: =SUM(I30+I31) -> 0
B33: COMORBILIDADES Y CONDICIONES ASOCIADAS | D33: N°
B34: TB-VIH/SIDA | D34: =+GETPIVOTDATA(" BAS011",TABLAS!$A$130) -> 0 | G34: TAMIZAJE DE COMORBILIDADES | I34: N° | Q34: =+U30+1 -> 11 | AC34: =IF(LEN(Q34)=1,CONCATENATE("00",Q34),IF(LEN(Q34)=2,CONCATENATE("0",Q34),Q34)) -> 011 | AN34: =$AI$23&AC34&$AJ$22 -> =+IMPORTARDATOSDINAMICOS(" BAS011";TABLAS!$A$281)
B35: TB-DM | D35: =+GETPIVOTDATA(" BAS012",TABLAS!$A$130) -> 0 | G35: Tamizaje TB-VIH | I35: =+GETPIVOTDATA(" BAS014",TABLAS!$A$130) -> 2 | Q35: =+Q34+1 -> 12 | S35: =+Q36+1 -> 14 | AC35: 012 | AE35: =IF(LEN(S35)=1,CONCATENATE("00",S35),IF(LEN(S35)=2,CONCATENATE("0",S35),S35)) -> 014 | AN35: =+IMPORTARDATOSDINAMICOS(" BAS012";TABLAS!$A$281) | AP35: =$AI$23&AE35&$AJ$22 -> =+IMPORTARDATOSDINAMICOS(" BAS014";TABLAS!$A$281)
B36: Reacción adversa a medicamentos para TB | D36: =+GETPIVOTDATA(" BAS013",TABLAS!$A$130) -> 0 | G36: Tamizaje TB-DM | I36: =+GETPIVOTDATA(" BAS015",TABLAS!$A$130) -> 1 | Q36: 13 | S36: =+S35+1 -> 15 | AC36: 013 | AE36: 015 | AN36: =+IMPORTARDATOSDINAMICOS(" BAS013";TABLAS!$A$281) | AP36: =+IMPORTARDATOSDINAMICOS(" BAS015";TABLAS!$A$281)
B39: II. ACTIVIDADES PARA LA RECUPERACION DE LA PERSONA AFECTADA POR TUBERCULOSIS
B41: ATENCIÓN MULTIDISCIPLINARIA | D41: MODALIDAD | E41: EN PAT CON TB SENSIBLE | F41: EN PAT CON TB RESISTENTE | G41: TOTAL | I41: 2 | K41: N°
B42: Evaluación médica | E42: =+GETPIVOTDATA(" BAS016",TABLAS!$A$130) -> 0 | F42: =+GETPIVOTDATA(" BAS017",TABLAS!$A$130) -> 0 | G42: =SUM(E42+F42) -> 0 | I42: Administración de tratamiento para TB sensible | K42: =+GETPIVOTDATA(" BAS028",TABLAS!$A$130) -> 485 | Q42: =+S36+1 -> 16 | R42: =+Q42+1 -> 17 | V42: =+Q48+1 -> 28 | AC42: =IF(LEN(Q42)=1,CONCATENATE("00",Q42),IF(LEN(Q42)=2,CONCATENATE("0",Q42),Q42)) -> 016 | AD42: 017 | AH42: =IF(LEN(V42)=1,CONCATENATE("00",V42),IF(LEN(V42)=2,CONCATENATE("0",V42),V42)) -> 028 | AN42: =$AI$23&AC42&$AJ$22 -> =+IMPORTARDATOSDINAMICOS(" BAS016";TABLAS!$A$281) | AO42: =+IMPORTARDATOSDINAMICOS(" BAS017";TABLAS!$A$281) | AS42: =$AI$23&AH42&$AJ$22 -> =+IMPORTARDATOSDINAMICOS(" BAS028";TABLAS!$A$281)
B43: Atención en consultorio de enfermería | E43: =+GETPIVOTDATA(" BAS018",TABLAS!$A$130) -> 0 | F43: =+GETPIVOTDATA(" BAS019",TABLAS!$A$130) -> 0 | G43: =SUM(E43+F43) -> 0 | I43: Administración de tratamiento para TB resistente | K43: =+GETPIVOTDATA(" BAS029",TABLAS!$A$130) -> 23 | Q43: =+R42+1 -> 18 | R43: =+Q43+1 -> 19 | V43: =+V42+1 -> 29 | AC43: 018 | AD43: 019 | AH43: 029 | AN43: =+IMPORTARDATOSDINAMICOS(" BAS018";TABLAS!$A$281) | AO43: =+IMPORTARDATOSDINAMICOS(" BAS019";TABLAS!$A$281) | AS43: =+IMPORTARDATOSDINAMICOS(" BAS029";TABLAS!$A$281)
B44: Atención de servicio social | D44: En el establecimiento de salud | E44: =+GETPIVOTDATA(" BAS020",TABLAS!$A$130) -> 0 | F44: =+GETPIVOTDATA(" BAS021",TABLAS!$A$130) -> 0 | G44: =SUM(E44+F44) -> 0 | I44: Control de tratamiento | K44: =+GETPIVOTDATA(" BAS030",TABLAS!$A$130) -> 17 | Q44: =+R43+1 -> 20 | R44: 21 | V44: =+V43+1 -> 30 | AC44: 020 | AD44: 021 | AH44: 030 | AN44: =+IMPORTARDATOSDINAMICOS(" BAS020";TABLAS!$A$281) | AO44: =+IMPORTARDATOSDINAMICOS(" BAS021";TABLAS!$A$281) | AS44: =+IMPORTARDATOSDINAMICOS(" BAS030";TABLAS!$A$281)
D45: Mediante teleconsulta en línea | E45: =+GETPIVOTDATA(" BAS022",TABLAS!$A$130) -> 0 | F45: =+GETPIVOTDATA(" BAS023",TABLAS!$A$130) -> 0 | G45: =SUM(E45+F45) -> 0 | Q45: 22 | R45: 23 | AC45: 022 | AD45: 023 | AN45: =+IMPORTARDATOSDINAMICOS(" BAS022";TABLAS!$A$281) | AO45: =+IMPORTARDATOSDINAMICOS(" BAS023";TABLAS!$A$281)
B46: Atención en nutrición | E46: =+GETPIVOTDATA(" BAS024",TABLAS!$A$130) -> 0 | F46: =+GETPIVOTDATA(" BAS025",TABLAS!$A$130) -> 0 | G46: =SUM(E46+F46) -> 0 | I46: RETO ANTE REACCIONES ADVERSAS | Q46: 24 | R46: 25 | AC46: 024 | AD46: 025 | AN46: =+IMPORTARDATOSDINAMICOS(" BAS024";TABLAS!$A$281) | AO46: =+IMPORTARDATOSDINAMICOS(" BAS025";TABLAS!$A$281)
B47: Atención en salud mental | D47: En el establecimiento de salud | G47: =+GETPIVOTDATA(" BAS026",TABLAS!$A$130) -> 0 | I47: Condición | J47: N° | Q47: 26 | AC47: 026 | AN47: =+IMPORTARDATOSDINAMICOS(" BAS026";TABLAS!$A$281)
D48: Mediante teleorientación síncrona | G48: =+GETPIVOTDATA(" BAS027",TABLAS!$A$130) -> 0 | I48: Inicio | J48: =+GETPIVOTDATA(" BAS031",TABLAS!$A$130) -> 0 | L48: REGISTRO EN EL PADRON DE BENEFICIARIOS PANTBC | Q48: =+Q47+1 -> 27 | V48: =+V44+1 -> 31 | AC48: 027 | AH48: =IF(LEN(V48)=1,CONCATENATE("00",V48),IF(LEN(V48)=2,CONCATENATE("0",V48),V48)) -> 031 | AN48: =+IMPORTARDATOSDINAMICOS(" BAS027";TABLAS!$A$281) | AS48: =$AI$23&AH48&$AJ$22 -> =+IMPORTARDATOSDINAMICOS(" BAS031";TABLAS!$A$281)
I49: Término | J49: =+GETPIVOTDATA(" BAS032",TABLAS!$A$130) -> 0 | L49: =+GETPIVOTDATA(" BAS033",TABLAS!$A$130) -> 0 | V49: =+V48+1 -> 32 | X49: =+V49+1 -> 33 | AH49: 032 | AJ49: =IF(LEN(X49)=1,CONCATENATE("00",X49),IF(LEN(X49)=2,CONCATENATE("0",X49),X49)) -> 033 | AS49: =+IMPORTARDATOSDINAMICOS(" BAS032";TABLAS!$A$281) | AU49: =$AI$23&AJ49&$AJ$22 -> =+IMPORTARDATOSDINAMICOS(" BAS033";TABLAS!$A$281)
B52: III. ACTIVIDADES DE PREVENCIÓN EN TUBERCULOSIS
B54: CENSO DE CONTACTOS | C54: N° | E54: PRUEBA PARA DIAGNOSTICO DE TB LATENTE | G54: N° | H54: POSITIVOS | J54: TERAPIA PREVENTIVA PARA TUBERCULOSIS LATENTE | L54: N°
B55: En el establecimiento de salud | C55: =+GETPIVOTDATA(" BAS034",TABLAS!$A$130) -> 3 | E55: PPD | F55: Aplicación | G55: =M84 -> 30 | H55: =+GETPIVOTDATA(" BAS037",TABLAS!$A$130) -> 0 | J55: Administración de terapia preventiva para contactos de TB sensible | L55: =+GETPIVOTDATA(" BAS039",TABLAS!$A$130) -> 35 | Q55: =+X49+1 -> 34 | S55: =+Q57+1 -> 37 | U55: =+S57+1 -> 39 | AC55: =IF(LEN(Q55)=1,CONCATENATE("00",Q55),IF(LEN(Q55)=2,CONCATENATE("0",Q55),Q55)) -> 034 | AE55: =IF(LEN(S55)=1,CONCATENATE("00",S55),IF(LEN(S55)=2,CONCATENATE("0",S55),S55)) -> 037 | AG55: =IF(LEN(U55)=1,CONCATENATE("00",U55),IF(LEN(U55)=2,CONCATENATE("0",U55),U55)) -> 039 | AN55: =$AI$23&AC55&$AJ$22 -> =+IMPORTARDATOSDINAMICOS(" BAS034";TABLAS!$A$281) | AP55: =$AI$23&AE55&$AJ$22 -> =+IMPORTARDATOSDINAMICOS(" BAS037";TABLAS!$A$281) | AR55: =$AI$23&AG55&$AJ$22 -> =+IMPORTARDATOSDINAMICOS(" BAS039";TABLAS!$A$281)
B56: En el domicilio* | C56: =+GETPIVOTDATA(" BAS035",TABLAS!$A$130) -> 0 | F56: Lectura | G56: =M85 -> 7 | J56: Administración de terapia preventiva para contactos de TB resistente | L56: =+GETPIVOTDATA(" BAS040",TABLAS!$A$130) -> 0 | Q56: =+Q55+1 -> 35 | U56: =+U55+1 -> 40 | AC56: 035 | AG56: =IF(LEN(U56)=1,CONCATENATE("00",U56),IF(LEN(U56)=2,CONCATENATE("0",U56),U56)) -> 040 | AN56: =+IMPORTARDATOSDINAMICOS(" BAS035";TABLAS!$A$281) | AR56: =+IMPORTARDATOSDINAMICOS(" BAS040";TABLAS!$A$281)
B57: Mediante teleorientación síncrona | C57: =+GETPIVOTDATA(" BAS036",TABLAS!$A$130) -> 0 | E57: IGRA | F57: Aplicación | G57: =M86 -> 0 | H57: =+GETPIVOTDATA(" BAS038",TABLAS!$A$130) -> 0 | J57: Administración de terapia preventiva para población vulnerable para TB | L57: =M90 -> 0 | Q57: =+Q56+1 -> 36 | S57: =+S55+1 -> 38 | AC57: 036 | AE57: =IF(LEN(S57)=1,CONCATENATE("00",S57),IF(LEN(S57)=2,CONCATENATE("0",S57),S57)) -> 038 | AN57: =+IMPORTARDATOSDINAMICOS(" BAS036";TABLAS!$A$281) | AP57: =$AI$23&AE57&$AJ$22 -> =+IMPORTARDATOSDINAMICOS(" BAS038";TABLAS!$A$281)
B58: Total | C58: =SUM(C55+C56+C57) -> 3 | F58: Lectura | G58: =M87 -> 0 | J58: TOTAL | L58: =SUM(L55+L56+L57) -> 35
B59: *Mediante visita familiar | E59: TOTAL | H59: =SUM(H55+H57) -> 0
B61: IV. ACTIVIDADES DE PROMOCIÓN DE LA SALUD EN TUBERCULOSIS
B62: ACTIVIDADES | D62: MODALIDAD | E62: N° | F62: TOTAL
B63: Consejeria para TB | C63: Primera | D63: Mediante visita familiar | E63: =+GETPIVOTDATA(" BAS041",TABLAS!$A$130) -> 0 | F63: =SUM(E63+E64+E65+E66) -> 0 | Q63: =+U56+1 -> 41 | AC63: =IF(LEN(Q63)=1,CONCATENATE("00",Q63),IF(LEN(Q63)=2,CONCATENATE("0",Q63),Q63)) -> 041 | AN63: =$AI$23&AC63&$AJ$22 -> =+IMPORTARDATOSDINAMICOS(" BAS041";TABLAS!$A$281)
D64: Mediante teleorientación síncrona | E64: =+GETPIVOTDATA(" BAS042",TABLAS!$A$130) -> 0 | Q64: =+Q63+1 -> 42 | AC64: 042 | AN64: =+IMPORTARDATOSDINAMICOS(" BAS042";TABLAS!$A$281)
C65: Segunda | D65: Mediante visita familiar | E65: =+GETPIVOTDATA(" BAS043",TABLAS!$A$130) -> 0 | Q65: =+Q64+1 -> 43 | AC65: 043 | AN65: =+IMPORTARDATOSDINAMICOS(" BAS043";TABLAS!$A$281)
D66: Mediante teleorientación síncrona | E66: =+GETPIVOTDATA(" BAS044",TABLAS!$A$130) -> 0 | Q66: 44 | AC66: 044 | AN66: =+IMPORTARDATOSDINAMICOS(" BAS044";TABLAS!$A$281)
B67: Sesión educativa y demostrativa para TB | C67: Primera | E67: =+GETPIVOTDATA(" BAS045",TABLAS!$A$130) -> 0 | F67: =SUM(E67+E68) -> 0 | Q67: 45 | AC67: 045 | AN67: =+IMPORTARDATOSDINAMICOS(" BAS045";TABLAS!$A$281)
C68: Segunda | E68: =+GETPIVOTDATA(" BAS046",TABLAS!$A$130) -> 0 | Q68: 46 | AC68: 046 | AN68: =+IMPORTARDATOSDINAMICOS(" BAS046";TABLAS!$A$281)
B69: Visitas familiar | F69: =SUM(C56+E63+E65) -> 0
B70: Otras consejerias | F70: =+GETPIVOTDATA(" BAS047",TABLAS!$A$130) -> 1 | Q70: =+Q68+1 -> 47 | AC70: =IF(LEN(Q70)=1,CONCATENATE("00",Q70),IF(LEN(Q70)=2,CONCATENATE("0",Q70),Q70)) -> 047 | AN70: =$AI$23&AC70&$AJ$22 -> =+IMPORTARDATOSDINAMICOS(" BAS047";TABLAS!$A$281)
B73: V. ACTIVIDADES EN TELESALUD
B75: ACTIVIDADES | C75: N°
B76: Teleconsulta en línea | C76: =G45 -> 0
B77: Teleorientación síncrona | C77: =SUM(G48+C57) -> 0
B78: Total | C78: =SUM(C76+C77+#REF!) -> 
B80: REPORTE DE ACTIVIDADES SEGMENTADO POR POBLACION AFECTADA Y VULNERABLE
B82: ACTIVIDADES | C82: POBLACION AFECTADA Y VULNERABLE | M82: TOTAL
C83: POBLACIÓN EN GENERAL | D83: CONTACTOS | E83: PERSONA VIVIENDO CON VIH/SIDA | F83: TRABAJADOR DE SALUD | G83: PERSONA CON DIABETES MELLITUS | H83: PPL | I83: PERSONA CON TERAPIA PROLONGADA CON CORTICOIDES | J83: PERSONA CON HEMODIALISIS Y/O ENFERMEDAD RENAL CRÓNICA | K83: PERSONAL PENITENCIARIO | L83: OTRAS CONDICIONES DE SALUD SEGÚN NORMATIVIDAD VIGENTE
B84: Aplicación de PPD | D84: =+GETPIVOTDATA(" BAS048",TABLAS!$A$130) -> 27 | E84: =+GETPIVOTDATA(" BAS049",TABLAS!$A$130) -> 2 | F84: =+GETPIVOTDATA(" BAS050",TABLAS!$A$130) -> 1 | G84: =+GETPIVOTDATA(" BAS051",TABLAS!$A$130) -> 0 | H84: =+GETPIVOTDATA(" BAS052",TABLAS!$A$130) -> 0 | I84: =+GETPIVOTDATA(" BAS053",TABLAS!$A$130) -> 0 | J84: =+GETPIVOTDATA(" BAS054",TABLAS!$A$130) -> 0 | K84: =+GETPIVOTDATA(" BAS055",TABLAS!$A$130) -> 0 | L84: =+GETPIVOTDATA(" BAS056",TABLAS!$A$130) -> 0 | M84: =SUM(C84+D84+E84+F84+G84+H84+I84+J84+K84+L84) -> 30 | Q84: =+Q70+1 -> 48 | R84: =+Q84+1 -> 49 | S84: =+R84+1 -> 50 | T84: 51 | U84: 52 | V84: 53 | W84: 54 | X84: 55 | Y84: 56 | AC84: =IF(LEN(Q84)=1,CONCATENATE("00",Q84),IF(LEN(Q84)=2,CONCATENATE("0",Q84),Q84)) -> 048 | AD84: 049 | AE84: 050 | AF84: 051 | AG84: 052 | AH84: 053 | AI84: 054 | AJ84: 055 | AK84: 056 | AN84: =$AI$23&AC84&$AJ$22 -> =+IMPORTARDATOSDINAMICOS(" BAS048";TABLAS!$A$281) | AO84: =$AI$23&AD84&$AJ$22 -> =+IMPORTARDATOSDINAMICOS(" BAS049";TABLAS!$A$281) | AP84: =+IMPORTARDATOSDINAMICOS(" BAS050";TABLAS!$A$281) | AQ84: =+IMPORTARDATOSDINAMICOS(" BAS051";TABLAS!$A$281) | AR84: =+IMPORTARDATOSDINAMICOS(" BAS052";TABLAS!$A$281) | AS84: =+IMPORTARDATOSDINAMICOS(" BAS053";TABLAS!$A$281) | AT84: =+IMPORTARDATOSDINAMICOS(" BAS054";TABLAS!$A$281) | AU84: =+IMPORTARDATOSDINAMICOS(" BAS055";TABLAS!$A$281) | AV84: =+IMPORTARDATOSDINAMICOS(" BAS056";TABLAS!$A$281)
B85: Lectura de PPD | D85: =+GETPIVOTDATA(" BAS057",TABLAS!$A$130) -> 6 | E85: =+GETPIVOTDATA(" BAS058",TABLAS!$A$130) -> 0 | F85: =+GETPIVOTDATA(" BAS059",TABLAS!$A$130) -> 1 | G85: =+GETPIVOTDATA(" BAS060",TABLAS!$A$130) -> 0 | H85: =+GETPIVOTDATA(" BAS061",TABLAS!$A$130) -> 0 | I85: =+GETPIVOTDATA(" BAS062",TABLAS!$A$130) -> 0 | J85: =+GETPIVOTDATA(" BAS063",TABLAS!$A$130) -> 0 | K85: =+GETPIVOTDATA(" BAS064",TABLAS!$A$130) -> 0 | L85: =+GETPIVOTDATA(" BAS065",TABLAS!$A$130) -> 0 | M85: 7 | Q85: =+Y84+1 -> 57 | R85: =+Q85+1 -> 58 | S85: 59 | T85: 60 | U85: 61 | V85: 62 | W85: 63 | X85: 64 | Y85: 65 | AC85: 057 | AD85: 058 | AE85: 059 | AF85: 060 | AG85: 061 | AH85: 062 | AI85: 063 | AJ85: 064 | AK85: 065 | AN85: =$AI$23&AC85&$AJ$22 -> =+IMPORTARDATOSDINAMICOS(" BAS057";TABLAS!$A$281) | AO85: =+IMPORTARDATOSDINAMICOS(" BAS058";TABLAS!$A$281) | AP85: =+IMPORTARDATOSDINAMICOS(" BAS059";TABLAS!$A$281) | AQ85: =+IMPORTARDATOSDINAMICOS(" BAS060";TABLAS!$A$281) | AR85: =+IMPORTARDATOSDINAMICOS(" BAS061";TABLAS!$A$281) | AS85: =+IMPORTARDATOSDINAMICOS(" BAS062";TABLAS!$A$281) | AT85: =+IMPORTARDATOSDINAMICOS(" BAS063";TABLAS!$A$281) | AU85: =+IMPORTARDATOSDINAMICOS(" BAS064";TABLAS!$A$281) | AV85: =+IMPORTARDATOSDINAMICOS(" BAS065";TABLAS!$A$281)
B86: Aplicación de IGRA | D86: =+GETPIVOTDATA(" BAS066",TABLAS!$A$130) -> 0 | E86: =+GETPIVOTDATA(" BAS067",TABLAS!$A$130) -> 0 | F86: =+GETPIVOTDATA(" BAS068",TABLAS!$A$130) -> 0 | G86: =+GETPIVOTDATA(" BAS069",TABLAS!$A$130) -> 0 | H86: =+GETPIVOTDATA(" BAS070",TABLAS!$A$130) -> 0 | I86: =+GETPIVOTDATA(" BAS071",TABLAS!$A$130) -> 0 | J86: =+GETPIVOTDATA(" BAS072",TABLAS!$A$130) -> 0 | K86: =+GETPIVOTDATA(" BAS073",TABLAS!$A$130) -> 0 | L86: =+GETPIVOTDATA(" BAS074",TABLAS!$A$130) -> 0 | M86: 0 | Q86: =+Y85+1 -> 66 | R86: 67 | S86: 68 | T86: 69 | U86: 70 | V86: 71 | W86: 72 | X86: 73 | Y86: 74 | AC86: 066 | AD86: 067 | AE86: 068 | AF86: 069 | AG86: 070 | AH86: 071 | AI86: 072 | AJ86: 073 | AK86: 074 | AN86: =+IMPORTARDATOSDINAMICOS(" BAS066";TABLAS!$A$281) | AO86: =+IMPORTARDATOSDINAMICOS(" BAS067";TABLAS!$A$281) | AP86: =+IMPORTARDATOSDINAMICOS(" BAS068";TABLAS!$A$281) | AQ86: =+IMPORTARDATOSDINAMICOS(" BAS069";TABLAS!$A$281) | AR86: =+IMPORTARDATOSDINAMICOS(" BAS070";TABLAS!$A$281) | AS86: =+IMPORTARDATOSDINAMICOS(" BAS071";TABLAS!$A$281) | AT86: =+IMPORTARDATOSDINAMICOS(" BAS072";TABLAS!$A$281) | AU86: =+IMPORTARDATOSDINAMICOS(" BAS073";TABLAS!$A$281) | AV86: =+IMPORTARDATOSDINAMICOS(" BAS074";TABLAS!$A$281)
B87: Lectura de IGRA | D87: =+GETPIVOTDATA(" BAS075",TABLAS!$A$130) -> 0 | E87: =+GETPIVOTDATA(" BAS076",TABLAS!$A$130) -> 0 | F87: =+GETPIVOTDATA(" BAS077",TABLAS!$A$130) -> 0 | G87: =+GETPIVOTDATA(" BAS078",TABLAS!$A$130) -> 0 | H87: =+GETPIVOTDATA(" BAS079",TABLAS!$A$130) -> 0 | I87: =+GETPIVOTDATA(" BAS080",TABLAS!$A$130) -> 0 | J87: =+GETPIVOTDATA(" BAS081",TABLAS!$A$130) -> 0 | K87: =+GETPIVOTDATA(" BAS082",TABLAS!$A$130) -> 0 | L87: =+GETPIVOTDATA(" BAS083",TABLAS!$A$130) -> 0 | M87: 0 | Q87: 75 | R87: 76 | S87: 77 | T87: 78 | U87: 79 | V87: 80 | W87: 81 | X87: 82 | Y87: 83 | AC87: 075 | AD87: 076 | AE87: 077 | AF87: 078 | AG87: 079 | AH87: 080 | AI87: 081 | AJ87: 082 | AK87: 083 | AN87: =+IMPORTARDATOSDINAMICOS(" BAS075";TABLAS!$A$281) | AO87: =+IMPORTARDATOSDINAMICOS(" BAS076";TABLAS!$A$281) | AP87: =+IMPORTARDATOSDINAMICOS(" BAS077";TABLAS!$A$281) | AQ87: =+IMPORTARDATOSDINAMICOS(" BAS078";TABLAS!$A$281) | AR87: =+IMPORTARDATOSDINAMICOS(" BAS079";TABLAS!$A$281) | AS87: =+IMPORTARDATOSDINAMICOS(" BAS080";TABLAS!$A$281) | AT87: =+IMPORTARDATOSDINAMICOS(" BAS081";TABLAS!$A$281) | AU87: =+IMPORTARDATOSDINAMICOS(" BAS082";TABLAS!$A$281) | AV87: =+IMPORTARDATOSDINAMICOS(" BAS083";TABLAS!$A$281)
B88: Administración de terapia preventiva para contactos de TB sensible | D88: =+GETPIVOTDATA(" BAS084",TABLAS!$A$130) -> 38 | M88: 38 | Q88: 84 | AC88: 084 | AN88: =+IMPORTARDATOSDINAMICOS(" BAS084";TABLAS!$A$281)
B89: Administración de terapia preventiva para contactos de TB resistente | D89: =+GETPIVOTDATA(" BAS085",TABLAS!$A$130) -> 0 | M89: 0 | Q89: =+Q88+1 -> 85 | AC89: 085 | AN89: =+IMPORTARDATOSDINAMICOS(" BAS085";TABLAS!$A$281)
B90: Administración de terapia preventiva para población vulnerable para TB | E90: =+GETPIVOTDATA(" BAS086",TABLAS!$A$130) -> 0 | F90: =+GETPIVOTDATA(" BAS087",TABLAS!$A$130) -> 0 | G90: =+GETPIVOTDATA(" BAS088",TABLAS!$A$130) -> 0 | H90: =+GETPIVOTDATA(" BAS089",TABLAS!$A$130) -> 0 | I90: =+GETPIVOTDATA(" BAS090",TABLAS!$A$130) -> 0 | J90: =+GETPIVOTDATA(" BAS091",TABLAS!$A$130) -> 0 | K90: =+GETPIVOTDATA(" BAS092",TABLAS!$A$130) -> 0 | L90: =+GETPIVOTDATA(" BAS093",TABLAS!$A$130) -> 0 | M90: 0 | R90: =+Q89+1 -> 86 | S90: =+R90+1 -> 87 | T90: 88 | U90: 89 | V90: 90 | W90: 91 | X90: 92 | Y90: 93 | AD90: =IF(LEN(R90)=1,CONCATENATE("00",R90),IF(LEN(R90)=2,CONCATENATE("0",R90),R90)) -> 086 | AE90: 087 | AF90: 088 | AG90: 089 | AH90: 090 | AI90: 091 | AJ90: 092 | AK90: 093 | AO90: =$AI$23&AD90&$AJ$22 -> =+IMPORTARDATOSDINAMICOS(" BAS086";TABLAS!$A$281) | AP90: =+IMPORTARDATOSDINAMICOS(" BAS087";TABLAS!$A$281) | AQ90: =+IMPORTARDATOSDINAMICOS(" BAS088";TABLAS!$A$281) | AR90: =+IMPORTARDATOSDINAMICOS(" BAS089";TABLAS!$A$281) | AS90: =+IMPORTARDATOSDINAMICOS(" BAS090";TABLAS!$A$281) | AT90: =+IMPORTARDATOSDINAMICOS(" BAS091";TABLAS!$A$281) | AU90: =+IMPORTARDATOSDINAMICOS(" BAS092";TABLAS!$A$281) | AV90: =+IMPORTARDATOSDINAMICOS(" BAS093";TABLAS!$A$281)
B91: Caso probable | C91: =+GETPIVOTDATA(" BAS094",TABLAS!$A$130) -> 0 | D91: =+GETPIVOTDATA(" BAS095",TABLAS!$A$130) -> 0 | E91: =+GETPIVOTDATA(" BAS096",TABLAS!$A$130) -> 0 | F91: =+GETPIVOTDATA(" BAS097",TABLAS!$A$130) -> 0 | G91: =+GETPIVOTDATA(" BAS098",TABLAS!$A$130) -> 0 | H91: =+GETPIVOTDATA(" BAS099",TABLAS!$A$130) -> 0 | I91: =+GETPIVOTDATA(" BAS100",TABLAS!$A$130) -> 0 | J91: =+GETPIVOTDATA(" BAS101",TABLAS!$A$130) -> 0 | K91: =+GETPIVOTDATA(" BAS102",TABLAS!$A$130) -> 0 | L91: =+GETPIVOTDATA(" BAS103",TABLAS!$A$130) -> 0 | M91: 0 | Q91: 94 | R91: =+Q91+1 -> 95 | S91: 96 | T91: 97 | U91: 98 | V91: 99 | W91: 100 | X91: 101 | Y91: 102 | Z91: 103 | AC91: =IF(LEN(Q91)=1,CONCATENATE("00",Q91),IF(LEN(Q91)=2,CONCATENATE("0",Q91),Q91)) -> 094 | AD91: 095 | AE91: 096 | AF91: 097 | AG91: 098 | AH91: 099 | AI91: 100 | AJ91: 101 | AK91: 102 | AL91: 103 | AN91: =$AI$23&AC91&$AJ$22 -> =+IMPORTARDATOSDINAMICOS(" BAS094";TABLAS!$A$281) | AO91: =+IMPORTARDATOSDINAMICOS(" BAS095";TABLAS!$A$281) | AP91: =+IMPORTARDATOSDINAMICOS(" BAS096";TABLAS!$A$281) | AQ91: =+IMPORTARDATOSDINAMICOS(" BAS097";TABLAS!$A$281) | AR91: =+IMPORTARDATOSDINAMICOS(" BAS098";TABLAS!$A$281) | AS91: =+IMPORTARDATOSDINAMICOS(" BAS099";TABLAS!$A$281) | AT91: =+IMPORTARDATOSDINAMICOS(" BAS100";TABLAS!$A$281) | AU91: =+IMPORTARDATOSDINAMICOS(" BAS101";TABLAS!$A$281) | AV91: =+IMPORTARDATOSDINAMICOS(" BAS102";TABLAS!$A$281) | AW91: =+IMPORTARDATOSDINAMICOS(" BAS103";TABLAS!$A$281)
B92: Sintomático respiratorio identificado | C92: =+GETPIVOTDATA(" BAS104",TABLAS!$A$130) -> 125 | D92: =+GETPIVOTDATA(" BAS105",TABLAS!$A$130) -> 3 | E92: =+GETPIVOTDATA(" BAS106",TABLAS!$A$130) -> 0 | F92: =+GETPIVOTDATA(" BAS107",TABLAS!$A$130) -> 1 | G92: =+GETPIVOTDATA(" BAS108",TABLAS!$A$130) -> 0 | H92: =+GETPIVOTDATA(" BAS109",TABLAS!$A$130) -> 13 | I92: =+GETPIVOTDATA(" BAS110",TABLAS!$A$130) -> 0 | J92: =+GETPIVOTDATA(" BAS111",TABLAS!$A$130) -> 0 | K92: =+GETPIVOTDATA(" BAS112",TABLAS!$A$130) -> 0 | L92: =+GETPIVOTDATA(" BAS113",TABLAS!$A$130) -> 0 | M92: 142 | Q92: =+Z91+1 -> 104 | R92: 105 | S92: 106 | T92: 107 | U92: 108 | V92: 109 | W92: 110 | X92: 111 | Y92: 112 | Z92: 113 | AC92: 104 | AD92: 105 | AE92: 106 | AF92: 107 | AG92: 108 | AH92: 109 | AI92: 110 | AJ92: 111 | AK92: 112 | AL92: 113 | AN92: =+IMPORTARDATOSDINAMICOS(" BAS104";TABLAS!$A$281) | AO92: =+IMPORTARDATOSDINAMICOS(" BAS105";TABLAS!$A$281) | AP92: =+IMPORTARDATOSDINAMICOS(" BAS106";TABLAS!$A$281) | AQ92: =+IMPORTARDATOSDINAMICOS(" BAS107";TABLAS!$A$281) | AR92: =+IMPORTARDATOSDINAMICOS(" BAS108";TABLAS!$A$281) | AS92: =+IMPORTARDATOSDINAMICOS(" BAS109";TABLAS!$A$281) | AT92: =+IMPORTARDATOSDINAMICOS(" BAS110";TABLAS!$A$281) | AU92: =+IMPORTARDATOSDINAMICOS(" BAS111";TABLAS!$A$281) | AV92: =+IMPORTARDATOSDINAMICOS(" BAS112";TABLAS!$A$281) | AW92: =+IMPORTARDATOSDINAMICOS(" BAS113";TABLAS!$A$281)
B93: Sintomático respiratorio examinado | C93: =+GETPIVOTDATA(" BAS114",TABLAS!$A$130) -> 104 | D93: =+GETPIVOTDATA(" BAS115",TABLAS!$A$130) -> 3 | E93: =+GETPIVOTDATA(" BAS116",TABLAS!$A$130) -> 0 | F93: =+GETPIVOTDATA(" BAS117",TABLAS!$A$130) -> 1 | G93: =+GETPIVOTDATA(" BAS118",TABLAS!$A$130) -> 0 | H93: =+GETPIVOTDATA(" BAS119",TABLAS!$A$130) -> 33 | I93: =+GETPIVOTDATA(" BAS120",TABLAS!$A$130) -> 0 | J93: =+GETPIVOTDATA(" BAS121",TABLAS!$A$130) -> 0 | K93: =+GETPIVOTDATA(" BAS122",TABLAS!$A$130) -> 0 | L93: =+GETPIVOTDATA(" BAS123",TABLAS!$A$130) -> 0 | M93: 141 | Q93: =+Z92+1 -> 114 | R93: 115 | S93: 116 | T93: 117 | U93: 118 | V93: 119 | W93: 120 | X93: 121 | Y93: 122 | Z93: 123 | AC93: 114 | AD93: 115 | AE93: 116 | AF93: 117 | AG93: 118 | AH93: 119 | AI93: 120 | AJ93: 121 | AK93: 122 | AL93: 123 | AN93: =+IMPORTARDATOSDINAMICOS(" BAS114";TABLAS!$A$281) | AO93: =+IMPORTARDATOSDINAMICOS(" BAS115";TABLAS!$A$281) | AP93: =+IMPORTARDATOSDINAMICOS(" BAS116";TABLAS!$A$281) | AQ93: =+IMPORTARDATOSDINAMICOS(" BAS117";TABLAS!$A$281) | AR93: =+IMPORTARDATOSDINAMICOS(" BAS118";TABLAS!$A$281) | AS93: =+IMPORTARDATOSDINAMICOS(" BAS119";TABLAS!$A$281) | AT93: =+IMPORTARDATOSDINAMICOS(" BAS120";TABLAS!$A$281) | AU93: =+IMPORTARDATOSDINAMICOS(" BAS121";TABLAS!$A$281) | AV93: =+IMPORTARDATOSDINAMICOS(" BAS122";TABLAS!$A$281) | AW93: =+IMPORTARDATOSDINAMICOS(" BAS123";TABLAS!$A$281)
B94: SR examinados con bacteriología confirmada | C94: =+GETPIVOTDATA(" BAS124",TABLAS!$A$130) -> 0 | D94: =+GETPIVOTDATA(" BAS125",TABLAS!$A$130) -> 0 | E94: =+GETPIVOTDATA(" BAS126",TABLAS!$A$130) -> 0 | F94: =+GETPIVOTDATA(" BAS127",TABLAS!$A$130) -> 0 | G94: =+GETPIVOTDATA(" BAS128",TABLAS!$A$130) -> 0 | H94: =+GETPIVOTDATA(" BAS129",TABLAS!$A$130) -> 0 | I94: =+GETPIVOTDATA(" BAS130",TABLAS!$A$130) -> 0 | J94: =+GETPIVOTDATA(" BAS131",TABLAS!$A$130) -> 0 | K94: =+GETPIVOTDATA(" BAS132",TABLAS!$A$130) -> 0 | L94: =+GETPIVOTDATA(" BAS133",TABLAS!$A$130) -> 0 | M94: 0 | Q94: 124 | R94: 125 | S94: 126 | T94: 127 | U94: 128 | V94: 129 | W94: 130 | X94: 131 | Y94: 132 | Z94: 133 | AC94: 124 | AD94: 125 | AE94: 126 | AF94: 127 | AG94: 128 | AH94: 129 | AI94: 130 | AJ94: 131 | AK94: 132 | AL94: 133 | AN94: =+IMPORTARDATOSDINAMICOS(" BAS124";TABLAS!$A$281) | AO94: =+IMPORTARDATOSDINAMICOS(" BAS125";TABLAS!$A$281) | AP94: =+IMPORTARDATOSDINAMICOS(" BAS126";TABLAS!$A$281) | AQ94: =+IMPORTARDATOSDINAMICOS(" BAS127";TABLAS!$A$281) | AR94: =+IMPORTARDATOSDINAMICOS(" BAS128";TABLAS!$A$281) | AS94: =+IMPORTARDATOSDINAMICOS(" BAS129";TABLAS!$A$281) | AT94: =+IMPORTARDATOSDINAMICOS(" BAS130";TABLAS!$A$281) | AU94: =+IMPORTARDATOSDINAMICOS(" BAS131";TABLAS!$A$281) | AV94: =+IMPORTARDATOSDINAMICOS(" BAS132";TABLAS!$A$281) | AW94: =+IMPORTARDATOSDINAMICOS(" BAS133";TABLAS!$A$281)

Sheet TBC3059
B3: REPORTE MENSUAL DE ACTIVIDADES DE PREVENCION Y CONTROL DE TUBERCULOSIS [30-59]
B4: CURSO DE VIDA : ADULTO
B6: DIRESA | C6: CUSCO | F6: REGION | G6: CUSCO
B8: RED DE SALUD | C8: =+TABLAS!O9 -> 03 - LA CONVENCION | F8: EJECUTORA | G8: =+TABLAS!O14 -> 
B10: MICRO RED | C10: =+TABLAS!O10 ->  | F10: RESPONSABLE
B12: EE.SS. | C12: =+TABLAS!O11 ->  | F12: COD. RENAES | G12: =+TABLAS!Q11 -> 
B14: PROVINCIA | C14: =+TABLAS!O12 ->  | F14: AÑO | G14: =+TABLAS!J16 -> 2025
B16: DISTRITO | C16: =+TABLAS!O13 ->  | F16: MES | G16: =+TABLAS!N26 -> ENE - MAR
B18: INSTITUCION : MINSA ( X ) ESSALUD ( ) FFAA ( ) PNP ( ) INPE ( ) OTROS ( )
B20: I. ACTIVIDADES DE DETECCION Y DIAGNOSTICO PARA TUBERCULOSIS
B22: DETECCIÓN DE CASOS | G22: RECOLECCIÓN DE MUESTRAS PARA EXAMEN BACTERIOLÓGICO | I22: N° | AJ22: ";TABLAS!$A$281)
B23: Sintomático respiratorio (SR) | E23: Caso probable de TB | G23: RECOLECCIÓN DE MUESTRAS PARA TB* | I23: =+GETPIVOTDATA(" BAS001",TABLAS!$A$168) -> 1900 | Q23: 1 | AC23: =IF(LEN(Q23)=1,CONCATENATE("00",Q23),IF(LEN(Q23)=2,CONCATENATE("0",Q23),Q23)) -> 001 | AI23: =+IMPORTARDATOSDINAMICOS(" BAS | AN23: =$AI$23&AC23&$AJ$22 -> =+IMPORTARDATOSDINAMICOS(" BAS001";TABLAS!$A$281)
B24: SR Identificado | C24: SR Examinado | D24: SR examinados con bacteriología confirmada | G24: PROCEDIMIENTOS ESPECIALES PARA OBTENCION DE MUESTRAS | H24: Lavado gástrico | I24: =+GETPIVOTDATA(" BAS002",TABLAS!$A$168) -> 0 | Q24: =+Q23+1 -> 2 | AC24: 002 | AN24: =$AI$23&AC24&$AJ$22 -> =+IMPORTARDATOSDINAMICOS(" BAS002";TABLAS!$A$281)
B25: =M92 -> 554 | C25: =M93 -> 527 | D25: =M94 -> 4 | E25: =M91 -> 0 | H25: Inducción del esputo | I25: =+GETPIVOTDATA(" BAS003",TABLAS!$A$168) -> 0 | Q25: =+Q24+1 -> 3 | AC25: 003 | AN25: =+IMPORTARDATOSDINAMICOS(" BAS003";TABLAS!$A$281)
G26: TOTAL | I26: =SUM(I23+I24+I25) -> 1900
B27: SR examinados con bacteriología confirmada | G27: *Muestra recolectada por expectoración espontánea
B28: Por baciloscopia | D28: =+GETPIVOTDATA(" BAS004",TABLAS!$A$168) -> 3 | G28: REFERENCIAS | Q28: =+Q25+1 -> 4 | AC28: =IF(LEN(Q28)=1,CONCATENATE("00",Q28),IF(LEN(Q28)=2,CONCATENATE("0",Q28),Q28)) -> 004 | AN28: =$AI$23&AC28&$AJ$22 -> =+IMPORTARDATOSDINAMICOS(" BAS004";TABLAS!$A$281)
B29: Por prueba molecular | D29: =+GETPIVOTDATA(" BAS005",TABLAS!$A$168) -> 1 | G29: Condición | H29: Derivaciones | I29: Transferencias | Q29: =+Q28+1 -> 5 | T29: =+Q30+1 -> 7 | U29: =+T29+1 -> 8 | AC29: 005 | AF29: =IF(LEN(T29)=1,CONCATENATE("00",T29),IF(LEN(T29)=2,CONCATENATE("0",T29),T29)) -> 007 | AG29: 008 | AN29: =+IMPORTARDATOSDINAMICOS(" BAS005";TABLAS!$A$281) | AQ29: =$AI$23&AF29&$AJ$22 -> =+IMPORTARDATOSDINAMICOS(" BAS007";TABLAS!$A$281) | AR29: =+IMPORTARDATOSDINAMICOS(" BAS008";TABLAS!$A$281)
B30: Por cultivo | D30: =+GETPIVOTDATA(" BAS006",TABLAS!$A$168) -> 0 | G30: Realizadas | H30: =+GETPIVOTDATA(" BAS007",TABLAS!$A$168) -> 0 | I30: =+GETPIVOTDATA(" BAS008",TABLAS!$A$168) -> 0 | Q30: =+Q29+1 -> 6 | T30: =+U29+1 -> 9 | U30: =+T30+1 -> 10 | AC30: 006 | AF30: 009 | AG30: 010 | AN30: =+IMPORTARDATOSDINAMICOS(" BAS006";TABLAS!$A$281) | AQ30: =+IMPORTARDATOSDINAMICOS(" BAS009";TABLAS!$A$281) | AR30: =+IMPORTARDATOSDINAMICOS(" BAS010";TABLAS!$A$281)
B31: TOTAL | D31: =SUM(D28+D29+D30) -> 4 | G31: Aceptadas | H31: =+GETPIVOTDATA(" BAS009",TABLAS!$A$168) -> 4 | I31: =+GETPIVOTDATA(" BAS010",TABLAS!$A$168) -> 0
G32: TOTAL | H32: =SUM(H30+H31) -> 4 | I32: =SUM(I30+I31) -> 0
B33: COMORBILIDADES Y CONDICIONES ASOCIADAS | D33: N°
B34: TB-VIH/SIDA | D34: =+GETPIVOTDATA(" BAS011",TABLAS!$A$168) -> 0 | G34: TAMIZAJE DE COMORBILIDADES | I34: N° | Q34: =+U30+1 -> 11 | AC34: =IF(LEN(Q34)=1,CONCATENATE("00",Q34),IF(LEN(Q34)=2,CONCATENATE("0",Q34),Q34)) -> 011 | AN34: =$AI$23&AC34&$AJ$22 -> =+IMPORTARDATOSDINAMICOS(" BAS011";TABLAS!$A$281)
B35: TB-DM | D35: =+GETPIVOTDATA(" BAS012",TABLAS!$A$168) -> 0 | G35: Tamizaje TB-VIH | I35: =+GETPIVOTDATA(" BAS014",TABLAS!$A$168) -> 9 | Q35: =+Q34+1 -> 12 | S35: =+Q36+1 -> 14 | AC35: 012 | AE35: =IF(LEN(S35)=1,CONCATENATE("00",S35),IF(LEN(S35)=2,CONCATENATE("0",S35),S35)) -> 014 | AN35: =+IMPORTARDATOSDINAMICOS(" BAS012";TABLAS!$A$281) | AP35: =$AI$23&AE35&$AJ$22 -> =+IMPORTARDATOSDINAMICOS(" BAS014";TABLAS!$A$281)
B36: Reacción adversa a medicamentos para TB | D36: =+GETPIVOTDATA(" BAS013",TABLAS!$A$168) -> 0 | G36: Tamizaje TB-DM | I36: =+GETPIVOTDATA(" BAS015",TABLAS!$A$168) -> 7 | Q36: 13 | S36: =+S35+1 -> 15 | AC36: 013 | AE36: 015 | AN36: =+IMPORTARDATOSDINAMICOS(" BAS013";TABLAS!$A$281) | AP36: =+IMPORTARDATOSDINAMICOS(" BAS015";TABLAS!$A$281)
B39: II. ACTIVIDADES PARA LA RECUPERACION DE LA PERSONA AFECTADA POR TUBERCULOSIS
B41: ATENCIÓN MULTIDISCIPLINARIA | D41: MODALIDAD | E41: EN PAT CON TB SENSIBLE | F41: EN PAT CON TB RESISTENTE | G41: TOTAL | I41: 2 | K41: N°
B42: Evaluación médica | E42: =+GETPIVOTDATA(" BAS016",TABLAS!$A$168) -> 6 | F42: =+GETPIVOTDATA(" BAS017",TABLAS!$A$168) -> 1 | G42: =SUM(E42+F42) -> 7 | I42: Administración de tratamiento para TB sensible | K42: =+GETPIVOTDATA(" BAS028",TABLAS!$A$168) -> 945 | Q42: =+S36+1 -> 16 | R42: =+Q42+1 -> 17 | V42: =+Q48+1 -> 28 | AC42: =IF(LEN(Q42)=1,CONCATENATE("00",Q42),IF(LEN(Q42)=2,CONCATENATE("0",Q42),Q42)) -> 016 | AD42: 017 | AH42: =IF(LEN(V42)=1,CONCATENATE("00",V42),IF(LEN(V42)=2,CONCATENATE("0",V42),V42)) -> 028 | AN42: =$AI$23&AC42&$AJ$22 -> =+IMPORTARDATOSDINAMICOS(" BAS016";TABLAS!$A$281) | AO42: =+IMPORTARDATOSDINAMICOS(" BAS017";TABLAS!$A$281) | AS42: =$AI$23&AH42&$AJ$22 -> =+IMPORTARDATOSDINAMICOS(" BAS028";TABLAS!$A$281)
B43: Atención en consultorio de enfermería | E43: =+GETPIVOTDATA(" BAS018",TABLAS!$A$168) -> 0 | F43: =+GETPIVOTDATA(" BAS019",TABLAS!$A$168) -> 0 | G43: =SUM(E43+F43) -> 0 | I43: Administración de tratamiento para TB resistente | K43: =+GETPIVOTDATA(" BAS029",TABLAS!$A$168) -> 75 | Q43: =+R42+1 -> 18 | R43: =+Q43+1 -> 19 | V43: =+V42+1 -> 29 | AC43: 018 | AD43: 019 | AH43: 029 | AN43: =+IMPORTARDATOSDINAMICOS(" BAS018";TABLAS!$A$281) | AO43: =+IMPORTARDATOSDINAMICOS(" BAS019";TABLAS!$A$281) | AS43: =+IMPORTARDATOSDINAMICOS(" BAS029";TABLAS!$A$281)
B44: Atención de servicio social | D44: En el establecimiento de salud | E44: =+GETPIVOTDATA(" BAS020",TABLAS!$A$168) -> 0 | F44: =+GETPIVOTDATA(" BAS021",TABLAS!$A$168) -> 0 | G44: =SUM(E44+F44) -> 0 | I44: Control de tratamiento | K44: =+GETPIVOTDATA(" BAS030",TABLAS!$A$168) -> 39 | Q44: =+R43+1 -> 20 | R44: 21 | V44: =+V43+1 -> 30 | AC44: 020 | AD44: 021 | AH44: 030 | AN44: =+IMPORTARDATOSDINAMICOS(" BAS020";TABLAS!$A$281) | AO44: =+IMPORTARDATOSDINAMICOS(" BAS021";TABLAS!$A$281) | AS44: =+IMPORTARDATOSDINAMICOS(" BAS030";TABLAS!$A$281)
D45: Mediante teleconsulta en línea | E45: =+GETPIVOTDATA(" BAS022",TABLAS!$A$168) -> 0 | F45: =+GETPIVOTDATA(" BAS023",TABLAS!$A$168) -> 0 | G45: =SUM(E45+F45) -> 0 | Q45: 22 | R45: 23 | AC45: 022 | AD45: 023 | AN45: =+IMPORTARDATOSDINAMICOS(" BAS022";TABLAS!$A$281) | AO45: =+IMPORTARDATOSDINAMICOS(" BAS023";TABLAS!$A$281)
B46: Atención en nutrición | E46: =+GETPIVOTDATA(" BAS024",TABLAS!$A$168) -> 7 | F46: =+GETPIVOTDATA(" BAS025",TABLAS!$A$168) -> 0 | G46: =SUM(E46+F46) -> 7 | I46: RETO ANTE REACCIONES ADVERSAS | Q46: 24 | R46: 25 | AC46: 024 | AD46: 025 | AN46: =+IMPORTARDATOSDINAMICOS(" BAS024";TABLAS!$A$281) | AO46: =+IMPORTARDATOSDINAMICOS(" BAS025";TABLAS!$A$281)
B47: Atención en salud mental | D47: En el establecimiento de salud | G47: =+GETPIVOTDATA(" BAS026",TABLAS!$A$168) -> 0 | I47: Condición | J47: N° | Q47: 26 | AC47: 026 | AN47: =+IMPORTARDATOSDINAMICOS(" BAS026";TABLAS!$A$281)
D48: Mediante teleorientación síncrona | G48: =+GETPIVOTDATA(" BAS027",TABLAS!$A$168) -> 0 | I48: Inicio | J48: =+GETPIVOTDATA(" BAS031",TABLAS!$A$168) -> 0 | L48: REGISTRO EN EL PADRON DE BENEFICIARIOS PANTBC | Q48: =+Q47+1 -> 27 | V48: =+V44+1 -> 31 | AC48: 027 | AH48: =IF(LEN(V48)=1,CONCATENATE("00",V48),IF(LEN(V48)=2,CONCATENATE("0",V48),V48)) -> 031 | AN48: =+IMPORTARDATOSDINAMICOS(" BAS027";TABLAS!$A$281) | AS48: =$AI$23&AH48&$AJ$22 -> =+IMPORTARDATOSDINAMICOS(" BAS031";TABLAS!$A$281)
I49: Término | J49: =+GETPIVOTDATA(" BAS032",TABLAS!$A$168) -> 0 | L49: =+GETPIVOTDATA(" BAS033",TABLAS!$A$168) -> 8 | V49: =+V48+1 -> 32 | X49: =+V49+1 -> 33 | AH49: 032 | AJ49: =IF(LEN(X49)=1,CONCATENATE("00",X49),IF(LEN(X49)=2,CONCATENATE("0",X49),X49)) -> 033 | AS49: =+IMPORTARDATOSDINAMICOS(" BAS032";TABLAS!$A$281) | AU49: =$AI$23&AJ49&$AJ$22 -> =+IMPORTARDATOSDINAMICOS(" BAS033";TABLAS!$A$281)
B52: III. ACTIVIDADES DE PREVENCIÓN EN TUBERCULOSIS
B54: CENSO DE CONTACTOS | C54: N° | E54: PRUEBA PARA DIAGNOSTICO DE TB LATENTE | G54: N° | H54: POSITIVOS | J54: TERAPIA PREVENTIVA PARA TUBERCULOSIS LATENTE | L54: N°
B55: En el establecimiento de salud | C55: =+GETPIVOTDATA(" BAS034",TABLAS!$A$168) -> 5 | E55: PPD | F55: Aplicación | G55: =M84 -> 74 | H55: =+GETPIVOTDATA(" BAS037",TABLAS!$A$168) -> 0 | J55: Administración de terapia preventiva para contactos de TB sensible | L55: =+GETPIVOTDATA(" BAS039",TABLAS!$A$168) -> 8 | Q55: =+X49+1 -> 34 | S55: =+Q57+1 -> 37 | U55: =+S57+1 -> 39 | AC55: =IF(LEN(Q55)=1,CONCATENATE("00",Q55),IF(LEN(Q55)=2,CONCATENATE("0",Q55),Q55)) -> 034 | AE55: =IF(LEN(S55)=1,CONCATENATE("00",S55),IF(LEN(S55)=2,CONCATENATE("0",S55),S55)) -> 037 | AG55: =IF(LEN(U55)=1,CONCATENATE("00",U55),IF(LEN(U55)=2,CONCATENATE("0",U55),U55)) -> 039 | AN55: =$AI$23&AC55&$AJ$22 -> =+IMPORTARDATOSDINAMICOS(" BAS034";TABLAS!$A$281) | AP55: =$AI$23&AE55&$AJ$22 -> =+IMPORTARDATOSDINAMICOS(" BAS037";TABLAS!$A$281) | AR55: =$AI$23&AG55&$AJ$22 -> =+IMPORTARDATOSDINAMICOS(" BAS039";TABLAS!$A$281)
B56: En el domicilio* | C56: =+GETPIVOTDATA(" BAS035",TABLAS!$A$168) -> 0 | F56: Lectura | G56: =M85 -> 37 | J56: Administración de terapia preventiva para contactos de TB resistente | L56: =+GETPIVOTDATA(" BAS040",TABLAS!$A$168) -> 1 | Q56: =+Q55+1 -> 35 | U56: =+U55+1 -> 40 | AC56: 035 | AG56: =IF(LEN(U56)=1,CONCATENATE("00",U56),IF(LEN(U56)=2,CONCATENATE("0",U56),U56)) -> 040 | AN56: =+IMPORTARDATOSDINAMICOS(" BAS035";TABLAS!$A$281) | AR56: =+IMPORTARDATOSDINAMICOS(" BAS040";TABLAS!$A$281)
B57: Mediante teleorientación síncrona | C57: =+GETPIVOTDATA(" BAS036",TABLAS!$A$168) -> 0 | E57: IGRA | F57: Aplicación | G57: =M86 -> 0 | H57: =+GETPIVOTDATA(" BAS038",TABLAS!$A$168) -> 0 | J57: Administración de terapia preventiva para población vulnerable para TB | L57: =M90 -> 0 | Q57: =+Q56+1 -> 36 | S57: =+S55+1 -> 38 | AC57: 036 | AE57: =IF(LEN(S57)=1,CONCATENATE("00",S57),IF(LEN(S57)=2,CONCATENATE("0",S57),S57)) -> 038 | AN57: =+IMPORTARDATOSDINAMICOS(" BAS036";TABLAS!$A$281) | AP57: =$AI$23&AE57&$AJ$22 -> =+IMPORTARDATOSDINAMICOS(" BAS038";TABLAS!$A$281)
B58: Total | C58: =SUM(C55+C56+C57) -> 5 | F58: Lectura | G58: =M87 -> 0 | J58: TOTAL | L58: =SUM(L55+L56+L57) -> 9
B59: *Mediante visita familiar | E59: TOTAL | H59: =SUM(H55+H57) -> 0
B61: IV. ACTIVIDADES DE PROMOCIÓN DE LA SALUD EN TUBERCULOSIS
B62: ACTIVIDADES | D62: MODALIDAD | E62: N° | F62: TOTAL
B63: Consejeria para TB | C63: Primera | D63: Mediante visita familiar | E63: =+GETPIVOTDATA(" BAS041",TABLAS!$A$168) -> 0 | F63: =SUM(E63+E64+E65+E66) -> 0 | Q63: =+U56+1 -> 41 | AC63: =IF(LEN(Q63)=1,CONCATENATE("00",Q63),IF(LEN(Q63)=2,CONCATENATE("0",Q63),Q63)) -> 041 | AN63: =$AI$23&AC63&$AJ$22 -> =+IMPORTARDATOSDINAMICOS(" BAS041";TABLAS!$A$281)
D64: Mediante teleorientación síncrona | E64: =+GETPIVOTDATA(" BAS042",TABLAS!$A$168) -> 0 | Q64: =+Q63+1 -> 42 | AC64: 042 | AN64: =+IMPORTARDATOSDINAMICOS(" BAS042";TABLAS!$A$281)
C65: Segunda | D65: Mediante visita familiar | E65: =+GETPIVOTDATA(" BAS043",TABLAS!$A$168) -> 0 | Q65: =+Q64+1 -> 43 | AC65: 043 | AN65: =+IMPORTARDATOSDINAMICOS(" BAS043";TABLAS!$A$281)
D66: Mediante teleorientación síncrona | E66: =+GETPIVOTDATA(" BAS044",TABLAS!$A$168) -> 0 | Q66: 44 | AC66: 044 | AN66: =+IMPORTARDATOSDINAMICOS(" BAS044";TABLAS!$A$281)
B67: Sesión educativa y demostrativa para TB | C67: Primera | E67: =+GETPIVOTDATA(" BAS045",TABLAS!$A$168) -> 0 | F67: =SUM(E67+E68) -> 0 | Q67: 45 | AC67: 045 | AN67: =+IMPORTARDATOSDINAMICOS(" BAS045";TABLAS!$A$281)
C68: Segunda | E68: =+GETPIVOTDATA(" BAS046",TABLAS!$A$168) -> 0 | Q68: 46 | AC68: 046 | AN68: =+IMPORTARDATOSDINAMICOS(" BAS046";TABLAS!$A$281)
B69: Visitas familiar | F69: =SUM(C56+E63+E65) -> 0
B70: Otras consejerias | F70: =+GETPIVOTDATA(" BAS047",TABLAS!$A$168) -> 7 | Q70: =+Q68+1 -> 47 | AC70: =IF(LEN(Q70)=1,CONCATENATE("00",Q70),IF(LEN(Q70)=2,CONCATENATE("0",Q70),Q70)) -> 047 | AN70: =$AI$23&AC70&$AJ$22 -> =+IMPORTARDATOSDINAMICOS(" BAS047";TABLAS!$A$281)
B73: V. ACTIVIDADES EN TELESALUD
B75: ACTIVIDADES | C75: N°
B76: Teleconsulta en línea | C76: =G45 -> 0
B77: Teleorientación síncrona | C77: =SUM(G48+C57) -> 0
B78: Total | C78: =SUM(C76+C77+#REF!) -> 
B80: REPORTE DE ACTIVIDADES SEGMENTADO POR POBLACION AFECTADA Y VULNERABLE
B82: ACTIVIDADES | C82: POBLACION AFECTADA Y VULNERABLE | M82: TOTAL
C83: POBLACIÓN EN GENERAL | D83: CONTACTOS | E83: PERSONA VIVIENDO CON VIH/SIDA | F83: TRABAJADOR DE SALUD | G83: PERSONA CON DIABETES MELLITUS | H83: PPL | I83: PERSONA CON TERAPIA PROLONGADA CON CORTICOIDES | J83: PERSONA CON HEMODIALISIS Y/O ENFERMEDAD RENAL CRÓNICA | K83: PERSONAL PENITENCIARIO | L83: OTRAS CONDICIONES DE SALUD SEGÚN NORMATIVIDAD VIGENTE
B84: Aplicación de PPD | D84: =+GETPIVOTDATA(" BAS048",TABLAS!$A$168) -> 48 | E84: =+GETPIVOTDATA(" BAS049",TABLAS!$A$168) -> 1 | F84: =+GETPIVOTDATA(" BAS050",TABLAS!$A$168) -> 25 | G84: =+GETPIVOTDATA(" BAS051",TABLAS!$A$168) -> 0 | H84: =+GETPIVOTDATA(" BAS052",TABLAS!$A$168) -> 0 | I84: =+GETPIVOTDATA(" BAS053",TABLAS!$A$168) -> 0 | J84: =+GETPIVOTDATA(" BAS054",TABLAS!$A$168) -> 0 | K84: =+GETPIVOTDATA(" BAS055",TABLAS!$A$168) -> 0 | L84: =+GETPIVOTDATA(" BAS056",TABLAS!$A$168) -> 0 | M84: =SUM(C84+D84+E84+F84+G84+H84+I84+J84+K84+L84) -> 74 | Q84: =+Q70+1 -> 48 | R84: =+Q84+1 -> 49 | S84: =+R84+1 -> 50 | T84: 51 | U84: 52 | V84: 53 | W84: 54 | X84: 55 | Y84: 56 | AC84: =IF(LEN(Q84)=1,CONCATENATE("00",Q84),IF(LEN(Q84)=2,CONCATENATE("0",Q84),Q84)) -> 048 | AD84: 049 | AE84: 050 | AF84: 051 | AG84: 052 | AH84: 053 | AI84: 054 | AJ84: 055 | AK84: 056 | AN84: =$AI$23&AC84&$AJ$22 -> =+IMPORTARDATOSDINAMICOS(" BAS048";TABLAS!$A$281) | AO84: =$AI$23&AD84&$AJ$22 -> =+IMPORTARDATOSDINAMICOS(" BAS049";TABLAS!$A$281) | AP84: =+IMPORTARDATOSDINAMICOS(" BAS050";TABLAS!$A$281) | AQ84: =+IMPORTARDATOSDINAMICOS(" BAS051";TABLAS!$A$281) | AR84: =+IMPORTARDATOSDINAMICOS(" BAS052";TABLAS!$A$281) | AS84: =+IMPORTARDATOSDINAMICOS(" BAS053";TABLAS!$A$281) | AT84: =+IMPORTARDATOSDINAMICOS(" BAS054";TABLAS!$A$281) | AU84: =+IMPORTARDATOSDINAMICOS(" BAS055";TABLAS!$A$281) | AV84: =+IMPORTARDATOSDINAMICOS(" BAS056";TABLAS!$A$281)
B85: Lectura de PPD | D85: =+GETPIVOTDATA(" BAS057",TABLAS!$A$168) -> 12 | E85: =+GETPIVOTDATA(" BAS058",TABLAS!$A$168) -> 0 | F85: =+GETPIVOTDATA(" BAS059",TABLAS!$A$168) -> 25 | G85: =+GETPIVOTDATA(" BAS060",TABLAS!$A$168) -> 0 | H85: =+GETPIVOTDATA(" BAS061",TABLAS!$A$168) -> 0 | I85: =+GETPIVOTDATA(" BAS062",TABLAS!$A$168) -> 0 | J85: =+GETPIVOTDATA(" BAS063",TABLAS!$A$168) -> 0 | K85: =+GETPIVOTDATA(" BAS064",TABLAS!$A$168) -> 0 | L85: =+GETPIVOTDATA(" BAS065",TABLAS!$A$168) -> 0 | M85: 37 | Q85: =+Y84+1 -> 57 | R85: =+Q85+1 -> 58 | S85: 59 | T85: 60 | U85: 61 | V85: 62 | W85: 63 | X85: 64 | Y85: 65 | AC85: 057 | AD85: 058 | AE85: 059 | AF85: 060 | AG85: 061 | AH85: 062 | AI85: 063 | AJ85: 064 | AK85: 065 | AN85: =$AI$23&AC85&$AJ$22 -> =+IMPORTARDATOSDINAMICOS(" BAS057";TABLAS!$A$281) | AO85: =+IMPORTARDATOSDINAMICOS(" BAS058";TABLAS!$A$281) | AP85: =+IMPORTARDATOSDINAMICOS(" BAS059";TABLAS!$A$281) | AQ85: =+IMPORTARDATOSDINAMICOS(" BAS060";TABLAS!$A$281) | AR85: =+IMPORTARDATOSDINAMICOS(" BAS061";TABLAS!$A$281) | AS85: =+IMPORTARDATOSDINAMICOS(" BAS062";TABLAS!$A$281) | AT85: =+IMPORTARDATOSDINAMICOS(" BAS063";TABLAS!$A$281) | AU85: =+IMPORTARDATOSDINAMICOS(" BAS064";TABLAS!$A$281) | AV85: =+IMPORTARDATOSDINAMICOS(" BAS065";TABLAS!$A$281)
B86: Aplicación de IGRA | D86: =+GETPIVOTDATA(" BAS066",TABLAS!$A$168) -> 0 | E86: =+GETPIVOTDATA(" BAS067",TABLAS!$A$168) -> 0 | F86: =+GETPIVOTDATA(" BAS068",TABLAS!$A$168) -> 0 | G86: =+GETPIVOTDATA(" BAS069",TABLAS!$A$168) -> 0 | H86: =+GETPIVOTDATA(" BAS070",TABLAS!$A$168) -> 0 | I86: =+GETPIVOTDATA(" BAS071",TABLAS!$A$168) -> 0 | J86: =+GETPIVOTDATA(" BAS072",TABLAS!$A$168) -> 0 | K86: =+GETPIVOTDATA(" BAS073",TABLAS!$A$168) -> 0 | L86: =+GETPIVOTDATA(" BAS074",TABLAS!$A$168) -> 0 | M86: 0 | Q86: =+Y85+1 -> 66 | R86: 67 | S86: 68 | T86: 69 | U86: 70 | V86: 71 | W86: 72 | X86: 73 | Y86: 74 | AC86: 066 | AD86: 067 | AE86: 068 | AF86: 069 | AG86: 070 | AH86: 071 | AI86: 072 | AJ86: 073 | AK86: 074 | AN86: =+IMPORTARDATOSDINAMICOS(" BAS066";TABLAS!$A$281) | AO86: =+IMPORTARDATOSDINAMICOS(" BAS067";TABLAS!$A$281) | AP86: =+IMPORTARDATOSDINAMICOS(" BAS068";TABLAS!$A$281) | AQ86: =+IMPORTARDATOSDINAMICOS(" BAS069";TABLAS!$A$281) | AR86: =+IMPORTARDATOSDINAMICOS(" BAS070";TABLAS!$A$281) | AS86: =+IMPORTARDATOSDINAMICOS(" BAS071";TABLAS!$A$281) | AT86: =+IMPORTARDATOSDINAMICOS(" BAS072";TABLAS!$A$281) | AU86: =+IMPORTARDATOSDINAMICOS(" BAS073";TABLAS!$A$281) | AV86: =+IMPORTARDATOSDINAMICOS(" BAS074";TABLAS!$A$281)
B87: Lectura de IGRA | D87: =+GETPIVOTDATA(" BAS075",TABLAS!$A$168) -> 0 | E87: =+GETPIVOTDATA(" BAS076",TABLAS!$A$168) -> 0 | F87: =+GETPIVOTDATA(" BAS077",TABLAS!$A$168) -> 0 | G87: =+GETPIVOTDATA(" BAS078",TABLAS!$A$168) -> 0 | H87: =+GETPIVOTDATA(" BAS079",TABLAS!$A$168) -> 0 | I87: =+GETPIVOTDATA(" BAS080",TABLAS!$A$168) -> 0 | J87: =+GETPIVOTDATA(" BAS081",TABLAS!$A$168) -> 0 | K87: =+GETPIVOTDATA(" BAS082",TABLAS!$A$168) -> 0 | L87: =+GETPIVOTDATA(" BAS083",TABLAS!$A$168) -> 0 | M87: 0 | Q87: 75 | R87: 76 | S87: 77 | T87: 78 | U87: 79 | V87: 80 | W87: 81 | X87: 82 | Y87: 83 | AC87: 075 | AD87: 076 | AE87: 077 | AF87: 078 | AG87: 079 | AH87: 080 | AI87: 081 | AJ87: 082 | AK87: 083 | AN87: =+IMPORTARDATOSDINAMICOS(" BAS075";TABLAS!$A$281) | AO87: =+IMPORTARDATOSDINAMICOS(" BAS076";TABLAS!$A$281) | AP87: =+IMPORTARDATOSDINAMICOS(" BAS077";TABLAS!$A$281) | AQ87: =+IMPORTARDATOSDINAMICOS(" BAS078";TABLAS!$A$281) | AR87: =+IMPORTARDATOSDINAMICOS(" BAS079";TABLAS!$A$281) | AS87: =+IMPORTARDATOSDINAMICOS(" BAS080";TABLAS!$A$281) | AT87: =+IMPORTARDATOSDINAMICOS(" BAS081";TABLAS!$A$281) | AU87: =+IMPORTARDATOSDINAMICOS(" BAS082";TABLAS!$A$281) | AV87: =+IMPORTARDATOSDINAMICOS(" BAS083";TABLAS!$A$281)
B88: Administración de terapia preventiva para contactos de TB sensible | D88: =+GETPIVOTDATA(" BAS084",TABLAS!$A$168) -> 9 | M88: 9 | Q88: 84 | AC88: 084 | AN88: =+IMPORTARDATOSDINAMICOS(" BAS084";TABLAS!$A$281)
B89: Administración de terapia preventiva para contactos de TB resistente | D89: =+GETPIVOTDATA(" BAS085",TABLAS!$A$168) -> 1 | M89: 1 | Q89: =+Q88+1 -> 85 | AC89: 085 | AN89: =+IMPORTARDATOSDINAMICOS(" BAS085";TABLAS!$A$281)
B90: Administración de terapia preventiva para población vulnerable para TB | E90: =+GETPIVOTDATA(" BAS086",TABLAS!$A$168) -> 0 | F90: =+GETPIVOTDATA(" BAS087",TABLAS!$A$168) -> 0 | G90: =+GETPIVOTDATA(" BAS088",TABLAS!$A$168) -> 0 | H90: =+GETPIVOTDATA(" BAS089",TABLAS!$A$168) -> 0 | I90: =+GETPIVOTDATA(" BAS090",TABLAS!$A$168) -> 0 | J90: =+GETPIVOTDATA(" BAS091",TABLAS!$A$168) -> 0 | K90: =+GETPIVOTDATA(" BAS092",TABLAS!$A$168) -> 0 | L90: =+GETPIVOTDATA(" BAS093",TABLAS!$A$168) -> 0 | M90: 0 | R90: =+Q89+1 -> 86 | S90: =+R90+1 -> 87 | T90: 88 | U90: 89 | V90: 90 | W90: 91 | X90: 92 | Y90: 93 | AD90: =IF(LEN(R90)=1,CONCATENATE("00",R90),IF(LEN(R90)=2,CONCATENATE("0",R90),R90)) -> 086 | AE90: 087 | AF90: 088 | AG90: 089 | AH90: 090 | AI90: 091 | AJ90: 092 | AK90: 093 | AO90: =$AI$23&AD90&$AJ$22 -> =+IMPORTARDATOSDINAMICOS(" BAS086";TABLAS!$A$281) | AP90: =+IMPORTARDATOSDINAMICOS(" BAS087";TABLAS!$A$281) | AQ90: =+IMPORTARDATOSDINAMICOS(" BAS088";TABLAS!$A$281) | AR90: =+IMPORTARDATOSDINAMICOS(" BAS089";TABLAS!$A$281) | AS90: =+IMPORTARDATOSDINAMICOS(" BAS090";TABLAS!$A$281) | AT90: =+IMPORTARDATOSDINAMICOS(" BAS091";TABLAS!$A$281) | AU90: =+IMPORTARDATOSDINAMICOS(" BAS092";TABLAS!$A$281) | AV90: =+IMPORTARDATOSDINAMICOS(" BAS093";TABLAS!$A$281)
B91: Caso probable | C91: =+GETPIVOTDATA(" BAS094",TABLAS!$A$168) -> 0 | D91: =+GETPIVOTDATA(" BAS095",TABLAS!$A$168) -> 0 | E91: =+GETPIVOTDATA(" BAS096",TABLAS!$A$168) -> 0 | F91: =+GETPIVOTDATA(" BAS097",TABLAS!$A$168) -> 0 | G91: =+GETPIVOTDATA(" BAS098",TABLAS!$A$168) -> 0 | H91: =+GETPIVOTDATA(" BAS099",TABLAS!$A$168) -> 0 | I91: =+GETPIVOTDATA(" BAS100",TABLAS!$A$168) -> 0 | J91: =+GETPIVOTDATA(" BAS101",TABLAS!$A$168) -> 0 | K91: =+GETPIVOTDATA(" BAS102",TABLAS!$A$168) -> 0 | L91: =+GETPIVOTDATA(" BAS103",TABLAS!$A$168) -> 0 | M91: 0 | Q91: 94 | R91: =+Q91+1 -> 95 | S91: 96 | T91: 97 | U91: 98 | V91: 99 | W91: 100 | X91: 101 | Y91: 102 | Z91: 103 | AC91: =IF(LEN(Q91)=1,CONCATENATE("00",Q91),IF(LEN(Q91)=2,CONCATENATE("0",Q91),Q91)) -> 094 | AD91: 095 | AE91: 096 | AF91: 097 | AG91: 098 | AH91: 099 | AI91: 100 | AJ91: 101 | AK91: 102 | AL91: 103 | AN91: =$AI$23&AC91&$AJ$22 -> =+IMPORTARDATOSDINAMICOS(" BAS094";TABLAS!$A$281) | AO91: =+IMPORTARDATOSDINAMICOS(" BAS095";TABLAS!$A$281) | AP91: =+IMPORTARDATOSDINAMICOS(" BAS096";TABLAS!$A$281) | AQ91: =+IMPORTARDATOSDINAMICOS(" BAS097";TABLAS!$A$281) | AR91: =+IMPORTARDATOSDINAMICOS(" BAS098";TABLAS!$A$281) | AS91: =+IMPORTARDATOSDINAMICOS(" BAS099";TABLAS!$A$281) | AT91: =+IMPORTARDATOSDINAMICOS(" BAS100";TABLAS!$A$281) | AU91: =+IMPORTARDATOSDINAMICOS(" BAS101";TABLAS!$A$281) | AV91: =+IMPORTARDATOSDINAMICOS(" BAS102";TABLAS!$A$281) | AW91: =+IMPORTARDATOSDINAMICOS(" BAS103";TABLAS!$A$281)
B92: Sintomático respiratorio identificado | C92: =+GETPIVOTDATA(" BAS104",TABLAS!$A$168) -> 512 | D92: =+GETPIVOTDATA(" BAS105",TABLAS!$A$168) -> 3 | E92: =+GETPIVOTDATA(" BAS106",TABLAS!$A$168) -> 2 | F92: =+GETPIVOTDATA(" BAS107",TABLAS!$A$168) -> 2 | G92: =+GETPIVOTDATA(" BAS108",TABLAS!$A$168) -> 0 | H92: =+GETPIVOTDATA(" BAS109",TABLAS!$A$168) -> 34 | I92: =+GETPIVOTDATA(" BAS110",TABLAS!$A$168) -> 0 | J92: =+GETPIVOTDATA(" BAS111",TABLAS!$A$168) -> 0 | K92: =+GETPIVOTDATA(" BAS112",TABLAS!$A$168) -> 0 | L92: =+GETPIVOTDATA(" BAS113",TABLAS!$A$168) -> 1 | M92: 554 | Q92: =+Z91+1 -> 104 | R92: 105 | S92: 106 | T92: 107 | U92: 108 | V92: 109 | W92: 110 | X92: 111 | Y92: 112 | Z92: 113 | AC92: 104 | AD92: 105 | AE92: 106 | AF92: 107 | AG92: 108 | AH92: 109 | AI92: 110 | AJ92: 111 | AK92: 112 | AL92: 113 | AN92: =+IMPORTARDATOSDINAMICOS(" BAS104";TABLAS!$A$281) | AO92: =+IMPORTARDATOSDINAMICOS(" BAS105";TABLAS!$A$281) | AP92: =+IMPORTARDATOSDINAMICOS(" BAS106";TABLAS!$A$281) | AQ92: =+IMPORTARDATOSDINAMICOS(" BAS107";TABLAS!$A$281) | AR92: =+IMPORTARDATOSDINAMICOS(" BAS108";TABLAS!$A$281) | AS92: =+IMPORTARDATOSDINAMICOS(" BAS109";TABLAS!$A$281) | AT92: =+IMPORTARDATOSDINAMICOS(" BAS110";TABLAS!$A$281) | AU92: =+IMPORTARDATOSDINAMICOS(" BAS111";TABLAS!$A$281) | AV92: =+IMPORTARDATOSDINAMICOS(" BAS112";TABLAS!$A$281) | AW92: =+IMPORTARDATOSDINAMICOS(" BAS113";TABLAS!$A$281)
B93: Sintomático respiratorio examinado | C93: =+GETPIVOTDATA(" BAS114",TABLAS!$A$168) -> 456 | D93: =+GETPIVOTDATA(" BAS115",TABLAS!$A$168) -> 4 | E93: =+GETPIVOTDATA(" BAS116",TABLAS!$A$168) -> 1 | F93: =+GETPIVOTDATA(" BAS117",TABLAS!$A$168) -> 2 | G93: =+GETPIVOTDATA(" BAS118",TABLAS!$A$168) -> 0 | H93: =+GETPIVOTDATA(" BAS119",TABLAS!$A$168) -> 63 | I93: =+GETPIVOTDATA(" BAS120",TABLAS!$A$168) -> 0 | J93: =+GETPIVOTDATA(" BAS121",TABLAS!$A$168) -> 0 | K93: =+GETPIVOTDATA(" BAS122",TABLAS!$A$168) -> 0 | L93: =+GETPIVOTDATA(" BAS123",TABLAS!$A$168) -> 1 | M93: 527 | Q93: =+Z92+1 -> 114 | R93: 115 | S93: 116 | T93: 117 | U93: 118 | V93: 119 | W93: 120 | X93: 121 | Y93: 122 | Z93: 123 | AC93: 114 | AD93: 115 | AE93: 116 | AF93: 117 | AG93: 118 | AH93: 119 | AI93: 120 | AJ93: 121 | AK93: 122 | AL93: 123 | AN93: =+IMPORTARDATOSDINAMICOS(" BAS114";TABLAS!$A$281) | AO93: =+IMPORTARDATOSDINAMICOS(" BAS115";TABLAS!$A$281) | AP93: =+IMPORTARDATOSDINAMICOS(" BAS116";TABLAS!$A$281) | AQ93: =+IMPORTARDATOSDINAMICOS(" BAS117";TABLAS!$A$281) | AR93: =+IMPORTARDATOSDINAMICOS(" BAS118";TABLAS!$A$281) | AS93: =+IMPORTARDATOSDINAMICOS(" BAS119";TABLAS!$A$281) | AT93: =+IMPORTARDATOSDINAMICOS(" BAS120";TABLAS!$A$281) | AU93: =+IMPORTARDATOSDINAMICOS(" BAS121";TABLAS!$A$281) | AV93: =+IMPORTARDATOSDINAMICOS(" BAS122";TABLAS!$A$281) | AW93: =+IMPORTARDATOSDINAMICOS(" BAS123";TABLAS!$A$281)
B94: SR examinados con bacteriología confirmada | C94: =+GETPIVOTDATA(" BAS124",TABLAS!$A$168) -> 4 | D94: =+GETPIVOTDATA(" BAS125",TABLAS!$A$168) -> 0 | E94: =+GETPIVOTDATA(" BAS126",TABLAS!$A$168) -> 0 | F94: =+GETPIVOTDATA(" BAS127",TABLAS!$A$168) -> 0 | G94: =+GETPIVOTDATA(" BAS128",TABLAS!$A$168) -> 0 | H94: =+GETPIVOTDATA(" BAS129",TABLAS!$A$168) -> 0 | I94: =+GETPIVOTDATA(" BAS130",TABLAS!$A$168) -> 0 | J94: =+GETPIVOTDATA(" BAS131",TABLAS!$A$168) -> 0 | K94: =+GETPIVOTDATA(" BAS132",TABLAS!$A$168) -> 0 | L94: =+GETPIVOTDATA(" BAS133",TABLAS!$A$168) -> 0 | M94: 4 | Q94: 124 | R94: 125 | S94: 126 | T94: 127 | U94: 128 | V94: 129 | W94: 130 | X94: 131 | Y94: 132 | Z94: 133 | AC94: 124 | AD94: 125 | AE94: 126 | AF94: 127 | AG94: 128 | AH94: 129 | AI94: 130 | AJ94: 131 | AK94: 132 | AL94: 133 | AN94: =+IMPORTARDATOSDINAMICOS(" BAS124";TABLAS!$A$281) | AO94: =+IMPORTARDATOSDINAMICOS(" BAS125";TABLAS!$A$281) | AP94: =+IMPORTARDATOSDINAMICOS(" BAS126";TABLAS!$A$281) | AQ94: =+IMPORTARDATOSDINAMICOS(" BAS127";TABLAS!$A$281) | AR94: =+IMPORTARDATOSDINAMICOS(" BAS128";TABLAS!$A$281) | AS94: =+IMPORTARDATOSDINAMICOS(" BAS129";TABLAS!$A$281) | AT94: =+IMPORTARDATOSDINAMICOS(" BAS130";TABLAS!$A$281) | AU94: =+IMPORTARDATOSDINAMICOS(" BAS131";TABLAS!$A$281) | AV94: =+IMPORTARDATOSDINAMICOS(" BAS132";TABLAS!$A$281) | AW94: =+IMPORTARDATOSDINAMICOS(" BAS133";TABLAS!$A$281)

Sheet TBC6099
B3: REPORTE MENSUAL DE ACTIVIDADES DE PREVENCION Y CONTROL DE TUBERCULOSIS [60-120]
B4: CURSO DE VIDA : ADULTO MAYOR
B6: DIRESA | C6: CUSCO | F6: REGION | G6: CUSCO
B8: RED DE SALUD | C8: =+TABLAS!O9 -> 03 - LA CONVENCION | F8: EJECUTORA | G8: =+TABLAS!O14 -> 
B10: MICRO RED | C10: =+TABLAS!O10 ->  | F10: RESPONSABLE
B12: EE.SS. | C12: =+TABLAS!O11 ->  | F12: COD. RENAES | G12: =+TABLAS!Q11 -> 
B14: PROVINCIA | C14: =+TABLAS!O12 ->  | F14: AÑO | G14: =+TABLAS!J16 -> 2025
B16: DISTRITO | C16: =+TABLAS!O13 ->  | F16: MES | G16: =+TABLAS!N26 -> ENE - MAR
B18: INSTITUCION : MINSA ( X ) ESSALUD ( ) FFAA ( ) PNP ( ) INPE ( ) OTROS ( )
B20: I. ACTIVIDADES DE DETECCION Y DIAGNOSTICO PARA TUBERCULOSIS
B22: DETECCIÓN DE CASOS | G22: RECOLECCIÓN DE MUESTRAS PARA EXAMEN BACTERIOLÓGICO | I22: N° | AJ22: ";TABLAS!$A$281)
B23: Sintomático respiratorio (SR) | E23: Caso probable de TB | G23: RECOLECCIÓN DE MUESTRAS PARA TB* | I23: =+GETPIVOTDATA(" BAS001",TABLAS!$A$203) -> 1373 | Q23: 1 | AC23: =IF(LEN(Q23)=1,CONCATENATE("00",Q23),IF(LEN(Q23)=2,CONCATENATE("0",Q23),Q23)) -> 001 | AI23: =+IMPORTARDATOSDINAMICOS(" BAS | AN23: =$AI$23&AC23&$AJ$22 -> =+IMPORTARDATOSDINAMICOS(" BAS001";TABLAS!$A$281)
B24: SR Identificado | C24: SR Examinado | D24: SR examinados con bacteriología confirmada | G24: PROCEDIMIENTOS ESPECIALES PARA OBTENCION DE MUESTRAS | H24: Lavado gástrico | I24: =+GETPIVOTDATA(" BAS002",TABLAS!$A$203) -> 0 | Q24: =+Q23+1 -> 2 | AC24: 002 | AN24: =$AI$23&AC24&$AJ$22 -> =+IMPORTARDATOSDINAMICOS(" BAS002";TABLAS!$A$281)
B25: =M92 -> 398 | C25: =M93 -> 376 | D25: =M94 -> 0 | E25: =M91 -> 0 | H25: Inducción del esputo | I25: =+GETPIVOTDATA(" BAS003",TABLAS!$A$203) -> 0 | Q25: =+Q24+1 -> 3 | AC25: 003 | AN25: =+IMPORTARDATOSDINAMICOS(" BAS003";TABLAS!$A$281)
G26: TOTAL | I26: =SUM(I23+I24+I25) -> 1373
B27: SR examinados con bacteriología confirmada | G27: *Muestra recolectada por expectoración espontánea
B28: Por baciloscopia | D28: =+GETPIVOTDATA(" BAS004",TABLAS!$A$203) -> 0 | G28: REFERENCIAS | Q28: =+Q25+1 -> 4 | AC28: =IF(LEN(Q28)=1,CONCATENATE("00",Q28),IF(LEN(Q28)=2,CONCATENATE("0",Q28),Q28)) -> 004 | AN28: =$AI$23&AC28&$AJ$22 -> =+IMPORTARDATOSDINAMICOS(" BAS004";TABLAS!$A$281)
B29: Por prueba molecular | D29: =+GETPIVOTDATA(" BAS005",TABLAS!$A$203) -> 0 | G29: Condición | H29: Derivaciones | I29: Transferencias | Q29: =+Q28+1 -> 5 | T29: =+Q30+1 -> 7 | U29: =+T29+1 -> 8 | AC29: 005 | AF29: =IF(LEN(T29)=1,CONCATENATE("00",T29),IF(LEN(T29)=2,CONCATENATE("0",T29),T29)) -> 007 | AG29: 008 | AN29: =+IMPORTARDATOSDINAMICOS(" BAS005";TABLAS!$A$281) | AQ29: =$AI$23&AF29&$AJ$22 -> =+IMPORTARDATOSDINAMICOS(" BAS007";TABLAS!$A$281) | AR29: =+IMPORTARDATOSDINAMICOS(" BAS008";TABLAS!$A$281)
B30: Por cultivo | D30: =+GETPIVOTDATA(" BAS006",TABLAS!$A$203) -> 0 | G30: Realizadas | H30: =+GETPIVOTDATA(" BAS007",TABLAS!$A$203) -> 1 | I30: =+GETPIVOTDATA(" BAS008",TABLAS!$A$203) -> 1 | Q30: =+Q29+1 -> 6 | T30: =+U29+1 -> 9 | U30: =+T30+1 -> 10 | AC30: 006 | AF30: 009 | AG30: 010 | AN30: =+IMPORTARDATOSDINAMICOS(" BAS006";TABLAS!$A$281) | AQ30: =+IMPORTARDATOSDINAMICOS(" BAS009";TABLAS!$A$281) | AR30: =+IMPORTARDATOSDINAMICOS(" BAS010";TABLAS!$A$281)
B31: TOTAL | D31: =SUM(D28+D29+D30) -> 0 | G31: Aceptadas | H31: =+GETPIVOTDATA(" BAS009",TABLAS!$A$203) -> 0 | I31: =+GETPIVOTDATA(" BAS010",TABLAS!$A$203) -> 0
G32: TOTAL | H32: =SUM(H30+H31) -> 1 | I32: =SUM(I30+I31) -> 1
B33: COMORBILIDADES Y CONDICIONES ASOCIADAS | D33: N°
B34: TB-VIH/SIDA | D34: =+GETPIVOTDATA(" BAS011",TABLAS!$A$203) -> 0 | G34: TAMIZAJE DE COMORBILIDADES | I34: N° | Q34: =+U30+1 -> 11 | AC34: =IF(LEN(Q34)=1,CONCATENATE("00",Q34),IF(LEN(Q34)=2,CONCATENATE("0",Q34),Q34)) -> 011 | AN34: =$AI$23&AC34&$AJ$22 -> =+IMPORTARDATOSDINAMICOS(" BAS011";TABLAS!$A$281)
B35: TB-DM | D35: =+GETPIVOTDATA(" BAS012",TABLAS!$A$203) -> 0 | G35: Tamizaje TB-VIH | I35: =+GETPIVOTDATA(" BAS014",TABLAS!$A$203) -> 2 | Q35: =+Q34+1 -> 12 | S35: =+Q36+1 -> 14 | AC35: 012 | AE35: =IF(LEN(S35)=1,CONCATENATE("00",S35),IF(LEN(S35)=2,CONCATENATE("0",S35),S35)) -> 014 | AN35: =+IMPORTARDATOSDINAMICOS(" BAS012";TABLAS!$A$281) | AP35: =$AI$23&AE35&$AJ$22 -> =+IMPORTARDATOSDINAMICOS(" BAS014";TABLAS!$A$281)
B36: Reacción adversa a medicamentos para TB | D36: =+GETPIVOTDATA(" BAS013",TABLAS!$A$203) -> 0 | G36: Tamizaje TB-DM | I36: =+GETPIVOTDATA(" BAS015",TABLAS!$A$203) -> 2 | Q36: 13 | S36: =+S35+1 -> 15 | AC36: 013 | AE36: 015 | AN36: =+IMPORTARDATOSDINAMICOS(" BAS013";TABLAS!$A$281) | AP36: =+IMPORTARDATOSDINAMICOS(" BAS015";TABLAS!$A$281)
B39: II. ACTIVIDADES PARA LA RECUPERACION DE LA PERSONA AFECTADA POR TUBERCULOSIS
B41: ATENCIÓN MULTIDISCIPLINARIA | D41: MODALIDAD | E41: EN PAT CON TB SENSIBLE | F41: EN PAT CON TB RESISTENTE | G41: TOTAL | I41: 2 | K41: N°
B42: Evaluación médica | E42: =+GETPIVOTDATA(" BAS016",TABLAS!$A$203) -> 0 | F42: =+GETPIVOTDATA(" BAS017",TABLAS!$A$203) -> 1 | G42: =SUM(E42+F42) -> 1 | I42: Administración de tratamiento para TB sensible | K42: =+GETPIVOTDATA(" BAS028",TABLAS!$A$203) -> 206 | Q42: =+S36+1 -> 16 | R42: =+Q42+1 -> 17 | V42: =+Q48+1 -> 28 | AC42: =IF(LEN(Q42)=1,CONCATENATE("00",Q42),IF(LEN(Q42)=2,CONCATENATE("0",Q42),Q42)) -> 016 | AD42: 017 | AH42: =IF(LEN(V42)=1,CONCATENATE("00",V42),IF(LEN(V42)=2,CONCATENATE("0",V42),V42)) -> 028 | AN42: =$AI$23&AC42&$AJ$22 -> =+IMPORTARDATOSDINAMICOS(" BAS016";TABLAS!$A$281) | AO42: =+IMPORTARDATOSDINAMICOS(" BAS017";TABLAS!$A$281) | AS42: =$AI$23&AH42&$AJ$22 -> =+IMPORTARDATOSDINAMICOS(" BAS028";TABLAS!$A$281)
B43: Atención en consultorio de enfermería | E43: =+GETPIVOTDATA(" BAS018",TABLAS!$A$203) -> 0 | F43: =+GETPIVOTDATA(" BAS019",TABLAS!$A$203) -> 0 | G43: =SUM(E43+F43) -> 0 | I43: Administración de tratamiento para TB resistente | K43: =+GETPIVOTDATA(" BAS029",TABLAS!$A$203) -> 218 | Q43: =+R42+1 -> 18 | R43: =+Q43+1 -> 19 | V43: =+V42+1 -> 29 | AC43: 018 | AD43: 019 | AH43: 029 | AN43: =+IMPORTARDATOSDINAMICOS(" BAS018";TABLAS!$A$281) | AO43: =+IMPORTARDATOSDINAMICOS(" BAS019";TABLAS!$A$281) | AS43: =+IMPORTARDATOSDINAMICOS(" BAS029";TABLAS!$A$281)
B44: Atención de servicio social | D44: En el establecimiento de salud | E44: =+GETPIVOTDATA(" BAS020",TABLAS!$A$203) -> 0 | F44: =+GETPIVOTDATA(" BAS021",TABLAS!$A$203) -> 0 | G44: =SUM(E44+F44) -> 0 | I44: Control de tratamiento | K44: =+GETPIVOTDATA(" BAS030",TABLAS!$A$203) -> 13 | Q44: =+R43+1 -> 20 | R44: 21 | V44: =+V43+1 -> 30 | AC44: 020 | AD44: 021 | AH44: 030 | AN44: =+IMPORTARDATOSDINAMICOS(" BAS020";TABLAS!$A$281) | AO44: =+IMPORTARDATOSDINAMICOS(" BAS021";TABLAS!$A$281) | AS44: =+IMPORTARDATOSDINAMICOS(" BAS030";TABLAS!$A$281)
D45: Mediante teleconsulta en línea | E45: =+GETPIVOTDATA(" BAS022",TABLAS!$A$203) -> 0 | F45: =+GETPIVOTDATA(" BAS023",TABLAS!$A$203) -> 0 | G45: =SUM(E45+F45) -> 0 | Q45: 22 | R45: 23 | AC45: 022 | AD45: 023 | AN45: =+IMPORTARDATOSDINAMICOS(" BAS022";TABLAS!$A$281) | AO45: =+IMPORTARDATOSDINAMICOS(" BAS023";TABLAS!$A$281)
B46: Atención en nutrición | E46: =+GETPIVOTDATA(" BAS024",TABLAS!$A$203) -> 3 | F46: =+GETPIVOTDATA(" BAS025",TABLAS!$A$203) -> 0 | G46: =SUM(E46+F46) -> 3 | I46: RETO ANTE REACCIONES ADVERSAS | Q46: 24 | R46: 25 | AC46: 024 | AD46: 025 | AN46: =+IMPORTARDATOSDINAMICOS(" BAS024";TABLAS!$A$281) | AO46: =+IMPORTARDATOSDINAMICOS(" BAS025";TABLAS!$A$281)
B47: Atención en salud mental | D47: En el establecimiento de salud | G47: =+GETPIVOTDATA(" BAS026",TABLAS!$A$203) -> 0 | I47: Condición | J47: N° | Q47: 26 | AC47: 026 | AN47: =+IMPORTARDATOSDINAMICOS(" BAS026";TABLAS!$A$281)
D48: Mediante teleorientación síncrona | G48: =+GETPIVOTDATA(" BAS027",TABLAS!$A$203) -> 0 | I48: Inicio | J48: =+GETPIVOTDATA(" BAS031",TABLAS!$A$203) -> 0 | L48: REGISTRO EN EL PADRON DE BENEFICIARIOS PANTBC | Q48: =+Q47+1 -> 27 | V48: =+V44+1 -> 31 | AC48: 027 | AH48: =IF(LEN(V48)=1,CONCATENATE("00",V48),IF(LEN(V48)=2,CONCATENATE("0",V48),V48)) -> 031 | AN48: =+IMPORTARDATOSDINAMICOS(" BAS027";TABLAS!$A$281) | AS48: =$AI$23&AH48&$AJ$22 -> =+IMPORTARDATOSDINAMICOS(" BAS031";TABLAS!$A$281)
I49: Término | J49: =+GETPIVOTDATA(" BAS032",TABLAS!$A$203) -> 0 | L49: =+GETPIVOTDATA(" BAS033",TABLAS!$A$203) -> 2 | V49: =+V48+1 -> 32 | X49: =+V49+1 -> 33 | AH49: 032 | AJ49: =IF(LEN(X49)=1,CONCATENATE("00",X49),IF(LEN(X49)=2,CONCATENATE("0",X49),X49)) -> 033 | AS49: =+IMPORTARDATOSDINAMICOS(" BAS032";TABLAS!$A$281) | AU49: =$AI$23&AJ49&$AJ$22 -> =+IMPORTARDATOSDINAMICOS(" BAS033";TABLAS!$A$281)
B52: III. ACTIVIDADES DE PREVENCIÓN EN TUBERCULOSIS
B54: CENSO DE CONTACTOS | C54: N° | E54: PRUEBA PARA DIAGNOSTICO DE TB LATENTE | G54: N° | H54: POSITIVOS | J54: TERAPIA PREVENTIVA PARA TUBERCULOSIS LATENTE | L54: N°
B55: En el establecimiento de salud | C55: =+GETPIVOTDATA(" BAS034",TABLAS!$A$203) -> 0 | E55: PPD | F55: Aplicación | G55: =M84 -> 22 | H55: =+GETPIVOTDATA(" BAS037",TABLAS!$A$203) -> 0 | J55: Administración de terapia preventiva para contactos de TB sensible | L55: =+GETPIVOTDATA(" BAS039",TABLAS!$A$203) -> 1 | Q55: =+X49+1 -> 34 | S55: =+Q57+1 -> 37 | U55: =+S57+1 -> 39 | AC55: =IF(LEN(Q55)=1,CONCATENATE("00",Q55),IF(LEN(Q55)=2,CONCATENATE("0",Q55),Q55)) -> 034 | AE55: =IF(LEN(S55)=1,CONCATENATE("00",S55),IF(LEN(S55)=2,CONCATENATE("0",S55),S55)) -> 037 | AG55: =IF(LEN(U55)=1,CONCATENATE("00",U55),IF(LEN(U55)=2,CONCATENATE("0",U55),U55)) -> 039 | AN55: =$AI$23&AC55&$AJ$22 -> =+IMPORTARDATOSDINAMICOS(" BAS034";TABLAS!$A$281) | AP55: =$AI$23&AE55&$AJ$22 -> =+IMPORTARDATOSDINAMICOS(" BAS037";TABLAS!$A$281) | AR55: =$AI$23&AG55&$AJ$22 -> =+IMPORTARDATOSDINAMICOS(" BAS039";TABLAS!$A$281)
B56: En el domicilio* | C56: =+GETPIVOTDATA(" BAS035",TABLAS!$A$203) -> 0 | F56: Lectura | G56: =M85 -> 20 | J56: Administración de terapia preventiva para contactos de TB resistente | L56: =+GETPIVOTDATA(" BAS040",TABLAS!$A$203) -> 0 | Q56: =+Q55+1 -> 35 | U56: =+U55+1 -> 40 | AC56: 035 | AG56: =IF(LEN(U56)=1,CONCATENATE("00",U56),IF(LEN(U56)=2,CONCATENATE("0",U56),U56)) -> 040 | AN56: =+IMPORTARDATOSDINAMICOS(" BAS035";TABLAS!$A$281) | AR56: =+IMPORTARDATOSDINAMICOS(" BAS040";TABLAS!$A$281)
B57: Mediante teleorientación síncrona | C57: =+GETPIVOTDATA(" BAS036",TABLAS!$A$203) -> 0 | E57: IGRA | F57: Aplicación | G57: =M86 -> 0 | H57: =+GETPIVOTDATA(" BAS038",TABLAS!$A$203) -> 0 | J57: Administración de terapia preventiva para población vulnerable para TB | L57: =M90 -> 0 | Q57: =+Q56+1 -> 36 | S57: =+S55+1 -> 38 | AC57: 036 | AE57: =IF(LEN(S57)=1,CONCATENATE("00",S57),IF(LEN(S57)=2,CONCATENATE("0",S57),S57)) -> 038 | AN57: =+IMPORTARDATOSDINAMICOS(" BAS036";TABLAS!$A$281) | AP57: =$AI$23&AE57&$AJ$22 -> =+IMPORTARDATOSDINAMICOS(" BAS038";TABLAS!$A$281)
B58: Total | C58: =SUM(C55+C56+C57) -> 0 | F58: Lectura | G58: =M87 -> 0 | J58: TOTAL | L58: =SUM(L55+L56+L57) -> 1
B59: *Mediante visita familiar | E59: TOTAL | H59: =SUM(H55+H57) -> 0
B61: IV. ACTIVIDADES DE PROMOCIÓN DE LA SALUD EN TUBERCULOSIS
B62: ACTIVIDADES | D62: MODALIDAD | E62: N° | F62: TOTAL
B63: Consejeria para TB | C63: Primera | D63: Mediante visita familiar | E63: =+GETPIVOTDATA(" BAS041",TABLAS!$A$203) -> 0 | F63: =SUM(E63+E64+E65+E66) -> 0 | Q63: =+U56+1 -> 41 | AC63: =IF(LEN(Q63)=1,CONCATENATE("00",Q63),IF(LEN(Q63)=2,CONCATENATE("0",Q63),Q63)) -> 041 | AN63: =$AI$23&AC63&$AJ$22 -> =+IMPORTARDATOSDINAMICOS(" BAS041";TABLAS!$A$281)
D64: Mediante teleorientación síncrona | E64: =+GETPIVOTDATA(" BAS042",TABLAS!$A$203) -> 0 | Q64: =+Q63+1 -> 42 | AC64: 042 | AN64: =+IMPORTARDATOSDINAMICOS(" BAS042";TABLAS!$A$281)
C65: Segunda | D65: Mediante visita familiar | E65: =+GETPIVOTDATA(" BAS043",TABLAS!$A$203) -> 0 | Q65: =+Q64+1 -> 43 | AC65: 043 | AN65: =+IMPORTARDATOSDINAMICOS(" BAS043";TABLAS!$A$281)
D66: Mediante teleorientación síncrona | E66: =+GETPIVOTDATA(" BAS044",TABLAS!$A$203) -> 0 | Q66: 44 | AC66: 044 | AN66: =+IMPORTARDATOSDINAMICOS(" BAS044";TABLAS!$A$281)
B67: Sesión educativa y demostrativa para TB | C67: Primera | E67: =+GETPIVOTDATA(" BAS045",TABLAS!$A$203) -> 0 | F67: =SUM(E67+E68) -> 0 | Q67: 45 | AC67: 045 | AN67: =+IMPORTARDATOSDINAMICOS(" BAS045";TABLAS!$A$281)
C68: Segunda | E68: =+GETPIVOTDATA(" BAS046",TABLAS!$A$203) -> 0 | Q68: 46 | AC68: 046 | AN68: =+IMPORTARDATOSDINAMICOS(" BAS046";TABLAS!$A$281)
B69: Visitas familiar | F69: =SUM(C56+E63+E65) -> 0
B70: Otras consejerias | F70: =+GETPIVOTDATA(" BAS047",TABLAS!$A$203) -> 2 | Q70: =+Q68+1 -> 47 | AC70: =IF(LEN(Q70)=1,CONCATENATE("00",Q70),IF(LEN(Q70)=2,CONCATENATE("0",Q70),Q70)) -> 047 | AN70: =$AI$23&AC70&$AJ$22 -> =+IMPORTARDATOSDINAMICOS(" BAS047";TABLAS!$A$281)
B73: V. ACTIVIDADES EN TELESALUD
B75: ACTIVIDADES | C75: N°
B76: Teleconsulta en línea | C76: =G45 -> 0
B77: Teleorientación síncrona | C77: =SUM(G48+C57) -> 0
B78: Total | C78: =SUM(C76+C77) -> 0
B80: REPORTE DE ACTIVIDADES SEGMENTADO POR POBLACION AFECTADA Y VULNERABLE
B82: ACTIVIDADES | C82: POBLACION AFECTADA Y VULNERABLE | M82: TOTAL
C83: POBLACIÓN EN GENERAL | D83: CONTACTOS | E83: PERSONA VIVIENDO CON VIH/SIDA | F83: TRABAJADOR DE SALUD | G83: PERSONA CON DIABETES MELLITUS | H83: PPL | I83: PERSONA CON TERAPIA PROLONGADA CON CORTICOIDES | J83: PERSONA CON HEMODIALISIS Y/O ENFERMEDAD RENAL CRÓNICA | K83: PERSONAL PENITENCIARIO | L83: OTRAS CONDICIONES DE SALUD SEGÚN NORMATIVIDAD VIGENTE
B84: Aplicación de PPD | D84: =+GETPIVOTDATA(" BAS048",TABLAS!$A$203) -> 20 | E84: =+GETPIVOTDATA(" BAS049",TABLAS!$A$203) -> 0 | F84: =+GETPIVOTDATA(" BAS050",TABLAS!$A$203) -> 2 | G84: =+GETPIVOTDATA(" BAS051",TABLAS!$A$203) -> 0 | H84: =+GETPIVOTDATA(" BAS052",TABLAS!$A$203) -> 0 | I84: =+GETPIVOTDATA(" BAS053",TABLAS!$A$203) -> 0 | J84: =+GETPIVOTDATA(" BAS054",TABLAS!$A$203) -> 0 | K84: =+GETPIVOTDATA(" BAS055",TABLAS!$A$203) -> 0 | L84: =+GETPIVOTDATA(" BAS056",TABLAS!$A$203) -> 0 | M84: =SUM(C84+D84+E84+F84+G84+H84+I84+J84+K84+L84) -> 22 | Q84: =+Q70+1 -> 48 | R84: =+Q84+1 -> 49 | S84: =+R84+1 -> 50 | T84: 51 | U84: 52 | V84: 53 | W84: 54 | X84: 55 | Y84: 56 | AC84: =IF(LEN(Q84)=1,CONCATENATE("00",Q84),IF(LEN(Q84)=2,CONCATENATE("0",Q84),Q84)) -> 048 | AD84: 049 | AE84: 050 | AF84: 051 | AG84: 052 | AH84: 053 | AI84: 054 | AJ84: 055 | AK84: 056 | AN84: =$AI$23&AC84&$AJ$22 -> =+IMPORTARDATOSDINAMICOS(" BAS048";TABLAS!$A$281) | AO84: =$AI$23&AD84&$AJ$22 -> =+IMPORTARDATOSDINAMICOS(" BAS049";TABLAS!$A$281) | AP84: =+IMPORTARDATOSDINAMICOS(" BAS050";TABLAS!$A$281) | AQ84: =+IMPORTARDATOSDINAMICOS(" BAS051";TABLAS!$A$281) | AR84: =+IMPORTARDATOSDINAMICOS(" BAS052";TABLAS!$A$281) | AS84: =+IMPORTARDATOSDINAMICOS(" BAS053";TABLAS!$A$281) | AT84: =+IMPORTARDATOSDINAMICOS(" BAS054";TABLAS!$A$281) | AU84: =+IMPORTARDATOSDINAMICOS(" BAS055";TABLAS!$A$281) | AV84: =+IMPORTARDATOSDINAMICOS(" BAS056";TABLAS!$A$281)
B85: Lectura de PPD | D85: =+GETPIVOTDATA(" BAS057",TABLAS!$A$203) -> 18 | E85: =+GETPIVOTDATA(" BAS058",TABLAS!$A$203) -> 0 | F85: =+GETPIVOTDATA(" BAS059",TABLAS!$A$203) -> 2 | G85: =+GETPIVOTDATA(" BAS060",TABLAS!$A$203) -> 0 | H85: =+GETPIVOTDATA(" BAS061",TABLAS!$A$203) -> 0 | I85: =+GETPIVOTDATA(" BAS062",TABLAS!$A$203) -> 0 | J85: =+GETPIVOTDATA(" BAS063",TABLAS!$A$203) -> 0 | K85: =+GETPIVOTDATA(" BAS064",TABLAS!$A$203) -> 0 | L85: =+GETPIVOTDATA(" BAS065",TABLAS!$A$203) -> 0 | M85: 20 | Q85: =+Y84+1 -> 57 | R85: =+Q85+1 -> 58 | S85: 59 | T85: 60 | U85: 61 | V85: 62 | W85: 63 | X85: 64 | Y85: 65 | AC85: 057 | AD85: 058 | AE85: 059 | AF85: 060 | AG85: 061 | AH85: 062 | AI85: 063 | AJ85: 064 | AK85: 065 | AN85: =$AI$23&AC85&$AJ$22 -> =+IMPORTARDATOSDINAMICOS(" BAS057";TABLAS!$A$281) | AO85: =+IMPORTARDATOSDINAMICOS(" BAS058";TABLAS!$A$281) | AP85: =+IMPORTARDATOSDINAMICOS(" BAS059";TABLAS!$A$281) | AQ85: =+IMPORTARDATOSDINAMICOS(" BAS060";TABLAS!$A$281) | AR85: =+IMPORTARDATOSDINAMICOS(" BAS061";TABLAS!$A$281) | AS85: =+IMPORTARDATOSDINAMICOS(" BAS062";TABLAS!$A$281) | AT85: =+IMPORTARDATOSDINAMICOS(" BAS063";TABLAS!$A$281) | AU85: =+IMPORTARDATOSDINAMICOS(" BAS064";TABLAS!$A$281) | AV85: =+IMPORTARDATOSDINAMICOS(" BAS065";TABLAS!$A$281)
B86: Aplicación de IGRA | D86: =+GETPIVOTDATA(" BAS066",TABLAS!$A$203) -> 0 | E86: =+GETPIVOTDATA(" BAS067",TABLAS!$A$203) -> 0 | F86: =+GETPIVOTDATA(" BAS068",TABLAS!$A$203) -> 0 | G86: =+GETPIVOTDATA(" BAS069",TABLAS!$A$203) -> 0 | H86: =+GETPIVOTDATA(" BAS070",TABLAS!$A$203) -> 0 | I86: =+GETPIVOTDATA(" BAS071",TABLAS!$A$203) -> 0 | J86: =+GETPIVOTDATA(" BAS072",TABLAS!$A$203) -> 0 | K86: =+GETPIVOTDATA(" BAS073",TABLAS!$A$203) -> 0 | L86: =+GETPIVOTDATA(" BAS074",TABLAS!$A$203) -> 0 | M86: 0 | Q86: =+Y85+1 -> 66 | R86: 67 | S86: 68 | T86: 69 | U86: 70 | V86: 71 | W86: 72 | X86: 73 | Y86: 74 | AC86: 066 | AD86: 067 | AE86: 068 | AF86: 069 | AG86: 070 | AH86: 071 | AI86: 072 | AJ86: 073 | AK86: 074 | AN86: =+IMPORTARDATOSDINAMICOS(" BAS066";TABLAS!$A$281) | AO86: =+IMPORTARDATOSDINAMICOS(" BAS067";TABLAS!$A$281) | AP86: =+IMPORTARDATOSDINAMICOS(" BAS068";TABLAS!$A$281) | AQ86: =+IMPORTARDATOSDINAMICOS(" BAS069";TABLAS!$A$281) | AR86: =+IMPORTARDATOSDINAMICOS(" BAS070";TABLAS!$A$281) | AS86: =+IMPORTARDATOSDINAMICOS(" BAS071";TABLAS!$A$281) | AT86: =+IMPORTARDATOSDINAMICOS(" BAS072";TABLAS!$A$281) | AU86: =+IMPORTARDATOSDINAMICOS(" BAS073";TABLAS!$A$281) | AV86: =+IMPORTARDATOSDINAMICOS(" BAS074";TABLAS!$A$281)
B87: Lectura de IGRA | D87: =+GETPIVOTDATA(" BAS075",TABLAS!$A$203) -> 0 | E87: =+GETPIVOTDATA(" BAS076",TABLAS!$A$203) -> 0 | F87: =+GETPIVOTDATA(" BAS077",TABLAS!$A$203) -> 0 | G87: =+GETPIVOTDATA(" BAS078",TABLAS!$A$203) -> 0 | H87: =+GETPIVOTDATA(" BAS079",TABLAS!$A$203) -> 0 | I87: =+GETPIVOTDATA(" BAS080",TABLAS!$A$203) -> 0 | J87: =+GETPIVOTDATA(" BAS081",TABLAS!$A$203) -> 0 | K87: =+GETPIVOTDATA(" BAS082",TABLAS!$A$203) -> 0 | L87: =+GETPIVOTDATA(" BAS083",TABLAS!$A$203) -> 0 | M87: 0 | Q87: 75 | R87: 76 | S87: 77 | T87: 78 | U87: 79 | V87: 80 | W87: 81 | X87: 82 | Y87: 83 | AC87: 075 | AD87: 076 | AE87: 077 | AF87: 078 | AG87: 079 | AH87: 080 | AI87: 081 | AJ87: 082 | AK87: 083 | AN87: =+IMPORTARDATOSDINAMICOS(" BAS075";TABLAS!$A$281) | AO87: =+IMPORTARDATOSDINAMICOS(" BAS076";TABLAS!$A$281) | AP87: =+IMPORTARDATOSDINAMICOS(" BAS077";TABLAS!$A$281) | AQ87: =+IMPORTARDATOSDINAMICOS(" BAS078";TABLAS!$A$281) | AR87: =+IMPORTARDATOSDINAMICOS(" BAS079";TABLAS!$A$281) | AS87: =+IMPORTARDATOSDINAMICOS(" BAS080";TABLAS!$A$281) | AT87: =+IMPORTARDATOSDINAMICOS(" BAS081";TABLAS!$A$281) | AU87: =+IMPORTARDATOSDINAMICOS(" BAS082";TABLAS!$A$281) | AV87: =+IMPORTARDATOSDINAMICOS(" BAS083";TABLAS!$A$281)
B88: Administración de terapia preventiva para contactos de TB sensible | D88: =+GETPIVOTDATA(" BAS084",TABLAS!$A$203) -> 1 | M88: 1 | Q88: 84 | AC88: 084 | AN88: =+IMPORTARDATOSDINAMICOS(" BAS084";TABLAS!$A$281)
B89: Administración de terapia preventiva para contactos de TB resistente | D89: =+GETPIVOTDATA(" BAS085",TABLAS!$A$203) -> 0 | M89: 0 | Q89: =+Q88+1 -> 85 | AC89: 085 | AN89: =+IMPORTARDATOSDINAMICOS(" BAS085";TABLAS!$A$281)
B90: Administración de terapia preventiva para población vulnerable para TB | E90: =+GETPIVOTDATA(" BAS086",TABLAS!$A$203) -> 0 | F90: =+GETPIVOTDATA(" BAS087",TABLAS!$A$203) -> 0 | G90: =+GETPIVOTDATA(" BAS088",TABLAS!$A$203) -> 0 | H90: =+GETPIVOTDATA(" BAS089",TABLAS!$A$203) -> 0 | I90: =+GETPIVOTDATA(" BAS090",TABLAS!$A$203) -> 0 | J90: =+GETPIVOTDATA(" BAS091",TABLAS!$A$203) -> 0 | K90: =+GETPIVOTDATA(" BAS092",TABLAS!$A$203) -> 0 | L90: =+GETPIVOTDATA(" BAS093",TABLAS!$A$203) -> 0 | M90: 0 | R90: =+Q89+1 -> 86 | S90: =+R90+1 -> 87 | T90: 88 | U90: 89 | V90: 90 | W90: 91 | X90: 92 | Y90: 93 | AD90: =IF(LEN(R90)=1,CONCATENATE("00",R90),IF(LEN(R90)=2,CONCATENATE("0",R90),R90)) -> 086 | AE90: 087 | AF90: 088 | AG90: 089 | AH90: 090 | AI90: 091 | AJ90: 092 | AK90: 093 | AO90: =$AI$23&AD90&$AJ$22 -> =+IMPORTARDATOSDINAMICOS(" BAS086";TABLAS!$A$281) | AP90: =+IMPORTARDATOSDINAMICOS(" BAS087";TABLAS!$A$281) | AQ90: =+IMPORTARDATOSDINAMICOS(" BAS088";TABLAS!$A$281) | AR90: =+IMPORTARDATOSDINAMICOS(" BAS089";TABLAS!$A$281) | AS90: =+IMPORTARDATOSDINAMICOS(" BAS090";TABLAS!$A$281) | AT90: =+IMPORTARDATOSDINAMICOS(" BAS091";TABLAS!$A$281) | AU90: =+IMPORTARDATOSDINAMICOS(" BAS092";TABLAS!$A$281) | AV90: =+IMPORTARDATOSDINAMICOS(" BAS093";TABLAS!$A$281)
B91: Caso probable | C91: =+GETPIVOTDATA(" BAS094",TABLAS!$A$203) -> 0 | D91: =+GETPIVOTDATA(" BAS095",TABLAS!$A$203) -> 0 | E91: =+GETPIVOTDATA(" BAS096",TABLAS!$A$203) -> 0 | F91: =+GETPIVOTDATA(" BAS097",TABLAS!$A$203) -> 0 | G91: =+GETPIVOTDATA(" BAS098",TABLAS!$A$203) -> 0 | H91: =+GETPIVOTDATA(" BAS099",TABLAS!$A$203) -> 0 | I91: =+GETPIVOTDATA(" BAS100",TABLAS!$A$203) -> 0 | J91: =+GETPIVOTDATA(" BAS101",TABLAS!$A$203) -> 0 | K91: =+GETPIVOTDATA(" BAS102",TABLAS!$A$203) -> 0 | L91: =+GETPIVOTDATA(" BAS103",TABLAS!$A$203) -> 0 | M91: 0 | Q91: 94 | R91: =+Q91+1 -> 95 | S91: 96 | T91: 97 | U91: 98 | V91: 99 | W91: 100 | X91: 101 | Y91: 102 | Z91: 103 | AC91: =IF(LEN(Q91)=1,CONCATENATE("00",Q91),IF(LEN(Q91)=2,CONCATENATE("0",Q91),Q91)) -> 094 | AD91: 095 | AE91: 096 | AF91: 097 | AG91: 098 | AH91: 099 | AI91: 100 | AJ91: 101 | AK91: 102 | AL91: 103 | AN91: =$AI$23&AC91&$AJ$22 -> =+IMPORTARDATOSDINAMICOS(" BAS094";TABLAS!$A$281) | AO91: =+IMPORTARDATOSDINAMICOS(" BAS095";TABLAS!$A$281) | AP91: =+IMPORTARDATOSDINAMICOS(" BAS096";TABLAS!$A$281) | AQ91: =+IMPORTARDATOSDINAMICOS(" BAS097";TABLAS!$A$281) | AR91: =+IMPORTARDATOSDINAMICOS(" BAS098";TABLAS!$A$281) | AS91: =+IMPORTARDATOSDINAMICOS(" BAS099";TABLAS!$A$281) | AT91: =+IMPORTARDATOSDINAMICOS(" BAS100";TABLAS!$A$281) | AU91: =+IMPORTARDATOSDINAMICOS(" BAS101";TABLAS!$A$281) | AV91: =+IMPORTARDATOSDINAMICOS(" BAS102";TABLAS!$A$281) | AW91: =+IMPORTARDATOSDINAMICOS(" BAS103";TABLAS!$A$281)
B92: Sintomático respiratorio identificado | C92: =+GETPIVOTDATA(" BAS104",TABLAS!$A$203) -> 389 | D92: =+GETPIVOTDATA(" BAS105",TABLAS!$A$203) -> 3 | E92: =+GETPIVOTDATA(" BAS106",TABLAS!$A$203) -> 0 | F92: =+GETPIVOTDATA(" BAS107",TABLAS!$A$203) -> 0 | G92: =+GETPIVOTDATA(" BAS108",TABLAS!$A$203) -> 0 | H92: =+GETPIVOTDATA(" BAS109",TABLAS!$A$203) -> 6 | I92: =+GETPIVOTDATA(" BAS110",TABLAS!$A$203) -> 0 | J92: =+GETPIVOTDATA(" BAS111",TABLAS!$A$203) -> 0 | K92: =+GETPIVOTDATA(" BAS112",TABLAS!$A$203) -> 0 | L92: =+GETPIVOTDATA(" BAS113",TABLAS!$A$203) -> 0 | M92: 398 | Q92: =+Z91+1 -> 104 | R92: 105 | S92: 106 | T92: 107 | U92: 108 | V92: 109 | W92: 110 | X92: 111 | Y92: 112 | Z92: 113 | AC92: 104 | AD92: 105 | AE92: 106 | AF92: 107 | AG92: 108 | AH92: 109 | AI92: 110 | AJ92: 111 | AK92: 112 | AL92: 113 | AN92: =+IMPORTARDATOSDINAMICOS(" BAS104";TABLAS!$A$281) | AO92: =+IMPORTARDATOSDINAMICOS(" BAS105";TABLAS!$A$281) | AP92: =+IMPORTARDATOSDINAMICOS(" BAS106";TABLAS!$A$281) | AQ92: =+IMPORTARDATOSDINAMICOS(" BAS107";TABLAS!$A$281) | AR92: =+IMPORTARDATOSDINAMICOS(" BAS108";TABLAS!$A$281) | AS92: =+IMPORTARDATOSDINAMICOS(" BAS109";TABLAS!$A$281) | AT92: =+IMPORTARDATOSDINAMICOS(" BAS110";TABLAS!$A$281) | AU92: =+IMPORTARDATOSDINAMICOS(" BAS111";TABLAS!$A$281) | AV92: =+IMPORTARDATOSDINAMICOS(" BAS112";TABLAS!$A$281) | AW92: =+IMPORTARDATOSDINAMICOS(" BAS113";TABLAS!$A$281)
B93: Sintomático respiratorio examinado | C93: =+GETPIVOTDATA(" BAS114",TABLAS!$A$203) -> 367 | D93: =+GETPIVOTDATA(" BAS115",TABLAS!$A$203) -> 1 | E93: =+GETPIVOTDATA(" BAS116",TABLAS!$A$203) -> 0 | F93: =+GETPIVOTDATA(" BAS117",TABLAS!$A$203) -> 0 | G93: =+GETPIVOTDATA(" BAS118",TABLAS!$A$203) -> 0 | H93: =+GETPIVOTDATA(" BAS119",TABLAS!$A$203) -> 8 | I93: =+GETPIVOTDATA(" BAS120",TABLAS!$A$203) -> 0 | J93: =+GETPIVOTDATA(" BAS121",TABLAS!$A$203) -> 0 | K93: =+GETPIVOTDATA(" BAS122",TABLAS!$A$203) -> 0 | L93: =+GETPIVOTDATA(" BAS123",TABLAS!$A$203) -> 0 | M93: 376 | Q93: =+Z92+1 -> 114 | R93: 115 | S93: 116 | T93: 117 | U93: 118 | V93: 119 | W93: 120 | X93: 121 | Y93: 122 | Z93: 123 | AC93: 114 | AD93: 115 | AE93: 116 | AF93: 117 | AG93: 118 | AH93: 119 | AI93: 120 | AJ93: 121 | AK93: 122 | AL93: 123 | AN93: =+IMPORTARDATOSDINAMICOS(" BAS114";TABLAS!$A$281) | AO93: =+IMPORTARDATOSDINAMICOS(" BAS115";TABLAS!$A$281) | AP93: =+IMPORTARDATOSDINAMICOS(" BAS116";TABLAS!$A$281) | AQ93: =+IMPORTARDATOSDINAMICOS(" BAS117";TABLAS!$A$281) | AR93: =+IMPORTARDATOSDINAMICOS(" BAS118";TABLAS!$A$281) | AS93: =+IMPORTARDATOSDINAMICOS(" BAS119";TABLAS!$A$281) | AT93: =+IMPORTARDATOSDINAMICOS(" BAS120";TABLAS!$A$281) | AU93: =+IMPORTARDATOSDINAMICOS(" BAS121";TABLAS!$A$281) | AV93: =+IMPORTARDATOSDINAMICOS(" BAS122";TABLAS!$A$281) | AW93: =+IMPORTARDATOSDINAMICOS(" BAS123";TABLAS!$A$281)
B94: SR examinados con bacteriología confirmada | C94: =+GETPIVOTDATA(" BAS124",TABLAS!$A$203) -> 0 | D94: =+GETPIVOTDATA(" BAS125",TABLAS!$A$203) -> 0 | E94: =+GETPIVOTDATA(" BAS126",TABLAS!$A$203) -> 0 | F94: =+GETPIVOTDATA(" BAS127",TABLAS!$A$203) -> 0 | G94: =+GETPIVOTDATA(" BAS128",TABLAS!$A$203) -> 0 | H94: =+GETPIVOTDATA(" BAS129",TABLAS!$A$203) -> 0 | I94: =+GETPIVOTDATA(" BAS130",TABLAS!$A$203) -> 0 | J94: =+GETPIVOTDATA(" BAS131",TABLAS!$A$203) -> 0 | K94: =+GETPIVOTDATA(" BAS132",TABLAS!$A$203) -> 0 | L94: =+GETPIVOTDATA(" BAS133",TABLAS!$A$203) -> 0 | M94: 0 | Q94: 124 | R94: 125 | S94: 126 | T94: 127 | U94: 128 | V94: 129 | W94: 130 | X94: 131 | Y94: 132 | Z94: 133 | AC94: 124 | AD94: 125 | AE94: 126 | AF94: 127 | AG94: 128 | AH94: 129 | AI94: 130 | AJ94: 131 | AK94: 132 | AL94: 133 | AN94: =+IMPORTARDATOSDINAMICOS(" BAS124";TABLAS!$A$281) | AO94: =+IMPORTARDATOSDINAMICOS(" BAS125";TABLAS!$A$281) | AP94: =+IMPORTARDATOSDINAMICOS(" BAS126";TABLAS!$A$281) | AQ94: =+IMPORTARDATOSDINAMICOS(" BAS127";TABLAS!$A$281) | AR94: =+IMPORTARDATOSDINAMICOS(" BAS128";TABLAS!$A$281) | AS94: =+IMPORTARDATOSDINAMICOS(" BAS129";TABLAS!$A$281) | AT94: =+IMPORTARDATOSDINAMICOS(" BAS130";TABLAS!$A$281) | AU94: =+IMPORTARDATOSDINAMICOS(" BAS131";TABLAS!$A$281) | AV94: =+IMPORTARDATOSDINAMICOS(" BAS132";TABLAS!$A$281) | AW94: =+IMPORTARDATOSDINAMICOS(" BAS133";TABLAS!$A$281)

Sheet TOTAL
B3: REPORTE MENSUAL DE ACTIVIDADES DE PREVENCION Y CONTROL DE TUBERCULOSIS
B4: CURSO DE VIDA : TODOS
B6: DIRESA | C6: CUSCO | F6: REGION | G6: CUSCO
B8: RED DE SALUD | C8: =+TABLAS!O9 -> 03 - LA CONVENCION | F8: EJECUTORA | G8: =+TABLAS!O14 -> 
B10: MICRO RED | C10: =+TABLAS!O10 ->  | F10: RESPONSABLE
B12: EE.SS. | C12: =+TABLAS!O11 ->  | F12: COD. RENAES | G12: =+TABLAS!Q11 -> 
B14: PROVINCIA | C14: =+TABLAS!O12 ->  | F14: AÑO | G14: =+TABLAS!J16 -> 2025
B16: DISTRITO | C16: =+TABLAS!O13 ->  | F16: MES | G16: =+TABLAS!N26 -> ENE - MAR
B18: INSTITUCION : MINSA ( X ) ESSALUD ( ) FFAA ( ) PNP ( ) INPE ( ) OTROS ( )
B20: I. ACTIVIDADES DE DETECCION Y DIAGNOSTICO PARA TUBERCULOSIS
B22: DETECCIÓN DE CASOS | G22: RECOLECCIÓN DE MUESTRAS PARA EXAMEN BACTERIOLÓGICO | I22: N° | AJ22: ";TABLAS!$A$281)
B23: Sintomático respiratorio (SR) | E23: Caso probable de TB | G23: RECOLECCIÓN DE MUESTRAS PARA TB* | I23: =+'TBC0011'!I23+'TBC1217'!I23+'TBC1829'!I23+'TBC3059'!I23+'TBC6099'!I23 -> 4061 | Q23: 1 | AC23: =IF(LEN(Q23)=1,CONCATENATE("00",Q23),IF(LEN(Q23)=2,CONCATENATE("0",Q23),Q23)) -> 001 | AI23: =+IMPORTARDATOSDINAMICOS(" BAS | AN23: =$AI$23&AC23&$AJ$22 -> =+IMPORTARDATOSDINAMICOS(" BAS001";TABLAS!$A$281)
B24: SR Identificado | C24: SR Examinado | D24: SR examinados con bacteriología confirmada | G24: PROCEDIMIENTOS ESPECIALES PARA OBTENCION DE MUESTRAS | H24: Lavado gástrico | I24: =+'TBC0011'!I24+'TBC1217'!I24+'TBC1829'!I24+'TBC3059'!I24+'TBC6099'!I24 -> 0 | Q24: =+Q23+1 -> 2 | AC24: 002 | AN24: =$AI$23&AC24&$AJ$22 -> =+IMPORTARDATOSDINAMICOS(" BAS002";TABLAS!$A$281)
B25: =M92 -> 1155 | C25: =M93 -> 1099 | D25: =M94 -> 4 | E25: =M91 -> 0 | H25: Inducción del esputo | I25: =+'TBC0011'!I25+'TBC1217'!I25+'TBC1829'!I25+'TBC3059'!I25+'TBC6099'!I25 -> 0 | Q25: =+Q24+1 -> 3 | AC25: 003 | AN25: =+IMPORTARDATOSDINAMICOS(" BAS003";TABLAS!$A$281)
G26: TOTAL | I26: =SUM(I23+I24+I25) -> 4061
B27: SR examinados con bacteriología confirmada | G27: *Muestra recolectada por expectoración espontánea
B28: Por baciloscopia | D28: =+'TBC0011'!D28+'TBC1217'!D28+'TBC1829'!D28+'TBC3059'!D28+'TBC6099'!D28 -> 3 | G28: REFERENCIAS | Q28: =+Q25+1 -> 4 | AC28: =IF(LEN(Q28)=1,CONCATENATE("00",Q28),IF(LEN(Q28)=2,CONCATENATE("0",Q28),Q28)) -> 004 | AN28: =$AI$23&AC28&$AJ$22 -> =+IMPORTARDATOSDINAMICOS(" BAS004";TABLAS!$A$281)
B29: Por prueba molecular | D29: =+'TBC0011'!D29+'TBC1217'!D29+'TBC1829'!D29+'TBC3059'!D29+'TBC6099'!D29 -> 1 | G29: Condición | H29: Derivaciones | I29: Transferencias | Q29: =+Q28+1 -> 5 | T29: =+Q30+1 -> 7 | U29: =+T29+1 -> 8 | AC29: 005 | AF29: =IF(LEN(T29)=1,CONCATENATE("00",T29),IF(LEN(T29)=2,CONCATENATE("0",T29),T29)) -> 007 | AG29: 008 | AN29: =+IMPORTARDATOSDINAMICOS(" BAS005";TABLAS!$A$281) | AQ29: =$AI$23&AF29&$AJ$22 -> =+IMPORTARDATOSDINAMICOS(" BAS007";TABLAS!$A$281) | AR29: =+IMPORTARDATOSDINAMICOS(" BAS008";TABLAS!$A$281)
B30: Por cultivo | D30: =+'TBC0011'!D30+'TBC1217'!D30+'TBC1829'!D30+'TBC3059'!D30+'TBC6099'!D30 -> 0 | G30: Realizadas | H30: =+'TBC0011'!H30+'TBC1217'!H30+'TBC1829'!H30+'TBC3059'!H30+'TBC6099'!H30 -> 1 | I30: =+'TBC0011'!I30+'TBC1217'!I30+'TBC1829'!I30+'TBC3059'!I30+'TBC6099'!I30 -> 1 | Q30: =+Q29+1 -> 6 | T30: =+U29+1 -> 9 | U30: =+T30+1 -> 10 | AC30: 006 | AF30: 009 | AG30: 010 | AN30: =+IMPORTARDATOSDINAMICOS(" BAS006";TABLAS!$A$281) | AQ30: =+IMPORTARDATOSDINAMICOS(" BAS009";TABLAS!$A$281) | AR30: =+IMPORTARDATOSDINAMICOS(" BAS010";TABLAS!$A$281)
B31: TOTAL | D31: =SUM(D28+D29+D30) -> 4 | G31: Aceptadas | H31: =+'TBC0011'!H31+'TBC1217'!H31+'TBC1829'!H31+'TBC3059'!H31+'TBC6099'!H31 -> 4 | I31: =+'TBC0011'!I31+'TBC1217'!I31+'TBC1829'!I31+'TBC3059'!I31+'TBC6099'!I31 -> 0
G32: TOTAL | H32: =SUM(H30+H31) -> 5 | I32: =SUM(I30+I31) -> 1
B33: COMORBILIDADES Y CONDICIONES ASOCIADAS | D33: N°
B34: TB-VIH/SIDA | D34: =+'TBC0011'!D34+'TBC1217'!D34+'TBC1829'!D34+'TBC3059'!D34+'TBC6099'!D34 -> 0 | G34: TAMIZAJE DE COMORBILIDADES | I34: N° | Q34: =+U30+1 -> 11 | AC34: =IF(LEN(Q34)=1,CONCATENATE("00",Q34),IF(LEN(Q34)=2,CONCATENATE("0",Q34),Q34)) -> 011 | AN34: =$AI$23&AC34&$AJ$22 -> =+IMPORTARDATOSDINAMICOS(" BAS011";TABLAS!$A$281)
B35: TB-DM | D35: =+'TBC0011'!D35+'TBC1217'!D35+'TBC1829'!D35+'TBC3059'!D35+'TBC6099'!D35 -> 0 | G35: Tamizaje TB-VIH | I35: =+'TBC0011'!I35+'TBC1217'!I35+'TBC1829'!I35+'TBC3059'!I35+'TBC6099'!I35 -> 14 | Q35: =+Q34+1 -> 12 | S35: =+Q36+1 -> 14 | AC35: 012 | AE35: =IF(LEN(S35)=1,CONCATENATE("00",S35),IF(LEN(S35)=2,CONCATENATE("0",S35),S35)) -> 014 | AN35: =+IMPORTARDATOSDINAMICOS(" BAS012";TABLAS!$A$281) | AP35: =$AI$23&AE35&$AJ$22 -> =+IMPORTARDATOSDINAMICOS(" BAS014";TABLAS!$A$281)
B36: Reacción adversa a medicamentos para TB | D36: =+'TBC0011'!D36+'TBC1217'!D36+'TBC1829'!D36+'TBC3059'!D36+'TBC6099'!D36 -> 0 | G36: Tamizaje TB-DM | I36: =+'TBC0011'!I36+'TBC1217'!I36+'TBC1829'!I36+'TBC3059'!I36+'TBC6099'!I36 -> 11 | Q36: 13 | S36: =+S35+1 -> 15 | AC36: 013 | AE36: 015 | AN36: =+IMPORTARDATOSDINAMICOS(" BAS013";TABLAS!$A$281) | AP36: =+IMPORTARDATOSDINAMICOS(" BAS015";TABLAS!$A$281)
B39: II. ACTIVIDADES PARA LA RECUPERACION DE LA PERSONA AFECTADA POR TUBERCULOSIS
B41: ATENCIÓN MULTIDISCIPLINARIA | D41: MODALIDAD | E41: EN PAT CON TB SENSIBLE | F41: EN PAT CON TB RESISTENTE | G41: TOTAL | I41: 2 | K41: N°
B42: Evaluación médica | E42: =+'TBC0011'!E42+'TBC1217'!E42+'TBC1829'!E42+'TBC3059'!E42+'TBC6099'!E42 -> 7 | F42: =+'TBC0011'!F42+'TBC1217'!F42+'TBC1829'!F42+'TBC3059'!F42+'TBC6099'!F42 -> 2 | G42: =SUM(E42+F42) -> 9 | I42: Administración de tratamiento para TB sensible | K42: =+'TBC0011'!K42+'TBC1217'!K42+'TBC1829'!K42+'TBC3059'!K42+'TBC6099'!K42 -> 1819 | Q42: =+S36+1 -> 16 | R42: =+Q42+1 -> 17 | V42: =+Q48+1 -> 28 | AC42: =IF(LEN(Q42)=1,CONCATENATE("00",Q42),IF(LEN(Q42)=2,CONCATENATE("0",Q42),Q42)) -> 016 | AD42: 017 | AH42: =IF(LEN(V42)=1,CONCATENATE("00",V42),IF(LEN(V42)=2,CONCATENATE("0",V42),V42)) -> 028 | AN42: =$AI$23&AC42&$AJ$22 -> =+IMPORTARDATOSDINAMICOS(" BAS016";TABLAS!$A$281) | AO42: =+IMPORTARDATOSDINAMICOS(" BAS017";TABLAS!$A$281) | AS42: =$AI$23&AH42&$AJ$22 -> =+IMPORTARDATOSDINAMICOS(" BAS028";TABLAS!$A$281)
B43: Atención en consultorio de enfermería | E43: =+'TBC0011'!E43+'TBC1217'!E43+'TBC1829'!E43+'TBC3059'!E43+'TBC6099'!E43 -> 0 | F43: =+'TBC0011'!F43+'TBC1217'!F43+'TBC1829'!F43+'TBC3059'!F43+'TBC6099'!F43 -> 0 | G43: =SUM(E43+F43) -> 0 | I43: Administración de tratamiento para TB resistente | K43: =+'TBC0011'!K43+'TBC1217'!K43+'TBC1829'!K43+'TBC3059'!K43+'TBC6099'!K43 -> 316 | Q43: =+R42+1 -> 18 | R43: =+Q43+1 -> 19 | V43: =+V42+1 -> 29 | AC43: 018 | AD43: 019 | AH43: 029 | AN43: =+IMPORTARDATOSDINAMICOS(" BAS018";TABLAS!$A$281) | AO43: =+IMPORTARDATOSDINAMICOS(" BAS019";TABLAS!$A$281) | AS43: =+IMPORTARDATOSDINAMICOS(" BAS029";TABLAS!$A$281)
B44: Atención de servicio social | D44: En el establecimiento de salud | E44: =+'TBC0011'!E44+'TBC1217'!E44+'TBC1829'!E44+'TBC3059'!E44+'TBC6099'!E44 -> 0 | F44: =+'TBC0011'!F44+'TBC1217'!F44+'TBC1829'!F44+'TBC3059'!F44+'TBC6099'!F44 -> 0 | G44: =SUM(E44+F44) -> 0 | I44: Control de tratamiento | K44: =+'TBC0011'!K44+'TBC1217'!K44+'TBC1829'!K44+'TBC3059'!K44+'TBC6099'!K44 -> 74 | Q44: =+R43+1 -> 20 | R44: 21 | V44: =+V43+1 -> 30 | AC44: 020 | AD44: 021 | AH44: 030 | AN44: =+IMPORTARDATOSDINAMICOS(" BAS020";TABLAS!$A$281) | AO44: =+IMPORTARDATOSDINAMICOS(" BAS021";TABLAS!$A$281) | AS44: =+IMPORTARDATOSDINAMICOS(" BAS030";TABLAS!$A$281)
D45: Mediante teleconsulta en línea | E45: =+'TBC0011'!E45+'TBC1217'!E45+'TBC1829'!E45+'TBC3059'!E45+'TBC6099'!E45 -> 0 | F45: =+'TBC0011'!F45+'TBC1217'!F45+'TBC1829'!F45+'TBC3059'!F45+'TBC6099'!F45 -> 0 | G45: =SUM(E45+F45) -> 0 | Q45: 22 | R45: 23 | AC45: 022 | AD45: 023 | AN45: =+IMPORTARDATOSDINAMICOS(" BAS022";TABLAS!$A$281) | AO45: =+IMPORTARDATOSDINAMICOS(" BAS023";TABLAS!$A$281)
B46: Atención en nutrición | E46: =+'TBC0011'!E46+'TBC1217'!E46+'TBC1829'!E46+'TBC3059'!E46+'TBC6099'!E46 -> 11 | F46: =+'TBC0011'!F46+'TBC1217'!F46+'TBC1829'!F46+'TBC3059'!F46+'TBC6099'!F46 -> 0 | G46: =SUM(E46+F46) -> 11 | I46: RETO ANTE REACCIONES ADVERSAS | Q46: 24 | R46: 25 | AC46: 024 | AD46: 025 | AN46: =+IMPORTARDATOSDINAMICOS(" BAS024";TABLAS!$A$281) | AO46: =+IMPORTARDATOSDINAMICOS(" BAS025";TABLAS!$A$281)
B47: Atención en salud mental | D47: En el establecimiento de salud | G47: =+'TBC0011'!G47+'TBC1217'!G47+'TBC1829'!G47+'TBC3059'!G47+'TBC6099'!G47 -> 0 | I47: Condición | J47: N° | Q47: 26 | AC47: 026 | AN47: =+IMPORTARDATOSDINAMICOS(" BAS026";TABLAS!$A$281)
D48: Mediante teleorientación síncrona | G48: =+'TBC0011'!G48+'TBC1217'!G48+'TBC1829'!G48+'TBC3059'!G48+'TBC6099'!G48 -> 0 | I48: Inicio | J48: =+'TBC0011'!J48+'TBC1217'!J48+'TBC1829'!J48+'TBC3059'!J48+'TBC6099'!J48 -> 0 | L48: REGISTRO EN EL PADRON DE BENEFICIARIOS PANTBC | Q48: =+Q47+1 -> 27 | V48: =+V44+1 -> 31 | AC48: 027 | AH48: =IF(LEN(V48)=1,CONCATENATE("00",V48),IF(LEN(V48)=2,CONCATENATE("0",V48),V48)) -> 031 | AN48: =+IMPORTARDATOSDINAMICOS(" BAS027";TABLAS!$A$281) | AS48: =$AI$23&AH48&$AJ$22 -> =+IMPORTARDATOSDINAMICOS(" BAS031";TABLAS!$A$281)
I49: Término | J49: =+'TBC0011'!J49+'TBC1217'!J49+'TBC1829'!J49+'TBC3059'!J49+'TBC6099'!J49 -> 0 | L49: =+'TBC0011'!L49+'TBC1217'!L49+'TBC1829'!L49+'TBC3059'!L49+'TBC6099'!L49 -> 11 | V49: =+V48+1 -> 32 | X49: =+V49+1 -> 33 | AH49: 032 | AJ49: =IF(LEN(X49)=1,CONCATENATE("00",X49),IF(LEN(X49)=2,CONCATENATE("0",X49),X49)) -> 033 | AS49: =+IMPORTARDATOSDINAMICOS(" BAS032";TABLAS!$A$281) | AU49: =$AI$23&AJ49&$AJ$22 -> =+IMPORTARDATOSDINAMICOS(" BAS033";TABLAS!$A$281)
B52: III. ACTIVIDADES DE PREVENCIÓN EN TUBERCULOSIS
B54: CENSO DE CONTACTOS | C54: N° | E54: PRUEBA PARA DIAGNOSTICO DE TB LATENTE | G54: N° | H54: POSITIVOS | J54: TERAPIA PREVENTIVA PARA TUBERCULOSIS LATENTE | L54: N°
